Workbook

Sheet วิธีใช้
A1: วิธีใช้งาน โปรแกรม RID Probability Based Rule Curve
A3: 1. Input Data
B5: 1.1 ไปชีต "Monthly Storage"
B6: กรอกข้อมูล Storage รายวัน ลงในชีต Monthly Storage ตามตารางที่จัดเตรียมไว้ให้ซึ่งรองรับข้อมูลถึง 50 ปี
B7: โดยในปีแรกที่กรอกให้เป็นปีที่มีข้อมูลครบทั้งปี และกรอกข้อมูลจนถึงปีปัจจุบัน
B27: 1.2 ไปชีต "EL_Area_Vol"
B28: กรอกข้อมูลโค้งความจุ โดยเริ่มกรอกในแถวที่ 3 เป็นต้นไปไม่เกิน 1000 บรรทัด
A45: 2. ไปที่ชีต "หา NRI"
B47: 2.1 เช็คปีแรกที่กรอกข้อมูลเป็นปีที่มีข้อมูลครบปี
B63: 2.2 ลบชื่อปีล่าสุดที่ข้อมูลมีไม่ครบปี
B89: 2.3 โปรแกรมจะคำนวนค่าอัลฟาของจำนวนปีที่ระดับ 0.01-0.20
A116: 3. ไปที่ชีต "NRI"
B117: 3.1 กรอกข้อมูลอ่างเก็บน้ำ
B133: 3.2 ตรวจสอบกราฟแบ่งฤดูแล้ง ฤดูฝน
C134: - โดยโปรแกรมหาค่า NRI ได้อัตโนมัติ จะขึ้นกล่องข้อความ "แนะนำ" หน้าปุ่ม Auto
C135: ให้กดปุ่ม Auto เพื่อนำค่า NRI ไปใช้งานต่อ

Sheet Monthly Storage
A1: RID Probabilty Based Rule Curve
A2: หน่วย : ล้าน ลบ.ม.
A3: Dam | B3: Date(d/m/y) | C3: Average | D3: 1986 | E3: 1987 | F3: 1988 | G3: 1989 | H3: 1990 | I3: 1991 | J3: 1992 | K3: 1993 | L3: 1994 | M3: 1995 | N3: 1996 | O3: 1997 | P3: 1998 | Q3: 1999 | R3: 2000 | S3: 2001 | T3: 2002 | U3: 2003 | V3: 2004 | W3: 2005 | X3: 2006 | Y3: 2007 | Z3: 2008 | AA3: 2009 | AB3: 2010 | AC3: 2011 | AD3: 2012 | AE3: 2013 | AF3: 2014 | AG3: 2015 | AH3: 2016 | AI3: 2017 | AJ3: 2018 | AK3: 2019
A4: KKJ | B4: 2010-01-01 | C4: =AVERAGE(D4:IV4) -> 
A5: =A4 -> KKJ | B5: 2010-01-02
A6: =A5 -> KKJ | B6: 2010-01-03
A7: KKJ | B7: 2010-01-04
A8: KKJ | B8: 2010-01-05
A9: KKJ | B9: 2010-01-06
A10: KKJ | B10: 2010-01-07
A11: KKJ | B11: 2010-01-08
A12: KKJ | B12: 2010-01-09
A13: KKJ | B13: 2010-01-10
A14: KKJ | B14: 2010-01-11
A15: KKJ | B15: 2010-01-12
A16: KKJ | B16: 2010-01-13
A17: KKJ | B17: 2010-01-14
A18: KKJ | B18: 2010-01-15
A19: KKJ | B19: 2010-01-16
A20: KKJ | B20: 2010-01-17
A21: KKJ | B21: 2010-01-18
A22: KKJ | B22: 2010-01-19
A23: KKJ | B23: 2010-01-20
A24: KKJ | B24: 2010-01-21
A25: KKJ | B25: 2010-01-22
A26: KKJ | B26: 2010-01-23
A27: KKJ | B27: 2010-01-24
A28: KKJ | B28: 2010-01-25
A29: KKJ | B29: 2010-01-26
A30: KKJ | B30: 2010-01-27
A31: KKJ | B31: 2010-01-28
A32: KKJ | B32: 2010-01-29
A33: KKJ | B33: 2010-01-30
A34: KKJ | B34: 2010-01-31
A35: KKJ | B35: 2010-02-01
A36: KKJ | B36: 2010-02-02
A37: KKJ | B37: 2010-02-03
A38: KKJ | B38: 2010-02-04
A39: KKJ | B39: 2010-02-05
A40: KKJ | B40: 2010-02-06
A41: KKJ | B41: 2010-02-07
A42: KKJ | B42: 2010-02-08
A43: KKJ | B43: 2010-02-09
A44: KKJ | B44: 2010-02-10
A45: KKJ | B45: 2010-02-11
A46: KKJ | B46: 2010-02-12
A47: KKJ | B47: 2010-02-13
A48: KKJ | B48: 2010-02-14
A49: KKJ | B49: 2010-02-15
A50: KKJ | B50: 2010-02-16
A51: KKJ | B51: 2010-02-17
A52: KKJ | B52: 2010-02-18
A53: KKJ | B53: 2010-02-19
A54: KKJ | B54: 2010-02-20
A55: KKJ | B55: 2010-02-21
A56: KKJ | B56: 2010-02-22
A57: KKJ | B57: 2010-02-23
A58: KKJ | B58: 2010-02-24
A59: KKJ | B59: 2010-02-25
A60: KKJ | B60: 2010-02-26
A61: KKJ | B61: 2010-02-27
A62: KKJ | B62: 2010-02-28
A63: KKJ | B63: 2010-03-01
A64: KKJ | B64: 2010-03-02
A65: KKJ | B65: 2010-03-03
A66: KKJ | B66: 2010-03-04
A67: KKJ | B67: 2010-03-05
A68: KKJ | B68: 2010-03-06 | C68: =AVERAGE(D68:IV68) -> 
A69: KKJ | B69: 2010-03-07
A70: =A69 -> KKJ | B70: 2010-03-08
A71: KKJ | B71: 2010-03-09
A72: KKJ | B72: 2010-03-10
A73: KKJ | B73: 2010-03-11
A74: KKJ | B74: 2010-03-12
A75: KKJ | B75: 2010-03-13
A76: KKJ | B76: 2010-03-14
A77: KKJ | B77: 2010-03-15
A78: KKJ | B78: 2010-03-16
A79: KKJ | B79: 2010-03-17
A80: KKJ | B80: 2010-03-18
A81: KKJ | B81: 2010-03-19
A82: KKJ | B82: 2010-03-20
A83: KKJ | B83: 2010-03-21
A84: KKJ | B84: 2010-03-22
A85: KKJ | B85: 2010-03-23
A86: KKJ | B86: 2010-03-24
A87: KKJ | B87: 2010-03-25
A88: KKJ | B88: 2010-03-26
A89: KKJ | B89: 2010-03-27
A90: KKJ | B90: 2010-03-28
A91: KKJ | B91: 2010-03-29
A92: KKJ | B92: 2010-03-30
A93: KKJ | B93: 2010-03-31
A94: KKJ | B94: 2010-04-01
A95: KKJ | B95: 2010-04-02
A96: KKJ | B96: 2010-04-03
A97: KKJ | B97: 2010-04-04
A98: KKJ | B98: 2010-04-05
A99: KKJ | B99: 2010-04-06
A100: KKJ | B100: 2010-04-07
A101: KKJ | B101: 2010-04-08
A102: KKJ | B102: 2010-04-09
A103: KKJ | B103: 2010-04-10
A104: KKJ | B104: 2010-04-11
A105: KKJ | B105: 2010-04-12
A106: KKJ | B106: 2010-04-13
A107: KKJ | B107: 2010-04-14
A108: KKJ | B108: 2010-04-15
A109: KKJ | B109: 2010-04-16
A110: KKJ | B110: 2010-04-17
A111: KKJ | B111: 2010-04-18
A112: KKJ | B112: 2010-04-19
A113: KKJ | B113: 2010-04-20
A114: KKJ | B114: 2010-04-21
A115: KKJ | B115: 2010-04-22
A116: KKJ | B116: 2010-04-23
A117: KKJ | B117: 2010-04-24
A118: KKJ | B118: 2010-04-25
A119: KKJ | B119: 2010-04-26
A120: KKJ | B120: 2010-04-27
A121: KKJ | B121: 2010-04-28
A122: KKJ | B122: 2010-04-29
A123: KKJ | B123: 2010-04-30
A124: KKJ | B124: 2010-05-01
A125: KKJ | B125: 2010-05-02
A126: KKJ | B126: 2010-05-03
A127: KKJ | B127: 2010-05-04
A128: KKJ | B128: 2010-05-05
A129: KKJ | B129: 2010-05-06
A130: KKJ | B130: 2010-05-07
A131: KKJ | B131: 2010-05-08
A132: KKJ | B132: 2010-05-09 | C132: =AVERAGE(D132:IV132) -> 
A133: KKJ | B133: 2010-05-10
A134: =A133 -> KKJ | B134: 2010-05-11
A135: KKJ | B135: 2010-05-12
A136: KKJ | B136: 2010-05-13
A137: KKJ | B137: 2010-05-14
A138: KKJ | B138: 2010-05-15
A139: KKJ | B139: 2010-05-16
A140: KKJ | B140: 2010-05-17
A141: KKJ | B141: 2010-05-18
A142: KKJ | B142: 2010-05-19
A143: KKJ | B143: 2010-05-20
A144: KKJ | B144: 2010-05-21
A145: KKJ | B145: 2010-05-22
A146: KKJ | B146: 2010-05-23
A147: KKJ | B147: 2010-05-24
A148: KKJ | B148: 2010-05-25
A149: KKJ | B149: 2010-05-26
A150: KKJ | B150: 2010-05-27
A151: KKJ | B151: 2010-05-28
A152: KKJ | B152: 2010-05-29
A153: KKJ | B153: 2010-05-30
A154: KKJ | B154: 2010-05-31
A155: KKJ | B155: 2010-06-01
A156: KKJ | B156: 2010-06-02
A157: KKJ | B157: 2010-06-03
A158: KKJ | B158: 2010-06-04
A159: KKJ | B159: 2010-06-05
A160: KKJ | B160: 2010-06-06
A161: KKJ | B161: 2010-06-07
A162: KKJ | B162: 2010-06-08
A163: KKJ | B163: 2010-06-09
A164: KKJ | B164: 2010-06-10
A165: KKJ | B165: 2010-06-11
A166: KKJ | B166: 2010-06-12
A167: KKJ | B167: 2010-06-13
A168: KKJ | B168: 2010-06-14
A169: KKJ | B169: 2010-06-15
A170: KKJ | B170: 2010-06-16
A171: KKJ | B171: 2010-06-17
A172: KKJ | B172: 2010-06-18
A173: KKJ | B173: 2010-06-19
A174: KKJ | B174: 2010-06-20
A175: KKJ | B175: 2010-06-21
A176: KKJ | B176: 2010-06-22
A177: KKJ | B177: 2010-06-23
A178: KKJ | B178: 2010-06-24
A179: KKJ | B179: 2010-06-25
A180: KKJ | B180: 2010-06-26
A181: KKJ | B181: 2010-06-27
A182: KKJ | B182: 2010-06-28
A183: KKJ | B183: 2010-06-29
A184: KKJ | B184: 2010-06-30
A185: KKJ | B185: 2010-07-01
A186: KKJ | B186: 2010-07-02
A187: KKJ | B187: 2010-07-03
A188: KKJ | B188: 2010-07-04
A189: KKJ | B189: 2010-07-05
A190: KKJ | B190: 2010-07-06
A191: KKJ | B191: 2010-07-07
A192: KKJ | B192: 2010-07-08
A193: KKJ | B193: 2010-07-09
A194: KKJ | B194: 2010-07-10
A195: KKJ | B195: 2010-07-11
A196: KKJ | B196: 2010-07-12 | C196: =AVERAGE(D196:IV196) -> 
A197: KKJ | B197: 2010-07-13
A198: =A197 -> KKJ | B198: 2010-07-14
A199: KKJ | B199: 2010-07-15
A200: KKJ | B200: 2010-07-16
... 169 more rows

Sheet EL_Area_Vol
A1: โค้งความจุ
A2: ระดับ..ม.รทก. | B2: พื้นที่ผิวน้ำ..ตร.กม. | C2: ความจุ...ล้าน ลบ.ม.

Sheet หา NRI
A1: Simulation Storage of Sirikit Dam | D1: 1 | E1: 2 | F1: 3 | G1: 4 | H1: 5 | I1: 6 | J1: 7 | K1: 8 | L1: 9 | M1: 10 | N1: 11 | O1: 12 | P1: 13 | Q1: 14 | R1: 15 | S1: 16 | T1: 17 | U1: 18 | V1: 19 | W1: 20 | X1: 21 | Y1: 22 | Z1: 23 | AA1: 24 | AB1: 25 | AC1: 26 | AD1: 27 | AE1: 28 | AF1: 29 | AG1: 30 | AH1: 31 | AI1: 32 | AJ1: 33 | AK1: 34 | AL1: 35 | AM1: 36 | AN1: 37 | AO1: 38 | AP1: 39 | AQ1: 40 | AR1: 41 | AS1: 42 | AT1: 43 | AU1: 44 | AV1: 45 | AW1: 46 | AX1: 47 | AY1: 48 | AZ1: 49 | BA1: 50
C2: NRI | D2: =D3+543 -> 2529 | E2: 2530 | F2: 2531 | G2: 2532
A3: Item | B3: เดือน | C3: Average | D3: ='Monthly Storage'!D3 -> 1986 | E3: =D3+1 -> 1987 | F3: 1988 | G3: 1989
A4: หา NRI | B4: ม.ค. | C4: =AVERAGE(OFFSET(D3,1,0,1,$D$58)) -> 0 | D4: =IF(D1<=$D$58,'Monthly Storage'!D35-'Monthly Storage'!D4,"") -> 0 | E4: =IF(E1<=$D$58,'Monthly Storage'!E35-'Monthly Storage'!E4,"") -> 0 | F4: =IF(F1<=$D$58,'Monthly Storage'!F35-'Monthly Storage'!F4,"") -> 0 | G4: =IF(G1<=$D$58,'Monthly Storage'!G35-'Monthly Storage'!G4,"") -> 0 | H4: =IF(H1<=$D$58,'Monthly Storage'!H35-'Monthly Storage'!H4,"") ->  | I4: =IF(I1<=$D$58,'Monthly Storage'!I35-'Monthly Storage'!I4,"") ->  | J4: =IF(J1<=$D$58,'Monthly Storage'!J35-'Monthly Storage'!J4,"") ->  | K4: =IF(K1<=$D$58,'Monthly Storage'!K35-'Monthly Storage'!K4,"") ->  | L4: =IF(L1<=$D$58,'Monthly Storage'!L35-'Monthly Storage'!L4,"") ->  | M4: =IF(M1<=$D$58,'Monthly Storage'!M35-'Monthly Storage'!M4,"") ->  | N4: =IF(N1<=$D$58,'Monthly Storage'!N35-'Monthly Storage'!N4,"") ->  | O4: =IF(O1<=$D$58,'Monthly Storage'!O35-'Monthly Storage'!O4,"") ->  | P4: =IF(P1<=$D$58,'Monthly Storage'!P35-'Monthly Storage'!P4,"") ->  | Q4: =IF(Q1<=$D$58,'Monthly Storage'!Q35-'Monthly Storage'!Q4,"") ->  | R4: =IF(R1<=$D$58,'Monthly Storage'!R35-'Monthly Storage'!R4,"") ->  | S4: =IF(S1<=$D$58,'Monthly Storage'!S35-'Monthly Storage'!S4,"") ->  | T4: =IF(T1<=$D$58,'Monthly Storage'!T35-'Monthly Storage'!T4,"") ->  | U4: =IF(U1<=$D$58,'Monthly Storage'!U35-'Monthly Storage'!U4,"") ->  | V4: =IF(V1<=$D$58,'Monthly Storage'!V35-'Monthly Storage'!V4,"") ->  | W4: =IF(W1<=$D$58,'Monthly Storage'!W35-'Monthly Storage'!W4,"") ->  | X4: =IF(X1<=$D$58,'Monthly Storage'!X35-'Monthly Storage'!X4,"") ->  | Y4: =IF(Y1<=$D$58,'Monthly Storage'!Y35-'Monthly Storage'!Y4,"") ->  | Z4: =IF(Z1<=$D$58,'Monthly Storage'!Z35-'Monthly Storage'!Z4,"") ->  | AA4: =IF(AA1<=$D$58,'Monthly Storage'!AA35-'Monthly Storage'!AA4,"") ->  | AB4: =IF(AB1<=$D$58,'Monthly Storage'!AB35-'Monthly Storage'!AB4,"") ->  | AC4: =IF(AC1<=$D$58,'Monthly Storage'!AC35-'Monthly Storage'!AC4,"") ->  | AD4: =IF(AD1<=$D$58,'Monthly Storage'!AD35-'Monthly Storage'!AD4,"") ->  | AE4: =IF(AE1<=$D$58,'Monthly Storage'!AE35-'Monthly Storage'!AE4,"") ->  | AF4: =IF(AF1<=$D$58,'Monthly Storage'!AF35-'Monthly Storage'!AF4,"") ->  | AG4: =IF(AG1<=$D$58,'Monthly Storage'!AG35-'Monthly Storage'!AG4,"") ->  | AH4: =IF(AH1<=$D$58,'Monthly Storage'!AH35-'Monthly Storage'!AH4,"") ->  | AI4: =IF(AI1<=$D$58,'Monthly Storage'!AI35-'Monthly Storage'!AI4,"") ->  | AJ4: =IF(AJ1<=$D$58,'Monthly Storage'!AJ35-'Monthly Storage'!AJ4,"") ->  | AK4: =IF(AK1<=$D$58,'Monthly Storage'!AK35-'Monthly Storage'!AK4,"") ->  | AL4: =IF(AL1<=$D$58,'Monthly Storage'!AL35-'Monthly Storage'!AL4,"") ->  | AM4: =IF(AM1<=$D$58,'Monthly Storage'!AM35-'Monthly Storage'!AM4,"") ->  | AN4: =IF(AN1<=$D$58,'Monthly Storage'!AN35-'Monthly Storage'!AN4,"") ->  | AO4: =IF(AO1<=$D$58,'Monthly Storage'!AO35-'Monthly Storage'!AO4,"") ->  | AP4: =IF(AP1<=$D$58,'Monthly Storage'!AP35-'Monthly Storage'!AP4,"") ->  | AQ4: =IF(AQ1<=$D$58,'Monthly Storage'!AQ35-'Monthly Storage'!AQ4,"") ->  | AR4: =IF(AR1<=$D$58,'Monthly Storage'!AR35-'Monthly Storage'!AR4,"") ->  | AS4: =IF(AS1<=$D$58,'Monthly Storage'!AS35-'Monthly Storage'!AS4,"") ->  | AT4: =IF(AT1<=$D$58,'Monthly Storage'!AT35-'Monthly Storage'!AT4,"") ->  | AU4: =IF(AU1<=$D$58,'Monthly Storage'!AU35-'Monthly Storage'!AU4,"") ->  | AV4: =IF(AV1<=$D$58,'Monthly Storage'!AV35-'Monthly Storage'!AV4,"") ->  | AW4: =IF(AW1<=$D$58,'Monthly Storage'!AW35-'Monthly Storage'!AW4,"") ->  | AX4: =IF(AX1<=$D$58,'Monthly Storage'!AX35-'Monthly Storage'!AX4,"") ->  | AY4: =IF(AY1<=$D$58,'Monthly Storage'!AY35-'Monthly Storage'!AY4,"") ->  | AZ4: =IF(AZ1<=$D$58,'Monthly Storage'!AZ35-'Monthly Storage'!AZ4,"") ->  | BA4: =IF(BA1<=$D$58,'Monthly Storage'!BA35-'Monthly Storage'!BA4,"") -> 
B5: ก.พ. | C5: 0 | D5: =IF(D1<=$D$58,'Monthly Storage'!D63-'Monthly Storage'!D35,"") -> 0 | E5: =IF(E1<=$D$58,'Monthly Storage'!E63-'Monthly Storage'!E35,"") -> 0 | F5: =IF(F1<=$D$58,'Monthly Storage'!F63-'Monthly Storage'!F35,"") -> 0 | G5: =IF(G1<=$D$58,'Monthly Storage'!G63-'Monthly Storage'!G35,"") -> 0 | H5: =IF(H1<=$D$58,'Monthly Storage'!H63-'Monthly Storage'!H35,"") ->  | I5: =IF(I1<=$D$58,'Monthly Storage'!I63-'Monthly Storage'!I35,"") ->  | J5: =IF(J1<=$D$58,'Monthly Storage'!J63-'Monthly Storage'!J35,"") ->  | K5: =IF(K1<=$D$58,'Monthly Storage'!K63-'Monthly Storage'!K35,"") ->  | L5: =IF(L1<=$D$58,'Monthly Storage'!L63-'Monthly Storage'!L35,"") ->  | M5: =IF(M1<=$D$58,'Monthly Storage'!M63-'Monthly Storage'!M35,"") ->  | N5: =IF(N1<=$D$58,'Monthly Storage'!N63-'Monthly Storage'!N35,"") ->  | O5: =IF(O1<=$D$58,'Monthly Storage'!O63-'Monthly Storage'!O35,"") ->  | P5: =IF(P1<=$D$58,'Monthly Storage'!P63-'Monthly Storage'!P35,"") ->  | Q5: =IF(Q1<=$D$58,'Monthly Storage'!Q63-'Monthly Storage'!Q35,"") ->  | R5: =IF(R1<=$D$58,'Monthly Storage'!R63-'Monthly Storage'!R35,"") ->  | S5: =IF(S1<=$D$58,'Monthly Storage'!S63-'Monthly Storage'!S35,"") ->  | T5: =IF(T1<=$D$58,'Monthly Storage'!T63-'Monthly Storage'!T35,"") ->  | U5: =IF(U1<=$D$58,'Monthly Storage'!U63-'Monthly Storage'!U35,"") ->  | V5: =IF(V1<=$D$58,'Monthly Storage'!V63-'Monthly Storage'!V35,"") ->  | W5: =IF(W1<=$D$58,'Monthly Storage'!W63-'Monthly Storage'!W35,"") ->  | X5: =IF(X1<=$D$58,'Monthly Storage'!X63-'Monthly Storage'!X35,"") ->  | Y5: =IF(Y1<=$D$58,'Monthly Storage'!Y63-'Monthly Storage'!Y35,"") ->  | Z5: =IF(Z1<=$D$58,'Monthly Storage'!Z63-'Monthly Storage'!Z35,"") ->  | AA5: =IF(AA1<=$D$58,'Monthly Storage'!AA63-'Monthly Storage'!AA35,"") ->  | AB5: =IF(AB1<=$D$58,'Monthly Storage'!AB63-'Monthly Storage'!AB35,"") ->  | AC5: =IF(AC1<=$D$58,'Monthly Storage'!AC63-'Monthly Storage'!AC35,"") ->  | AD5: =IF(AD1<=$D$58,'Monthly Storage'!AD63-'Monthly Storage'!AD35,"") ->  | AE5: =IF(AE1<=$D$58,'Monthly Storage'!AE63-'Monthly Storage'!AE35,"") ->  | AF5: =IF(AF1<=$D$58,'Monthly Storage'!AF63-'Monthly Storage'!AF35,"") ->  | AG5: =IF(AG1<=$D$58,'Monthly Storage'!AG63-'Monthly Storage'!AG35,"") ->  | AH5: =IF(AH1<=$D$58,'Monthly Storage'!AH63-'Monthly Storage'!AH35,"") ->  | AI5: =IF(AI1<=$D$58,'Monthly Storage'!AI63-'Monthly Storage'!AI35,"") ->  | AJ5: =IF(AJ1<=$D$58,'Monthly Storage'!AJ63-'Monthly Storage'!AJ35,"") ->  | AK5: =IF(AK1<=$D$58,'Monthly Storage'!AK63-'Monthly Storage'!AK35,"") ->  | AL5: =IF(AL1<=$D$58,'Monthly Storage'!AL63-'Monthly Storage'!AL35,"") ->  | AM5: =IF(AM1<=$D$58,'Monthly Storage'!AM63-'Monthly Storage'!AM35,"") ->  | AN5: =IF(AN1<=$D$58,'Monthly Storage'!AN63-'Monthly Storage'!AN35,"") ->  | AO5: =IF(AO1<=$D$58,'Monthly Storage'!AO63-'Monthly Storage'!AO35,"") ->  | AP5: =IF(AP1<=$D$58,'Monthly Storage'!AP63-'Monthly Storage'!AP35,"") ->  | AQ5: =IF(AQ1<=$D$58,'Monthly Storage'!AQ63-'Monthly Storage'!AQ35,"") ->  | AR5: =IF(AR1<=$D$58,'Monthly Storage'!AR63-'Monthly Storage'!AR35,"") ->  | AS5: =IF(AS1<=$D$58,'Monthly Storage'!AS63-'Monthly Storage'!AS35,"") ->  | AT5: =IF(AT1<=$D$58,'Monthly Storage'!AT63-'Monthly Storage'!AT35,"") ->  | AU5: =IF(AU1<=$D$58,'Monthly Storage'!AU63-'Monthly Storage'!AU35,"") ->  | AV5: =IF(AV1<=$D$58,'Monthly Storage'!AV63-'Monthly Storage'!AV35,"") ->  | AW5: =IF(AW1<=$D$58,'Monthly Storage'!AW63-'Monthly Storage'!AW35,"") ->  | AX5: =IF(AX1<=$D$58,'Monthly Storage'!AX63-'Monthly Storage'!AX35,"") ->  | AY5: =IF(AY1<=$D$58,'Monthly Storage'!AY63-'Monthly Storage'!AY35,"") ->  | AZ5: =IF(AZ1<=$D$58,'Monthly Storage'!AZ63-'Monthly Storage'!AZ35,"") ->  | BA5: =IF(BA1<=$D$58,'Monthly Storage'!BA63-'Monthly Storage'!BA35,"") -> 
B6: มี.ค. | C6: 0 | D6: =IF(D1<=$D$58,'Monthly Storage'!D94-'Monthly Storage'!D63,"") -> 0 | E6: =IF(E1<=$D$58,'Monthly Storage'!E94-'Monthly Storage'!E63,"") -> 0 | F6: =IF(F1<=$D$58,'Monthly Storage'!F94-'Monthly Storage'!F63,"") -> 0 | G6: =IF(G1<=$D$58,'Monthly Storage'!G94-'Monthly Storage'!G63,"") -> 0 | H6: =IF(H1<=$D$58,'Monthly Storage'!H94-'Monthly Storage'!H63,"") ->  | I6: =IF(I1<=$D$58,'Monthly Storage'!I94-'Monthly Storage'!I63,"") ->  | J6: =IF(J1<=$D$58,'Monthly Storage'!J94-'Monthly Storage'!J63,"") ->  | K6: =IF(K1<=$D$58,'Monthly Storage'!K94-'Monthly Storage'!K63,"") ->  | L6: =IF(L1<=$D$58,'Monthly Storage'!L94-'Monthly Storage'!L63,"") ->  | M6: =IF(M1<=$D$58,'Monthly Storage'!M94-'Monthly Storage'!M63,"") ->  | N6: =IF(N1<=$D$58,'Monthly Storage'!N94-'Monthly Storage'!N63,"") ->  | O6: =IF(O1<=$D$58,'Monthly Storage'!O94-'Monthly Storage'!O63,"") ->  | P6: =IF(P1<=$D$58,'Monthly Storage'!P94-'Monthly Storage'!P63,"") ->  | Q6: =IF(Q1<=$D$58,'Monthly Storage'!Q94-'Monthly Storage'!Q63,"") ->  | R6: =IF(R1<=$D$58,'Monthly Storage'!R94-'Monthly Storage'!R63,"") ->  | S6: =IF(S1<=$D$58,'Monthly Storage'!S94-'Monthly Storage'!S63,"") ->  | T6: =IF(T1<=$D$58,'Monthly Storage'!T94-'Monthly Storage'!T63,"") ->  | U6: =IF(U1<=$D$58,'Monthly Storage'!U94-'Monthly Storage'!U63,"") ->  | V6: =IF(V1<=$D$58,'Monthly Storage'!V94-'Monthly Storage'!V63,"") ->  | W6: =IF(W1<=$D$58,'Monthly Storage'!W94-'Monthly Storage'!W63,"") ->  | X6: =IF(X1<=$D$58,'Monthly Storage'!X94-'Monthly Storage'!X63,"") ->  | Y6: =IF(Y1<=$D$58,'Monthly Storage'!Y94-'Monthly Storage'!Y63,"") ->  | Z6: =IF(Z1<=$D$58,'Monthly Storage'!Z94-'Monthly Storage'!Z63,"") ->  | AA6: =IF(AA1<=$D$58,'Monthly Storage'!AA94-'Monthly Storage'!AA63,"") ->  | AB6: =IF(AB1<=$D$58,'Monthly Storage'!AB94-'Monthly Storage'!AB63,"") ->  | AC6: =IF(AC1<=$D$58,'Monthly Storage'!AC94-'Monthly Storage'!AC63,"") ->  | AD6: =IF(AD1<=$D$58,'Monthly Storage'!AD94-'Monthly Storage'!AD63,"") ->  | AE6: =IF(AE1<=$D$58,'Monthly Storage'!AE94-'Monthly Storage'!AE63,"") ->  | AF6: =IF(AF1<=$D$58,'Monthly Storage'!AF94-'Monthly Storage'!AF63,"") ->  | AG6: =IF(AG1<=$D$58,'Monthly Storage'!AG94-'Monthly Storage'!AG63,"") ->  | AH6: =IF(AH1<=$D$58,'Monthly Storage'!AH94-'Monthly Storage'!AH63,"") ->  | AI6: =IF(AI1<=$D$58,'Monthly Storage'!AI94-'Monthly Storage'!AI63,"") ->  | AJ6: =IF(AJ1<=$D$58,'Monthly Storage'!AJ94-'Monthly Storage'!AJ63,"") ->  | AK6: =IF(AK1<=$D$58,'Monthly Storage'!AK94-'Monthly Storage'!AK63,"") ->  | AL6: =IF(AL1<=$D$58,'Monthly Storage'!AL94-'Monthly Storage'!AL63,"") ->  | AM6: =IF(AM1<=$D$58,'Monthly Storage'!AM94-'Monthly Storage'!AM63,"") ->  | AN6: =IF(AN1<=$D$58,'Monthly Storage'!AN94-'Monthly Storage'!AN63,"") ->  | AO6: =IF(AO1<=$D$58,'Monthly Storage'!AO94-'Monthly Storage'!AO63,"") ->  | AP6: =IF(AP1<=$D$58,'Monthly Storage'!AP94-'Monthly Storage'!AP63,"") ->  | AQ6: =IF(AQ1<=$D$58,'Monthly Storage'!AQ94-'Monthly Storage'!AQ63,"") ->  | AR6: =IF(AR1<=$D$58,'Monthly Storage'!AR94-'Monthly Storage'!AR63,"") ->  | AS6: =IF(AS1<=$D$58,'Monthly Storage'!AS94-'Monthly Storage'!AS63,"") ->  | AT6: =IF(AT1<=$D$58,'Monthly Storage'!AT94-'Monthly Storage'!AT63,"") ->  | AU6: =IF(AU1<=$D$58,'Monthly Storage'!AU94-'Monthly Storage'!AU63,"") ->  | AV6: =IF(AV1<=$D$58,'Monthly Storage'!AV94-'Monthly Storage'!AV63,"") ->  | AW6: =IF(AW1<=$D$58,'Monthly Storage'!AW94-'Monthly Storage'!AW63,"") ->  | AX6: =IF(AX1<=$D$58,'Monthly Storage'!AX94-'Monthly Storage'!AX63,"") ->  | AY6: =IF(AY1<=$D$58,'Monthly Storage'!AY94-'Monthly Storage'!AY63,"") ->  | AZ6: =IF(AZ1<=$D$58,'Monthly Storage'!AZ94-'Monthly Storage'!AZ63,"") ->  | BA6: =IF(BA1<=$D$58,'Monthly Storage'!BA94-'Monthly Storage'!BA63,"") -> 
B7: เม.ย. | C7: 0 | D7: =IF(D1<=$D$58,'Monthly Storage'!D124-'Monthly Storage'!D94,"") -> 0 | E7: =IF(E1<=$D$58,'Monthly Storage'!E124-'Monthly Storage'!E94,"") -> 0 | F7: =IF(F1<=$D$58,'Monthly Storage'!F124-'Monthly Storage'!F94,"") -> 0 | G7: =IF(G1<=$D$58,'Monthly Storage'!G124-'Monthly Storage'!G94,"") -> 0 | H7: =IF(H1<=$D$58,'Monthly Storage'!H124-'Monthly Storage'!H94,"") ->  | I7: =IF(I1<=$D$58,'Monthly Storage'!I124-'Monthly Storage'!I94,"") ->  | J7: =IF(J1<=$D$58,'Monthly Storage'!J124-'Monthly Storage'!J94,"") ->  | K7: =IF(K1<=$D$58,'Monthly Storage'!K124-'Monthly Storage'!K94,"") ->  | L7: =IF(L1<=$D$58,'Monthly Storage'!L124-'Monthly Storage'!L94,"") ->  | M7: =IF(M1<=$D$58,'Monthly Storage'!M124-'Monthly Storage'!M94,"") ->  | N7: =IF(N1<=$D$58,'Monthly Storage'!N124-'Monthly Storage'!N94,"") ->  | O7: =IF(O1<=$D$58,'Monthly Storage'!O124-'Monthly Storage'!O94,"") ->  | P7: =IF(P1<=$D$58,'Monthly Storage'!P124-'Monthly Storage'!P94,"") ->  | Q7: =IF(Q1<=$D$58,'Monthly Storage'!Q124-'Monthly Storage'!Q94,"") ->  | R7: =IF(R1<=$D$58,'Monthly Storage'!R124-'Monthly Storage'!R94,"") ->  | S7: =IF(S1<=$D$58,'Monthly Storage'!S124-'Monthly Storage'!S94,"") ->  | T7: =IF(T1<=$D$58,'Monthly Storage'!T124-'Monthly Storage'!T94,"") ->  | U7: =IF(U1<=$D$58,'Monthly Storage'!U124-'Monthly Storage'!U94,"") ->  | V7: =IF(V1<=$D$58,'Monthly Storage'!V124-'Monthly Storage'!V94,"") ->  | W7: =IF(W1<=$D$58,'Monthly Storage'!W124-'Monthly Storage'!W94,"") ->  | X7: =IF(X1<=$D$58,'Monthly Storage'!X124-'Monthly Storage'!X94,"") ->  | Y7: =IF(Y1<=$D$58,'Monthly Storage'!Y124-'Monthly Storage'!Y94,"") ->  | Z7: =IF(Z1<=$D$58,'Monthly Storage'!Z124-'Monthly Storage'!Z94,"") ->  | AA7: =IF(AA1<=$D$58,'Monthly Storage'!AA124-'Monthly Storage'!AA94,"") ->  | AB7: =IF(AB1<=$D$58,'Monthly Storage'!AB124-'Monthly Storage'!AB94,"") ->  | AC7: =IF(AC1<=$D$58,'Monthly Storage'!AC124-'Monthly Storage'!AC94,"") ->  | AD7: =IF(AD1<=$D$58,'Monthly Storage'!AD124-'Monthly Storage'!AD94,"") ->  | AE7: =IF(AE1<=$D$58,'Monthly Storage'!AE124-'Monthly Storage'!AE94,"") ->  | AF7: =IF(AF1<=$D$58,'Monthly Storage'!AF124-'Monthly Storage'!AF94,"") ->  | AG7: =IF(AG1<=$D$58,'Monthly Storage'!AG124-'Monthly Storage'!AG94,"") ->  | AH7: =IF(AH1<=$D$58,'Monthly Storage'!AH124-'Monthly Storage'!AH94,"") ->  | AI7: =IF(AI1<=$D$58,'Monthly Storage'!AI124-'Monthly Storage'!AI94,"") ->  | AJ7: =IF(AJ1<=$D$58,'Monthly Storage'!AJ124-'Monthly Storage'!AJ94,"") ->  | AK7: =IF(AK1<=$D$58,'Monthly Storage'!AK124-'Monthly Storage'!AK94,"") ->  | AL7: =IF(AL1<=$D$58,'Monthly Storage'!AL124-'Monthly Storage'!AL94,"") ->  | AM7: =IF(AM1<=$D$58,'Monthly Storage'!AM124-'Monthly Storage'!AM94,"") ->  | AN7: =IF(AN1<=$D$58,'Monthly Storage'!AN124-'Monthly Storage'!AN94,"") ->  | AO7: =IF(AO1<=$D$58,'Monthly Storage'!AO124-'Monthly Storage'!AO94,"") ->  | AP7: =IF(AP1<=$D$58,'Monthly Storage'!AP124-'Monthly Storage'!AP94,"") ->  | AQ7: =IF(AQ1<=$D$58,'Monthly Storage'!AQ124-'Monthly Storage'!AQ94,"") ->  | AR7: =IF(AR1<=$D$58,'Monthly Storage'!AR124-'Monthly Storage'!AR94,"") ->  | AS7: =IF(AS1<=$D$58,'Monthly Storage'!AS124-'Monthly Storage'!AS94,"") ->  | AT7: =IF(AT1<=$D$58,'Monthly Storage'!AT124-'Monthly Storage'!AT94,"") ->  | AU7: =IF(AU1<=$D$58,'Monthly Storage'!AU124-'Monthly Storage'!AU94,"") ->  | AV7: =IF(AV1<=$D$58,'Monthly Storage'!AV124-'Monthly Storage'!AV94,"") ->  | AW7: =IF(AW1<=$D$58,'Monthly Storage'!AW124-'Monthly Storage'!AW94,"") ->  | AX7: =IF(AX1<=$D$58,'Monthly Storage'!AX124-'Monthly Storage'!AX94,"") ->  | AY7: =IF(AY1<=$D$58,'Monthly Storage'!AY124-'Monthly Storage'!AY94,"") ->  | AZ7: =IF(AZ1<=$D$58,'Monthly Storage'!AZ124-'Monthly Storage'!AZ94,"") ->  | BA7: =IF(BA1<=$D$58,'Monthly Storage'!BA124-'Monthly Storage'!BA94,"") -> 
B8: พ.ค. | C8: 0 | D8: =IF(D1<=$D$58,'Monthly Storage'!D155-'Monthly Storage'!D124,"") -> 0 | E8: =IF(E1<=$D$58,'Monthly Storage'!E155-'Monthly Storage'!E124,"") -> 0 | F8: =IF(F1<=$D$58,'Monthly Storage'!F155-'Monthly Storage'!F124,"") -> 0 | G8: =IF(G1<=$D$58,'Monthly Storage'!G155-'Monthly Storage'!G124,"") -> 0 | H8: =IF(H1<=$D$58,'Monthly Storage'!H155-'Monthly Storage'!H124,"") ->  | I8: =IF(I1<=$D$58,'Monthly Storage'!I155-'Monthly Storage'!I124,"") ->  | J8: =IF(J1<=$D$58,'Monthly Storage'!J155-'Monthly Storage'!J124,"") ->  | K8: =IF(K1<=$D$58,'Monthly Storage'!K155-'Monthly Storage'!K124,"") ->  | L8: =IF(L1<=$D$58,'Monthly Storage'!L155-'Monthly Storage'!L124,"") ->  | M8: =IF(M1<=$D$58,'Monthly Storage'!M155-'Monthly Storage'!M124,"") ->  | N8: =IF(N1<=$D$58,'Monthly Storage'!N155-'Monthly Storage'!N124,"") ->  | O8: =IF(O1<=$D$58,'Monthly Storage'!O155-'Monthly Storage'!O124,"") ->  | P8: =IF(P1<=$D$58,'Monthly Storage'!P155-'Monthly Storage'!P124,"") ->  | Q8: =IF(Q1<=$D$58,'Monthly Storage'!Q155-'Monthly Storage'!Q124,"") ->  | R8: =IF(R1<=$D$58,'Monthly Storage'!R155-'Monthly Storage'!R124,"") ->  | S8: =IF(S1<=$D$58,'Monthly Storage'!S155-'Monthly Storage'!S124,"") ->  | T8: =IF(T1<=$D$58,'Monthly Storage'!T155-'Monthly Storage'!T124,"") ->  | U8: =IF(U1<=$D$58,'Monthly Storage'!U155-'Monthly Storage'!U124,"") ->  | V8: =IF(V1<=$D$58,'Monthly Storage'!V155-'Monthly Storage'!V124,"") ->  | W8: =IF(W1<=$D$58,'Monthly Storage'!W155-'Monthly Storage'!W124,"") ->  | X8: =IF(X1<=$D$58,'Monthly Storage'!X155-'Monthly Storage'!X124,"") ->  | Y8: =IF(Y1<=$D$58,'Monthly Storage'!Y155-'Monthly Storage'!Y124,"") ->  | Z8: =IF(Z1<=$D$58,'Monthly Storage'!Z155-'Monthly Storage'!Z124,"") ->  | AA8: =IF(AA1<=$D$58,'Monthly Storage'!AA155-'Monthly Storage'!AA124,"") ->  | AB8: =IF(AB1<=$D$58,'Monthly Storage'!AB155-'Monthly Storage'!AB124,"") ->  | AC8: =IF(AC1<=$D$58,'Monthly Storage'!AC155-'Monthly Storage'!AC124,"") ->  | AD8: =IF(AD1<=$D$58,'Monthly Storage'!AD155-'Monthly Storage'!AD124,"") ->  | AE8: =IF(AE1<=$D$58,'Monthly Storage'!AE155-'Monthly Storage'!AE124,"") ->  | AF8: =IF(AF1<=$D$58,'Monthly Storage'!AF155-'Monthly Storage'!AF124,"") ->  | AG8: =IF(AG1<=$D$58,'Monthly Storage'!AG155-'Monthly Storage'!AG124,"") ->  | AH8: =IF(AH1<=$D$58,'Monthly Storage'!AH155-'Monthly Storage'!AH124,"") ->  | AI8: =IF(AI1<=$D$58,'Monthly Storage'!AI155-'Monthly Storage'!AI124,"") ->  | AJ8: =IF(AJ1<=$D$58,'Monthly Storage'!AJ155-'Monthly Storage'!AJ124,"") ->  | AK8: =IF(AK1<=$D$58,'Monthly Storage'!AK155-'Monthly Storage'!AK124,"") ->  | AL8: =IF(AL1<=$D$58,'Monthly Storage'!AL155-'Monthly Storage'!AL124,"") ->  | AM8: =IF(AM1<=$D$58,'Monthly Storage'!AM155-'Monthly Storage'!AM124,"") ->  | AN8: =IF(AN1<=$D$58,'Monthly Storage'!AN155-'Monthly Storage'!AN124,"") ->  | AO8: =IF(AO1<=$D$58,'Monthly Storage'!AO155-'Monthly Storage'!AO124,"") ->  | AP8: =IF(AP1<=$D$58,'Monthly Storage'!AP155-'Monthly Storage'!AP124,"") ->  | AQ8: =IF(AQ1<=$D$58,'Monthly Storage'!AQ155-'Monthly Storage'!AQ124,"") ->  | AR8: =IF(AR1<=$D$58,'Monthly Storage'!AR155-'Monthly Storage'!AR124,"") ->  | AS8: =IF(AS1<=$D$58,'Monthly Storage'!AS155-'Monthly Storage'!AS124,"") ->  | AT8: =IF(AT1<=$D$58,'Monthly Storage'!AT155-'Monthly Storage'!AT124,"") ->  | AU8: =IF(AU1<=$D$58,'Monthly Storage'!AU155-'Monthly Storage'!AU124,"") ->  | AV8: =IF(AV1<=$D$58,'Monthly Storage'!AV155-'Monthly Storage'!AV124,"") ->  | AW8: =IF(AW1<=$D$58,'Monthly Storage'!AW155-'Monthly Storage'!AW124,"") ->  | AX8: =IF(AX1<=$D$58,'Monthly Storage'!AX155-'Monthly Storage'!AX124,"") ->  | AY8: =IF(AY1<=$D$58,'Monthly Storage'!AY155-'Monthly Storage'!AY124,"") ->  | AZ8: =IF(AZ1<=$D$58,'Monthly Storage'!AZ155-'Monthly Storage'!AZ124,"") ->  | BA8: =IF(BA1<=$D$58,'Monthly Storage'!BA155-'Monthly Storage'!BA124,"") -> 
B9: มิ.ย. | C9: 0 | D9: =IF(D1<=$D$58,'Monthly Storage'!D185-'Monthly Storage'!D155,"") -> 0 | E9: =IF(E1<=$D$58,'Monthly Storage'!E185-'Monthly Storage'!E155,"") -> 0 | F9: =IF(F1<=$D$58,'Monthly Storage'!F185-'Monthly Storage'!F155,"") -> 0 | G9: =IF(G1<=$D$58,'Monthly Storage'!G185-'Monthly Storage'!G155,"") -> 0 | H9: =IF(H1<=$D$58,'Monthly Storage'!H185-'Monthly Storage'!H155,"") ->  | I9: =IF(I1<=$D$58,'Monthly Storage'!I185-'Monthly Storage'!I155,"") ->  | J9: =IF(J1<=$D$58,'Monthly Storage'!J185-'Monthly Storage'!J155,"") ->  | K9: =IF(K1<=$D$58,'Monthly Storage'!K185-'Monthly Storage'!K155,"") ->  | L9: =IF(L1<=$D$58,'Monthly Storage'!L185-'Monthly Storage'!L155,"") ->  | M9: =IF(M1<=$D$58,'Monthly Storage'!M185-'Monthly Storage'!M155,"") ->  | N9: =IF(N1<=$D$58,'Monthly Storage'!N185-'Monthly Storage'!N155,"") ->  | O9: =IF(O1<=$D$58,'Monthly Storage'!O185-'Monthly Storage'!O155,"") ->  | P9: =IF(P1<=$D$58,'Monthly Storage'!P185-'Monthly Storage'!P155,"") ->  | Q9: =IF(Q1<=$D$58,'Monthly Storage'!Q185-'Monthly Storage'!Q155,"") ->  | R9: =IF(R1<=$D$58,'Monthly Storage'!R185-'Monthly Storage'!R155,"") ->  | S9: =IF(S1<=$D$58,'Monthly Storage'!S185-'Monthly Storage'!S155,"") ->  | T9: =IF(T1<=$D$58,'Monthly Storage'!T185-'Monthly Storage'!T155,"") ->  | U9: =IF(U1<=$D$58,'Monthly Storage'!U185-'Monthly Storage'!U155,"") ->  | V9: =IF(V1<=$D$58,'Monthly Storage'!V185-'Monthly Storage'!V155,"") ->  | W9: =IF(W1<=$D$58,'Monthly Storage'!W185-'Monthly Storage'!W155,"") ->  | X9: =IF(X1<=$D$58,'Monthly Storage'!X185-'Monthly Storage'!X155,"") ->  | Y9: =IF(Y1<=$D$58,'Monthly Storage'!Y185-'Monthly Storage'!Y155,"") ->  | Z9: =IF(Z1<=$D$58,'Monthly Storage'!Z185-'Monthly Storage'!Z155,"") ->  | AA9: =IF(AA1<=$D$58,'Monthly Storage'!AA185-'Monthly Storage'!AA155,"") ->  | AB9: =IF(AB1<=$D$58,'Monthly Storage'!AB185-'Monthly Storage'!AB155,"") ->  | AC9: =IF(AC1<=$D$58,'Monthly Storage'!AC185-'Monthly Storage'!AC155,"") ->  | AD9: =IF(AD1<=$D$58,'Monthly Storage'!AD185-'Monthly Storage'!AD155,"") ->  | AE9: =IF(AE1<=$D$58,'Monthly Storage'!AE185-'Monthly Storage'!AE155,"") ->  | AF9: =IF(AF1<=$D$58,'Monthly Storage'!AF185-'Monthly Storage'!AF155,"") ->  | AG9: =IF(AG1<=$D$58,'Monthly Storage'!AG185-'Monthly Storage'!AG155,"") ->  | AH9: =IF(AH1<=$D$58,'Monthly Storage'!AH185-'Monthly Storage'!AH155,"") ->  | AI9: =IF(AI1<=$D$58,'Monthly Storage'!AI185-'Monthly Storage'!AI155,"") ->  | AJ9: =IF(AJ1<=$D$58,'Monthly Storage'!AJ185-'Monthly Storage'!AJ155,"") ->  | AK9: =IF(AK1<=$D$58,'Monthly Storage'!AK185-'Monthly Storage'!AK155,"") ->  | AL9: =IF(AL1<=$D$58,'Monthly Storage'!AL185-'Monthly Storage'!AL155,"") ->  | AM9: =IF(AM1<=$D$58,'Monthly Storage'!AM185-'Monthly Storage'!AM155,"") ->  | AN9: =IF(AN1<=$D$58,'Monthly Storage'!AN185-'Monthly Storage'!AN155,"") ->  | AO9: =IF(AO1<=$D$58,'Monthly Storage'!AO185-'Monthly Storage'!AO155,"") ->  | AP9: =IF(AP1<=$D$58,'Monthly Storage'!AP185-'Monthly Storage'!AP155,"") ->  | AQ9: =IF(AQ1<=$D$58,'Monthly Storage'!AQ185-'Monthly Storage'!AQ155,"") ->  | AR9: =IF(AR1<=$D$58,'Monthly Storage'!AR185-'Monthly Storage'!AR155,"") ->  | AS9: =IF(AS1<=$D$58,'Monthly Storage'!AS185-'Monthly Storage'!AS155,"") ->  | AT9: =IF(AT1<=$D$58,'Monthly Storage'!AT185-'Monthly Storage'!AT155,"") ->  | AU9: =IF(AU1<=$D$58,'Monthly Storage'!AU185-'Monthly Storage'!AU155,"") ->  | AV9: =IF(AV1<=$D$58,'Monthly Storage'!AV185-'Monthly Storage'!AV155,"") ->  | AW9: =IF(AW1<=$D$58,'Monthly Storage'!AW185-'Monthly Storage'!AW155,"") ->  | AX9: =IF(AX1<=$D$58,'Monthly Storage'!AX185-'Monthly Storage'!AX155,"") ->  | AY9: =IF(AY1<=$D$58,'Monthly Storage'!AY185-'Monthly Storage'!AY155,"") ->  | AZ9: =IF(AZ1<=$D$58,'Monthly Storage'!AZ185-'Monthly Storage'!AZ155,"") ->  | BA9: =IF(BA1<=$D$58,'Monthly Storage'!BA185-'Monthly Storage'!BA155,"") -> 
B10: ก.ค. | C10: 0 | D10: =IF(D1<=$D$58,'Monthly Storage'!D216-'Monthly Storage'!D185,"") -> 0 | E10: =IF(E1<=$D$58,'Monthly Storage'!E216-'Monthly Storage'!E185,"") -> 0 | F10: =IF(F1<=$D$58,'Monthly Storage'!F216-'Monthly Storage'!F185,"") -> 0 | G10: =IF(G1<=$D$58,'Monthly Storage'!G216-'Monthly Storage'!G185,"") -> 0 | H10: =IF(H1<=$D$58,'Monthly Storage'!H216-'Monthly Storage'!H185,"") ->  | I10: =IF(I1<=$D$58,'Monthly Storage'!I216-'Monthly Storage'!I185,"") ->  | J10: =IF(J1<=$D$58,'Monthly Storage'!J216-'Monthly Storage'!J185,"") ->  | K10: =IF(K1<=$D$58,'Monthly Storage'!K216-'Monthly Storage'!K185,"") ->  | L10: =IF(L1<=$D$58,'Monthly Storage'!L216-'Monthly Storage'!L185,"") ->  | M10: =IF(M1<=$D$58,'Monthly Storage'!M216-'Monthly Storage'!M185,"") ->  | N10: =IF(N1<=$D$58,'Monthly Storage'!N216-'Monthly Storage'!N185,"") ->  | O10: =IF(O1<=$D$58,'Monthly Storage'!O216-'Monthly Storage'!O185,"") ->  | P10: =IF(P1<=$D$58,'Monthly Storage'!P216-'Monthly Storage'!P185,"") ->  | Q10: =IF(Q1<=$D$58,'Monthly Storage'!Q216-'Monthly Storage'!Q185,"") ->  | R10: =IF(R1<=$D$58,'Monthly Storage'!R216-'Monthly Storage'!R185,"") ->  | S10: =IF(S1<=$D$58,'Monthly Storage'!S216-'Monthly Storage'!S185,"") ->  | T10: =IF(T1<=$D$58,'Monthly Storage'!T216-'Monthly Storage'!T185,"") ->  | U10: =IF(U1<=$D$58,'Monthly Storage'!U216-'Monthly Storage'!U185,"") ->  | V10: =IF(V1<=$D$58,'Monthly Storage'!V216-'Monthly Storage'!V185,"") ->  | W10: =IF(W1<=$D$58,'Monthly Storage'!W216-'Monthly Storage'!W185,"") ->  | X10: =IF(X1<=$D$58,'Monthly Storage'!X216-'Monthly Storage'!X185,"") ->  | Y10: =IF(Y1<=$D$58,'Monthly Storage'!Y216-'Monthly Storage'!Y185,"") ->  | Z10: =IF(Z1<=$D$58,'Monthly Storage'!Z216-'Monthly Storage'!Z185,"") ->  | AA10: =IF(AA1<=$D$58,'Monthly Storage'!AA216-'Monthly Storage'!AA185,"") ->  | AB10: =IF(AB1<=$D$58,'Monthly Storage'!AB216-'Monthly Storage'!AB185,"") ->  | AC10: =IF(AC1<=$D$58,'Monthly Storage'!AC216-'Monthly Storage'!AC185,"") ->  | AD10: =IF(AD1<=$D$58,'Monthly Storage'!AD216-'Monthly Storage'!AD185,"") ->  | AE10: =IF(AE1<=$D$58,'Monthly Storage'!AE216-'Monthly Storage'!AE185,"") ->  | AF10: =IF(AF1<=$D$58,'Monthly Storage'!AF216-'Monthly Storage'!AF185,"") ->  | AG10: =IF(AG1<=$D$58,'Monthly Storage'!AG216-'Monthly Storage'!AG185,"") ->  | AH10: =IF(AH1<=$D$58,'Monthly Storage'!AH216-'Monthly Storage'!AH185,"") ->  | AI10: =IF(AI1<=$D$58,'Monthly Storage'!AI216-'Monthly Storage'!AI185,"") ->  | AJ10: =IF(AJ1<=$D$58,'Monthly Storage'!AJ216-'Monthly Storage'!AJ185,"") ->  | AK10: =IF(AK1<=$D$58,'Monthly Storage'!AK216-'Monthly Storage'!AK185,"") ->  | AL10: =IF(AL1<=$D$58,'Monthly Storage'!AL216-'Monthly Storage'!AL185,"") ->  | AM10: =IF(AM1<=$D$58,'Monthly Storage'!AM216-'Monthly Storage'!AM185,"") ->  | AN10: =IF(AN1<=$D$58,'Monthly Storage'!AN216-'Monthly Storage'!AN185,"") ->  | AO10: =IF(AO1<=$D$58,'Monthly Storage'!AO216-'Monthly Storage'!AO185,"") ->  | AP10: =IF(AP1<=$D$58,'Monthly Storage'!AP216-'Monthly Storage'!AP185,"") ->  | AQ10: =IF(AQ1<=$D$58,'Monthly Storage'!AQ216-'Monthly Storage'!AQ185,"") ->  | AR10: =IF(AR1<=$D$58,'Monthly Storage'!AR216-'Monthly Storage'!AR185,"") ->  | AS10: =IF(AS1<=$D$58,'Monthly Storage'!AS216-'Monthly Storage'!AS185,"") ->  | AT10: =IF(AT1<=$D$58,'Monthly Storage'!AT216-'Monthly Storage'!AT185,"") ->  | AU10: =IF(AU1<=$D$58,'Monthly Storage'!AU216-'Monthly Storage'!AU185,"") ->  | AV10: =IF(AV1<=$D$58,'Monthly Storage'!AV216-'Monthly Storage'!AV185,"") ->  | AW10: =IF(AW1<=$D$58,'Monthly Storage'!AW216-'Monthly Storage'!AW185,"") ->  | AX10: =IF(AX1<=$D$58,'Monthly Storage'!AX216-'Monthly Storage'!AX185,"") ->  | AY10: =IF(AY1<=$D$58,'Monthly Storage'!AY216-'Monthly Storage'!AY185,"") ->  | AZ10: =IF(AZ1<=$D$58,'Monthly Storage'!AZ216-'Monthly Storage'!AZ185,"") ->  | BA10: =IF(BA1<=$D$58,'Monthly Storage'!BA216-'Monthly Storage'!BA185,"") -> 
B11: ส.ค. | C11: 0 | D11: =IF(D1<=$D$58,'Monthly Storage'!D247-'Monthly Storage'!D216,"") -> 0 | E11: =IF(E1<=$D$58,'Monthly Storage'!E247-'Monthly Storage'!E216,"") -> 0 | F11: =IF(F1<=$D$58,'Monthly Storage'!F247-'Monthly Storage'!F216,"") -> 0 | G11: =IF(G1<=$D$58,'Monthly Storage'!G247-'Monthly Storage'!G216,"") -> 0 | H11: =IF(H1<=$D$58,'Monthly Storage'!H247-'Monthly Storage'!H216,"") ->  | I11: =IF(I1<=$D$58,'Monthly Storage'!I247-'Monthly Storage'!I216,"") ->  | J11: =IF(J1<=$D$58,'Monthly Storage'!J247-'Monthly Storage'!J216,"") ->  | K11: =IF(K1<=$D$58,'Monthly Storage'!K247-'Monthly Storage'!K216,"") ->  | L11: =IF(L1<=$D$58,'Monthly Storage'!L247-'Monthly Storage'!L216,"") ->  | M11: =IF(M1<=$D$58,'Monthly Storage'!M247-'Monthly Storage'!M216,"") ->  | N11: =IF(N1<=$D$58,'Monthly Storage'!N247-'Monthly Storage'!N216,"") ->  | O11: =IF(O1<=$D$58,'Monthly Storage'!O247-'Monthly Storage'!O216,"") ->  | P11: =IF(P1<=$D$58,'Monthly Storage'!P247-'Monthly Storage'!P216,"") ->  | Q11: =IF(Q1<=$D$58,'Monthly Storage'!Q247-'Monthly Storage'!Q216,"") ->  | R11: =IF(R1<=$D$58,'Monthly Storage'!R247-'Monthly Storage'!R216,"") ->  | S11: =IF(S1<=$D$58,'Monthly Storage'!S247-'Monthly Storage'!S216,"") ->  | T11: =IF(T1<=$D$58,'Monthly Storage'!T247-'Monthly Storage'!T216,"") ->  | U11: =IF(U1<=$D$58,'Monthly Storage'!U247-'Monthly Storage'!U216,"") ->  | V11: =IF(V1<=$D$58,'Monthly Storage'!V247-'Monthly Storage'!V216,"") ->  | W11: =IF(W1<=$D$58,'Monthly Storage'!W247-'Monthly Storage'!W216,"") ->  | X11: =IF(X1<=$D$58,'Monthly Storage'!X247-'Monthly Storage'!X216,"") ->  | Y11: =IF(Y1<=$D$58,'Monthly Storage'!Y247-'Monthly Storage'!Y216,"") ->  | Z11: =IF(Z1<=$D$58,'Monthly Storage'!Z247-'Monthly Storage'!Z216,"") ->  | AA11: =IF(AA1<=$D$58,'Monthly Storage'!AA247-'Monthly Storage'!AA216,"") ->  | AB11: =IF(AB1<=$D$58,'Monthly Storage'!AB247-'Monthly Storage'!AB216,"") ->  | AC11: =IF(AC1<=$D$58,'Monthly Storage'!AC247-'Monthly Storage'!AC216,"") ->  | AD11: =IF(AD1<=$D$58,'Monthly Storage'!AD247-'Monthly Storage'!AD216,"") ->  | AE11: =IF(AE1<=$D$58,'Monthly Storage'!AE247-'Monthly Storage'!AE216,"") ->  | AF11: =IF(AF1<=$D$58,'Monthly Storage'!AF247-'Monthly Storage'!AF216,"") ->  | AG11: =IF(AG1<=$D$58,'Monthly Storage'!AG247-'Monthly Storage'!AG216,"") ->  | AH11: =IF(AH1<=$D$58,'Monthly Storage'!AH247-'Monthly Storage'!AH216,"") ->  | AI11: =IF(AI1<=$D$58,'Monthly Storage'!AI247-'Monthly Storage'!AI216,"") ->  | AJ11: =IF(AJ1<=$D$58,'Monthly Storage'!AJ247-'Monthly Storage'!AJ216,"") ->  | AK11: =IF(AK1<=$D$58,'Monthly Storage'!AK247-'Monthly Storage'!AK216,"") ->  | AL11: =IF(AL1<=$D$58,'Monthly Storage'!AL247-'Monthly Storage'!AL216,"") ->  | AM11: =IF(AM1<=$D$58,'Monthly Storage'!AM247-'Monthly Storage'!AM216,"") ->  | AN11: =IF(AN1<=$D$58,'Monthly Storage'!AN247-'Monthly Storage'!AN216,"") ->  | AO11: =IF(AO1<=$D$58,'Monthly Storage'!AO247-'Monthly Storage'!AO216,"") ->  | AP11: =IF(AP1<=$D$58,'Monthly Storage'!AP247-'Monthly Storage'!AP216,"") ->  | AQ11: =IF(AQ1<=$D$58,'Monthly Storage'!AQ247-'Monthly Storage'!AQ216,"") ->  | AR11: =IF(AR1<=$D$58,'Monthly Storage'!AR247-'Monthly Storage'!AR216,"") ->  | AS11: =IF(AS1<=$D$58,'Monthly Storage'!AS247-'Monthly Storage'!AS216,"") ->  | AT11: =IF(AT1<=$D$58,'Monthly Storage'!AT247-'Monthly Storage'!AT216,"") ->  | AU11: =IF(AU1<=$D$58,'Monthly Storage'!AU247-'Monthly Storage'!AU216,"") ->  | AV11: =IF(AV1<=$D$58,'Monthly Storage'!AV247-'Monthly Storage'!AV216,"") ->  | AW11: =IF(AW1<=$D$58,'Monthly Storage'!AW247-'Monthly Storage'!AW216,"") ->  | AX11: =IF(AX1<=$D$58,'Monthly Storage'!AX247-'Monthly Storage'!AX216,"") ->  | AY11: =IF(AY1<=$D$58,'Monthly Storage'!AY247-'Monthly Storage'!AY216,"") ->  | AZ11: =IF(AZ1<=$D$58,'Monthly Storage'!AZ247-'Monthly Storage'!AZ216,"") ->  | BA11: =IF(BA1<=$D$58,'Monthly Storage'!BA247-'Monthly Storage'!BA216,"") -> 
B12: ก.ย. | C12: 0 | D12: =IF(D1<=$D$58,'Monthly Storage'!D277-'Monthly Storage'!D247,"") -> 0 | E12: =IF(E1<=$D$58,'Monthly Storage'!E277-'Monthly Storage'!E247,"") -> 0 | F12: =IF(F1<=$D$58,'Monthly Storage'!F277-'Monthly Storage'!F247,"") -> 0 | G12: =IF(G1<=$D$58,'Monthly Storage'!G277-'Monthly Storage'!G247,"") -> 0 | H12: =IF(H1<=$D$58,'Monthly Storage'!H277-'Monthly Storage'!H247,"") ->  | I12: =IF(I1<=$D$58,'Monthly Storage'!I277-'Monthly Storage'!I247,"") ->  | J12: =IF(J1<=$D$58,'Monthly Storage'!J277-'Monthly Storage'!J247,"") ->  | K12: =IF(K1<=$D$58,'Monthly Storage'!K277-'Monthly Storage'!K247,"") ->  | L12: =IF(L1<=$D$58,'Monthly Storage'!L277-'Monthly Storage'!L247,"") ->  | M12: =IF(M1<=$D$58,'Monthly Storage'!M277-'Monthly Storage'!M247,"") ->  | N12: =IF(N1<=$D$58,'Monthly Storage'!N277-'Monthly Storage'!N247,"") ->  | O12: =IF(O1<=$D$58,'Monthly Storage'!O277-'Monthly Storage'!O247,"") ->  | P12: =IF(P1<=$D$58,'Monthly Storage'!P277-'Monthly Storage'!P247,"") ->  | Q12: =IF(Q1<=$D$58,'Monthly Storage'!Q277-'Monthly Storage'!Q247,"") ->  | R12: =IF(R1<=$D$58,'Monthly Storage'!R277-'Monthly Storage'!R247,"") ->  | S12: =IF(S1<=$D$58,'Monthly Storage'!S277-'Monthly Storage'!S247,"") ->  | T12: =IF(T1<=$D$58,'Monthly Storage'!T277-'Monthly Storage'!T247,"") ->  | U12: =IF(U1<=$D$58,'Monthly Storage'!U277-'Monthly Storage'!U247,"") ->  | V12: =IF(V1<=$D$58,'Monthly Storage'!V277-'Monthly Storage'!V247,"") ->  | W12: =IF(W1<=$D$58,'Monthly Storage'!W277-'Monthly Storage'!W247,"") ->  | X12: =IF(X1<=$D$58,'Monthly Storage'!X277-'Monthly Storage'!X247,"") ->  | Y12: =IF(Y1<=$D$58,'Monthly Storage'!Y277-'Monthly Storage'!Y247,"") ->  | Z12: =IF(Z1<=$D$58,'Monthly Storage'!Z277-'Monthly Storage'!Z247,"") ->  | AA12: =IF(AA1<=$D$58,'Monthly Storage'!AA277-'Monthly Storage'!AA247,"") ->  | AB12: =IF(AB1<=$D$58,'Monthly Storage'!AB277-'Monthly Storage'!AB247,"") ->  | AC12: =IF(AC1<=$D$58,'Monthly Storage'!AC277-'Monthly Storage'!AC247,"") ->  | AD12: =IF(AD1<=$D$58,'Monthly Storage'!AD277-'Monthly Storage'!AD247,"") ->  | AE12: =IF(AE1<=$D$58,'Monthly Storage'!AE277-'Monthly Storage'!AE247,"") ->  | AF12: =IF(AF1<=$D$58,'Monthly Storage'!AF277-'Monthly Storage'!AF247,"") ->  | AG12: =IF(AG1<=$D$58,'Monthly Storage'!AG277-'Monthly Storage'!AG247,"") ->  | AH12: =IF(AH1<=$D$58,'Monthly Storage'!AH277-'Monthly Storage'!AH247,"") ->  | AI12: =IF(AI1<=$D$58,'Monthly Storage'!AI277-'Monthly Storage'!AI247,"") ->  | AJ12: =IF(AJ1<=$D$58,'Monthly Storage'!AJ277-'Monthly Storage'!AJ247,"") ->  | AK12: =IF(AK1<=$D$58,'Monthly Storage'!AK277-'Monthly Storage'!AK247,"") ->  | AL12: =IF(AL1<=$D$58,'Monthly Storage'!AL277-'Monthly Storage'!AL247,"") ->  | AM12: =IF(AM1<=$D$58,'Monthly Storage'!AM277-'Monthly Storage'!AM247,"") ->  | AN12: =IF(AN1<=$D$58,'Monthly Storage'!AN277-'Monthly Storage'!AN247,"") ->  | AO12: =IF(AO1<=$D$58,'Monthly Storage'!AO277-'Monthly Storage'!AO247,"") ->  | AP12: =IF(AP1<=$D$58,'Monthly Storage'!AP277-'Monthly Storage'!AP247,"") ->  | AQ12: =IF(AQ1<=$D$58,'Monthly Storage'!AQ277-'Monthly Storage'!AQ247,"") ->  | AR12: =IF(AR1<=$D$58,'Monthly Storage'!AR277-'Monthly Storage'!AR247,"") ->  | AS12: =IF(AS1<=$D$58,'Monthly Storage'!AS277-'Monthly Storage'!AS247,"") ->  | AT12: =IF(AT1<=$D$58,'Monthly Storage'!AT277-'Monthly Storage'!AT247,"") ->  | AU12: =IF(AU1<=$D$58,'Monthly Storage'!AU277-'Monthly Storage'!AU247,"") ->  | AV12: =IF(AV1<=$D$58,'Monthly Storage'!AV277-'Monthly Storage'!AV247,"") ->  | AW12: =IF(AW1<=$D$58,'Monthly Storage'!AW277-'Monthly Storage'!AW247,"") ->  | AX12: =IF(AX1<=$D$58,'Monthly Storage'!AX277-'Monthly Storage'!AX247,"") ->  | AY12: =IF(AY1<=$D$58,'Monthly Storage'!AY277-'Monthly Storage'!AY247,"") ->  | AZ12: =IF(AZ1<=$D$58,'Monthly Storage'!AZ277-'Monthly Storage'!AZ247,"") ->  | BA12: =IF(BA1<=$D$58,'Monthly Storage'!BA277-'Monthly Storage'!BA247,"") -> 
B13: ต.ค. | C13: 0 | D13: =IF(D1<=$D$58,'Monthly Storage'!D308-'Monthly Storage'!D277,"") -> 0 | E13: =IF(E1<=$D$58,'Monthly Storage'!E308-'Monthly Storage'!E277,"") -> 0 | F13: =IF(F1<=$D$58,'Monthly Storage'!F308-'Monthly Storage'!F277,"") -> 0 | G13: =IF(G1<=$D$58,'Monthly Storage'!G308-'Monthly Storage'!G277,"") -> 0 | H13: =IF(H1<=$D$58,'Monthly Storage'!H308-'Monthly Storage'!H277,"") ->  | I13: =IF(I1<=$D$58,'Monthly Storage'!I308-'Monthly Storage'!I277,"") ->  | J13: =IF(J1<=$D$58,'Monthly Storage'!J308-'Monthly Storage'!J277,"") ->  | K13: =IF(K1<=$D$58,'Monthly Storage'!K308-'Monthly Storage'!K277,"") ->  | L13: =IF(L1<=$D$58,'Monthly Storage'!L308-'Monthly Storage'!L277,"") ->  | M13: =IF(M1<=$D$58,'Monthly Storage'!M308-'Monthly Storage'!M277,"") ->  | N13: =IF(N1<=$D$58,'Monthly Storage'!N308-'Monthly Storage'!N277,"") ->  | O13: =IF(O1<=$D$58,'Monthly Storage'!O308-'Monthly Storage'!O277,"") ->  | P13: =IF(P1<=$D$58,'Monthly Storage'!P308-'Monthly Storage'!P277,"") ->  | Q13: =IF(Q1<=$D$58,'Monthly Storage'!Q308-'Monthly Storage'!Q277,"") ->  | R13: =IF(R1<=$D$58,'Monthly Storage'!R308-'Monthly Storage'!R277,"") ->  | S13: =IF(S1<=$D$58,'Monthly Storage'!S308-'Monthly Storage'!S277,"") ->  | T13: =IF(T1<=$D$58,'Monthly Storage'!T308-'Monthly Storage'!T277,"") ->  | U13: =IF(U1<=$D$58,'Monthly Storage'!U308-'Monthly Storage'!U277,"") ->  | V13: =IF(V1<=$D$58,'Monthly Storage'!V308-'Monthly Storage'!V277,"") ->  | W13: =IF(W1<=$D$58,'Monthly Storage'!W308-'Monthly Storage'!W277,"") ->  | X13: =IF(X1<=$D$58,'Monthly Storage'!X308-'Monthly Storage'!X277,"") ->  | Y13: =IF(Y1<=$D$58,'Monthly Storage'!Y308-'Monthly Storage'!Y277,"") ->  | Z13: =IF(Z1<=$D$58,'Monthly Storage'!Z308-'Monthly Storage'!Z277,"") ->  | AA13: =IF(AA1<=$D$58,'Monthly Storage'!AA308-'Monthly Storage'!AA277,"") ->  | AB13: =IF(AB1<=$D$58,'Monthly Storage'!AB308-'Monthly Storage'!AB277,"") ->  | AC13: =IF(AC1<=$D$58,'Monthly Storage'!AC308-'Monthly Storage'!AC277,"") ->  | AD13: =IF(AD1<=$D$58,'Monthly Storage'!AD308-'Monthly Storage'!AD277,"") ->  | AE13: =IF(AE1<=$D$58,'Monthly Storage'!AE308-'Monthly Storage'!AE277,"") ->  | AF13: =IF(AF1<=$D$58,'Monthly Storage'!AF308-'Monthly Storage'!AF277,"") ->  | AG13: =IF(AG1<=$D$58,'Monthly Storage'!AG308-'Monthly Storage'!AG277,"") ->  | AH13: =IF(AH1<=$D$58,'Monthly Storage'!AH308-'Monthly Storage'!AH277,"") ->  | AI13: =IF(AI1<=$D$58,'Monthly Storage'!AI308-'Monthly Storage'!AI277,"") ->  | AJ13: =IF(AJ1<=$D$58,'Monthly Storage'!AJ308-'Monthly Storage'!AJ277,"") ->  | AK13: =IF(AK1<=$D$58,'Monthly Storage'!AK308-'Monthly Storage'!AK277,"") ->  | AL13: =IF(AL1<=$D$58,'Monthly Storage'!AL308-'Monthly Storage'!AL277,"") ->  | AM13: =IF(AM1<=$D$58,'Monthly Storage'!AM308-'Monthly Storage'!AM277,"") ->  | AN13: =IF(AN1<=$D$58,'Monthly Storage'!AN308-'Monthly Storage'!AN277,"") ->  | AO13: =IF(AO1<=$D$58,'Monthly Storage'!AO308-'Monthly Storage'!AO277,"") ->  | AP13: =IF(AP1<=$D$58,'Monthly Storage'!AP308-'Monthly Storage'!AP277,"") ->  | AQ13: =IF(AQ1<=$D$58,'Monthly Storage'!AQ308-'Monthly Storage'!AQ277,"") ->  | AR13: =IF(AR1<=$D$58,'Monthly Storage'!AR308-'Monthly Storage'!AR277,"") ->  | AS13: =IF(AS1<=$D$58,'Monthly Storage'!AS308-'Monthly Storage'!AS277,"") ->  | AT13: =IF(AT1<=$D$58,'Monthly Storage'!AT308-'Monthly Storage'!AT277,"") ->  | AU13: =IF(AU1<=$D$58,'Monthly Storage'!AU308-'Monthly Storage'!AU277,"") ->  | AV13: =IF(AV1<=$D$58,'Monthly Storage'!AV308-'Monthly Storage'!AV277,"") ->  | AW13: =IF(AW1<=$D$58,'Monthly Storage'!AW308-'Monthly Storage'!AW277,"") ->  | AX13: =IF(AX1<=$D$58,'Monthly Storage'!AX308-'Monthly Storage'!AX277,"") ->  | AY13: =IF(AY1<=$D$58,'Monthly Storage'!AY308-'Monthly Storage'!AY277,"") ->  | AZ13: =IF(AZ1<=$D$58,'Monthly Storage'!AZ308-'Monthly Storage'!AZ277,"") ->  | BA13: =IF(BA1<=$D$58,'Monthly Storage'!BA308-'Monthly Storage'!BA277,"") -> 
B14: พ.ย. | C14: 0 | D14: =IF(D1<=$D$58,'Monthly Storage'!D338-'Monthly Storage'!D308,"") -> 0 | E14: =IF(E1<=$D$58,'Monthly Storage'!E338-'Monthly Storage'!E308,"") -> 0 | F14: =IF(F1<=$D$58,'Monthly Storage'!F338-'Monthly Storage'!F308,"") -> 0 | G14: =IF(G1<=$D$58,'Monthly Storage'!G338-'Monthly Storage'!G308,"") -> 0 | H14: =IF(H1<=$D$58,'Monthly Storage'!H338-'Monthly Storage'!H308,"") ->  | I14: =IF(I1<=$D$58,'Monthly Storage'!I338-'Monthly Storage'!I308,"") ->  | J14: =IF(J1<=$D$58,'Monthly Storage'!J338-'Monthly Storage'!J308,"") ->  | K14: =IF(K1<=$D$58,'Monthly Storage'!K338-'Monthly Storage'!K308,"") ->  | L14: =IF(L1<=$D$58,'Monthly Storage'!L338-'Monthly Storage'!L308,"") ->  | M14: =IF(M1<=$D$58,'Monthly Storage'!M338-'Monthly Storage'!M308,"") ->  | N14: =IF(N1<=$D$58,'Monthly Storage'!N338-'Monthly Storage'!N308,"") ->  | O14: =IF(O1<=$D$58,'Monthly Storage'!O338-'Monthly Storage'!O308,"") ->  | P14: =IF(P1<=$D$58,'Monthly Storage'!P338-'Monthly Storage'!P308,"") ->  | Q14: =IF(Q1<=$D$58,'Monthly Storage'!Q338-'Monthly Storage'!Q308,"") ->  | R14: =IF(R1<=$D$58,'Monthly Storage'!R338-'Monthly Storage'!R308,"") ->  | S14: =IF(S1<=$D$58,'Monthly Storage'!S338-'Monthly Storage'!S308,"") ->  | T14: =IF(T1<=$D$58,'Monthly Storage'!T338-'Monthly Storage'!T308,"") ->  | U14: =IF(U1<=$D$58,'Monthly Storage'!U338-'Monthly Storage'!U308,"") ->  | V14: =IF(V1<=$D$58,'Monthly Storage'!V338-'Monthly Storage'!V308,"") ->  | W14: =IF(W1<=$D$58,'Monthly Storage'!W338-'Monthly Storage'!W308,"") ->  | X14: =IF(X1<=$D$58,'Monthly Storage'!X338-'Monthly Storage'!X308,"") ->  | Y14: =IF(Y1<=$D$58,'Monthly Storage'!Y338-'Monthly Storage'!Y308,"") ->  | Z14: =IF(Z1<=$D$58,'Monthly Storage'!Z338-'Monthly Storage'!Z308,"") ->  | AA14: =IF(AA1<=$D$58,'Monthly Storage'!AA338-'Monthly Storage'!AA308,"") ->  | AB14: =IF(AB1<=$D$58,'Monthly Storage'!AB338-'Monthly Storage'!AB308,"") ->  | AC14: =IF(AC1<=$D$58,'Monthly Storage'!AC338-'Monthly Storage'!AC308,"") ->  | AD14: =IF(AD1<=$D$58,'Monthly Storage'!AD338-'Monthly Storage'!AD308,"") ->  | AE14: =IF(AE1<=$D$58,'Monthly Storage'!AE338-'Monthly Storage'!AE308,"") ->  | AF14: =IF(AF1<=$D$58,'Monthly Storage'!AF338-'Monthly Storage'!AF308,"") ->  | AG14: =IF(AG1<=$D$58,'Monthly Storage'!AG338-'Monthly Storage'!AG308,"") ->  | AH14: =IF(AH1<=$D$58,'Monthly Storage'!AH338-'Monthly Storage'!AH308,"") ->  | AI14: =IF(AI1<=$D$58,'Monthly Storage'!AI338-'Monthly Storage'!AI308,"") ->  | AJ14: =IF(AJ1<=$D$58,'Monthly Storage'!AJ338-'Monthly Storage'!AJ308,"") ->  | AK14: =IF(AK1<=$D$58,'Monthly Storage'!AK338-'Monthly Storage'!AK308,"") ->  | AL14: =IF(AL1<=$D$58,'Monthly Storage'!AL338-'Monthly Storage'!AL308,"") ->  | AM14: =IF(AM1<=$D$58,'Monthly Storage'!AM338-'Monthly Storage'!AM308,"") ->  | AN14: =IF(AN1<=$D$58,'Monthly Storage'!AN338-'Monthly Storage'!AN308,"") ->  | AO14: =IF(AO1<=$D$58,'Monthly Storage'!AO338-'Monthly Storage'!AO308,"") ->  | AP14: =IF(AP1<=$D$58,'Monthly Storage'!AP338-'Monthly Storage'!AP308,"") ->  | AQ14: =IF(AQ1<=$D$58,'Monthly Storage'!AQ338-'Monthly Storage'!AQ308,"") ->  | AR14: =IF(AR1<=$D$58,'Monthly Storage'!AR338-'Monthly Storage'!AR308,"") ->  | AS14: =IF(AS1<=$D$58,'Monthly Storage'!AS338-'Monthly Storage'!AS308,"") ->  | AT14: =IF(AT1<=$D$58,'Monthly Storage'!AT338-'Monthly Storage'!AT308,"") ->  | AU14: =IF(AU1<=$D$58,'Monthly Storage'!AU338-'Monthly Storage'!AU308,"") ->  | AV14: =IF(AV1<=$D$58,'Monthly Storage'!AV338-'Monthly Storage'!AV308,"") ->  | AW14: =IF(AW1<=$D$58,'Monthly Storage'!AW338-'Monthly Storage'!AW308,"") ->  | AX14: =IF(AX1<=$D$58,'Monthly Storage'!AX338-'Monthly Storage'!AX308,"") ->  | AY14: =IF(AY1<=$D$58,'Monthly Storage'!AY338-'Monthly Storage'!AY308,"") ->  | AZ14: =IF(AZ1<=$D$58,'Monthly Storage'!AZ338-'Monthly Storage'!AZ308,"") ->  | BA14: =IF(BA1<=$D$58,'Monthly Storage'!BA338-'Monthly Storage'!BA308,"") -> 
B15: ธ.ค. | C15: 0 | D15: =IF(D1<=$D$58,'Monthly Storage'!E4-'Monthly Storage'!D338,"") -> 0 | E15: =IF(E1<=$D$58,'Monthly Storage'!F4-'Monthly Storage'!E338,"") -> 0 | F15: =IF(F1<=$D$58,'Monthly Storage'!G4-'Monthly Storage'!F338,"") -> 0 | G15: =IF(G1<=$D$58,'Monthly Storage'!H4-'Monthly Storage'!G338,"") -> 0 | H15: =IF(H1<=$D$58,'Monthly Storage'!I4-'Monthly Storage'!H338,"") ->  | I15: =IF(I1<=$D$58,'Monthly Storage'!J4-'Monthly Storage'!I338,"") ->  | J15: =IF(J1<=$D$58,'Monthly Storage'!K4-'Monthly Storage'!J338,"") ->  | K15: =IF(K1<=$D$58,'Monthly Storage'!L4-'Monthly Storage'!K338,"") ->  | L15: =IF(L1<=$D$58,'Monthly Storage'!M4-'Monthly Storage'!L338,"") ->  | M15: =IF(M1<=$D$58,'Monthly Storage'!N4-'Monthly Storage'!M338,"") ->  | N15: =IF(N1<=$D$58,'Monthly Storage'!O4-'Monthly Storage'!N338,"") ->  | O15: =IF(O1<=$D$58,'Monthly Storage'!P4-'Monthly Storage'!O338,"") ->  | P15: =IF(P1<=$D$58,'Monthly Storage'!Q4-'Monthly Storage'!P338,"") ->  | Q15: =IF(Q1<=$D$58,'Monthly Storage'!R4-'Monthly Storage'!Q338,"") ->  | R15: =IF(R1<=$D$58,'Monthly Storage'!S4-'Monthly Storage'!R338,"") ->  | S15: =IF(S1<=$D$58,'Monthly Storage'!T4-'Monthly Storage'!S338,"") ->  | T15: =IF(T1<=$D$58,'Monthly Storage'!U4-'Monthly Storage'!T338,"") ->  | U15: =IF(U1<=$D$58,'Monthly Storage'!V4-'Monthly Storage'!U338,"") ->  | V15: =IF(V1<=$D$58,'Monthly Storage'!W4-'Monthly Storage'!V338,"") ->  | W15: =IF(W1<=$D$58,'Monthly Storage'!X4-'Monthly Storage'!W338,"") ->  | X15: =IF(X1<=$D$58,'Monthly Storage'!Y4-'Monthly Storage'!X338,"") ->  | Y15: =IF(Y1<=$D$58,'Monthly Storage'!Z4-'Monthly Storage'!Y338,"") ->  | Z15: =IF(Z1<=$D$58,'Monthly Storage'!AA4-'Monthly Storage'!Z338,"") ->  | AA15: =IF(AA1<=$D$58,'Monthly Storage'!AB4-'Monthly Storage'!AA338,"") ->  | AB15: =IF(AB1<=$D$58,'Monthly Storage'!AC4-'Monthly Storage'!AB338,"") ->  | AC15: =IF(AC1<=$D$58,'Monthly Storage'!AD4-'Monthly Storage'!AC338,"") ->  | AD15: =IF(AD1<=$D$58,'Monthly Storage'!AE4-'Monthly Storage'!AD338,"") ->  | AE15: =IF(AE1<=$D$58,'Monthly Storage'!AF4-'Monthly Storage'!AE338,"") ->  | AF15: =IF(AF1<=$D$58,'Monthly Storage'!AG4-'Monthly Storage'!AF338,"") ->  | AG15: =IF(AG1<=$D$58,'Monthly Storage'!AH4-'Monthly Storage'!AG338,"") ->  | AH15: =IF(AH1<=$D$58,'Monthly Storage'!AI4-'Monthly Storage'!AH338,"") ->  | AI15: =IF(AI1<=$D$58,'Monthly Storage'!AJ4-'Monthly Storage'!AI338,"") ->  | AJ15: =IF(AJ1<=$D$58,'Monthly Storage'!AK4-'Monthly Storage'!AJ338,"") ->  | AK15: =IF(AK1<=$D$58,'Monthly Storage'!AL4-'Monthly Storage'!AK338,"") ->  | AL15: =IF(AL1<=$D$58,'Monthly Storage'!AM4-'Monthly Storage'!AL338,"") ->  | AM15: =IF(AM1<=$D$58,'Monthly Storage'!AN4-'Monthly Storage'!AM338,"") ->  | AN15: =IF(AN1<=$D$58,'Monthly Storage'!AO4-'Monthly Storage'!AN338,"") ->  | AO15: =IF(AO1<=$D$58,'Monthly Storage'!AP4-'Monthly Storage'!AO338,"") ->  | AP15: =IF(AP1<=$D$58,'Monthly Storage'!AQ4-'Monthly Storage'!AP338,"") ->  | AQ15: =IF(AQ1<=$D$58,'Monthly Storage'!AR4-'Monthly Storage'!AQ338,"") ->  | AR15: =IF(AR1<=$D$58,'Monthly Storage'!AS4-'Monthly Storage'!AR338,"") ->  | AS15: =IF(AS1<=$D$58,'Monthly Storage'!AT4-'Monthly Storage'!AS338,"") ->  | AT15: =IF(AT1<=$D$58,'Monthly Storage'!AU4-'Monthly Storage'!AT338,"") ->  | AU15: =IF(AU1<=$D$58,'Monthly Storage'!AV4-'Monthly Storage'!AU338,"") ->  | AV15: =IF(AV1<=$D$58,'Monthly Storage'!AW4-'Monthly Storage'!AV338,"") ->  | AW15: =IF(AW1<=$D$58,'Monthly Storage'!AX4-'Monthly Storage'!AW338,"") ->  | AX15: =IF(AX1<=$D$58,'Monthly Storage'!AY4-'Monthly Storage'!AX338,"") ->  | AY15: =IF(AY1<=$D$58,'Monthly Storage'!AZ4-'Monthly Storage'!AY338,"") ->  | AZ15: =IF(AZ1<=$D$58,'Monthly Storage'!BA4-'Monthly Storage'!AZ338,"") ->  | BA15: =IF(BA1<=$D$58,'Monthly Storage'!BB4-'Monthly Storage'!BA338,"") -> 
A17: Item | B17: เดือน | C17: Average | D17: =IF(D3+543>543,D3+543,"") -> 2529 | E17: =IF(E3+543>543,E3+543,"") -> 2530 | F17: 2531 | G17: 2532
A18: Monthly Storage AVG ทั้งเดือน | B18: ม.ค. | C18: =AVERAGE(OFFSET(D17,1,0,1,$D$58)) ->  | D18: =AVERAGE('Monthly Storage'!D4:D34) ->  | E18: =AVERAGE('Monthly Storage'!E4:E34) ->  | F18: =AVERAGE('Monthly Storage'!F4:F34) ->  | G18: =AVERAGE('Monthly Storage'!G4:G34) ->  | H18: =AVERAGE('Monthly Storage'!H4:H34) ->  | I18: =AVERAGE('Monthly Storage'!I4:I34) ->  | J18: =AVERAGE('Monthly Storage'!J4:J34) ->  | K18: =AVERAGE('Monthly Storage'!K4:K34) ->  | L18: =AVERAGE('Monthly Storage'!L4:L34) ->  | M18: =AVERAGE('Monthly Storage'!M4:M34) ->  | N18: =AVERAGE('Monthly Storage'!N4:N34) ->  | O18: =AVERAGE('Monthly Storage'!O4:O34) ->  | P18: =AVERAGE('Monthly Storage'!P4:P34) ->  | Q18: =AVERAGE('Monthly Storage'!Q4:Q34) ->  | R18: =AVERAGE('Monthly Storage'!R4:R34) ->  | S18: =AVERAGE('Monthly Storage'!S4:S34) ->  | T18: =AVERAGE('Monthly Storage'!T4:T34) ->  | U18: =AVERAGE('Monthly Storage'!U4:U34) ->  | V18: =AVERAGE('Monthly Storage'!V4:V34) ->  | W18: =AVERAGE('Monthly Storage'!W4:W34) ->  | X18: =AVERAGE('Monthly Storage'!X4:X34) ->  | Y18: =AVERAGE('Monthly Storage'!Y4:Y34) ->  | Z18: =AVERAGE('Monthly Storage'!Z4:Z34) ->  | AA18: =AVERAGE('Monthly Storage'!AA4:AA34) ->  | AB18: =AVERAGE('Monthly Storage'!AB4:AB34) ->  | AC18: =AVERAGE('Monthly Storage'!AC4:AC34) ->  | AD18: =AVERAGE('Monthly Storage'!AD4:AD34) ->  | AE18: =AVERAGE('Monthly Storage'!AE4:AE34) ->  | AF18: =AVERAGE('Monthly Storage'!AF4:AF34) ->  | AG18: =AVERAGE('Monthly Storage'!AG4:AG34) ->  | AH18: =AVERAGE('Monthly Storage'!AH4:AH34) ->  | AI18: =AVERAGE('Monthly Storage'!AI4:AI34) ->  | AJ18: =AVERAGE('Monthly Storage'!AJ4:AJ34) ->  | AK18: =AVERAGE('Monthly Storage'!AK4:AK34) ->  | AL18: =AVERAGE('Monthly Storage'!AL4:AL34) ->  | AM18: =AVERAGE('Monthly Storage'!AM4:AM34) ->  | AN18: =AVERAGE('Monthly Storage'!AN4:AN34) ->  | AO18: =AVERAGE('Monthly Storage'!AO4:AO34) ->  | AP18: =AVERAGE('Monthly Storage'!AP4:AP34) ->  | AQ18: =AVERAGE('Monthly Storage'!AQ4:AQ34) ->  | AR18: =AVERAGE('Monthly Storage'!AR4:AR34) ->  | AS18: =AVERAGE('Monthly Storage'!AS4:AS34) ->  | AT18: =AVERAGE('Monthly Storage'!AT4:AT34) ->  | AU18: =AVERAGE('Monthly Storage'!AU4:AU34) ->  | AV18: =AVERAGE('Monthly Storage'!AV4:AV34) ->  | AW18: =AVERAGE('Monthly Storage'!AW4:AW34) ->  | AX18: =AVERAGE('Monthly Storage'!AX4:AX34) ->  | AY18: =AVERAGE('Monthly Storage'!AY4:AY34) ->  | AZ18: =AVERAGE('Monthly Storage'!AZ4:AZ34) ->  | BA18: =AVERAGE('Monthly Storage'!BA4:BA34) -> 
B19: ก.พ. | D19: =AVERAGE('Monthly Storage'!D35:D62) ->  | E19: =AVERAGE('Monthly Storage'!E35:E62) ->  | F19: =AVERAGE('Monthly Storage'!F35:F62) ->  | G19: =AVERAGE('Monthly Storage'!G35:G62) ->  | H19: =AVERAGE('Monthly Storage'!H35:H62) ->  | I19: =AVERAGE('Monthly Storage'!I35:I62) ->  | J19: =AVERAGE('Monthly Storage'!J35:J62) ->  | K19: =AVERAGE('Monthly Storage'!K35:K62) ->  | L19: =AVERAGE('Monthly Storage'!L35:L62) ->  | M19: =AVERAGE('Monthly Storage'!M35:M62) ->  | N19: =AVERAGE('Monthly Storage'!N35:N62) ->  | O19: =AVERAGE('Monthly Storage'!O35:O62) ->  | P19: =AVERAGE('Monthly Storage'!P35:P62) ->  | Q19: =AVERAGE('Monthly Storage'!Q35:Q62) ->  | R19: =AVERAGE('Monthly Storage'!R35:R62) ->  | S19: =AVERAGE('Monthly Storage'!S35:S62) ->  | T19: =AVERAGE('Monthly Storage'!T35:T62) ->  | U19: =AVERAGE('Monthly Storage'!U35:U62) ->  | V19: =AVERAGE('Monthly Storage'!V35:V62) ->  | W19: =AVERAGE('Monthly Storage'!W35:W62) ->  | X19: =AVERAGE('Monthly Storage'!X35:X62) ->  | Y19: =AVERAGE('Monthly Storage'!Y35:Y62) ->  | Z19: =AVERAGE('Monthly Storage'!Z35:Z62) ->  | AA19: =AVERAGE('Monthly Storage'!AA35:AA62) ->  | AB19: =AVERAGE('Monthly Storage'!AB35:AB62) ->  | AC19: =AVERAGE('Monthly Storage'!AC35:AC62) ->  | AD19: =AVERAGE('Monthly Storage'!AD35:AD62) ->  | AE19: =AVERAGE('Monthly Storage'!AE35:AE62) ->  | AF19: =AVERAGE('Monthly Storage'!AF35:AF62) ->  | AG19: =AVERAGE('Monthly Storage'!AG35:AG62) ->  | AH19: =AVERAGE('Monthly Storage'!AH35:AH62) ->  | AI19: =AVERAGE('Monthly Storage'!AI35:AI62) ->  | AJ19: =AVERAGE('Monthly Storage'!AJ35:AJ62) ->  | AK19: =AVERAGE('Monthly Storage'!AK35:AK62) ->  | AL19: =AVERAGE('Monthly Storage'!AL35:AL62) ->  | AM19: =AVERAGE('Monthly Storage'!AM35:AM62) ->  | AN19: =AVERAGE('Monthly Storage'!AN35:AN62) ->  | AO19: =AVERAGE('Monthly Storage'!AO35:AO62) ->  | AP19: =AVERAGE('Monthly Storage'!AP35:AP62) ->  | AQ19: =AVERAGE('Monthly Storage'!AQ35:AQ62) ->  | AR19: =AVERAGE('Monthly Storage'!AR35:AR62) ->  | AS19: =AVERAGE('Monthly Storage'!AS35:AS62) ->  | AT19: =AVERAGE('Monthly Storage'!AT35:AT62) ->  | AU19: =AVERAGE('Monthly Storage'!AU35:AU62) ->  | AV19: =AVERAGE('Monthly Storage'!AV35:AV62) ->  | AW19: =AVERAGE('Monthly Storage'!AW35:AW62) ->  | AX19: =AVERAGE('Monthly Storage'!AX35:AX62) ->  | AY19: =AVERAGE('Monthly Storage'!AY35:AY62) ->  | AZ19: =AVERAGE('Monthly Storage'!AZ35:AZ62) ->  | BA19: =AVERAGE('Monthly Storage'!BA35:BA62) -> 
B20: มี.ค. | D20: =AVERAGE('Monthly Storage'!D63:D93) ->  | E20: =AVERAGE('Monthly Storage'!E63:E93) ->  | F20: =AVERAGE('Monthly Storage'!F63:F93) ->  | G20: =AVERAGE('Monthly Storage'!G63:G93) ->  | H20: =AVERAGE('Monthly Storage'!H63:H93) ->  | I20: =AVERAGE('Monthly Storage'!I63:I93) ->  | J20: =AVERAGE('Monthly Storage'!J63:J93) ->  | K20: =AVERAGE('Monthly Storage'!K63:K93) ->  | L20: =AVERAGE('Monthly Storage'!L63:L93) ->  | M20: =AVERAGE('Monthly Storage'!M63:M93) ->  | N20: =AVERAGE('Monthly Storage'!N63:N93) ->  | O20: =AVERAGE('Monthly Storage'!O63:O93) ->  | P20: =AVERAGE('Monthly Storage'!P63:P93) ->  | Q20: =AVERAGE('Monthly Storage'!Q63:Q93) ->  | R20: =AVERAGE('Monthly Storage'!R63:R93) ->  | S20: =AVERAGE('Monthly Storage'!S63:S93) ->  | T20: =AVERAGE('Monthly Storage'!T63:T93) ->  | U20: =AVERAGE('Monthly Storage'!U63:U93) ->  | V20: =AVERAGE('Monthly Storage'!V63:V93) ->  | W20: =AVERAGE('Monthly Storage'!W63:W93) ->  | X20: =AVERAGE('Monthly Storage'!X63:X93) ->  | Y20: =AVERAGE('Monthly Storage'!Y63:Y93) ->  | Z20: =AVERAGE('Monthly Storage'!Z63:Z93) ->  | AA20: =AVERAGE('Monthly Storage'!AA63:AA93) ->  | AB20: =AVERAGE('Monthly Storage'!AB63:AB93) ->  | AC20: =AVERAGE('Monthly Storage'!AC63:AC93) ->  | AD20: =AVERAGE('Monthly Storage'!AD63:AD93) ->  | AE20: =AVERAGE('Monthly Storage'!AE63:AE93) ->  | AF20: =AVERAGE('Monthly Storage'!AF63:AF93) ->  | AG20: =AVERAGE('Monthly Storage'!AG63:AG93) ->  | AH20: =AVERAGE('Monthly Storage'!AH63:AH93) ->  | AI20: =AVERAGE('Monthly Storage'!AI63:AI93) ->  | AJ20: =AVERAGE('Monthly Storage'!AJ63:AJ93) ->  | AK20: =AVERAGE('Monthly Storage'!AK63:AK93) ->  | AL20: =AVERAGE('Monthly Storage'!AL63:AL93) ->  | AM20: =AVERAGE('Monthly Storage'!AM63:AM93) ->  | AN20: =AVERAGE('Monthly Storage'!AN63:AN93) ->  | AO20: =AVERAGE('Monthly Storage'!AO63:AO93) ->  | AP20: =AVERAGE('Monthly Storage'!AP63:AP93) ->  | AQ20: =AVERAGE('Monthly Storage'!AQ63:AQ93) ->  | AR20: =AVERAGE('Monthly Storage'!AR63:AR93) ->  | AS20: =AVERAGE('Monthly Storage'!AS63:AS93) ->  | AT20: =AVERAGE('Monthly Storage'!AT63:AT93) ->  | AU20: =AVERAGE('Monthly Storage'!AU63:AU93) ->  | AV20: =AVERAGE('Monthly Storage'!AV63:AV93) ->  | AW20: =AVERAGE('Monthly Storage'!AW63:AW93) ->  | AX20: =AVERAGE('Monthly Storage'!AX63:AX93) ->  | AY20: =AVERAGE('Monthly Storage'!AY63:AY93) ->  | AZ20: =AVERAGE('Monthly Storage'!AZ63:AZ93) ->  | BA20: =AVERAGE('Monthly Storage'!BA63:BA93) -> 
B21: เม.ย. | D21: =AVERAGE('Monthly Storage'!D94:D123) ->  | E21: =AVERAGE('Monthly Storage'!E94:E123) ->  | F21: =AVERAGE('Monthly Storage'!F94:F123) ->  | G21: =AVERAGE('Monthly Storage'!G94:G123) ->  | H21: =AVERAGE('Monthly Storage'!H94:H123) ->  | I21: =AVERAGE('Monthly Storage'!I94:I123) ->  | J21: =AVERAGE('Monthly Storage'!J94:J123) ->  | K21: =AVERAGE('Monthly Storage'!K94:K123) ->  | L21: =AVERAGE('Monthly Storage'!L94:L123) ->  | M21: =AVERAGE('Monthly Storage'!M94:M123) ->  | N21: =AVERAGE('Monthly Storage'!N94:N123) ->  | O21: =AVERAGE('Monthly Storage'!O94:O123) ->  | P21: =AVERAGE('Monthly Storage'!P94:P123) ->  | Q21: =AVERAGE('Monthly Storage'!Q94:Q123) ->  | R21: =AVERAGE('Monthly Storage'!R94:R123) ->  | S21: =AVERAGE('Monthly Storage'!S94:S123) ->  | T21: =AVERAGE('Monthly Storage'!T94:T123) ->  | U21: =AVERAGE('Monthly Storage'!U94:U123) ->  | V21: =AVERAGE('Monthly Storage'!V94:V123) ->  | W21: =AVERAGE('Monthly Storage'!W94:W123) ->  | X21: =AVERAGE('Monthly Storage'!X94:X123) ->  | Y21: =AVERAGE('Monthly Storage'!Y94:Y123) ->  | Z21: =AVERAGE('Monthly Storage'!Z94:Z123) ->  | AA21: =AVERAGE('Monthly Storage'!AA94:AA123) ->  | AB21: =AVERAGE('Monthly Storage'!AB94:AB123) ->  | AC21: =AVERAGE('Monthly Storage'!AC94:AC123) ->  | AD21: =AVERAGE('Monthly Storage'!AD94:AD123) ->  | AE21: =AVERAGE('Monthly Storage'!AE94:AE123) ->  | AF21: =AVERAGE('Monthly Storage'!AF94:AF123) ->  | AG21: =AVERAGE('Monthly Storage'!AG94:AG123) ->  | AH21: =AVERAGE('Monthly Storage'!AH94:AH123) ->  | AI21: =AVERAGE('Monthly Storage'!AI94:AI123) ->  | AJ21: =AVERAGE('Monthly Storage'!AJ94:AJ123) ->  | AK21: =AVERAGE('Monthly Storage'!AK94:AK123) ->  | AL21: =AVERAGE('Monthly Storage'!AL94:AL123) ->  | AM21: =AVERAGE('Monthly Storage'!AM94:AM123) ->  | AN21: =AVERAGE('Monthly Storage'!AN94:AN123) ->  | AO21: =AVERAGE('Monthly Storage'!AO94:AO123) ->  | AP21: =AVERAGE('Monthly Storage'!AP94:AP123) ->  | AQ21: =AVERAGE('Monthly Storage'!AQ94:AQ123) ->  | AR21: =AVERAGE('Monthly Storage'!AR94:AR123) ->  | AS21: =AVERAGE('Monthly Storage'!AS94:AS123) ->  | AT21: =AVERAGE('Monthly Storage'!AT94:AT123) ->  | AU21: =AVERAGE('Monthly Storage'!AU94:AU123) ->  | AV21: =AVERAGE('Monthly Storage'!AV94:AV123) ->  | AW21: =AVERAGE('Monthly Storage'!AW94:AW123) ->  | AX21: =AVERAGE('Monthly Storage'!AX94:AX123) ->  | AY21: =AVERAGE('Monthly Storage'!AY94:AY123) ->  | AZ21: =AVERAGE('Monthly Storage'!AZ94:AZ123) ->  | BA21: =AVERAGE('Monthly Storage'!BA94:BA123) -> 
B22: พ.ค. | D22: =AVERAGE('Monthly Storage'!D124:D154) ->  | E22: =AVERAGE('Monthly Storage'!E124:E154) ->  | F22: =AVERAGE('Monthly Storage'!F124:F154) ->  | G22: =AVERAGE('Monthly Storage'!G124:G154) ->  | H22: =AVERAGE('Monthly Storage'!H124:H154) ->  | I22: =AVERAGE('Monthly Storage'!I124:I154) ->  | J22: =AVERAGE('Monthly Storage'!J124:J154) ->  | K22: =AVERAGE('Monthly Storage'!K124:K154) ->  | L22: =AVERAGE('Monthly Storage'!L124:L154) ->  | M22: =AVERAGE('Monthly Storage'!M124:M154) ->  | N22: =AVERAGE('Monthly Storage'!N124:N154) ->  | O22: =AVERAGE('Monthly Storage'!O124:O154) ->  | P22: =AVERAGE('Monthly Storage'!P124:P154) ->  | Q22: =AVERAGE('Monthly Storage'!Q124:Q154) ->  | R22: =AVERAGE('Monthly Storage'!R124:R154) ->  | S22: =AVERAGE('Monthly Storage'!S124:S154) ->  | T22: =AVERAGE('Monthly Storage'!T124:T154) ->  | U22: =AVERAGE('Monthly Storage'!U124:U154) ->  | V22: =AVERAGE('Monthly Storage'!V124:V154) ->  | W22: =AVERAGE('Monthly Storage'!W124:W154) ->  | X22: =AVERAGE('Monthly Storage'!X124:X154) ->  | Y22: =AVERAGE('Monthly Storage'!Y124:Y154) ->  | Z22: =AVERAGE('Monthly Storage'!Z124:Z154) ->  | AA22: =AVERAGE('Monthly Storage'!AA124:AA154) ->  | AB22: =AVERAGE('Monthly Storage'!AB124:AB154) ->  | AC22: =AVERAGE('Monthly Storage'!AC124:AC154) ->  | AD22: =AVERAGE('Monthly Storage'!AD124:AD154) ->  | AE22: =AVERAGE('Monthly Storage'!AE124:AE154) ->  | AF22: =AVERAGE('Monthly Storage'!AF124:AF154) ->  | AG22: =AVERAGE('Monthly Storage'!AG124:AG154) ->  | AH22: =AVERAGE('Monthly Storage'!AH124:AH154) ->  | AI22: =AVERAGE('Monthly Storage'!AI124:AI154) ->  | AJ22: =AVERAGE('Monthly Storage'!AJ124:AJ154) ->  | AK22: =AVERAGE('Monthly Storage'!AK124:AK154) ->  | AL22: =AVERAGE('Monthly Storage'!AL124:AL154) ->  | AM22: =AVERAGE('Monthly Storage'!AM124:AM154) ->  | AN22: =AVERAGE('Monthly Storage'!AN124:AN154) ->  | AO22: =AVERAGE('Monthly Storage'!AO124:AO154) ->  | AP22: =AVERAGE('Monthly Storage'!AP124:AP154) ->  | AQ22: =AVERAGE('Monthly Storage'!AQ124:AQ154) ->  | AR22: =AVERAGE('Monthly Storage'!AR124:AR154) ->  | AS22: =AVERAGE('Monthly Storage'!AS124:AS154) ->  | AT22: =AVERAGE('Monthly Storage'!AT124:AT154) ->  | AU22: =AVERAGE('Monthly Storage'!AU124:AU154) ->  | AV22: =AVERAGE('Monthly Storage'!AV124:AV154) ->  | AW22: =AVERAGE('Monthly Storage'!AW124:AW154) ->  | AX22: =AVERAGE('Monthly Storage'!AX124:AX154) ->  | AY22: =AVERAGE('Monthly Storage'!AY124:AY154) ->  | AZ22: =AVERAGE('Monthly Storage'!AZ124:AZ154) ->  | BA22: =AVERAGE('Monthly Storage'!BA124:BA154) -> 
B23: มิ.ย. | D23: =AVERAGE('Monthly Storage'!D155:D184) ->  | E23: =AVERAGE('Monthly Storage'!E155:E184) ->  | F23: =AVERAGE('Monthly Storage'!F155:F184) ->  | G23: =AVERAGE('Monthly Storage'!G155:G184) ->  | H23: =AVERAGE('Monthly Storage'!H155:H184) ->  | I23: =AVERAGE('Monthly Storage'!I155:I184) ->  | J23: =AVERAGE('Monthly Storage'!J155:J184) ->  | K23: =AVERAGE('Monthly Storage'!K155:K184) ->  | L23: =AVERAGE('Monthly Storage'!L155:L184) ->  | M23: =AVERAGE('Monthly Storage'!M155:M184) ->  | N23: =AVERAGE('Monthly Storage'!N155:N184) ->  | O23: =AVERAGE('Monthly Storage'!O155:O184) ->  | P23: =AVERAGE('Monthly Storage'!P155:P184) ->  | Q23: =AVERAGE('Monthly Storage'!Q155:Q184) ->  | R23: =AVERAGE('Monthly Storage'!R155:R184) ->  | S23: =AVERAGE('Monthly Storage'!S155:S184) ->  | T23: =AVERAGE('Monthly Storage'!T155:T184) ->  | U23: =AVERAGE('Monthly Storage'!U155:U184) ->  | V23: =AVERAGE('Monthly Storage'!V155:V184) ->  | W23: =AVERAGE('Monthly Storage'!W155:W184) ->  | X23: =AVERAGE('Monthly Storage'!X155:X184) ->  | Y23: =AVERAGE('Monthly Storage'!Y155:Y184) ->  | Z23: =AVERAGE('Monthly Storage'!Z155:Z184) ->  | AA23: =AVERAGE('Monthly Storage'!AA155:AA184) ->  | AB23: =AVERAGE('Monthly Storage'!AB155:AB184) ->  | AC23: =AVERAGE('Monthly Storage'!AC155:AC184) ->  | AD23: =AVERAGE('Monthly Storage'!AD155:AD184) ->  | AE23: =AVERAGE('Monthly Storage'!AE155:AE184) ->  | AF23: =AVERAGE('Monthly Storage'!AF155:AF184) ->  | AG23: =AVERAGE('Monthly Storage'!AG155:AG184) ->  | AH23: =AVERAGE('Monthly Storage'!AH155:AH184) ->  | AI23: =AVERAGE('Monthly Storage'!AI155:AI184) ->  | AJ23: =AVERAGE('Monthly Storage'!AJ155:AJ184) ->  | AK23: =AVERAGE('Monthly Storage'!AK155:AK184) ->  | AL23: =AVERAGE('Monthly Storage'!AL155:AL184) ->  | AM23: =AVERAGE('Monthly Storage'!AM155:AM184) ->  | AN23: =AVERAGE('Monthly Storage'!AN155:AN184) ->  | AO23: =AVERAGE('Monthly Storage'!AO155:AO184) ->  | AP23: =AVERAGE('Monthly Storage'!AP155:AP184) ->  | AQ23: =AVERAGE('Monthly Storage'!AQ155:AQ184) ->  | AR23: =AVERAGE('Monthly Storage'!AR155:AR184) ->  | AS23: =AVERAGE('Monthly Storage'!AS155:AS184) ->  | AT23: =AVERAGE('Monthly Storage'!AT155:AT184) ->  | AU23: =AVERAGE('Monthly Storage'!AU155:AU184) ->  | AV23: =AVERAGE('Monthly Storage'!AV155:AV184) ->  | AW23: =AVERAGE('Monthly Storage'!AW155:AW184) ->  | AX23: =AVERAGE('Monthly Storage'!AX155:AX184) ->  | AY23: =AVERAGE('Monthly Storage'!AY155:AY184) ->  | AZ23: =AVERAGE('Monthly Storage'!AZ155:AZ184) ->  | BA23: =AVERAGE('Monthly Storage'!BA155:BA184) -> 
B24: ก.ค. | D24: =AVERAGE('Monthly Storage'!D185:D215) ->  | E24: =AVERAGE('Monthly Storage'!E185:E215) ->  | F24: =AVERAGE('Monthly Storage'!F185:F215) ->  | G24: =AVERAGE('Monthly Storage'!G185:G215) ->  | H24: =AVERAGE('Monthly Storage'!H185:H215) ->  | I24: =AVERAGE('Monthly Storage'!I185:I215) ->  | J24: =AVERAGE('Monthly Storage'!J185:J215) ->  | K24: =AVERAGE('Monthly Storage'!K185:K215) ->  | L24: =AVERAGE('Monthly Storage'!L185:L215) ->  | M24: =AVERAGE('Monthly Storage'!M185:M215) ->  | N24: =AVERAGE('Monthly Storage'!N185:N215) ->  | O24: =AVERAGE('Monthly Storage'!O185:O215) ->  | P24: =AVERAGE('Monthly Storage'!P185:P215) ->  | Q24: =AVERAGE('Monthly Storage'!Q185:Q215) ->  | R24: =AVERAGE('Monthly Storage'!R185:R215) ->  | S24: =AVERAGE('Monthly Storage'!S185:S215) ->  | T24: =AVERAGE('Monthly Storage'!T185:T215) ->  | U24: =AVERAGE('Monthly Storage'!U185:U215) ->  | V24: =AVERAGE('Monthly Storage'!V185:V215) ->  | W24: =AVERAGE('Monthly Storage'!W185:W215) ->  | X24: =AVERAGE('Monthly Storage'!X185:X215) ->  | Y24: =AVERAGE('Monthly Storage'!Y185:Y215) ->  | Z24: =AVERAGE('Monthly Storage'!Z185:Z215) ->  | AA24: =AVERAGE('Monthly Storage'!AA185:AA215) ->  | AB24: =AVERAGE('Monthly Storage'!AB185:AB215) ->  | AC24: =AVERAGE('Monthly Storage'!AC185:AC215) ->  | AD24: =AVERAGE('Monthly Storage'!AD185:AD215) ->  | AE24: =AVERAGE('Monthly Storage'!AE185:AE215) ->  | AF24: =AVERAGE('Monthly Storage'!AF185:AF215) ->  | AG24: =AVERAGE('Monthly Storage'!AG185:AG215) ->  | AH24: =AVERAGE('Monthly Storage'!AH185:AH215) ->  | AI24: =AVERAGE('Monthly Storage'!AI185:AI215) ->  | AJ24: =AVERAGE('Monthly Storage'!AJ185:AJ215) ->  | AK24: =AVERAGE('Monthly Storage'!AK185:AK215) ->  | AL24: =AVERAGE('Monthly Storage'!AL185:AL215) ->  | AM24: =AVERAGE('Monthly Storage'!AM185:AM215) ->  | AN24: =AVERAGE('Monthly Storage'!AN185:AN215) ->  | AO24: =AVERAGE('Monthly Storage'!AO185:AO215) ->  | AP24: =AVERAGE('Monthly Storage'!AP185:AP215) ->  | AQ24: =AVERAGE('Monthly Storage'!AQ185:AQ215) ->  | AR24: =AVERAGE('Monthly Storage'!AR185:AR215) ->  | AS24: =AVERAGE('Monthly Storage'!AS185:AS215) ->  | AT24: =AVERAGE('Monthly Storage'!AT185:AT215) ->  | AU24: =AVERAGE('Monthly Storage'!AU185:AU215) ->  | AV24: =AVERAGE('Monthly Storage'!AV185:AV215) ->  | AW24: =AVERAGE('Monthly Storage'!AW185:AW215) ->  | AX24: =AVERAGE('Monthly Storage'!AX185:AX215) ->  | AY24: =AVERAGE('Monthly Storage'!AY185:AY215) ->  | AZ24: =AVERAGE('Monthly Storage'!AZ185:AZ215) ->  | BA24: =AVERAGE('Monthly Storage'!BA185:BA215) -> 
B25: ส.ค. | D25: =AVERAGE('Monthly Storage'!D216:D246) ->  | E25: =AVERAGE('Monthly Storage'!E216:E246) ->  | F25: =AVERAGE('Monthly Storage'!F216:F246) ->  | G25: =AVERAGE('Monthly Storage'!G216:G246) ->  | H25: =AVERAGE('Monthly Storage'!H216:H246) ->  | I25: =AVERAGE('Monthly Storage'!I216:I246) ->  | J25: =AVERAGE('Monthly Storage'!J216:J246) ->  | K25: =AVERAGE('Monthly Storage'!K216:K246) ->  | L25: =AVERAGE('Monthly Storage'!L216:L246) ->  | M25: =AVERAGE('Monthly Storage'!M216:M246) ->  | N25: =AVERAGE('Monthly Storage'!N216:N246) ->  | O25: =AVERAGE('Monthly Storage'!O216:O246) ->  | P25: =AVERAGE('Monthly Storage'!P216:P246) ->  | Q25: =AVERAGE('Monthly Storage'!Q216:Q246) ->  | R25: =AVERAGE('Monthly Storage'!R216:R246) ->  | S25: =AVERAGE('Monthly Storage'!S216:S246) ->  | T25: =AVERAGE('Monthly Storage'!T216:T246) ->  | U25: =AVERAGE('Monthly Storage'!U216:U246) ->  | V25: =AVERAGE('Monthly Storage'!V216:V246) ->  | W25: =AVERAGE('Monthly Storage'!W216:W246) ->  | X25: =AVERAGE('Monthly Storage'!X216:X246) ->  | Y25: =AVERAGE('Monthly Storage'!Y216:Y246) ->  | Z25: =AVERAGE('Monthly Storage'!Z216:Z246) ->  | AA25: =AVERAGE('Monthly Storage'!AA216:AA246) ->  | AB25: =AVERAGE('Monthly Storage'!AB216:AB246) ->  | AC25: =AVERAGE('Monthly Storage'!AC216:AC246) ->  | AD25: =AVERAGE('Monthly Storage'!AD216:AD246) ->  | AE25: =AVERAGE('Monthly Storage'!AE216:AE246) ->  | AF25: =AVERAGE('Monthly Storage'!AF216:AF246) ->  | AG25: =AVERAGE('Monthly Storage'!AG216:AG246) ->  | AH25: =AVERAGE('Monthly Storage'!AH216:AH246) ->  | AI25: =AVERAGE('Monthly Storage'!AI216:AI246) ->  | AJ25: =AVERAGE('Monthly Storage'!AJ216:AJ246) ->  | AK25: =AVERAGE('Monthly Storage'!AK216:AK246) ->  | AL25: =AVERAGE('Monthly Storage'!AL216:AL246) ->  | AM25: =AVERAGE('Monthly Storage'!AM216:AM246) ->  | AN25: =AVERAGE('Monthly Storage'!AN216:AN246) ->  | AO25: =AVERAGE('Monthly Storage'!AO216:AO246) ->  | AP25: =AVERAGE('Monthly Storage'!AP216:AP246) ->  | AQ25: =AVERAGE('Monthly Storage'!AQ216:AQ246) ->  | AR25: =AVERAGE('Monthly Storage'!AR216:AR246) ->  | AS25: =AVERAGE('Monthly Storage'!AS216:AS246) ->  | AT25: =AVERAGE('Monthly Storage'!AT216:AT246) ->  | AU25: =AVERAGE('Monthly Storage'!AU216:AU246) ->  | AV25: =AVERAGE('Monthly Storage'!AV216:AV246) ->  | AW25: =AVERAGE('Monthly Storage'!AW216:AW246) ->  | AX25: =AVERAGE('Monthly Storage'!AX216:AX246) ->  | AY25: =AVERAGE('Monthly Storage'!AY216:AY246) ->  | AZ25: =AVERAGE('Monthly Storage'!AZ216:AZ246) ->  | BA25: =AVERAGE('Monthly Storage'!BA216:BA246) -> 
B26: ก.ย. | D26: =AVERAGE('Monthly Storage'!D247:D276) ->  | E26: =AVERAGE('Monthly Storage'!E247:E276) ->  | F26: =AVERAGE('Monthly Storage'!F247:F276) ->  | G26: =AVERAGE('Monthly Storage'!G247:G276) ->  | H26: =AVERAGE('Monthly Storage'!H247:H276) ->  | I26: =AVERAGE('Monthly Storage'!I247:I276) ->  | J26: =AVERAGE('Monthly Storage'!J247:J276) ->  | K26: =AVERAGE('Monthly Storage'!K247:K276) ->  | L26: =AVERAGE('Monthly Storage'!L247:L276) ->  | M26: =AVERAGE('Monthly Storage'!M247:M276) ->  | N26: =AVERAGE('Monthly Storage'!N247:N276) ->  | O26: =AVERAGE('Monthly Storage'!O247:O276) ->  | P26: =AVERAGE('Monthly Storage'!P247:P276) ->  | Q26: =AVERAGE('Monthly Storage'!Q247:Q276) ->  | R26: =AVERAGE('Monthly Storage'!R247:R276) ->  | S26: =AVERAGE('Monthly Storage'!S247:S276) ->  | T26: =AVERAGE('Monthly Storage'!T247:T276) ->  | U26: =AVERAGE('Monthly Storage'!U247:U276) ->  | V26: =AVERAGE('Monthly Storage'!V247:V276) ->  | W26: =AVERAGE('Monthly Storage'!W247:W276) ->  | X26: =AVERAGE('Monthly Storage'!X247:X276) ->  | Y26: =AVERAGE('Monthly Storage'!Y247:Y276) ->  | Z26: =AVERAGE('Monthly Storage'!Z247:Z276) ->  | AA26: =AVERAGE('Monthly Storage'!AA247:AA276) ->  | AB26: =AVERAGE('Monthly Storage'!AB247:AB276) ->  | AC26: =AVERAGE('Monthly Storage'!AC247:AC276) ->  | AD26: =AVERAGE('Monthly Storage'!AD247:AD276) ->  | AE26: =AVERAGE('Monthly Storage'!AE247:AE276) ->  | AF26: =AVERAGE('Monthly Storage'!AF247:AF276) ->  | AG26: =AVERAGE('Monthly Storage'!AG247:AG276) ->  | AH26: =AVERAGE('Monthly Storage'!AH247:AH276) ->  | AI26: =AVERAGE('Monthly Storage'!AI247:AI276) ->  | AJ26: =AVERAGE('Monthly Storage'!AJ247:AJ276) ->  | AK26: =AVERAGE('Monthly Storage'!AK247:AK276) ->  | AL26: =AVERAGE('Monthly Storage'!AL247:AL276) ->  | AM26: =AVERAGE('Monthly Storage'!AM247:AM276) ->  | AN26: =AVERAGE('Monthly Storage'!AN247:AN276) ->  | AO26: =AVERAGE('Monthly Storage'!AO247:AO276) ->  | AP26: =AVERAGE('Monthly Storage'!AP247:AP276) ->  | AQ26: =AVERAGE('Monthly Storage'!AQ247:AQ276) ->  | AR26: =AVERAGE('Monthly Storage'!AR247:AR276) ->  | AS26: =AVERAGE('Monthly Storage'!AS247:AS276) ->  | AT26: =AVERAGE('Monthly Storage'!AT247:AT276) ->  | AU26: =AVERAGE('Monthly Storage'!AU247:AU276) ->  | AV26: =AVERAGE('Monthly Storage'!AV247:AV276) ->  | AW26: =AVERAGE('Monthly Storage'!AW247:AW276) ->  | AX26: =AVERAGE('Monthly Storage'!AX247:AX276) ->  | AY26: =AVERAGE('Monthly Storage'!AY247:AY276) ->  | AZ26: =AVERAGE('Monthly Storage'!AZ247:AZ276) ->  | BA26: =AVERAGE('Monthly Storage'!BA247:BA276) -> 
B27: ต.ค. | D27: =AVERAGE('Monthly Storage'!D277:D307) ->  | E27: =AVERAGE('Monthly Storage'!E277:E307) ->  | F27: =AVERAGE('Monthly Storage'!F277:F307) ->  | G27: =AVERAGE('Monthly Storage'!G277:G307) ->  | H27: =AVERAGE('Monthly Storage'!H277:H307) ->  | I27: =AVERAGE('Monthly Storage'!I277:I307) ->  | J27: =AVERAGE('Monthly Storage'!J277:J307) ->  | K27: =AVERAGE('Monthly Storage'!K277:K307) ->  | L27: =AVERAGE('Monthly Storage'!L277:L307) ->  | M27: =AVERAGE('Monthly Storage'!M277:M307) ->  | N27: =AVERAGE('Monthly Storage'!N277:N307) ->  | O27: =AVERAGE('Monthly Storage'!O277:O307) ->  | P27: =AVERAGE('Monthly Storage'!P277:P307) ->  | Q27: =AVERAGE('Monthly Storage'!Q277:Q307) ->  | R27: =AVERAGE('Monthly Storage'!R277:R307) ->  | S27: =AVERAGE('Monthly Storage'!S277:S307) ->  | T27: =AVERAGE('Monthly Storage'!T277:T307) ->  | U27: =AVERAGE('Monthly Storage'!U277:U307) ->  | V27: =AVERAGE('Monthly Storage'!V277:V307) ->  | W27: =AVERAGE('Monthly Storage'!W277:W307) ->  | X27: =AVERAGE('Monthly Storage'!X277:X307) ->  | Y27: =AVERAGE('Monthly Storage'!Y277:Y307) ->  | Z27: =AVERAGE('Monthly Storage'!Z277:Z307) ->  | AA27: =AVERAGE('Monthly Storage'!AA277:AA307) ->  | AB27: =AVERAGE('Monthly Storage'!AB277:AB307) ->  | AC27: =AVERAGE('Monthly Storage'!AC277:AC307) ->  | AD27: =AVERAGE('Monthly Storage'!AD277:AD307) ->  | AE27: =AVERAGE('Monthly Storage'!AE277:AE307) ->  | AF27: =AVERAGE('Monthly Storage'!AF277:AF307) ->  | AG27: =AVERAGE('Monthly Storage'!AG277:AG307) ->  | AH27: =AVERAGE('Monthly Storage'!AH277:AH307) ->  | AI27: =AVERAGE('Monthly Storage'!AI277:AI307) ->  | AJ27: =AVERAGE('Monthly Storage'!AJ277:AJ307) ->  | AK27: =AVERAGE('Monthly Storage'!AK277:AK307) ->  | AL27: =AVERAGE('Monthly Storage'!AL277:AL307) ->  | AM27: =AVERAGE('Monthly Storage'!AM277:AM307) ->  | AN27: =AVERAGE('Monthly Storage'!AN277:AN307) ->  | AO27: =AVERAGE('Monthly Storage'!AO277:AO307) ->  | AP27: =AVERAGE('Monthly Storage'!AP277:AP307) ->  | AQ27: =AVERAGE('Monthly Storage'!AQ277:AQ307) ->  | AR27: =AVERAGE('Monthly Storage'!AR277:AR307) ->  | AS27: =AVERAGE('Monthly Storage'!AS277:AS307) ->  | AT27: =AVERAGE('Monthly Storage'!AT277:AT307) ->  | AU27: =AVERAGE('Monthly Storage'!AU277:AU307) ->  | AV27: =AVERAGE('Monthly Storage'!AV277:AV307) ->  | AW27: =AVERAGE('Monthly Storage'!AW277:AW307) ->  | AX27: =AVERAGE('Monthly Storage'!AX277:AX307) ->  | AY27: =AVERAGE('Monthly Storage'!AY277:AY307) ->  | AZ27: =AVERAGE('Monthly Storage'!AZ277:AZ307) ->  | BA27: =AVERAGE('Monthly Storage'!BA277:BA307) -> 
B28: พ.ย. | D28: =AVERAGE('Monthly Storage'!D308:D337) ->  | E28: =AVERAGE('Monthly Storage'!E308:E337) ->  | F28: =AVERAGE('Monthly Storage'!F308:F337) ->  | G28: =AVERAGE('Monthly Storage'!G308:G337) ->  | H28: =AVERAGE('Monthly Storage'!H308:H337) ->  | I28: =AVERAGE('Monthly Storage'!I308:I337) ->  | J28: =AVERAGE('Monthly Storage'!J308:J337) ->  | K28: =AVERAGE('Monthly Storage'!K308:K337) ->  | L28: =AVERAGE('Monthly Storage'!L308:L337) ->  | M28: =AVERAGE('Monthly Storage'!M308:M337) ->  | N28: =AVERAGE('Monthly Storage'!N308:N337) ->  | O28: =AVERAGE('Monthly Storage'!O308:O337) ->  | P28: =AVERAGE('Monthly Storage'!P308:P337) ->  | Q28: =AVERAGE('Monthly Storage'!Q308:Q337) ->  | R28: =AVERAGE('Monthly Storage'!R308:R337) ->  | S28: =AVERAGE('Monthly Storage'!S308:S337) ->  | T28: =AVERAGE('Monthly Storage'!T308:T337) ->  | U28: =AVERAGE('Monthly Storage'!U308:U337) ->  | V28: =AVERAGE('Monthly Storage'!V308:V337) ->  | W28: =AVERAGE('Monthly Storage'!W308:W337) ->  | X28: =AVERAGE('Monthly Storage'!X308:X337) ->  | Y28: =AVERAGE('Monthly Storage'!Y308:Y337) ->  | Z28: =AVERAGE('Monthly Storage'!Z308:Z337) ->  | AA28: =AVERAGE('Monthly Storage'!AA308:AA337) ->  | AB28: =AVERAGE('Monthly Storage'!AB308:AB337) ->  | AC28: =AVERAGE('Monthly Storage'!AC308:AC337) ->  | AD28: =AVERAGE('Monthly Storage'!AD308:AD337) ->  | AE28: =AVERAGE('Monthly Storage'!AE308:AE337) ->  | AF28: =AVERAGE('Monthly Storage'!AF308:AF337) ->  | AG28: =AVERAGE('Monthly Storage'!AG308:AG337) ->  | AH28: =AVERAGE('Monthly Storage'!AH308:AH337) ->  | AI28: =AVERAGE('Monthly Storage'!AI308:AI337) ->  | AJ28: =AVERAGE('Monthly Storage'!AJ308:AJ337) ->  | AK28: =AVERAGE('Monthly Storage'!AK308:AK337) ->  | AL28: =AVERAGE('Monthly Storage'!AL308:AL337) ->  | AM28: =AVERAGE('Monthly Storage'!AM308:AM337) ->  | AN28: =AVERAGE('Monthly Storage'!AN308:AN337) ->  | AO28: =AVERAGE('Monthly Storage'!AO308:AO337) ->  | AP28: =AVERAGE('Monthly Storage'!AP308:AP337) ->  | AQ28: =AVERAGE('Monthly Storage'!AQ308:AQ337) ->  | AR28: =AVERAGE('Monthly Storage'!AR308:AR337) ->  | AS28: =AVERAGE('Monthly Storage'!AS308:AS337) ->  | AT28: =AVERAGE('Monthly Storage'!AT308:AT337) ->  | AU28: =AVERAGE('Monthly Storage'!AU308:AU337) ->  | AV28: =AVERAGE('Monthly Storage'!AV308:AV337) ->  | AW28: =AVERAGE('Monthly Storage'!AW308:AW337) ->  | AX28: =AVERAGE('Monthly Storage'!AX308:AX337) ->  | AY28: =AVERAGE('Monthly Storage'!AY308:AY337) ->  | AZ28: =AVERAGE('Monthly Storage'!AZ308:AZ337) ->  | BA28: =AVERAGE('Monthly Storage'!BA308:BA337) -> 
B29: ธ.ค. | D29: =AVERAGE('Monthly Storage'!D338:D368) ->  | E29: =AVERAGE('Monthly Storage'!E338:E368) ->  | F29: =AVERAGE('Monthly Storage'!F338:F368) ->  | G29: =AVERAGE('Monthly Storage'!G338:G368) ->  | H29: =AVERAGE('Monthly Storage'!H338:H368) ->  | I29: =AVERAGE('Monthly Storage'!I338:I368) ->  | J29: =AVERAGE('Monthly Storage'!J338:J368) ->  | K29: =AVERAGE('Monthly Storage'!K338:K368) ->  | L29: =AVERAGE('Monthly Storage'!L338:L368) ->  | M29: =AVERAGE('Monthly Storage'!M338:M368) ->  | N29: =AVERAGE('Monthly Storage'!N338:N368) ->  | O29: =AVERAGE('Monthly Storage'!O338:O368) ->  | P29: =AVERAGE('Monthly Storage'!P338:P368) ->  | Q29: =AVERAGE('Monthly Storage'!Q338:Q368) ->  | R29: =AVERAGE('Monthly Storage'!R338:R368) ->  | S29: =AVERAGE('Monthly Storage'!S338:S368) ->  | T29: =AVERAGE('Monthly Storage'!T338:T368) ->  | U29: =AVERAGE('Monthly Storage'!U338:U368) ->  | V29: =AVERAGE('Monthly Storage'!V338:V368) ->  | W29: =AVERAGE('Monthly Storage'!W338:W368) ->  | X29: =AVERAGE('Monthly Storage'!X338:X368) ->  | Y29: =AVERAGE('Monthly Storage'!Y338:Y368) ->  | Z29: =AVERAGE('Monthly Storage'!Z338:Z368) ->  | AA29: =AVERAGE('Monthly Storage'!AA338:AA368) ->  | AB29: =AVERAGE('Monthly Storage'!AB338:AB368) ->  | AC29: =AVERAGE('Monthly Storage'!AC338:AC368) ->  | AD29: =AVERAGE('Monthly Storage'!AD338:AD368) ->  | AE29: =AVERAGE('Monthly Storage'!AE338:AE368) ->  | AF29: =AVERAGE('Monthly Storage'!AF338:AF368) ->  | AG29: =AVERAGE('Monthly Storage'!AG338:AG368) ->  | AH29: =AVERAGE('Monthly Storage'!AH338:AH368) ->  | AI29: =AVERAGE('Monthly Storage'!AI338:AI368) ->  | AJ29: =AVERAGE('Monthly Storage'!AJ338:AJ368) ->  | AK29: =AVERAGE('Monthly Storage'!AK338:AK368) ->  | AL29: =AVERAGE('Monthly Storage'!AL338:AL368) ->  | AM29: =AVERAGE('Monthly Storage'!AM338:AM368) ->  | AN29: =AVERAGE('Monthly Storage'!AN338:AN368) ->  | AO29: =AVERAGE('Monthly Storage'!AO338:AO368) ->  | AP29: =AVERAGE('Monthly Storage'!AP338:AP368) ->  | AQ29: =AVERAGE('Monthly Storage'!AQ338:AQ368) ->  | AR29: =AVERAGE('Monthly Storage'!AR338:AR368) ->  | AS29: =AVERAGE('Monthly Storage'!AS338:AS368) ->  | AT29: =AVERAGE('Monthly Storage'!AT338:AT368) ->  | AU29: =AVERAGE('Monthly Storage'!AU338:AU368) ->  | AV29: =AVERAGE('Monthly Storage'!AV338:AV368) ->  | AW29: =AVERAGE('Monthly Storage'!AW338:AW368) ->  | AX29: =AVERAGE('Monthly Storage'!AX338:AX368) ->  | AY29: =AVERAGE('Monthly Storage'!AY338:AY368) ->  | AZ29: =AVERAGE('Monthly Storage'!AZ338:AZ368) ->  | BA29: =AVERAGE('Monthly Storage'!BA338:BA368) -> 
B30: เฉลี่ยรายปี | D30: =AVERAGE(D18:D29) ->  | AJ30: =AVERAGE(AJ18:AJ29) -> 
C34: N | D34: α
D35: 0.2 | E35: 0.1 | F35: 0.05 | G35: 0.01
C36: 5 | D36: 0.45 | E36: 0.51 | F36: 0.56 | G36: 0.67
C37: 10 | D37: 0.32 | E37: 0.37 | F37: 0.41 | G37: 0.49
C38: 15 | D38: 0.27 | E38: 0.3 | F38: 0.34 | G38: 0.4
C39: 20 | D39: 0.23 | E39: 0.26 | F39: 0.29 | G39: 0.36
C40: 25 | D40: 0.21 | E40: 0.24 | F40: 0.27 | G40: 0.32
C41: 30 | D41: 0.19 | E41: 0.22 | F41: 0.24 | G41: 0.29
C42: 35 | D42: 0.18 | E42: 0.2 | F42: 0.23 | G42: 0.27
C43: 40 | D43: 0.17 | E43: 0.19 | F43: 0.21 | G43: 0.25
C44: 45 | D44: 0.16 | E44: 0.18 | F44: 0.2 | G44: 0.24
C45: 50 | D45: 0.15 | E45: 0.17 | F45: 0.19 | G45: 0.23
C46: 51 | D46: =IF($G$48>50,1.07/($G$48^0.5),"1.07/√N") -> 1.07/√N | E46: =IF($G$48>50,1.22/($G$48^0.5),"1.22/√N") -> 1.22/√N | F46: =IF($G$48>50,1.36/($G$48^0.5),"1.36/√N") -> 1.36/√N | G46: =IF($G$48>50,1.63/($G$48^0.5),"1.63/√N") -> 1.63/√N
B48: X1 | C48: =OFFSET(C35,MATCH(G48,C36:C45,1),0,1,1) ->  | D48: X2 | E48: =OFFSET(C35,MATCH(G48,C36:C45,1)+1,0,1,1) ->  | F48: X | G48: =COUNT(D3:IV3) -> 4 | H48: X > 50
A49: 0.01 | B49: Y1 0.01 | C49: =OFFSET(C35,MATCH(G48,C36:C45,1),4,1,1) ->  | D49: Y2 0.01 | E49: =OFFSET(C35,MATCH(G48,C36:C45,1)+1,4,1,1) ->  | F49: Y 0.01 | G49: =C49+((E49-C49)*(G48-C48)/(E48-C48)) ->  | H49: =IF(G48>50,D46,"") -> 
A50: 0.05 | B50: Y1 0.05 | C50: =OFFSET(C35,MATCH(G48,C36:C45,1),3,1,1) ->  | D50: Y2 0.05 | E50: =OFFSET(C35,MATCH(G48,C36:C45,1)+1,3,1,1) ->  | F50: Y 0.05 | G50: =C50+((E50-C50)*(G48-C48)/(E48-C48)) ->  | H50: =IF(G48>50,E46,"") -> 
A51: 0.1 | B51: Y1 0.10 | C51: =OFFSET(C35,MATCH(G48,C36:C45,1),2,1,1) ->  | D51: Y2 0.10 | E51: =OFFSET(C35,MATCH(G48,C36:C45,1)+1,2,1,1) ->  | F51: Y 0.10 | G51: =C51+((E51-C51)*(G48-C48)/(E48-C48)) ->  | H51: =IF(G48>50,F46,"") -> 
A52: 0.2 | B52: Y1 0.20 | C52: =OFFSET(C35,MATCH(G48,C36:C45,1),1,1,1) ->  | D52: Y2 0.20 | E52: =OFFSET(C35,MATCH(G48,C36:C45,1)+1,1,1,1) ->  | F52: Y 0.20 | G52: =C52+((E52-C52)*(G48-C48)/(E48-C48)) ->  | H52: =IF(G48>50,G46,"") -> 
C58: จำนวนปี | D58: =COUNT(D3:IV3) -> 4 | E58: =ROUND(($D$58)*0.2,0) -> 1 | F58: =ROUND(($D$58)*0.8,0) -> 3
B59: เดือน | C59: ปีน้ำแล้ว 20% | D59: ปีน้ำมาก 80% | E59: น้ำแล้ง 20% | F59: น้ำมาก 80% | H59: น้ำแล้ง | K59: น้ำมาก
C60: =OFFSET(C3,0,MATCH(C73,D30:AP30,0),1,1)+543 ->  | D60: =OFFSET(C3,0,MATCH(D73,D30:AP30,0),1,1)+543 ->  | E60: ประจำเดือน | F60: ประจำเดือน | H60: ระดับ | I60: ปี พ.ศ. | J60: ค่าเฉลี่ยนรายปี | K60: ระดับ | L60: ปี พ.ศ. | M60: ค่าเฉลี่ยนรายปี
A61: ค่าปริมาณน้ำเฉลี่ยรายเดือน | B61: ม.ค. | C61: =OFFSET(C18,0,MATCH($C$73,$D$30:$AP$30,0),1,1) ->  | D61: =OFFSET(C18,0,MATCH($D$73,$D$30:$AP$30,0),1,1) ->  | E61: =SMALL(OFFSET(D18,0,0,1,$D$58),ROUND(($D$58)*0.2,0)) ->  | F61: =SMALL(OFFSET(D18,0,0,1,$D$58),ROUND(($D$58)*0.8,0)) ->  | G61: 1 | H61: =IF(G61<=$E$58,G61/$E$58*0.2,"") -> 0.2 | I61: =IF(H61<>"",OFFSET($C$3,0,MATCH(J61,$D$30:$AP$30,0),1,1)+543,"") ->  | J61: =IF(H61<>"",SMALL(OFFSET($D$30,0,0,1,$D$58),ROUND(($D$58)*H61,0)),"") ->  | K61: =IF(G71<=$D$58,ROUND((G71/$D$58*100),1)/100,"") -> 0.75 | L61: =IF(K61<>"",OFFSET($C$3,0,MATCH(M61,$D$30:$AP$30,0),1,1)+543,"") ->  | M61: =IF(K61<>"",SMALL(OFFSET($D$30,0,0,1,$D$58),ROUND(($D$58)*K61,0)),"") -> 
B62: ก.พ. | G62: 2 | I62: =IF(H62<>"",OFFSET($C$3,0,MATCH(J62,$D$30:$AP$30,0),1,1)+543,"") ->  | K62: 1 | L62: =IF(K62<>"",OFFSET($C$3,0,MATCH(M62,$D$30:$AP$30,0),1,1)+543,"") -> 
B63: มี.ค. | G63: 3
B64: เม.ย. | G64: 4
B65: พ.ค. | G65: 5
B66: มิ.ย. | G66: 6
B67: ก.ค. | G67: 7
B68: ส.ค. | G68: 8
B69: ก.ย. | G69: 9
B70: ต.ค. | G70: 10
B71: พ.ย. | G71: =F58 -> 3
B72: ธ.ค. | G72: =G71+1 -> 4
B73: ค่าเฉลี่ยรายปี | C73: =SMALL(OFFSET(D30,0,0,1,$D$58),ROUND((D58)*0.2,0)) ->  | D73: =SMALL(OFFSET(D30,0,0,1,$D$58),ROUND((D58)*0.8,0)) ->  | G73: 5
G74: 6
G75: 7
G76: 8
G77: 9
G78: 10
G79: 11
G80: 12

Sheet NRI
B1: 1 | C1: Copy ค่า NRI และใส่ข้อมูลอ่างเก็บน้ำ
A2: Monthly NRI | B2: ม.ค. | C2: ก.พ. | D2: มี.ค. | E2: เม.ย. | F2: พ.ค. | G2: มิ.ย. | H2: ก.ค. | I2: ส.ค. | J2: ก.ย. | K2: ต.ค. | L2: พ.ย. | M2: ธ.ค. | O2: เก็บกักปกติ
A3: Year/Month | B3: Jan | C3: Feb | D3: Mar | E3: Apr | F3: May | G3: Jun | H3: Jul | I3: Aug | J3: Sep | K3: Oct | L3: Nov | M3: Dec | O3: เก็บกักต่ำสุด
A4: 1986
A5: 1987
A6: 1988
A7: 1989
A8: 1990
A9: 1991
A10: 1992
A11: 1993
A12: 1994
A13: 1995
A14: 1996
A15: 1997
A16: 1998
A17: 1999
A18: 2000
A19: 2001
A20: 2002
A21: 2003
A22: 2004
A23: 2005
A24: 2006
A25: 2007
A26: 2008
A27: 2009
A28: 2010
A29: 2011
A30: 2012
A31: 2013
A32: 2014
A33: 2015
A34: 2016
A35: 2017
A36: 2018
A54: Mean | B54: =AVERAGE(B4:B42) ->  | C54: =AVERAGE(C4:C42) -> 
A58: 2 | B58: กราฟแบ่งฤดู
K59: =SUM(OFFSET('NRI (Auto)'!A133,0,MATCH(1,'NRI (Auto)'!B136:Y136,1),1,12)) ->  | L59: =((MIN('NRI (Auto)'!B133:Y133)*(MIN('NRI (Auto)'!B133:Y133)*-1+1))/2)+12+MIN('NRI (Auto)'!B133:Y133) -> 
L60: =L59+2 -> 
A80: 3 | B80: ใส่ NRI รายเดือน
A81: ปี ค.ศ. | B81: ปี พ.ศ. | C81: ม.ค. | D81: ก.พ. | E81: มี.ค. | F81: เม.ย. | G81: พ.ค. | H81: มิ.ย. | I81: ก.ค. | J81: ส.ค. | K81: ก.ย. | L81: ต.ค. | M81: พ.ย. | N81: ธ.ค.
A82: =A4 -> 1986 | B82: =A82+543 -> 2529
A83: =A82+1 -> 1987 | B83: =A83+543 -> 2530
A84: =A83+1 -> 1988 | B84: 2531
A85: 1989 | B85: 2532
A86: 1990 | B86: 2533
A87: 1991 | B87: 2534
A88: 1992 | B88: 2535
A89: 1993 | B89: 2536
A90: 1994 | B90: 2537
A91: 1995 | B91: 2538
A92: 1996 | B92: 2539
A93: 1997 | B93: 2540
A94: 1998 | B94: 2541
A95: 1999 | B95: 2542
A96: 2000 | B96: 2543
A97: 2001 | B97: 2544
A98: 2002 | B98: 2545
A99: 2003 | B99: 2546
A100: 2004 | B100: 2547
A101: 2005 | B101: 2548
A102: 2006 | B102: 2549
A103: 2007 | B103: 2550
A104: 2008 | B104: 2551
A105: 2009 | B105: 2552
A106: 2010 | B106: 2553
A107: 2011 | B107: 2554
A108: 2012 | B108: 2555
A109: 2013 | B109: 2556
A110: 2014 | B110: 2557
A111: 2015 | B111: 2558
A112: 2016 | B112: 2559
A113: 2017 | B113: 2560
A114: 2018 | B114: 2561
A115: 2019 | B115: 2562
A116: 2020 | B116: 2563
A117: 2021 | B117: 2564
A118: 2022 | B118: 2565
A119: 2023 | B119: 2566
A120: 2024 | B120: 2567
A121: =A120+1 -> 2025 | B121: 2568
A122: 2026 | B122: 2569
A123: 2027 | B123: 2570
A124: 2028 | B124: 2571
A125: 2029 | B125: 2572
A126: 2030 | B126: 2573
A127: 2031 | B127: 2574
A128: 2032 | B128: 2575
A129: 2033 | B129: 2576
A130: 2034 | B130: 2577
A131: 2035 | B131: 2578

Sheet NRI (Auto) (hidden)
B1: 1
A2: Monthly NRI | B2: ม.ค. | C2: ก.พ. | D2: มี.ค. | E2: เม.ย. | F2: พ.ค. | G2: มิ.ย. | H2: ก.ค. | I2: ส.ค. | J2: ก.ย. | K2: ต.ค. | L2: พ.ย. | M2: ธ.ค.
A3: Year/Month | B3: Jan | C3: Feb | D3: Mar | E3: Apr | F3: May | G3: Jun | H3: Jul | I3: Aug | J3: Sep | K3: Oct | L3: Nov | M3: Dec
A4: ='หา NRI'!D3 -> 1986 | B4: =IF(NRI!B4<>"",NRI!B4,"") ->  | C4: =IF(NRI!C4<>"",NRI!C4,"") ->  | D4: =IF(NRI!D4<>"",NRI!D4,"") ->  | E4: =IF(NRI!E4<>"",NRI!E4,"") ->  | F4: =IF(NRI!F4<>"",NRI!F4,"") ->  | G4: =IF(NRI!G4<>"",NRI!G4,"") ->  | H4: =IF(NRI!H4<>"",NRI!H4,"") ->  | I4: =IF(NRI!I4<>"",NRI!I4,"") ->  | J4: =IF(NRI!J4<>"",NRI!J4,"") ->  | K4: =IF(NRI!K4<>"",NRI!K4,"") ->  | L4: =IF(NRI!L4<>"",NRI!L4,"") ->  | M4: =IF(NRI!M4<>"",NRI!M4,"") ->  | Q4: URC VAR | T4: LRC VAR
A5: =A4+1 -> 1987 | B5: =IF(NRI!B5<>"",NRI!B5,"") ->  | C5: =IF(NRI!C5<>"",NRI!C5,"") ->  | D5: =IF(NRI!D5<>"",NRI!D5,"") ->  | E5: =IF(NRI!E5<>"",NRI!E5,"") ->  | F5: =IF(NRI!F5<>"",NRI!F5,"") ->  | G5: =IF(NRI!G5<>"",NRI!G5,"") ->  | H5: =IF(NRI!H5<>"",NRI!H5,"") ->  | I5: =IF(NRI!I5<>"",NRI!I5,"") ->  | J5: =IF(NRI!J5<>"",NRI!J5,"") ->  | K5: =IF(NRI!K5<>"",NRI!K5,"") ->  | L5: =IF(NRI!L5<>"",NRI!L5,"") ->  | M5: =IF(NRI!M5<>"",NRI!M5,"") ->  | O5: เดือน | P5: check URC | Q5: 0 ต้นฤดูแล้ง | R5: เดือน | S5: check LRC | T5: 0 ต้นฤดูฝน
A6: 1988 | B6: =IF(NRI!B6<>"",NRI!B6,"") ->  | C6: =IF(NRI!C6<>"",NRI!C6,"") ->  | D6: =IF(NRI!D6<>"",NRI!D6,"") ->  | E6: =IF(NRI!E6<>"",NRI!E6,"") ->  | F6: =IF(NRI!F6<>"",NRI!F6,"") ->  | G6: =IF(NRI!G6<>"",NRI!G6,"") ->  | H6: =IF(NRI!H6<>"",NRI!H6,"") ->  | I6: =IF(NRI!I6<>"",NRI!I6,"") ->  | J6: =IF(NRI!J6<>"",NRI!J6,"") ->  | K6: =IF(NRI!K6<>"",NRI!K6,"") ->  | L6: =IF(NRI!L6<>"",NRI!L6,"") ->  | M6: =IF(NRI!M6<>"",NRI!M6,"") ->  | O6: 1 | P6: =B135 ->  | Q6: =IF(P6=0,1,0) ->  | R6: 1 | S6: =IF(B54>0,1+S17,0) ->  | T6: =IF(S6=1,0,1) -> 
A7: 1989 | B7: =IF(NRI!B7<>"",NRI!B7,"") ->  | C7: =IF(NRI!C7<>"",NRI!C7,"") ->  | D7: =IF(NRI!D7<>"",NRI!D7,"") ->  | E7: =IF(NRI!E7<>"",NRI!E7,"") ->  | F7: =IF(NRI!F7<>"",NRI!F7,"") ->  | G7: =IF(NRI!G7<>"",NRI!G7,"") ->  | H7: =IF(NRI!H7<>"",NRI!H7,"") ->  | I7: =IF(NRI!I7<>"",NRI!I7,"") ->  | J7: =IF(NRI!J7<>"",NRI!J7,"") ->  | K7: =IF(NRI!K7<>"",NRI!K7,"") ->  | L7: =IF(NRI!L7<>"",NRI!L7,"") ->  | M7: =IF(NRI!M7<>"",NRI!M7,"") ->  | O7: 2 | P7: =C135 ->  | Q7: =IF(P7=0,1,IF(P6=P7,1,0)) ->  | R7: 2 | S7: =IF(C54>0,1+S6,0) ->  | T7: =IF(S7=1,0,1) -> 
A8: 1990 | B8: =IF(NRI!B8<>"",NRI!B8,"") ->  | C8: =IF(NRI!C8<>"",NRI!C8,"") ->  | D8: =IF(NRI!D8<>"",NRI!D8,"") ->  | E8: =IF(NRI!E8<>"",NRI!E8,"") ->  | F8: =IF(NRI!F8<>"",NRI!F8,"") ->  | G8: =IF(NRI!G8<>"",NRI!G8,"") ->  | H8: =IF(NRI!H8<>"",NRI!H8,"") ->  | I8: =IF(NRI!I8<>"",NRI!I8,"") ->  | J8: =IF(NRI!J8<>"",NRI!J8,"") ->  | K8: =IF(NRI!K8<>"",NRI!K8,"") ->  | L8: =IF(NRI!L8<>"",NRI!L8,"") ->  | M8: =IF(NRI!M8<>"",NRI!M8,"") ->  | O8: 3 | P8: =D135 ->  | R8: 3 | S8: =IF(D54>0,1+S7,0) -> 
A9: 1991 | B9: =IF(NRI!B9<>"",NRI!B9,"") ->  | C9: =IF(NRI!C9<>"",NRI!C9,"") ->  | D9: =IF(NRI!D9<>"",NRI!D9,"") ->  | E9: =IF(NRI!E9<>"",NRI!E9,"") ->  | F9: =IF(NRI!F9<>"",NRI!F9,"") ->  | G9: =IF(NRI!G9<>"",NRI!G9,"") ->  | H9: =IF(NRI!H9<>"",NRI!H9,"") ->  | I9: =IF(NRI!I9<>"",NRI!I9,"") ->  | J9: =IF(NRI!J9<>"",NRI!J9,"") ->  | K9: =IF(NRI!K9<>"",NRI!K9,"") ->  | L9: =IF(NRI!L9<>"",NRI!L9,"") ->  | M9: =IF(NRI!M9<>"",NRI!M9,"") ->  | O9: 4 | P9: =E135 ->  | R9: 4 | S9: =IF(E54>0,1+S8,0) -> 
A10: 1992 | B10: =IF(NRI!B10<>"",NRI!B10,"") ->  | C10: =IF(NRI!C10<>"",NRI!C10,"") ->  | D10: =IF(NRI!D10<>"",NRI!D10,"") ->  | E10: =IF(NRI!E10<>"",NRI!E10,"") ->  | F10: =IF(NRI!F10<>"",NRI!F10,"") ->  | G10: =IF(NRI!G10<>"",NRI!G10,"") ->  | H10: =IF(NRI!H10<>"",NRI!H10,"") ->  | I10: =IF(NRI!I10<>"",NRI!I10,"") ->  | J10: =IF(NRI!J10<>"",NRI!J10,"") ->  | K10: =IF(NRI!K10<>"",NRI!K10,"") ->  | L10: =IF(NRI!L10<>"",NRI!L10,"") ->  | M10: =IF(NRI!M10<>"",NRI!M10,"") ->  | O10: 5 | P10: =F135 ->  | R10: 5 | S10: =IF(F54>0,1+S9,0) -> 
A11: 1993 | B11: =IF(NRI!B11<>"",NRI!B11,"") ->  | C11: =IF(NRI!C11<>"",NRI!C11,"") ->  | D11: =IF(NRI!D11<>"",NRI!D11,"") ->  | E11: =IF(NRI!E11<>"",NRI!E11,"") ->  | F11: =IF(NRI!F11<>"",NRI!F11,"") ->  | G11: =IF(NRI!G11<>"",NRI!G11,"") ->  | H11: =IF(NRI!H11<>"",NRI!H11,"") ->  | I11: =IF(NRI!I11<>"",NRI!I11,"") ->  | J11: =IF(NRI!J11<>"",NRI!J11,"") ->  | K11: =IF(NRI!K11<>"",NRI!K11,"") ->  | L11: =IF(NRI!L11<>"",NRI!L11,"") ->  | M11: =IF(NRI!M11<>"",NRI!M11,"") ->  | O11: 6 | P11: =G135 ->  | R11: 6 | S11: =IF(G54>0,1+S10,0) -> 
A12: 1994 | B12: =IF(NRI!B12<>"",NRI!B12,"") ->  | C12: =IF(NRI!C12<>"",NRI!C12,"") ->  | D12: =IF(NRI!D12<>"",NRI!D12,"") ->  | E12: =IF(NRI!E12<>"",NRI!E12,"") ->  | F12: =IF(NRI!F12<>"",NRI!F12,"") ->  | G12: =IF(NRI!G12<>"",NRI!G12,"") ->  | H12: =IF(NRI!H12<>"",NRI!H12,"") ->  | I12: =IF(NRI!I12<>"",NRI!I12,"") ->  | J12: =IF(NRI!J12<>"",NRI!J12,"") ->  | K12: =IF(NRI!K12<>"",NRI!K12,"") ->  | L12: =IF(NRI!L12<>"",NRI!L12,"") ->  | M12: =IF(NRI!M12<>"",NRI!M12,"") ->  | O12: 7 | P12: =H135 ->  | R12: 7 | S12: =IF(H54>0,1+S11,0) -> 
A13: 1995 | B13: =IF(NRI!B13<>"",NRI!B13,"") ->  | C13: =IF(NRI!C13<>"",NRI!C13,"") ->  | D13: =IF(NRI!D13<>"",NRI!D13,"") ->  | E13: =IF(NRI!E13<>"",NRI!E13,"") ->  | F13: =IF(NRI!F13<>"",NRI!F13,"") ->  | G13: =IF(NRI!G13<>"",NRI!G13,"") ->  | H13: =IF(NRI!H13<>"",NRI!H13,"") ->  | I13: =IF(NRI!I13<>"",NRI!I13,"") ->  | J13: =IF(NRI!J13<>"",NRI!J13,"") ->  | K13: =IF(NRI!K13<>"",NRI!K13,"") ->  | L13: =IF(NRI!L13<>"",NRI!L13,"") ->  | M13: =IF(NRI!M13<>"",NRI!M13,"") ->  | O13: 8 | P13: =I135 ->  | R13: 8 | S13: =IF(I54>0,1+S12,0) -> 
A14: 1996 | B14: =IF(NRI!B14<>"",NRI!B14,"") ->  | C14: =IF(NRI!C14<>"",NRI!C14,"") ->  | D14: =IF(NRI!D14<>"",NRI!D14,"") ->  | E14: =IF(NRI!E14<>"",NRI!E14,"") ->  | F14: =IF(NRI!F14<>"",NRI!F14,"") ->  | G14: =IF(NRI!G14<>"",NRI!G14,"") ->  | H14: =IF(NRI!H14<>"",NRI!H14,"") ->  | I14: =IF(NRI!I14<>"",NRI!I14,"") ->  | J14: =IF(NRI!J14<>"",NRI!J14,"") ->  | K14: =IF(NRI!K14<>"",NRI!K14,"") ->  | L14: =IF(NRI!L14<>"",NRI!L14,"") ->  | M14: =IF(NRI!M14<>"",NRI!M14,"") ->  | O14: 9 | P14: =J135 ->  | R14: 9 | S14: =IF(J54>0,1+S13,0) -> 
A15: 1997 | B15: =IF(NRI!B15<>"",NRI!B15,"") ->  | C15: =IF(NRI!C15<>"",NRI!C15,"") ->  | D15: =IF(NRI!D15<>"",NRI!D15,"") ->  | E15: =IF(NRI!E15<>"",NRI!E15,"") ->  | F15: =IF(NRI!F15<>"",NRI!F15,"") ->  | G15: =IF(NRI!G15<>"",NRI!G15,"") ->  | H15: =IF(NRI!H15<>"",NRI!H15,"") ->  | I15: =IF(NRI!I15<>"",NRI!I15,"") ->  | J15: =IF(NRI!J15<>"",NRI!J15,"") ->  | K15: =IF(NRI!K15<>"",NRI!K15,"") ->  | L15: =IF(NRI!L15<>"",NRI!L15,"") ->  | M15: =IF(NRI!M15<>"",NRI!M15,"") ->  | O15: 10 | P15: =K135 ->  | R15: 10 | S15: =IF(K54>0,1+S14,0) -> 
A16: 1998 | B16: =IF(NRI!B16<>"",NRI!B16,"") ->  | C16: =IF(NRI!C16<>"",NRI!C16,"") ->  | D16: =IF(NRI!D16<>"",NRI!D16,"") ->  | E16: =IF(NRI!E16<>"",NRI!E16,"") ->  | F16: =IF(NRI!F16<>"",NRI!F16,"") ->  | G16: =IF(NRI!G16<>"",NRI!G16,"") ->  | H16: =IF(NRI!H16<>"",NRI!H16,"") ->  | I16: =IF(NRI!I16<>"",NRI!I16,"") ->  | J16: =IF(NRI!J16<>"",NRI!J16,"") ->  | K16: =IF(NRI!K16<>"",NRI!K16,"") ->  | L16: =IF(NRI!L16<>"",NRI!L16,"") ->  | M16: =IF(NRI!M16<>"",NRI!M16,"") ->  | O16: 11 | P16: =L135 ->  | Q16: =IF(P16=0,1,IF(P15=P16,1,0)) ->  | R16: 11 | S16: =IF(L54>0,1+S15,0) -> 
A17: 1999 | B17: =IF(NRI!B17<>"",NRI!B17,"") ->  | C17: =IF(NRI!C17<>"",NRI!C17,"") ->  | D17: =IF(NRI!D17<>"",NRI!D17,"") ->  | E17: =IF(NRI!E17<>"",NRI!E17,"") ->  | F17: =IF(NRI!F17<>"",NRI!F17,"") ->  | G17: =IF(NRI!G17<>"",NRI!G17,"") ->  | H17: =IF(NRI!H17<>"",NRI!H17,"") ->  | I17: =IF(NRI!I17<>"",NRI!I17,"") ->  | J17: =IF(NRI!J17<>"",NRI!J17,"") ->  | K17: =IF(NRI!K17<>"",NRI!K17,"") ->  | L17: =IF(NRI!L17<>"",NRI!L17,"") ->  | M17: =IF(NRI!M17<>"",NRI!M17,"") ->  | O17: 12 | P17: =M135 ->  | Q17: =IF(P17=0,1,IF(P16=P17,1,0)) ->  | R17: 12 | S17: =IF(M54>0,1+Y55,0) -> 
A18: 2000 | B18: =IF(NRI!B18<>"",NRI!B18,"") ->  | C18: =IF(NRI!C18<>"",NRI!C18,"") ->  | D18: =IF(NRI!D18<>"",NRI!D18,"") ->  | E18: =IF(NRI!E18<>"",NRI!E18,"") ->  | F18: =IF(NRI!F18<>"",NRI!F18,"") ->  | G18: =IF(NRI!G18<>"",NRI!G18,"") ->  | H18: =IF(NRI!H18<>"",NRI!H18,"") ->  | I18: =IF(NRI!I18<>"",NRI!I18,"") ->  | J18: =IF(NRI!J18<>"",NRI!J18,"") ->  | K18: =IF(NRI!K18<>"",NRI!K18,"") ->  | L18: =IF(NRI!L18<>"",NRI!L18,"") ->  | M18: =IF(NRI!M18<>"",NRI!M18,"") -> 
A19: 2001 | B19: =IF(NRI!B19<>"",NRI!B19,"") ->  | C19: =IF(NRI!C19<>"",NRI!C19,"") ->  | D19: =IF(NRI!D19<>"",NRI!D19,"") ->  | E19: =IF(NRI!E19<>"",NRI!E19,"") ->  | F19: =IF(NRI!F19<>"",NRI!F19,"") ->  | G19: =IF(NRI!G19<>"",NRI!G19,"") ->  | H19: =IF(NRI!H19<>"",NRI!H19,"") ->  | I19: =IF(NRI!I19<>"",NRI!I19,"") ->  | J19: =IF(NRI!J19<>"",NRI!J19,"") ->  | K19: =IF(NRI!K19<>"",NRI!K19,"") ->  | L19: =IF(NRI!L19<>"",NRI!L19,"") ->  | M19: =IF(NRI!M19<>"",NRI!M19,"") -> 
A20: 2002 | B20: =IF(NRI!B20<>"",NRI!B20,"") ->  | C20: =IF(NRI!C20<>"",NRI!C20,"") ->  | D20: =IF(NRI!D20<>"",NRI!D20,"") ->  | E20: =IF(NRI!E20<>"",NRI!E20,"") ->  | F20: =IF(NRI!F20<>"",NRI!F20,"") ->  | G20: =IF(NRI!G20<>"",NRI!G20,"") ->  | H20: =IF(NRI!H20<>"",NRI!H20,"") ->  | I20: =IF(NRI!I20<>"",NRI!I20,"") ->  | J20: =IF(NRI!J20<>"",NRI!J20,"") ->  | K20: =IF(NRI!K20<>"",NRI!K20,"") ->  | L20: =IF(NRI!L20<>"",NRI!L20,"") ->  | M20: =IF(NRI!M20<>"",NRI!M20,"") -> 
A21: 2003 | B21: =IF(NRI!B21<>"",NRI!B21,"") ->  | C21: =IF(NRI!C21<>"",NRI!C21,"") ->  | D21: =IF(NRI!D21<>"",NRI!D21,"") ->  | E21: =IF(NRI!E21<>"",NRI!E21,"") ->  | F21: =IF(NRI!F21<>"",NRI!F21,"") ->  | G21: =IF(NRI!G21<>"",NRI!G21,"") ->  | H21: =IF(NRI!H21<>"",NRI!H21,"") ->  | I21: =IF(NRI!I21<>"",NRI!I21,"") ->  | J21: =IF(NRI!J21<>"",NRI!J21,"") ->  | K21: =IF(NRI!K21<>"",NRI!K21,"") ->  | L21: =IF(NRI!L21<>"",NRI!L21,"") ->  | M21: =IF(NRI!M21<>"",NRI!M21,"") -> 
A22: 2004 | B22: =IF(NRI!B22<>"",NRI!B22,"") ->  | C22: =IF(NRI!C22<>"",NRI!C22,"") ->  | D22: =IF(NRI!D22<>"",NRI!D22,"") ->  | E22: =IF(NRI!E22<>"",NRI!E22,"") ->  | F22: =IF(NRI!F22<>"",NRI!F22,"") ->  | G22: =IF(NRI!G22<>"",NRI!G22,"") ->  | H22: =IF(NRI!H22<>"",NRI!H22,"") ->  | I22: =IF(NRI!I22<>"",NRI!I22,"") ->  | J22: =IF(NRI!J22<>"",NRI!J22,"") ->  | K22: =IF(NRI!K22<>"",NRI!K22,"") ->  | L22: =IF(NRI!L22<>"",NRI!L22,"") ->  | M22: =IF(NRI!M22<>"",NRI!M22,"") -> 
A23: 2005 | B23: =IF(NRI!B23<>"",NRI!B23,"") ->  | C23: =IF(NRI!C23<>"",NRI!C23,"") ->  | D23: =IF(NRI!D23<>"",NRI!D23,"") ->  | E23: =IF(NRI!E23<>"",NRI!E23,"") ->  | F23: =IF(NRI!F23<>"",NRI!F23,"") ->  | G23: =IF(NRI!G23<>"",NRI!G23,"") ->  | H23: =IF(NRI!H23<>"",NRI!H23,"") ->  | I23: =IF(NRI!I23<>"",NRI!I23,"") ->  | J23: =IF(NRI!J23<>"",NRI!J23,"") ->  | K23: =IF(NRI!K23<>"",NRI!K23,"") ->  | L23: =IF(NRI!L23<>"",NRI!L23,"") ->  | M23: =IF(NRI!M23<>"",NRI!M23,"") -> 
A24: 2006 | B24: =IF(NRI!B24<>"",NRI!B24,"") ->  | C24: =IF(NRI!C24<>"",NRI!C24,"") ->  | D24: =IF(NRI!D24<>"",NRI!D24,"") ->  | E24: =IF(NRI!E24<>"",NRI!E24,"") ->  | F24: =IF(NRI!F24<>"",NRI!F24,"") ->  | G24: =IF(NRI!G24<>"",NRI!G24,"") ->  | H24: =IF(NRI!H24<>"",NRI!H24,"") ->  | I24: =IF(NRI!I24<>"",NRI!I24,"") ->  | J24: =IF(NRI!J24<>"",NRI!J24,"") ->  | K24: =IF(NRI!K24<>"",NRI!K24,"") ->  | L24: =IF(NRI!L24<>"",NRI!L24,"") ->  | M24: =IF(NRI!M24<>"",NRI!M24,"") -> 
A25: 2007 | B25: =IF(NRI!B25<>"",NRI!B25,"") ->  | C25: =IF(NRI!C25<>"",NRI!C25,"") ->  | D25: =IF(NRI!D25<>"",NRI!D25,"") ->  | E25: =IF(NRI!E25<>"",NRI!E25,"") ->  | F25: =IF(NRI!F25<>"",NRI!F25,"") ->  | G25: =IF(NRI!G25<>"",NRI!G25,"") ->  | H25: =IF(NRI!H25<>"",NRI!H25,"") ->  | I25: =IF(NRI!I25<>"",NRI!I25,"") ->  | J25: =IF(NRI!J25<>"",NRI!J25,"") ->  | K25: =IF(NRI!K25<>"",NRI!K25,"") ->  | L25: =IF(NRI!L25<>"",NRI!L25,"") ->  | M25: =IF(NRI!M25<>"",NRI!M25,"") -> 
A26: 2008 | B26: =IF(NRI!B26<>"",NRI!B26,"") ->  | C26: =IF(NRI!C26<>"",NRI!C26,"") ->  | D26: =IF(NRI!D26<>"",NRI!D26,"") ->  | E26: =IF(NRI!E26<>"",NRI!E26,"") ->  | F26: =IF(NRI!F26<>"",NRI!F26,"") ->  | G26: =IF(NRI!G26<>"",NRI!G26,"") ->  | H26: =IF(NRI!H26<>"",NRI!H26,"") ->  | I26: =IF(NRI!I26<>"",NRI!I26,"") ->  | J26: =IF(NRI!J26<>"",NRI!J26,"") ->  | K26: =IF(NRI!K26<>"",NRI!K26,"") ->  | L26: =IF(NRI!L26<>"",NRI!L26,"") ->  | M26: =IF(NRI!M26<>"",NRI!M26,"") -> 
A27: 2009 | B27: =IF(NRI!B27<>"",NRI!B27,"") ->  | C27: =IF(NRI!C27<>"",NRI!C27,"") ->  | D27: =IF(NRI!D27<>"",NRI!D27,"") ->  | E27: =IF(NRI!E27<>"",NRI!E27,"") ->  | F27: =IF(NRI!F27<>"",NRI!F27,"") ->  | G27: =IF(NRI!G27<>"",NRI!G27,"") ->  | H27: =IF(NRI!H27<>"",NRI!H27,"") ->  | I27: =IF(NRI!I27<>"",NRI!I27,"") ->  | J27: =IF(NRI!J27<>"",NRI!J27,"") ->  | K27: =IF(NRI!K27<>"",NRI!K27,"") ->  | L27: =IF(NRI!L27<>"",NRI!L27,"") ->  | M27: =IF(NRI!M27<>"",NRI!M27,"") -> 
A28: 2010 | B28: =IF(NRI!B28<>"",NRI!B28,"") ->  | C28: =IF(NRI!C28<>"",NRI!C28,"") ->  | D28: =IF(NRI!D28<>"",NRI!D28,"") ->  | E28: =IF(NRI!E28<>"",NRI!E28,"") ->  | F28: =IF(NRI!F28<>"",NRI!F28,"") ->  | G28: =IF(NRI!G28<>"",NRI!G28,"") ->  | H28: =IF(NRI!H28<>"",NRI!H28,"") ->  | I28: =IF(NRI!I28<>"",NRI!I28,"") ->  | J28: =IF(NRI!J28<>"",NRI!J28,"") ->  | K28: =IF(NRI!K28<>"",NRI!K28,"") ->  | L28: =IF(NRI!L28<>"",NRI!L28,"") ->  | M28: =IF(NRI!M28<>"",NRI!M28,"") -> 
A29: 2011 | B29: =IF(NRI!B29<>"",NRI!B29,"") ->  | C29: =IF(NRI!C29<>"",NRI!C29,"") ->  | D29: =IF(NRI!D29<>"",NRI!D29,"") ->  | E29: =IF(NRI!E29<>"",NRI!E29,"") ->  | F29: =IF(NRI!F29<>"",NRI!F29,"") ->  | G29: =IF(NRI!G29<>"",NRI!G29,"") ->  | H29: =IF(NRI!H29<>"",NRI!H29,"") ->  | I29: =IF(NRI!I29<>"",NRI!I29,"") ->  | J29: =IF(NRI!J29<>"",NRI!J29,"") ->  | K29: =IF(NRI!K29<>"",NRI!K29,"") ->  | L29: =IF(NRI!L29<>"",NRI!L29,"") ->  | M29: =IF(NRI!M29<>"",NRI!M29,"") -> 
A30: 2012 | B30: =IF(NRI!B30<>"",NRI!B30,"") ->  | C30: =IF(NRI!C30<>"",NRI!C30,"") ->  | D30: =IF(NRI!D30<>"",NRI!D30,"") ->  | E30: =IF(NRI!E30<>"",NRI!E30,"") ->  | F30: =IF(NRI!F30<>"",NRI!F30,"") ->  | G30: =IF(NRI!G30<>"",NRI!G30,"") ->  | H30: =IF(NRI!H30<>"",NRI!H30,"") ->  | I30: =IF(NRI!I30<>"",NRI!I30,"") ->  | J30: =IF(NRI!J30<>"",NRI!J30,"") ->  | K30: =IF(NRI!K30<>"",NRI!K30,"") ->  | L30: =IF(NRI!L30<>"",NRI!L30,"") ->  | M30: =IF(NRI!M30<>"",NRI!M30,"") -> 
A31: 2013 | B31: =IF(NRI!B31<>"",NRI!B31,"") ->  | C31: =IF(NRI!C31<>"",NRI!C31,"") ->  | D31: =IF(NRI!D31<>"",NRI!D31,"") ->  | E31: =IF(NRI!E31<>"",NRI!E31,"") ->  | F31: =IF(NRI!F31<>"",NRI!F31,"") ->  | G31: =IF(NRI!G31<>"",NRI!G31,"") ->  | H31: =IF(NRI!H31<>"",NRI!H31,"") ->  | I31: =IF(NRI!I31<>"",NRI!I31,"") ->  | J31: =IF(NRI!J31<>"",NRI!J31,"") ->  | K31: =IF(NRI!K31<>"",NRI!K31,"") ->  | L31: =IF(NRI!L31<>"",NRI!L31,"") ->  | M31: =IF(NRI!M31<>"",NRI!M31,"") -> 
A32: 2014 | B32: =IF(NRI!B32<>"",NRI!B32,"") ->  | C32: =IF(NRI!C32<>"",NRI!C32,"") ->  | D32: =IF(NRI!D32<>"",NRI!D32,"") ->  | E32: =IF(NRI!E32<>"",NRI!E32,"") ->  | F32: =IF(NRI!F32<>"",NRI!F32,"") ->  | G32: =IF(NRI!G32<>"",NRI!G32,"") ->  | H32: =IF(NRI!H32<>"",NRI!H32,"") ->  | I32: =IF(NRI!I32<>"",NRI!I32,"") ->  | J32: =IF(NRI!J32<>"",NRI!J32,"") ->  | K32: =IF(NRI!K32<>"",NRI!K32,"") ->  | L32: =IF(NRI!L32<>"",NRI!L32,"") ->  | M32: =IF(NRI!M32<>"",NRI!M32,"") -> 
A33: 2015 | B33: =IF(NRI!B33<>"",NRI!B33,"") ->  | C33: =IF(NRI!C33<>"",NRI!C33,"") ->  | D33: =IF(NRI!D33<>"",NRI!D33,"") ->  | E33: =IF(NRI!E33<>"",NRI!E33,"") ->  | F33: =IF(NRI!F33<>"",NRI!F33,"") ->  | G33: =IF(NRI!G33<>"",NRI!G33,"") ->  | H33: =IF(NRI!H33<>"",NRI!H33,"") ->  | I33: =IF(NRI!I33<>"",NRI!I33,"") ->  | J33: =IF(NRI!J33<>"",NRI!J33,"") ->  | K33: =IF(NRI!K33<>"",NRI!K33,"") ->  | L33: =IF(NRI!L33<>"",NRI!L33,"") ->  | M33: =IF(NRI!M33<>"",NRI!M33,"") -> 
A34: 2016 | B34: =IF(NRI!B34<>"",NRI!B34,"") ->  | C34: =IF(NRI!C34<>"",NRI!C34,"") ->  | D34: =IF(NRI!D34<>"",NRI!D34,"") ->  | E34: =IF(NRI!E34<>"",NRI!E34,"") ->  | F34: =IF(NRI!F34<>"",NRI!F34,"") ->  | G34: =IF(NRI!G34<>"",NRI!G34,"") ->  | H34: =IF(NRI!H34<>"",NRI!H34,"") ->  | I34: =IF(NRI!I34<>"",NRI!I34,"") ->  | J34: =IF(NRI!J34<>"",NRI!J34,"") ->  | K34: =IF(NRI!K34<>"",NRI!K34,"") ->  | L34: =IF(NRI!L34<>"",NRI!L34,"") ->  | M34: =IF(NRI!M34<>"",NRI!M34,"") -> 
A35: 2017 | B35: =IF(NRI!B35<>"",NRI!B35,"") ->  | C35: =IF(NRI!C35<>"",NRI!C35,"") ->  | D35: =IF(NRI!D35<>"",NRI!D35,"") ->  | E35: =IF(NRI!E35<>"",NRI!E35,"") ->  | F35: =IF(NRI!F35<>"",NRI!F35,"") ->  | G35: =IF(NRI!G35<>"",NRI!G35,"") ->  | H35: =IF(NRI!H35<>"",NRI!H35,"") ->  | I35: =IF(NRI!I35<>"",NRI!I35,"") ->  | J35: =IF(NRI!J35<>"",NRI!J35,"") ->  | K35: =IF(NRI!K35<>"",NRI!K35,"") ->  | L35: =IF(NRI!L35<>"",NRI!L35,"") ->  | M35: =IF(NRI!M35<>"",NRI!M35,"") -> 
A36: 2018 | B36: =IF(NRI!B36<>"",NRI!B36,"") ->  | C36: =IF(NRI!C36<>"",NRI!C36,"") ->  | D36: =IF(NRI!D36<>"",NRI!D36,"") ->  | E36: =IF(NRI!E36<>"",NRI!E36,"") ->  | F36: =IF(NRI!F36<>"",NRI!F36,"") ->  | G36: =IF(NRI!G36<>"",NRI!G36,"") ->  | H36: =IF(NRI!H36<>"",NRI!H36,"") ->  | I36: =IF(NRI!I36<>"",NRI!I36,"") ->  | J36: =IF(NRI!J36<>"",NRI!J36,"") ->  | K36: =IF(NRI!K36<>"",NRI!K36,"") ->  | L36: =IF(NRI!L36<>"",NRI!L36,"") ->  | M36: =IF(NRI!M36<>"",NRI!M36,"") -> 
A37: =A36+1 -> 2019 | B37: =IF(NRI!B37<>"",NRI!B37,"") ->  | C37: =IF(NRI!C37<>"",NRI!C37,"") ->  | D37: =IF(NRI!D37<>"",NRI!D37,"") ->  | E37: =IF(NRI!E37<>"",NRI!E37,"") ->  | F37: =IF(NRI!F37<>"",NRI!F37,"") ->  | G37: =IF(NRI!G37<>"",NRI!G37,"") ->  | H37: =IF(NRI!H37<>"",NRI!H37,"") ->  | I37: =IF(NRI!I37<>"",NRI!I37,"") ->  | J37: =IF(NRI!J37<>"",NRI!J37,"") ->  | K37: =IF(NRI!K37<>"",NRI!K37,"") ->  | L37: =IF(NRI!L37<>"",NRI!L37,"") ->  | M37: =IF(NRI!M37<>"",NRI!M37,"") -> 
A38: 2020 | B38: =IF(NRI!B38<>"",NRI!B38,"") ->  | C38: =IF(NRI!C38<>"",NRI!C38,"") ->  | D38: =IF(NRI!D38<>"",NRI!D38,"") ->  | E38: =IF(NRI!E38<>"",NRI!E38,"") ->  | F38: =IF(NRI!F38<>"",NRI!F38,"") ->  | G38: =IF(NRI!G38<>"",NRI!G38,"") ->  | H38: =IF(NRI!H38<>"",NRI!H38,"") ->  | I38: =IF(NRI!I38<>"",NRI!I38,"") ->  | J38: =IF(NRI!J38<>"",NRI!J38,"") ->  | K38: =IF(NRI!K38<>"",NRI!K38,"") ->  | L38: =IF(NRI!L38<>"",NRI!L38,"") ->  | M38: =IF(NRI!M38<>"",NRI!M38,"") -> 
A39: 2021 | B39: =IF(NRI!B39<>"",NRI!B39,"") ->  | C39: =IF(NRI!C39<>"",NRI!C39,"") ->  | D39: =IF(NRI!D39<>"",NRI!D39,"") ->  | E39: =IF(NRI!E39<>"",NRI!E39,"") ->  | F39: =IF(NRI!F39<>"",NRI!F39,"") ->  | G39: =IF(NRI!G39<>"",NRI!G39,"") ->  | H39: =IF(NRI!H39<>"",NRI!H39,"") ->  | I39: =IF(NRI!I39<>"",NRI!I39,"") ->  | J39: =IF(NRI!J39<>"",NRI!J39,"") ->  | K39: =IF(NRI!K39<>"",NRI!K39,"") ->  | L39: =IF(NRI!L39<>"",NRI!L39,"") ->  | M39: =IF(NRI!M39<>"",NRI!M39,"") -> 
A40: 2022 | B40: =IF(NRI!B40<>"",NRI!B40,"") ->  | C40: =IF(NRI!C40<>"",NRI!C40,"") ->  | D40: =IF(NRI!D40<>"",NRI!D40,"") ->  | E40: =IF(NRI!E40<>"",NRI!E40,"") ->  | F40: =IF(NRI!F40<>"",NRI!F40,"") ->  | G40: =IF(NRI!G40<>"",NRI!G40,"") ->  | H40: =IF(NRI!H40<>"",NRI!H40,"") ->  | I40: =IF(NRI!I40<>"",NRI!I40,"") ->  | J40: =IF(NRI!J40<>"",NRI!J40,"") ->  | K40: =IF(NRI!K40<>"",NRI!K40,"") ->  | L40: =IF(NRI!L40<>"",NRI!L40,"") ->  | M40: =IF(NRI!M40<>"",NRI!M40,"") -> 
A41: 2023 | B41: =IF(NRI!B41<>"",NRI!B41,"") ->  | C41: =IF(NRI!C41<>"",NRI!C41,"") ->  | D41: =IF(NRI!D41<>"",NRI!D41,"") ->  | E41: =IF(NRI!E41<>"",NRI!E41,"") ->  | F41: =IF(NRI!F41<>"",NRI!F41,"") ->  | G41: =IF(NRI!G41<>"",NRI!G41,"") ->  | H41: =IF(NRI!H41<>"",NRI!H41,"") ->  | I41: =IF(NRI!I41<>"",NRI!I41,"") ->  | J41: =IF(NRI!J41<>"",NRI!J41,"") ->  | K41: =IF(NRI!K41<>"",NRI!K41,"") ->  | L41: =IF(NRI!L41<>"",NRI!L41,"") ->  | M41: =IF(NRI!M41<>"",NRI!M41,"") -> 
A42: 2024 | B42: =IF(NRI!B42<>"",NRI!B42,"") ->  | C42: =IF(NRI!C42<>"",NRI!C42,"") ->  | D42: =IF(NRI!D42<>"",NRI!D42,"") ->  | E42: =IF(NRI!E42<>"",NRI!E42,"") ->  | F42: =IF(NRI!F42<>"",NRI!F42,"") ->  | G42: =IF(NRI!G42<>"",NRI!G42,"") ->  | H42: =IF(NRI!H42<>"",NRI!H42,"") ->  | I42: =IF(NRI!I42<>"",NRI!I42,"") ->  | J42: =IF(NRI!J42<>"",NRI!J42,"") ->  | K42: =IF(NRI!K42<>"",NRI!K42,"") ->  | L42: =IF(NRI!L42<>"",NRI!L42,"") ->  | M42: =IF(NRI!M42<>"",NRI!M42,"") -> 
A43: 2025 | B43: =IF(NRI!B43<>"",NRI!B43,"") ->  | C43: =IF(NRI!C43<>"",NRI!C43,"") ->  | D43: =IF(NRI!D43<>"",NRI!D43,"") ->  | E43: =IF(NRI!E43<>"",NRI!E43,"") ->  | F43: =IF(NRI!F43<>"",NRI!F43,"") ->  | G43: =IF(NRI!G43<>"",NRI!G43,"") ->  | H43: =IF(NRI!H43<>"",NRI!H43,"") ->  | I43: =IF(NRI!I43<>"",NRI!I43,"") ->  | J43: =IF(NRI!J43<>"",NRI!J43,"") ->  | K43: =IF(NRI!K43<>"",NRI!K43,"") ->  | L43: =IF(NRI!L43<>"",NRI!L43,"") ->  | M43: =IF(NRI!M43<>"",NRI!M43,"") -> 
A44: 2026 | B44: =IF(NRI!B44<>"",NRI!B44,"") ->  | C44: =IF(NRI!C44<>"",NRI!C44,"") ->  | D44: =IF(NRI!D44<>"",NRI!D44,"") ->  | E44: =IF(NRI!E44<>"",NRI!E44,"") ->  | F44: =IF(NRI!F44<>"",NRI!F44,"") ->  | G44: =IF(NRI!G44<>"",NRI!G44,"") ->  | H44: =IF(NRI!H44<>"",NRI!H44,"") ->  | I44: =IF(NRI!I44<>"",NRI!I44,"") ->  | J44: =IF(NRI!J44<>"",NRI!J44,"") ->  | K44: =IF(NRI!K44<>"",NRI!K44,"") ->  | L44: =IF(NRI!L44<>"",NRI!L44,"") ->  | M44: =IF(NRI!M44<>"",NRI!M44,"") -> 
A45: 2027 | B45: =IF(NRI!B45<>"",NRI!B45,"") ->  | C45: =IF(NRI!C45<>"",NRI!C45,"") ->  | D45: =IF(NRI!D45<>"",NRI!D45,"") ->  | E45: =IF(NRI!E45<>"",NRI!E45,"") ->  | F45: =IF(NRI!F45<>"",NRI!F45,"") ->  | G45: =IF(NRI!G45<>"",NRI!G45,"") ->  | H45: =IF(NRI!H45<>"",NRI!H45,"") ->  | I45: =IF(NRI!I45<>"",NRI!I45,"") ->  | J45: =IF(NRI!J45<>"",NRI!J45,"") ->  | K45: =IF(NRI!K45<>"",NRI!K45,"") ->  | L45: =IF(NRI!L45<>"",NRI!L45,"") ->  | M45: =IF(NRI!M45<>"",NRI!M45,"") -> 
A46: 2028 | B46: =IF(NRI!B46<>"",NRI!B46,"") ->  | C46: =IF(NRI!C46<>"",NRI!C46,"") ->  | D46: =IF(NRI!D46<>"",NRI!D46,"") ->  | E46: =IF(NRI!E46<>"",NRI!E46,"") ->  | F46: =IF(NRI!F46<>"",NRI!F46,"") ->  | G46: =IF(NRI!G46<>"",NRI!G46,"") ->  | H46: =IF(NRI!H46<>"",NRI!H46,"") ->  | I46: =IF(NRI!I46<>"",NRI!I46,"") ->  | J46: =IF(NRI!J46<>"",NRI!J46,"") ->  | K46: =IF(NRI!K46<>"",NRI!K46,"") ->  | L46: =IF(NRI!L46<>"",NRI!L46,"") ->  | M46: =IF(NRI!M46<>"",NRI!M46,"") -> 
A47: 2029 | B47: =IF(NRI!B47<>"",NRI!B47,"") ->  | C47: =IF(NRI!C47<>"",NRI!C47,"") ->  | D47: =IF(NRI!D47<>"",NRI!D47,"") ->  | E47: =IF(NRI!E47<>"",NRI!E47,"") ->  | F47: =IF(NRI!F47<>"",NRI!F47,"") ->  | G47: =IF(NRI!G47<>"",NRI!G47,"") ->  | H47: =IF(NRI!H47<>"",NRI!H47,"") ->  | I47: =IF(NRI!I47<>"",NRI!I47,"") ->  | J47: =IF(NRI!J47<>"",NRI!J47,"") ->  | K47: =IF(NRI!K47<>"",NRI!K47,"") ->  | L47: =IF(NRI!L47<>"",NRI!L47,"") ->  | M47: =IF(NRI!M47<>"",NRI!M47,"") -> 
A48: 2030 | B48: =IF(NRI!B48<>"",NRI!B48,"") ->  | C48: =IF(NRI!C48<>"",NRI!C48,"") ->  | D48: =IF(NRI!D48<>"",NRI!D48,"") ->  | E48: =IF(NRI!E48<>"",NRI!E48,"") ->  | F48: =IF(NRI!F48<>"",NRI!F48,"") ->  | G48: =IF(NRI!G48<>"",NRI!G48,"") ->  | H48: =IF(NRI!H48<>"",NRI!H48,"") ->  | I48: =IF(NRI!I48<>"",NRI!I48,"") ->  | J48: =IF(NRI!J48<>"",NRI!J48,"") ->  | K48: =IF(NRI!K48<>"",NRI!K48,"") ->  | L48: =IF(NRI!L48<>"",NRI!L48,"") ->  | M48: =IF(NRI!M48<>"",NRI!M48,"") -> 
A49: 2031 | B49: =IF(NRI!B49<>"",NRI!B49,"") ->  | C49: =IF(NRI!C49<>"",NRI!C49,"") ->  | D49: =IF(NRI!D49<>"",NRI!D49,"") ->  | E49: =IF(NRI!E49<>"",NRI!E49,"") ->  | F49: =IF(NRI!F49<>"",NRI!F49,"") ->  | G49: =IF(NRI!G49<>"",NRI!G49,"") ->  | H49: =IF(NRI!H49<>"",NRI!H49,"") ->  | I49: =IF(NRI!I49<>"",NRI!I49,"") ->  | J49: =IF(NRI!J49<>"",NRI!J49,"") ->  | K49: =IF(NRI!K49<>"",NRI!K49,"") ->  | L49: =IF(NRI!L49<>"",NRI!L49,"") ->  | M49: =IF(NRI!M49<>"",NRI!M49,"") -> 
A50: 2032 | B50: =IF(NRI!B50<>"",NRI!B50,"") ->  | C50: =IF(NRI!C50<>"",NRI!C50,"") ->  | D50: =IF(NRI!D50<>"",NRI!D50,"") ->  | E50: =IF(NRI!E50<>"",NRI!E50,"") ->  | F50: =IF(NRI!F50<>"",NRI!F50,"") ->  | G50: =IF(NRI!G50<>"",NRI!G50,"") ->  | H50: =IF(NRI!H50<>"",NRI!H50,"") ->  | I50: =IF(NRI!I50<>"",NRI!I50,"") ->  | J50: =IF(NRI!J50<>"",NRI!J50,"") ->  | K50: =IF(NRI!K50<>"",NRI!K50,"") ->  | L50: =IF(NRI!L50<>"",NRI!L50,"") ->  | M50: =IF(NRI!M50<>"",NRI!M50,"") -> 
A51: 2033 | B51: =IF(NRI!B51<>"",NRI!B51,"") ->  | C51: =IF(NRI!C51<>"",NRI!C51,"") ->  | D51: =IF(NRI!D51<>"",NRI!D51,"") ->  | E51: =IF(NRI!E51<>"",NRI!E51,"") ->  | F51: =IF(NRI!F51<>"",NRI!F51,"") ->  | G51: =IF(NRI!G51<>"",NRI!G51,"") ->  | H51: =IF(NRI!H51<>"",NRI!H51,"") ->  | I51: =IF(NRI!I51<>"",NRI!I51,"") ->  | J51: =IF(NRI!J51<>"",NRI!J51,"") ->  | K51: =IF(NRI!K51<>"",NRI!K51,"") ->  | L51: =IF(NRI!L51<>"",NRI!L51,"") ->  | M51: =IF(NRI!M51<>"",NRI!M51,"") -> 
A52: 2034 | B52: =IF(NRI!B52<>"",NRI!B52,"") ->  | C52: =IF(NRI!C52<>"",NRI!C52,"") ->  | D52: =IF(NRI!D52<>"",NRI!D52,"") ->  | E52: =IF(NRI!E52<>"",NRI!E52,"") ->  | F52: =IF(NRI!F52<>"",NRI!F52,"") ->  | G52: =IF(NRI!G52<>"",NRI!G52,"") ->  | H52: =IF(NRI!H52<>"",NRI!H52,"") ->  | I52: =IF(NRI!I52<>"",NRI!I52,"") ->  | J52: =IF(NRI!J52<>"",NRI!J52,"") ->  | K52: =IF(NRI!K52<>"",NRI!K52,"") ->  | L52: =IF(NRI!L52<>"",NRI!L52,"") ->  | M52: =IF(NRI!M52<>"",NRI!M52,"") -> 
A53: 2035 | B53: =IF(NRI!B53<>"",NRI!B53,"") ->  | C53: =IF(NRI!C53<>"",NRI!C53,"") ->  | D53: =IF(NRI!D53<>"",NRI!D53,"") ->  | E53: =IF(NRI!E53<>"",NRI!E53,"") ->  | F53: =IF(NRI!F53<>"",NRI!F53,"") ->  | G53: =IF(NRI!G53<>"",NRI!G53,"") ->  | H53: =IF(NRI!H53<>"",NRI!H53,"") ->  | I53: =IF(NRI!I53<>"",NRI!I53,"") ->  | J53: =IF(NRI!J53<>"",NRI!J53,"") ->  | K53: =IF(NRI!K53<>"",NRI!K53,"") ->  | L53: =IF(NRI!L53<>"",NRI!L53,"") ->  | M53: =IF(NRI!M53<>"",NRI!M53,"") -> 
A54: Mean | B54: =AVERAGE(B4:B53) ->  | C54: =AVERAGE(C4:C42) -> 
A58: 2 | B58: กราฟแบ่งฤดู
B80: ม.ค. | C80: ก.พ. | D80: มี.ค. | E80: เม.ย. | F80: พ.ค. | G80: มิ.ย. | H80: ก.ค. | I80: ส.ค. | J80: ก.ย. | K80: ต.ค. | L80: พ.ย. | M80: ธ.ค. | N80: ม.ค. | O80: ก.พ. | P80: มี.ค. | Q80: เม.ย. | R80: พ.ค. | S80: มิ.ย. | T80: ก.ค. | U80: ส.ค. | V80: ก.ย. | W80: ต.ค. | X80: พ.ย. | Y80: ธ.ค.
A81: Year/Month | B81: Jan | C81: Feb | D81: Mar | E81: Apr | F81: May | G81: Jun | H81: Jul | I81: Aug | J81: Sep | K81: Oct | L81: Nov | M81: Dec | N81: Jan | O81: Feb | P81: Mar | Q81: Apr | R81: May | S81: Jun | T81: Jul | U81: Aug | V81: Sep | W81: Oct | X81: Nov | Y81: Dec
A82: =A4 -> 1986 | B82: =B4 ->  | C82: =C4 ->  | N82: =IF(B5<>"",B5,B4) ->  | O82: =IF(C5<>"",C5,C4) ->  | T82: =IF(H5<>"",H5,H4) ->  | U82: =IF(I5<>"",I5,I4) ->  | V82: =IF(J5<>"",J5,J4) ->  | W82: =IF(K5<>"",K5,K4) ->  | X82: =IF(L5<>"",L5,L4) ->  | Y82: =IF(M5<>"",M5,M4) -> 
A83: 1987 | C83: =C5 ->  | N83: =IF(B6<>"",B6,B5) -> 
A84: 1988 | C84: =C6 -> 
A85: 1989 | C85: =C7 -> 
A86: 1990 | C86: =C8 -> 
A87: 1991 | C87: =C9 -> 
A88: 1992 | C88: =C10 -> 
A89: 1993 | C89: =C11 -> 
A90: 1994 | C90: =C12 -> 
A91: 1995 | C91: =C13 -> 
A92: 1996 | C92: =C14 -> 
A93: 1997 | C93: =C15 -> 
A94: 1998 | C94: =C16 -> 
A95: 1999 | C95: =C17 -> 
A96: 2000 | C96: =C18 -> 
A97: 2001 | C97: =C19 -> 
A98: 2002 | C98: =C20 ->  | O98: =IF(C21<>"",C21,C20) ->  | P98: =IF(D21<>"",D21,D20) ->  | Q98: =IF(E21<>"",E21,E20) ->  | R98: =IF(F21<>"",F21,F20) ->  | S98: =IF(G21<>"",G21,G20) -> 
A99: 2003 | C99: =C21 -> 
A100: 2004 | C100: =C22 -> 
A101: 2005 | C101: =C23 -> 
A102: 2006 | C102: =C24 ->  | N102: =IF(B25<>"",B25,B24) ->  | O102: =C24 ->  | P102: =D24 ->  | Q102: =E24 ->  | R102: =F24 ->  | S102: =G24 ->  | T102: =H24 ->  | U102: =I24 ->  | V102: =J24 ->  | W102: =K24 ->  | X102: =L24 ->  | Y102: =M24 -> 
A103: 2007 | C103: =C25 ->  | N103: =B25 -> 
A104: 2008 | C104: =C26 -> 
A105: 2009 | C105: =C27 -> 
A106: 2010 | C106: =C28 -> 
A107: 2011 | C107: =C29 -> 
A108: 2012 | C108: =C30 -> 
A109: 2013 | C109: =C31 -> 
A110: 2014 | C110: =C32 -> 
A111: 2015 | C111: =C33 -> 
A112: 2016 | C112: =C34 -> 
A113: 2017 | C113: =C35 -> 
A114: =A36 -> 2018 | C114: =C36 ->  | N114: =B36 ->  | O114: =C36 ->  | P114: =D36 ->  | Q114: =E36 ->  | R114: =F36 ->  | S114: =G36 -> 
A115: 2019 | C115: =C37 -> 
A116: 2020 | C116: =C38 -> 
A117: 2021 | C117: =C39 -> 
A118: 2022 | C118: =C40 -> 
A119: 2023 | C119: =C41 -> 
A120: 2024 | C120: =C42 -> 
A121: 2025 | C121: =C43 -> 
A122: 2026 | C122: =C44 -> 
A123: 2027 | C123: =C45 -> 
A124: 2028 | C124: =C46 -> 
A125: 2029 | C125: =C47 -> 
A126: 2030 | C126: =C48 -> 
A127: 2031 | C127: =C49 -> 
A128: 2032 | C128: =C50 -> 
A129: 2033 | C129: =C51 -> 
A130: 2034 | C130: =C52 -> 
A131: 2035 | C131: =C53 -> 
A132: Mean | B132: =AVERAGE(B82:B120) ->  | M132: =AVERAGE(M82:M131) -> 
B133: =IF(AND(B132<0,C132<0),"",-1) ->  | C133: =IF(AND(B133="",C132<0),"",IF(AND(B133>0,C132<0),B133*-1,IF(AND(B133<0,C132<0),B133-1,1))) ->  | T133: =IF(AND(S133="",T132<0),"",IF(AND(S133>0,T132<0),S133*-1,IF(AND(S133<0,T132<0),S133-1,1))) -> 
B134: =IF(B133<0,B133*-1,0) ->  | G134: =IF(G133<0,G133*-1,0) ->  | H134: =IF(H133<0,H133*-1,0) ->  | I134: =IF(I133<0,I133*-1,0) ->  | J134: =IF(J133<0,J133*-1,0) ->  | K134: =IF(K133<0,K133*-1,0) ->  | L134: =IF(L133<0,L133*-1,0) ->  | N134: =IF(N133<0,N133*-1,0) ->  | O134: =IF(O133<0,O133*-1,0) ->  | P134: =IF(P133<0,P133*-1,0) ->  | Q134: =IF(Q133<0,Q133*-1,0) ->  | R134: =IF(R133<0,R133*-1,0) ->  | T134: =IF(T133<0,T133*-1,0) ->  | U134: =IF(U133<0,U133*-1,0) ->  | V134: =IF(V133<0,V133*-1,0) ->  | W134: =IF(W133<0,W133*-1,0) ->  | X134: =IF(X133<0,X133*-1,0) -> 
B135: =IF(B134=0,0,IF(IF(C134>B134,C134,B134)<C135,C135,IF(C134>B134,C134,B134))) ->  | I135: =IF(I134=0,0,IF(IF(J134>I134,J134,I134)<J135,J135,IF(J134>I134,J134,I134))) ->  | J135: =IF(J134=0,0,IF(IF(K134>J134,K134,J134)<K135,K135,IF(K134>J134,K134,J134))) ->  | S135: =IF(S134=0,0,IF(IF(T134>S134,T134,S134)<T135,T135,IF(T134>S134,T134,S134))) -> 
B136: =IF(B133="",0,1) ->  | C136: =IF(C133="",0,IF(B136<>"",B136+1,1)) ->  | T136: =IF(T133="",0,IF(S136<>"",S136+1,1)) -> 
A137: Year/Month | B137: Jan | C137: Feb | D137: Mar | E137: Apr | F137: May | G137: Jun | H137: Jul | I137: Aug | J137: Sep | K137: Oct | L137: Nov | M137: Dec | N137: Jan | O137: Feb | P137: Mar | Q137: Apr | R137: May | S137: Jun | T137: Jul | U137: Aug | V137: Sep | W137: Oct | X137: Nov | Y137: Dec | AB137: 3 | AC137: ใส่ NRI รายเดือน
A138: =A4 -> 1986 | B138: =IF(OR(B$136=0,B$136>12),"",IF(B$133<0,-1*SUM(OFFSET(B82,0,0,1,IF(AND(A$133>0,C$133>0),1,(B$135)+1+B$133))),B82*-1)) ->  | C138: =IF(OR(C$136=0,C$136>12),"",IF(C$133<0,-1*SUM(OFFSET(C82,0,0,1,IF(AND(B$133>0,D$133>0),1,(C$135)+1+C$133))),C82*-1)) ->  | N138: =IF(OR(N$136=0,N$136>12),"",IF(N$133<0,-1*SUM(OFFSET(B82,0,0,1,IF(AND(M$133>0,O$133>0),1,(N$135)+1+N$133))),B82*-1)) ->  | O138: =IF(OR(O$136=0,O$136>12),"",IF(O$133<0,-1*SUM(OFFSET(C82,0,0,1,IF(AND(N$133>0,P$133>0),1,(O$135)+1+O$133))),C82*-1)) ->  | T138: =IF(OR(T$136=0,T$136>12),"",IF(T$133<0,-1*SUM(OFFSET(H82,0,0,1,IF(AND(S$133>0,U$133>0),1,T$135+1+T$133))),H82)) ->  | U138: =IF(OR(U$136=0,U$136>12),"",IF(U$133<0,-1*SUM(OFFSET(I82,0,0,1,IF(AND(T$133>0,V$133>0),1,U$135+1+U$133))),I82)) ->  | V138: =IF(OR(V$136=0,V$136>12),"",IF(V$133<0,-1*SUM(OFFSET(J82,0,0,1,IF(AND(U$133>0,W$133>0),1,V$135+1+V$133))),J82)) ->  | W138: =IF(OR(W$136=0,W$136>12),"",IF(W$133<0,-1*SUM(OFFSET(K82,0,0,1,IF(AND(V$133>0,X$133>0),1,W$135+1+W$133))),K82)) ->  | X138: =IF(OR(X$136=0,X$136>12),"",IF(X$133<0,-1*SUM(OFFSET(L82,0,0,1,IF(AND(W$133>0,Y$133>0),1,X$135+1+X$133))),L82)) ->  | Y138: =IF(OR(Y$136=0,Y$136>12),"",IF(Y$133<0,-1*SUM(OFFSET(M82,0,0,1,IF(AND(X$133>0,Z$133>0),1,Y$135+1+Y$133))),M82)) ->  | AD138: ม.ค. | AE138: ก.พ. | AF138: มี.ค. | AG138: เม.ย. | AH138: พ.ค. | AI138: มิ.ย. | AJ138: ก.ค. | AK138: ส.ค. | AL138: ก.ย. | AM138: ต.ค. | AN138: พ.ย. | AO138: ธ.ค.
A139: =A5 -> 1987 | B139: =IF(OR(B$136=0,B$136>12),"",IF(B$133<0,-1*SUM(OFFSET(B83,0,0,1,IF(AND(A$133>0,C$133>0),1,(B$135)+1+B$133))),B83*-1)) ->  | N139: =IF(OR(N$136=0,N$136>12),"",IF(N$133<0,-1*SUM(OFFSET(B83,0,0,1,IF(AND(M$133>0,O$133>0),1,(N$135)+1+N$133))),B83*-1)) ->  | AB139: ปี ค.ศ. | AC139: ปี พ.ศ. | AD139: Jan | AE139: Feb | AF139: Mar | AG139: Apr | AH139: May | AI139: Jun | AJ139: Jul | AK139: Aug | AL139: Sep | AM139: Oct | AN139: Nov | AO139: Dec
A140: 1988 | B140: =IF(OR(B$136=0,B$136>12),"",IF(B$133<0,-1*SUM(OFFSET(B84,0,0,1,IF(AND(A$133>0,C$133>0),1,(B$135)+1+B$133))),B84*-1)) ->  | N140: =IF(OR(N$136=0,N$136>12),"",IF(N$133<0,-1*SUM(OFFSET(B84,0,0,1,IF(AND(M$133>0,O$133>0),1,(N$135)+1+N$133))),B84*-1)) ->  | AB140: =A4 -> 1986 | AC140: =A195+543 -> 2529 | AD140: =IF(B138<>"",IF(B138=0,"",B138),IF(N138=0,"",N138)) ->  | AE140: =IF(C138<>"",IF(C138=0,"",C138),IF(O138=0,"",O138)) ->  | AF140: =IF(D138<>"",IF(D138=0,"",D138),IF(P138=0,"",P138)) ->  | AG140: =IF(E138<>"",IF(E138=0,"",E138),IF(Q138=0,"",Q138)) ->  | AH140: =IF(F138<>"",IF(F138=0,"",F138),IF(R138=0,"",R138)) ->  | AI140: =IF(G138<>"",IF(G138=0,"",G138),IF(S138=0,"",S138)) ->  | AJ140: =IF(H138<>"",IF(H138=0,"",H138),IF(T138=0,"",T138)) ->  | AK140: =IF(I138<>"",IF(I138=0,"",I138),IF(U138=0,"",U138)) ->  | AL140: =IF(J138<>"",IF(J138=0,"",J138),IF(V138=0,"",V138)) ->  | AM140: =IF(K138<>"",IF(K138=0,"",K138),IF(W138=0,"",W138)) ->  | AN140: =IF(L138<>"",IF(L138=0,"",L138),IF(X138=0,"",X138)) ->  | AO140: =IF(M138<>"",IF(M138=0,"",M138),IF(Y138=0,"",Y138)) -> 
A141: 1989 | AB141: =A195+1 -> 1987 | AC141: 2530
A142: 1990 | AB142: 1988 | AC142: 2531
A143: 1991 | AB143: 1989 | AC143: 2532
A144: 1992 | AB144: 1990 | AC144: 2533
A145: 1993 | AB145: 1991 | AC145: 2534
A146: 1994 | AB146: 1992 | AC146: 2535
A147: 1995 | AB147: 1993 | AC147: 2536
A148: 1996 | AB148: 1994 | AC148: 2537
A149: 1997 | AB149: 1995 | AC149: 2538
A150: 1998 | AB150: 1996 | AC150: 2539
A151: 1999 | AB151: 1997 | AC151: 2540
A152: 2000 | AB152: 1998 | AC152: 2541
A153: 2001 | AB153: 1999 | AC153: 2542
A154: 2002 | AB154: 2000 | AC154: 2543
A155: 2003 | AB155: 2001 | AC155: 2544
A156: 2004 | B156: =IF(OR(B$136=0,B$136>12),"",IF(B$133<0,-1*SUM(OFFSET(B100,0,0,1,IF(AND(A$133>0,C$133>0),1,(B$135)+1+B$133))),B100*-1)) ->  | N156: =IF(OR(N$136=0,N$136>12),"",IF(N$133<0,-1*SUM(OFFSET(B100,0,0,1,IF(AND(M$133>0,O$133>0),1,(N$135)+1+N$133))),B100*-1)) ->  | AB156: 2002 | AC156: 2545
A157: 2005 | AB157: 2003 | AC157: 2546
A158: 2006 | AB158: 2004 | AC158: 2547
A159: 2007 | AB159: 2005 | AC159: 2548
A160: 2008 | AB160: 2006 | AC160: 2549
A161: 2009 | AB161: 2007 | AC161: 2550
A162: 2010 | AB162: 2008 | AC162: 2551
A163: 2011 | AB163: 2009 | AC163: 2552
A164: 2012 | AB164: 2010 | AC164: 2553
A165: 2013 | AB165: 2011 | AC165: 2554
A166: 2014 | AB166: 2012 | AC166: 2555
A167: 2015 | AB167: 2013 | AC167: 2556
A168: 2016 | AB168: 2014 | AC168: 2557
A169: 2017 | AB169: 2015 | AC169: 2558
A170: 2018 | T170: =IF(OR(T$136=0,T$136>12),"",IF(T$133<0,-1*SUM(OFFSET(H114,0,0,1,IF(AND(S$133>0,U$133>0),1,T$135+1+T$133))),H114)) ->  | U170: =IF(OR(U$136=0,U$136>12),"",IF(U$133<0,-1*SUM(OFFSET(I114,0,0,1,IF(AND(T$133>0,V$133>0),1,U$135+1+U$133))),I114)) ->  | V170: =IF(OR(V$136=0,V$136>12),"",IF(V$133<0,-1*SUM(OFFSET(J114,0,0,1,IF(AND(U$133>0,W$133>0),1,V$135+1+V$133))),J114)) ->  | W170: =IF(OR(W$136=0,W$136>12),"",IF(W$133<0,-1*SUM(OFFSET(K114,0,0,1,IF(AND(V$133>0,X$133>0),1,W$135+1+W$133))),K114)) ->  | X170: =IF(OR(X$136=0,X$136>12),"",IF(X$133<0,-1*SUM(OFFSET(L114,0,0,1,IF(AND(W$133>0,Y$133>0),1,X$135+1+X$133))),L114)) ->  | Y170: =IF(OR(Y$136=0,Y$136>12),"",IF(Y$133<0,-1*SUM(OFFSET(M114,0,0,1,IF(AND(X$133>0,Z$133>0),1,Y$135+1+Y$133))),M114)) ->  | AB170: 2016 | AC170: 2559
A171: 2019 | AB171: 2017 | AC171: 2560
A172: 2020 | B172: =IF(OR(B$136=0,B$136>12),"",IF(B$133<0,-1*SUM(OFFSET(B116,0,0,1,IF(AND(A$133>0,C$133>0),1,(B$135)+1+B$133))),B116*-1)) ->  | N172: =IF(OR(N$136=0,N$136>12),"",IF(N$133<0,-1*SUM(OFFSET(B116,0,0,1,IF(AND(M$133>0,O$133>0),1,(N$135)+1+N$133))),B116*-1)) ->  | AB172: 2018 | AC172: =A227+543 -> 2561 | AD172: =IF(B170<>"",IF(B170=0,"",B170),IF(N170=0,"",N170)) ->  | AE172: =IF(C170<>"",IF(C170=0,"",C170),IF(O170=0,"",O170)) ->  | AF172: =IF(D170<>"",IF(D170=0,"",D170),IF(P170=0,"",P170)) ->  | AG172: =IF(E170<>"",IF(E170=0,"",E170),IF(Q170=0,"",Q170)) ->  | AH172: =IF(F170<>"",IF(F170=0,"",F170),IF(R170=0,"",R170)) ->  | AI172: =IF(G170<>"",IF(G170=0,"",G170),IF(S170=0,"",S170)) ->  | AJ172: =IF(H170<>"",IF(H170=0,"",H170),IF(T170=0,"",T170)) ->  | AK172: =IF(I170<>"",IF(I170=0,"",I170),IF(U170=0,"",U170)) ->  | AL172: =IF(J170<>"",IF(J170=0,"",J170),IF(V170=0,"",V170)) ->  | AM172: =IF(K170<>"",IF(K170=0,"",K170),IF(W170=0,"",W170)) ->  | AN172: =IF(L170<>"",IF(L170=0,"",L170),IF(X170=0,"",X170)) ->  | AO172: =IF(M170<>"",IF(M170=0,"",M170),IF(Y170=0,"",Y170)) -> 
A173: 2021 | AB173: =A227+1 -> 2019 | AC173: 2562
A174: 2022 | AB174: 2020 | AC174: 2563
A175: 2023 | AB175: 2021 | AC175: 2564
A176: 2024 | AB176: 2022 | AC176: 2565
A177: 2025 | AB177: 2023 | AC177: 2566
A178: 2026 | AB178: 2024 | AC178: 2567
A179: 2027 | AB179: 2025 | AC179: 2568
A180: 2028 | AB180: 2026 | AC180: 2569
A181: 2029 | AB181: 2027 | AC181: 2570
A182: 2030 | AB182: 2028 | AC182: 2571
A183: 2031 | AB183: 2029 | AC183: 2572
A184: 2032 | AB184: 2030 | AC184: 2573
A185: 2033 | AB185: 2031 | AC185: 2574
A186: 2034 | B186: =IF(OR(B$136=0,B$136>12),"",IF(B$133<0,-1*SUM(OFFSET(B130,0,0,1,IF(AND(A$133>0,C$133>0),1,(B$135)+1+B$133))),B130*-1)) ->  | C186: =IF(OR(C$136=0,C$136>12),"",IF(C$133<0,-1*SUM(OFFSET(C130,0,0,1,IF(AND(B$133>0,D$133>0),1,(C$135)+1+C$133))),C130*-1)) ->  | S186: =IF(OR(S$136=0,S$136>12),"",IF(S$133<0,-1*SUM(OFFSET(S130,0,0,1,IF(AND(R$133>0,T$133>0),1,(S$135)+1+S$133))),S130*-1)) ->  | AB186: 2032 | AC186: 2575
A187: 2035 | B187: =IF(OR(B$136=0,B$136>12),"",IF(B$133<0,-1*SUM(OFFSET(B131,0,0,1,IF(AND(A$133>0,C$133>0),1,(B$135)+1+B$133))),B131*-1)) ->  | C187: =IF(OR(C$136=0,C$136>12),"",IF(C$133<0,-1*SUM(OFFSET(C131,0,0,1,IF(AND(B$133>0,D$133>0),1,(C$135)+1+C$133))),C131*-1)) ->  | S187: =IF(OR(S$136=0,S$136>12),"",IF(S$133<0,-1*SUM(OFFSET(S131,0,0,1,IF(AND(R$133>0,T$133>0),1,(S$135)+1+S$133))),S131*-1)) ->  | AB187: 2033 | AC187: 2576
AB188: 2034 | AC188: 2577
AB189: 2035 | AC189: 2578
P191: =MIN(R195:AC244) -> 0 | Q191: 1 | R191: =IF(QUOTIENT(P191,1)>0,1,IF(QUOTIENT(P191,0.1)>0,10,IF(QUOTIENT(P191,0.01)>0,100,IF(QUOTIENT(P191,0.001)>0,1000,10000)))) -> 10000
A192: 5 | B192: ใส่ NRI รายเดือน | P192: 4 | Q192: ปรับขยาย Scal
C193: ม.ค. | D193: ก.พ. | E193: มี.ค. | F193: เม.ย. | G193: พ.ค. | H193: มิ.ย. | I193: ก.ค. | J193: ส.ค. | K193: ก.ย. | L193: ต.ค. | M193: พ.ย. | N193: ธ.ค. | R193: ม.ค. | S193: ก.พ. | T193: มี.ค. | U193: เม.ย. | V193: พ.ค. | W193: มิ.ย. | X193: ก.ค. | Y193: ส.ค. | Z193: ก.ย. | AA193: ต.ค. | AB193: พ.ย. | AC193: ธ.ค.
A194: ปี ค.ศ. | B194: ปี พ.ศ. | C194: Jan | D194: Feb | E194: Mar | F194: Apr | G194: May | H194: Jun | I194: Jul | J194: Aug | K194: Sep | L194: Oct | M194: Nov | N194: Dec | P194: ปี ค.ศ. | Q194: ปี พ.ศ. | R194: Jan | S194: Feb | T194: Mar | U194: Apr | V194: May | W194: Jun | X194: Jul | Y194: Aug | Z194: Sep | AA194: Oct | AB194: Nov | AC194: Dec
A195: =A4 -> 1986 | B195: =A195+543 -> 2529 | C195: =IFERROR(AD140*$Q$191,"") ->  | D195: =IFERROR(AE140*$Q$191,IF($C195="","",0)) ->  | E195: =IFERROR(AF140*$Q$191,IF($C195="","",0)) ->  | F195: =IFERROR(AG140*$Q$191,IF($C195="","",0)) ->  | G195: =IFERROR(AH140*$Q$191,IF($C195="","",0)) ->  | H195: =IFERROR(AI140*$Q$191,IF($C195="","",0)) ->  | I195: =IFERROR(AJ140*$Q$191,IF($C195="","",0)) ->  | J195: =IFERROR(AK140*$Q$191,IF($C195="","",0)) ->  | K195: =IFERROR(AL140*$Q$191,IF($C195="","",0)) ->  | L195: =IFERROR(AM140*$Q$191,IF($C195="","",0)) ->  | M195: =IFERROR(AN140*$Q$191,IF($C195="","",0)) ->  | N195: =IFERROR(AO140*$Q$191,IF($C195="","",0)) ->  | P195: =A4 -> 1986 | Q195: =A195+543 -> 2529 | R195: =IFERROR(ABS(AD140),"") ->  | S195: =IFERROR(ABS(AE140),"") ->  | T195: =IFERROR(ABS(AF140),"") -> 
A196: =A195+1 -> 1987 | B196: 2530 | P196: =A195+1 -> 1987 | Q196: 2530 | R196: =IFERROR(ABS(AD141),"") ->  | S196: =IFERROR(ABS(AE141),"") ->  | T196: =IFERROR(ABS(AF141),"") ->  | U196: =IFERROR(ABS(AG141),"") ->  | V196: =IFERROR(ABS(AH141),"") ->  | W196: =IFERROR(ABS(AI141),"") ->  | X196: =IFERROR(ABS(AJ141),"") ->  | Y196: =IFERROR(ABS(AK141),"") ->  | Z196: =IFERROR(ABS(AL141),"") ->  | AA196: =IFERROR(ABS(AM141),"") ->  | AB196: =IFERROR(ABS(AN141),"") ->  | AC196: =IFERROR(ABS(AO141),"") -> 
A197: 1988 | B197: 2531 | P197: 1988 | Q197: 2531
A198: 1989 | B198: 2532 | P198: 1989 | Q198: 2532
A199: 1990 | B199: 2533 | P199: 1990 | Q199: 2533
A200: 1991 | B200: 2534 | P200: 1991 | Q200: 2534
A201: 1992 | B201: 2535 | P201: 1992 | Q201: 2535
A202: 1993 | B202: 2536 | P202: 1993 | Q202: 2536
A203: 1994 | B203: 2537 | P203: 1994 | Q203: 2537
A204: 1995 | B204: 2538 | P204: 1995 | Q204: 2538
A205: 1996 | B205: 2539 | P205: 1996 | Q205: 2539
A206: 1997 | B206: 2540 | P206: 1997 | Q206: 2540
A207: 1998 | B207: 2541 | P207: 1998 | Q207: 2541
A208: 1999 | B208: 2542 | P208: 1999 | Q208: 2542
A209: 2000 | B209: 2543 | P209: 2000 | Q209: 2543
A210: 2001 | B210: 2544 | P210: 2001 | Q210: 2544
A211: 2002 | B211: 2545 | P211: 2002 | Q211: 2545
A212: 2003 | B212: 2546 | P212: 2003 | Q212: 2546
A213: 2004 | B213: 2547 | P213: 2004 | Q213: 2547
A214: 2005 | B214: 2548 | P214: 2005 | Q214: 2548
A215: 2006 | B215: 2549 | P215: 2006 | Q215: 2549
A216: 2007 | B216: 2550 | P216: 2007 | Q216: 2550
A217: 2008 | B217: 2551 | P217: 2008 | Q217: 2551
A218: 2009 | B218: 2552 | P218: 2009 | Q218: 2552
A219: 2010 | B219: 2553 | P219: 2010 | Q219: 2553
A220: 2011 | B220: 2554 | P220: 2011 | Q220: 2554
A221: 2012 | B221: 2555 | P221: 2012 | Q221: 2555
A222: 2013 | B222: 2556 | P222: 2013 | Q222: 2556
A223: 2014 | B223: 2557 | P223: 2014 | Q223: 2557
A224: 2015 | B224: 2558 | P224: 2015 | Q224: 2558
A225: 2016 | B225: 2559 | P225: 2016 | Q225: 2559
... 19 more rows

Sheet URC POP
A1: Step 3. Tranforming data for distribution fitting test
A2: Year | B2: Jan | C2: Transform | D2: Feb | E2: Transform | F2: Mar | G2: Transform | H2: Apr | I2: Transform | J2: May | K2: Transform | L2: Jun | M2: Transform | N2: Jul | O2: Transform | P2: Aug | Q2: Transform | R2: Sep | S2: Transform | T2: Oct | U2: Transform | V2: Nov | W2: Transform | X2: Dec | Y2: Transform
B3: Xt | C3: Yt | D3: Xt | E3: Yt | F3: Xt | G3: Yt | H3: Xt | I3: Yt | J3: Xt | K3: Yt | L3: Xt | M3: Yt | N3: Xt | O3: Yt | P3: Xt | Q3: Yt | R3: Xt | S3: Yt | T3: Xt | U3: Yt | V3: Xt | W3: Yt | X3: Xt | Y3: Yt
A4: 1 | B4: =IF(NRI!B4<>"",NRI!B4,"") ->  | C4: =IFERROR(B4-(1.01*B$57),"") ->  | D4: =IF(NRI!C4<>"",NRI!C4,"") ->  | E4: =IFERROR(D4-(1.01*D$57),"") ->  | F4: =IF(NRI!D4<>"",NRI!D4,"") ->  | G4: =IFERROR(F4-(1.01*F$57),"") ->  | H4: =IF(NRI!E4<>"",NRI!E4,"") ->  | I4: =IFERROR(H4-(1.01*H$57),"") ->  | J4: =IF(NRI!F4<>"",NRI!F4,"") ->  | K4: =IFERROR(J4-(1.01*J$57),"") ->  | L4: =IF(NRI!G4<>"",NRI!G4,"") ->  | M4: =IFERROR(L4-(1.01*L$57),"") ->  | N4: =IF(NRI!H4<>"",NRI!H4,"") ->  | O4: =IFERROR(N4-(1.01*N$57),"") ->  | P4: =IF(NRI!I4<>"",NRI!I4,"") ->  | Q4: =IFERROR(P4-(1.01*P$57),"") ->  | R4: =IF(NRI!J4<>"",NRI!J4,"") ->  | S4: =IFERROR(R4-(1.01*R$57),"") ->  | T4: =IF(NRI!K4<>"",NRI!K4,"") ->  | U4: =IFERROR(T4-(1.01*T$57),"") ->  | V4: =IF(NRI!L4<>"",NRI!L4,"") ->  | W4: =IFERROR(V4-(1.01*V$57),"") ->  | X4: =IF(NRI!M4<>"",NRI!M4,"") ->  | Y4: =IFERROR(X4-(1.01*X$57),"") -> 
A5: 2 | B5: =IF(NRI!B5<>"",NRI!B5,"") ->  | C5: =IFERROR(B5-(1.01*B$57),"") ->  | D5: =IF(NRI!C5<>"",NRI!C5,"") ->  | F5: =IF(NRI!D5<>"",NRI!D5,"") ->  | G5: =IFERROR(F5-(1.01*F$57),"") ->  | H5: =IF(NRI!E5<>"",NRI!E5,"") ->  | I5: =IFERROR(H5-(1.01*H$57),"") ->  | J5: =IF(NRI!F5<>"",NRI!F5,"") ->  | K5: =IFERROR(J5-(1.01*J$57),"") ->  | L5: =IF(NRI!G5<>"",NRI!G5,"") ->  | M5: =IFERROR(L5-(1.01*L$57),"") ->  | N5: =IF(NRI!H5<>"",NRI!H5,"") ->  | O5: =IFERROR(N5-(1.01*N$57),"") ->  | P5: =IF(NRI!I5<>"",NRI!I5,"") ->  | Q5: =IFERROR(P5-(1.01*P$57),"") ->  | R5: =IF(NRI!J5<>"",NRI!J5,"") ->  | S5: =IFERROR(R5-(1.01*R$57),"") ->  | T5: =IF(NRI!K5<>"",NRI!K5,"") ->  | U5: =IFERROR(T5-(1.01*T$57),"") ->  | V5: =IF(NRI!L5<>"",NRI!L5,"") ->  | W5: =IFERROR(V5-(1.01*V$57),"") ->  | X5: =IF(NRI!M5<>"",NRI!M5,"") ->  | Y5: =IFERROR(X5-(1.01*X$57),"") -> 
A6: 3 | B6: =IF(NRI!B6<>"",NRI!B6,"") ->  | D6: =IF(NRI!C6<>"",NRI!C6,"") ->  | F6: =IF(NRI!D6<>"",NRI!D6,"") ->  | G6: =IFERROR(F6-(1.01*F$57),"") ->  | H6: =IF(NRI!E6<>"",NRI!E6,"") ->  | I6: =IFERROR(H6-(1.01*H$57),"") ->  | J6: =IF(NRI!F6<>"",NRI!F6,"") ->  | K6: =IFERROR(J6-(1.01*J$57),"") ->  | L6: =IF(NRI!G6<>"",NRI!G6,"") ->  | M6: =IFERROR(L6-(1.01*L$57),"") ->  | N6: =IF(NRI!H6<>"",NRI!H6,"") ->  | O6: =IFERROR(N6-(1.01*N$57),"") ->  | P6: =IF(NRI!I6<>"",NRI!I6,"") ->  | Q6: =IFERROR(P6-(1.01*P$57),"") ->  | R6: =IF(NRI!J6<>"",NRI!J6,"") ->  | S6: =IFERROR(R6-(1.01*R$57),"") ->  | T6: =IF(NRI!K6<>"",NRI!K6,"") ->  | U6: =IFERROR(T6-(1.01*T$57),"") ->  | V6: =IF(NRI!L6<>"",NRI!L6,"") ->  | W6: =IFERROR(V6-(1.01*V$57),"") ->  | X6: =IF(NRI!M6<>"",NRI!M6,"") ->  | Y6: =IFERROR(X6-(1.01*X$57),"") -> 
A7: 4 | B7: =IF(NRI!B7<>"",NRI!B7,"") ->  | D7: =IF(NRI!C7<>"",NRI!C7,"") ->  | F7: =IF(NRI!D7<>"",NRI!D7,"") ->  | G7: =IFERROR(F7-(1.01*F$57),"") ->  | H7: =IF(NRI!E7<>"",NRI!E7,"") ->  | I7: =IFERROR(H7-(1.01*H$57),"") ->  | J7: =IF(NRI!F7<>"",NRI!F7,"") ->  | K7: =IFERROR(J7-(1.01*J$57),"") ->  | L7: =IF(NRI!G7<>"",NRI!G7,"") ->  | M7: =IFERROR(L7-(1.01*L$57),"") ->  | N7: =IF(NRI!H7<>"",NRI!H7,"") ->  | O7: =IFERROR(N7-(1.01*N$57),"") ->  | P7: =IF(NRI!I7<>"",NRI!I7,"") ->  | Q7: =IFERROR(P7-(1.01*P$57),"") ->  | R7: =IF(NRI!J7<>"",NRI!J7,"") ->  | S7: =IFERROR(R7-(1.01*R$57),"") ->  | T7: =IF(NRI!K7<>"",NRI!K7,"") ->  | U7: =IFERROR(T7-(1.01*T$57),"") ->  | V7: =IF(NRI!L7<>"",NRI!L7,"") ->  | W7: =IFERROR(V7-(1.01*V$57),"") ->  | X7: =IF(NRI!M7<>"",NRI!M7,"") ->  | Y7: =IFERROR(X7-(1.01*X$57),"") -> 
A8: 5 | B8: =IF(NRI!B8<>"",NRI!B8,"") ->  | D8: =IF(NRI!C8<>"",NRI!C8,"") ->  | F8: =IF(NRI!D8<>"",NRI!D8,"") ->  | G8: =IFERROR(F8-(1.01*F$57),"") ->  | H8: =IF(NRI!E8<>"",NRI!E8,"") ->  | I8: =IFERROR(H8-(1.01*H$57),"") ->  | J8: =IF(NRI!F8<>"",NRI!F8,"") ->  | K8: =IFERROR(J8-(1.01*J$57),"") ->  | L8: =IF(NRI!G8<>"",NRI!G8,"") ->  | M8: =IFERROR(L8-(1.01*L$57),"") ->  | N8: =IF(NRI!H8<>"",NRI!H8,"") ->  | O8: =IFERROR(N8-(1.01*N$57),"") ->  | P8: =IF(NRI!I8<>"",NRI!I8,"") ->  | Q8: =IFERROR(P8-(1.01*P$57),"") ->  | R8: =IF(NRI!J8<>"",NRI!J8,"") ->  | S8: =IFERROR(R8-(1.01*R$57),"") ->  | T8: =IF(NRI!K8<>"",NRI!K8,"") ->  | U8: =IFERROR(T8-(1.01*T$57),"") ->  | V8: =IF(NRI!L8<>"",NRI!L8,"") ->  | W8: =IFERROR(V8-(1.01*V$57),"") ->  | X8: =IF(NRI!M8<>"",NRI!M8,"") ->  | Y8: =IFERROR(X8-(1.01*X$57),"") -> 
A9: 6 | B9: =IF(NRI!B9<>"",NRI!B9,"") ->  | D9: =IF(NRI!C9<>"",NRI!C9,"") ->  | F9: =IF(NRI!D9<>"",NRI!D9,"") ->  | G9: =IFERROR(F9-(1.01*F$57),"") ->  | H9: =IF(NRI!E9<>"",NRI!E9,"") ->  | I9: =IFERROR(H9-(1.01*H$57),"") ->  | J9: =IF(NRI!F9<>"",NRI!F9,"") ->  | K9: =IFERROR(J9-(1.01*J$57),"") ->  | L9: =IF(NRI!G9<>"",NRI!G9,"") ->  | M9: =IFERROR(L9-(1.01*L$57),"") ->  | N9: =IF(NRI!H9<>"",NRI!H9,"") ->  | O9: =IFERROR(N9-(1.01*N$57),"") ->  | P9: =IF(NRI!I9<>"",NRI!I9,"") ->  | Q9: =IFERROR(P9-(1.01*P$57),"") ->  | R9: =IF(NRI!J9<>"",NRI!J9,"") ->  | S9: =IFERROR(R9-(1.01*R$57),"") ->  | T9: =IF(NRI!K9<>"",NRI!K9,"") ->  | U9: =IFERROR(T9-(1.01*T$57),"") ->  | V9: =IF(NRI!L9<>"",NRI!L9,"") ->  | W9: =IFERROR(V9-(1.01*V$57),"") ->  | X9: =IF(NRI!M9<>"",NRI!M9,"") ->  | Y9: =IFERROR(X9-(1.01*X$57),"") -> 
A10: 7 | B10: =IF(NRI!B10<>"",NRI!B10,"") ->  | D10: =IF(NRI!C10<>"",NRI!C10,"") ->  | F10: =IF(NRI!D10<>"",NRI!D10,"") ->  | G10: =IFERROR(F10-(1.01*F$57),"") ->  | H10: =IF(NRI!E10<>"",NRI!E10,"") ->  | I10: =IFERROR(H10-(1.01*H$57),"") ->  | J10: =IF(NRI!F10<>"",NRI!F10,"") ->  | K10: =IFERROR(J10-(1.01*J$57),"") ->  | L10: =IF(NRI!G10<>"",NRI!G10,"") ->  | M10: =IFERROR(L10-(1.01*L$57),"") ->  | N10: =IF(NRI!H10<>"",NRI!H10,"") ->  | O10: =IFERROR(N10-(1.01*N$57),"") ->  | P10: =IF(NRI!I10<>"",NRI!I10,"") ->  | Q10: =IFERROR(P10-(1.01*P$57),"") ->  | R10: =IF(NRI!J10<>"",NRI!J10,"") ->  | S10: =IFERROR(R10-(1.01*R$57),"") ->  | T10: =IF(NRI!K10<>"",NRI!K10,"") ->  | U10: =IFERROR(T10-(1.01*T$57),"") ->  | V10: =IF(NRI!L10<>"",NRI!L10,"") ->  | W10: =IFERROR(V10-(1.01*V$57),"") ->  | X10: =IF(NRI!M10<>"",NRI!M10,"") ->  | Y10: =IFERROR(X10-(1.01*X$57),"") -> 
A11: 8 | B11: =IF(NRI!B11<>"",NRI!B11,"") ->  | D11: =IF(NRI!C11<>"",NRI!C11,"") ->  | F11: =IF(NRI!D11<>"",NRI!D11,"") ->  | G11: =IFERROR(F11-(1.01*F$57),"") ->  | H11: =IF(NRI!E11<>"",NRI!E11,"") ->  | I11: =IFERROR(H11-(1.01*H$57),"") ->  | J11: =IF(NRI!F11<>"",NRI!F11,"") ->  | K11: =IFERROR(J11-(1.01*J$57),"") ->  | L11: =IF(NRI!G11<>"",NRI!G11,"") ->  | M11: =IFERROR(L11-(1.01*L$57),"") ->  | N11: =IF(NRI!H11<>"",NRI!H11,"") ->  | O11: =IFERROR(N11-(1.01*N$57),"") ->  | P11: =IF(NRI!I11<>"",NRI!I11,"") ->  | Q11: =IFERROR(P11-(1.01*P$57),"") ->  | R11: =IF(NRI!J11<>"",NRI!J11,"") ->  | S11: =IFERROR(R11-(1.01*R$57),"") ->  | T11: =IF(NRI!K11<>"",NRI!K11,"") ->  | U11: =IFERROR(T11-(1.01*T$57),"") ->  | V11: =IF(NRI!L11<>"",NRI!L11,"") ->  | W11: =IFERROR(V11-(1.01*V$57),"") ->  | X11: =IF(NRI!M11<>"",NRI!M11,"") ->  | Y11: =IFERROR(X11-(1.01*X$57),"") -> 
A12: 9 | B12: =IF(NRI!B12<>"",NRI!B12,"") ->  | D12: =IF(NRI!C12<>"",NRI!C12,"") ->  | F12: =IF(NRI!D12<>"",NRI!D12,"") ->  | G12: =IFERROR(F12-(1.01*F$57),"") ->  | H12: =IF(NRI!E12<>"",NRI!E12,"") ->  | I12: =IFERROR(H12-(1.01*H$57),"") ->  | J12: =IF(NRI!F12<>"",NRI!F12,"") ->  | K12: =IFERROR(J12-(1.01*J$57),"") ->  | L12: =IF(NRI!G12<>"",NRI!G12,"") ->  | M12: =IFERROR(L12-(1.01*L$57),"") ->  | N12: =IF(NRI!H12<>"",NRI!H12,"") ->  | O12: =IFERROR(N12-(1.01*N$57),"") ->  | P12: =IF(NRI!I12<>"",NRI!I12,"") ->  | Q12: =IFERROR(P12-(1.01*P$57),"") ->  | R12: =IF(NRI!J12<>"",NRI!J12,"") ->  | S12: =IFERROR(R12-(1.01*R$57),"") ->  | T12: =IF(NRI!K12<>"",NRI!K12,"") ->  | U12: =IFERROR(T12-(1.01*T$57),"") ->  | V12: =IF(NRI!L12<>"",NRI!L12,"") ->  | W12: =IFERROR(V12-(1.01*V$57),"") ->  | X12: =IF(NRI!M12<>"",NRI!M12,"") ->  | Y12: =IFERROR(X12-(1.01*X$57),"") -> 
A13: 10 | B13: =IF(NRI!B13<>"",NRI!B13,"") ->  | D13: =IF(NRI!C13<>"",NRI!C13,"") ->  | F13: =IF(NRI!D13<>"",NRI!D13,"") ->  | G13: =IFERROR(F13-(1.01*F$57),"") ->  | H13: =IF(NRI!E13<>"",NRI!E13,"") ->  | I13: =IFERROR(H13-(1.01*H$57),"") ->  | J13: =IF(NRI!F13<>"",NRI!F13,"") ->  | K13: =IFERROR(J13-(1.01*J$57),"") ->  | L13: =IF(NRI!G13<>"",NRI!G13,"") ->  | M13: =IFERROR(L13-(1.01*L$57),"") ->  | N13: =IF(NRI!H13<>"",NRI!H13,"") ->  | O13: =IFERROR(N13-(1.01*N$57),"") ->  | P13: =IF(NRI!I13<>"",NRI!I13,"") ->  | Q13: =IFERROR(P13-(1.01*P$57),"") ->  | R13: =IF(NRI!J13<>"",NRI!J13,"") ->  | S13: =IFERROR(R13-(1.01*R$57),"") ->  | T13: =IF(NRI!K13<>"",NRI!K13,"") ->  | U13: =IFERROR(T13-(1.01*T$57),"") ->  | V13: =IF(NRI!L13<>"",NRI!L13,"") ->  | W13: =IFERROR(V13-(1.01*V$57),"") ->  | X13: =IF(NRI!M13<>"",NRI!M13,"") ->  | Y13: =IFERROR(X13-(1.01*X$57),"") -> 
A14: 11 | B14: =IF(NRI!B14<>"",NRI!B14,"") ->  | D14: =IF(NRI!C14<>"",NRI!C14,"") ->  | F14: =IF(NRI!D14<>"",NRI!D14,"") ->  | G14: =IFERROR(F14-(1.01*F$57),"") ->  | H14: =IF(NRI!E14<>"",NRI!E14,"") ->  | I14: =IFERROR(H14-(1.01*H$57),"") ->  | J14: =IF(NRI!F14<>"",NRI!F14,"") ->  | K14: =IFERROR(J14-(1.01*J$57),"") ->  | L14: =IF(NRI!G14<>"",NRI!G14,"") ->  | M14: =IFERROR(L14-(1.01*L$57),"") ->  | N14: =IF(NRI!H14<>"",NRI!H14,"") ->  | O14: =IFERROR(N14-(1.01*N$57),"") ->  | P14: =IF(NRI!I14<>"",NRI!I14,"") ->  | Q14: =IFERROR(P14-(1.01*P$57),"") ->  | R14: =IF(NRI!J14<>"",NRI!J14,"") ->  | S14: =IFERROR(R14-(1.01*R$57),"") ->  | T14: =IF(NRI!K14<>"",NRI!K14,"") ->  | U14: =IFERROR(T14-(1.01*T$57),"") ->  | V14: =IF(NRI!L14<>"",NRI!L14,"") ->  | W14: =IFERROR(V14-(1.01*V$57),"") ->  | X14: =IF(NRI!M14<>"",NRI!M14,"") ->  | Y14: =IFERROR(X14-(1.01*X$57),"") -> 
A15: 12 | B15: =IF(NRI!B15<>"",NRI!B15,"") ->  | D15: =IF(NRI!C15<>"",NRI!C15,"") ->  | F15: =IF(NRI!D15<>"",NRI!D15,"") ->  | G15: =IFERROR(F15-(1.01*F$57),"") ->  | H15: =IF(NRI!E15<>"",NRI!E15,"") ->  | I15: =IFERROR(H15-(1.01*H$57),"") ->  | J15: =IF(NRI!F15<>"",NRI!F15,"") ->  | K15: =IFERROR(J15-(1.01*J$57),"") ->  | L15: =IF(NRI!G15<>"",NRI!G15,"") ->  | M15: =IFERROR(L15-(1.01*L$57),"") ->  | N15: =IF(NRI!H15<>"",NRI!H15,"") ->  | O15: =IFERROR(N15-(1.01*N$57),"") ->  | P15: =IF(NRI!I15<>"",NRI!I15,"") ->  | Q15: =IFERROR(P15-(1.01*P$57),"") ->  | R15: =IF(NRI!J15<>"",NRI!J15,"") ->  | S15: =IFERROR(R15-(1.01*R$57),"") ->  | T15: =IF(NRI!K15<>"",NRI!K15,"") ->  | U15: =IFERROR(T15-(1.01*T$57),"") ->  | V15: =IF(NRI!L15<>"",NRI!L15,"") ->  | W15: =IFERROR(V15-(1.01*V$57),"") ->  | X15: =IF(NRI!M15<>"",NRI!M15,"") ->  | Y15: =IFERROR(X15-(1.01*X$57),"") -> 
A16: 13 | B16: =IF(NRI!B16<>"",NRI!B16,"") ->  | D16: =IF(NRI!C16<>"",NRI!C16,"") ->  | F16: =IF(NRI!D16<>"",NRI!D16,"") ->  | G16: =IFERROR(F16-(1.01*F$57),"") ->  | H16: =IF(NRI!E16<>"",NRI!E16,"") ->  | I16: =IFERROR(H16-(1.01*H$57),"") ->  | J16: =IF(NRI!F16<>"",NRI!F16,"") ->  | K16: =IFERROR(J16-(1.01*J$57),"") ->  | L16: =IF(NRI!G16<>"",NRI!G16,"") ->  | M16: =IFERROR(L16-(1.01*L$57),"") ->  | N16: =IF(NRI!H16<>"",NRI!H16,"") ->  | O16: =IFERROR(N16-(1.01*N$57),"") ->  | P16: =IF(NRI!I16<>"",NRI!I16,"") ->  | Q16: =IFERROR(P16-(1.01*P$57),"") ->  | R16: =IF(NRI!J16<>"",NRI!J16,"") ->  | S16: =IFERROR(R16-(1.01*R$57),"") ->  | T16: =IF(NRI!K16<>"",NRI!K16,"") ->  | U16: =IFERROR(T16-(1.01*T$57),"") ->  | V16: =IF(NRI!L16<>"",NRI!L16,"") ->  | W16: =IFERROR(V16-(1.01*V$57),"") ->  | X16: =IF(NRI!M16<>"",NRI!M16,"") ->  | Y16: =IFERROR(X16-(1.01*X$57),"") -> 
A17: 14 | B17: =IF(NRI!B17<>"",NRI!B17,"") ->  | D17: =IF(NRI!C17<>"",NRI!C17,"") ->  | F17: =IF(NRI!D17<>"",NRI!D17,"") ->  | G17: =IFERROR(F17-(1.01*F$57),"") ->  | H17: =IF(NRI!E17<>"",NRI!E17,"") ->  | I17: =IFERROR(H17-(1.01*H$57),"") ->  | J17: =IF(NRI!F17<>"",NRI!F17,"") ->  | K17: =IFERROR(J17-(1.01*J$57),"") ->  | L17: =IF(NRI!G17<>"",NRI!G17,"") ->  | M17: =IFERROR(L17-(1.01*L$57),"") ->  | N17: =IF(NRI!H17<>"",NRI!H17,"") ->  | O17: =IFERROR(N17-(1.01*N$57),"") ->  | P17: =IF(NRI!I17<>"",NRI!I17,"") ->  | Q17: =IFERROR(P17-(1.01*P$57),"") ->  | R17: =IF(NRI!J17<>"",NRI!J17,"") ->  | S17: =IFERROR(R17-(1.01*R$57),"") ->  | T17: =IF(NRI!K17<>"",NRI!K17,"") ->  | U17: =IFERROR(T17-(1.01*T$57),"") ->  | V17: =IF(NRI!L17<>"",NRI!L17,"") ->  | W17: =IFERROR(V17-(1.01*V$57),"") ->  | X17: =IF(NRI!M17<>"",NRI!M17,"") ->  | Y17: =IFERROR(X17-(1.01*X$57),"") -> 
A18: 15 | B18: =IF(NRI!B18<>"",NRI!B18,"") ->  | D18: =IF(NRI!C18<>"",NRI!C18,"") ->  | F18: =IF(NRI!D18<>"",NRI!D18,"") ->  | G18: =IFERROR(F18-(1.01*F$57),"") ->  | H18: =IF(NRI!E18<>"",NRI!E18,"") ->  | I18: =IFERROR(H18-(1.01*H$57),"") ->  | J18: =IF(NRI!F18<>"",NRI!F18,"") ->  | K18: =IFERROR(J18-(1.01*J$57),"") ->  | L18: =IF(NRI!G18<>"",NRI!G18,"") ->  | M18: =IFERROR(L18-(1.01*L$57),"") ->  | N18: =IF(NRI!H18<>"",NRI!H18,"") ->  | O18: =IFERROR(N18-(1.01*N$57),"") ->  | P18: =IF(NRI!I18<>"",NRI!I18,"") ->  | Q18: =IFERROR(P18-(1.01*P$57),"") ->  | R18: =IF(NRI!J18<>"",NRI!J18,"") ->  | S18: =IFERROR(R18-(1.01*R$57),"") ->  | T18: =IF(NRI!K18<>"",NRI!K18,"") ->  | U18: =IFERROR(T18-(1.01*T$57),"") ->  | V18: =IF(NRI!L18<>"",NRI!L18,"") ->  | W18: =IFERROR(V18-(1.01*V$57),"") ->  | X18: =IF(NRI!M18<>"",NRI!M18,"") ->  | Y18: =IFERROR(X18-(1.01*X$57),"") -> 
A19: 16 | B19: =IF(NRI!B19<>"",NRI!B19,"") ->  | D19: =IF(NRI!C19<>"",NRI!C19,"") ->  | F19: =IF(NRI!D19<>"",NRI!D19,"") ->  | G19: =IFERROR(F19-(1.01*F$57),"") ->  | H19: =IF(NRI!E19<>"",NRI!E19,"") ->  | I19: =IFERROR(H19-(1.01*H$57),"") ->  | J19: =IF(NRI!F19<>"",NRI!F19,"") ->  | K19: =IFERROR(J19-(1.01*J$57),"") ->  | L19: =IF(NRI!G19<>"",NRI!G19,"") ->  | M19: =IFERROR(L19-(1.01*L$57),"") ->  | N19: =IF(NRI!H19<>"",NRI!H19,"") ->  | O19: =IFERROR(N19-(1.01*N$57),"") ->  | P19: =IF(NRI!I19<>"",NRI!I19,"") ->  | Q19: =IFERROR(P19-(1.01*P$57),"") ->  | R19: =IF(NRI!J19<>"",NRI!J19,"") ->  | S19: =IFERROR(R19-(1.01*R$57),"") ->  | T19: =IF(NRI!K19<>"",NRI!K19,"") ->  | U19: =IFERROR(T19-(1.01*T$57),"") ->  | V19: =IF(NRI!L19<>"",NRI!L19,"") ->  | W19: =IFERROR(V19-(1.01*V$57),"") ->  | X19: =IF(NRI!M19<>"",NRI!M19,"") ->  | Y19: =IFERROR(X19-(1.01*X$57),"") -> 
A20: 17 | B20: =IF(NRI!B20<>"",NRI!B20,"") ->  | D20: =IF(NRI!C20<>"",NRI!C20,"") ->  | F20: =IF(NRI!D20<>"",NRI!D20,"") ->  | G20: =IFERROR(F20-(1.01*F$57),"") ->  | H20: =IF(NRI!E20<>"",NRI!E20,"") ->  | I20: =IFERROR(H20-(1.01*H$57),"") ->  | J20: =IF(NRI!F20<>"",NRI!F20,"") ->  | K20: =IFERROR(J20-(1.01*J$57),"") ->  | L20: =IF(NRI!G20<>"",NRI!G20,"") ->  | M20: =IFERROR(L20-(1.01*L$57),"") ->  | N20: =IF(NRI!H20<>"",NRI!H20,"") ->  | O20: =IFERROR(N20-(1.01*N$57),"") ->  | P20: =IF(NRI!I20<>"",NRI!I20,"") ->  | Q20: =IFERROR(P20-(1.01*P$57),"") ->  | R20: =IF(NRI!J20<>"",NRI!J20,"") ->  | S20: =IFERROR(R20-(1.01*R$57),"") ->  | T20: =IF(NRI!K20<>"",NRI!K20,"") ->  | U20: =IFERROR(T20-(1.01*T$57),"") ->  | V20: =IF(NRI!L20<>"",NRI!L20,"") ->  | W20: =IFERROR(V20-(1.01*V$57),"") ->  | X20: =IF(NRI!M20<>"",NRI!M20,"") ->  | Y20: =IFERROR(X20-(1.01*X$57),"") -> 
A21: 18 | B21: =IF(NRI!B21<>"",NRI!B21,"") ->  | D21: =IF(NRI!C21<>"",NRI!C21,"") ->  | F21: =IF(NRI!D21<>"",NRI!D21,"") ->  | G21: =IFERROR(F21-(1.01*F$57),"") ->  | H21: =IF(NRI!E21<>"",NRI!E21,"") ->  | I21: =IFERROR(H21-(1.01*H$57),"") ->  | J21: =IF(NRI!F21<>"",NRI!F21,"") ->  | K21: =IFERROR(J21-(1.01*J$57),"") ->  | L21: =IF(NRI!G21<>"",NRI!G21,"") ->  | M21: =IFERROR(L21-(1.01*L$57),"") ->  | N21: =IF(NRI!H21<>"",NRI!H21,"") ->  | O21: =IFERROR(N21-(1.01*N$57),"") ->  | P21: =IF(NRI!I21<>"",NRI!I21,"") ->  | Q21: =IFERROR(P21-(1.01*P$57),"") ->  | R21: =IF(NRI!J21<>"",NRI!J21,"") ->  | S21: =IFERROR(R21-(1.01*R$57),"") ->  | T21: =IF(NRI!K21<>"",NRI!K21,"") ->  | U21: =IFERROR(T21-(1.01*T$57),"") ->  | V21: =IF(NRI!L21<>"",NRI!L21,"") ->  | W21: =IFERROR(V21-(1.01*V$57),"") ->  | X21: =IF(NRI!M21<>"",NRI!M21,"") ->  | Y21: =IFERROR(X21-(1.01*X$57),"") -> 
A22: 19 | B22: =IF(NRI!B22<>"",NRI!B22,"") ->  | D22: =IF(NRI!C22<>"",NRI!C22,"") ->  | F22: =IF(NRI!D22<>"",NRI!D22,"") ->  | G22: =IFERROR(F22-(1.01*F$57),"") ->  | H22: =IF(NRI!E22<>"",NRI!E22,"") ->  | I22: =IFERROR(H22-(1.01*H$57),"") ->  | J22: =IF(NRI!F22<>"",NRI!F22,"") ->  | K22: =IFERROR(J22-(1.01*J$57),"") ->  | L22: =IF(NRI!G22<>"",NRI!G22,"") ->  | M22: =IFERROR(L22-(1.01*L$57),"") ->  | N22: =IF(NRI!H22<>"",NRI!H22,"") ->  | O22: =IFERROR(N22-(1.01*N$57),"") ->  | P22: =IF(NRI!I22<>"",NRI!I22,"") ->  | Q22: =IFERROR(P22-(1.01*P$57),"") ->  | R22: =IF(NRI!J22<>"",NRI!J22,"") ->  | S22: =IFERROR(R22-(1.01*R$57),"") ->  | T22: =IF(NRI!K22<>"",NRI!K22,"") ->  | U22: =IFERROR(T22-(1.01*T$57),"") ->  | V22: =IF(NRI!L22<>"",NRI!L22,"") ->  | W22: =IFERROR(V22-(1.01*V$57),"") ->  | X22: =IF(NRI!M22<>"",NRI!M22,"") ->  | Y22: =IFERROR(X22-(1.01*X$57),"") -> 
A23: 20 | B23: =IF(NRI!B23<>"",NRI!B23,"") ->  | D23: =IF(NRI!C23<>"",NRI!C23,"") ->  | F23: =IF(NRI!D23<>"",NRI!D23,"") ->  | G23: =IFERROR(F23-(1.01*F$57),"") ->  | H23: =IF(NRI!E23<>"",NRI!E23,"") ->  | I23: =IFERROR(H23-(1.01*H$57),"") ->  | J23: =IF(NRI!F23<>"",NRI!F23,"") ->  | K23: =IFERROR(J23-(1.01*J$57),"") ->  | L23: =IF(NRI!G23<>"",NRI!G23,"") ->  | M23: =IFERROR(L23-(1.01*L$57),"") ->  | N23: =IF(NRI!H23<>"",NRI!H23,"") ->  | O23: =IFERROR(N23-(1.01*N$57),"") ->  | P23: =IF(NRI!I23<>"",NRI!I23,"") ->  | Q23: =IFERROR(P23-(1.01*P$57),"") ->  | R23: =IF(NRI!J23<>"",NRI!J23,"") ->  | S23: =IFERROR(R23-(1.01*R$57),"") ->  | T23: =IF(NRI!K23<>"",NRI!K23,"") ->  | U23: =IFERROR(T23-(1.01*T$57),"") ->  | V23: =IF(NRI!L23<>"",NRI!L23,"") ->  | W23: =IFERROR(V23-(1.01*V$57),"") ->  | X23: =IF(NRI!M23<>"",NRI!M23,"") ->  | Y23: =IFERROR(X23-(1.01*X$57),"") -> 
A24: 21 | B24: =IF(NRI!B24<>"",NRI!B24,"") ->  | D24: =IF(NRI!C24<>"",NRI!C24,"") ->  | F24: =IF(NRI!D24<>"",NRI!D24,"") ->  | G24: =IFERROR(F24-(1.01*F$57),"") ->  | H24: =IF(NRI!E24<>"",NRI!E24,"") ->  | I24: =IFERROR(H24-(1.01*H$57),"") ->  | J24: =IF(NRI!F24<>"",NRI!F24,"") ->  | K24: =IFERROR(J24-(1.01*J$57),"") ->  | L24: =IF(NRI!G24<>"",NRI!G24,"") ->  | M24: =IFERROR(L24-(1.01*L$57),"") ->  | N24: =IF(NRI!H24<>"",NRI!H24,"") ->  | O24: =IFERROR(N24-(1.01*N$57),"") ->  | P24: =IF(NRI!I24<>"",NRI!I24,"") ->  | Q24: =IFERROR(P24-(1.01*P$57),"") ->  | R24: =IF(NRI!J24<>"",NRI!J24,"") ->  | S24: =IFERROR(R24-(1.01*R$57),"") ->  | T24: =IF(NRI!K24<>"",NRI!K24,"") ->  | U24: =IFERROR(T24-(1.01*T$57),"") ->  | V24: =IF(NRI!L24<>"",NRI!L24,"") ->  | W24: =IFERROR(V24-(1.01*V$57),"") ->  | X24: =IF(NRI!M24<>"",NRI!M24,"") ->  | Y24: =IFERROR(X24-(1.01*X$57),"") -> 
A25: 22 | B25: =IF(NRI!B25<>"",NRI!B25,"") ->  | D25: =IF(NRI!C25<>"",NRI!C25,"") ->  | F25: =IF(NRI!D25<>"",NRI!D25,"") ->  | G25: =IFERROR(F25-(1.01*F$57),"") ->  | H25: =IF(NRI!E25<>"",NRI!E25,"") ->  | I25: =IFERROR(H25-(1.01*H$57),"") ->  | J25: =IF(NRI!F25<>"",NRI!F25,"") ->  | K25: =IFERROR(J25-(1.01*J$57),"") ->  | L25: =IF(NRI!G25<>"",NRI!G25,"") ->  | M25: =IFERROR(L25-(1.01*L$57),"") ->  | N25: =IF(NRI!H25<>"",NRI!H25,"") ->  | O25: =IFERROR(N25-(1.01*N$57),"") ->  | P25: =IF(NRI!I25<>"",NRI!I25,"") ->  | Q25: =IFERROR(P25-(1.01*P$57),"") ->  | R25: =IF(NRI!J25<>"",NRI!J25,"") ->  | S25: =IFERROR(R25-(1.01*R$57),"") ->  | T25: =IF(NRI!K25<>"",NRI!K25,"") ->  | U25: =IFERROR(T25-(1.01*T$57),"") ->  | V25: =IF(NRI!L25<>"",NRI!L25,"") ->  | W25: =IFERROR(V25-(1.01*V$57),"") ->  | X25: =IF(NRI!M25<>"",NRI!M25,"") ->  | Y25: =IFERROR(X25-(1.01*X$57),"") -> 
A26: 23 | B26: =IF(NRI!B26<>"",NRI!B26,"") ->  | D26: =IF(NRI!C26<>"",NRI!C26,"") ->  | F26: =IF(NRI!D26<>"",NRI!D26,"") ->  | G26: =IFERROR(F26-(1.01*F$57),"") ->  | H26: =IF(NRI!E26<>"",NRI!E26,"") ->  | I26: =IFERROR(H26-(1.01*H$57),"") ->  | J26: =IF(NRI!F26<>"",NRI!F26,"") ->  | K26: =IFERROR(J26-(1.01*J$57),"") ->  | L26: =IF(NRI!G26<>"",NRI!G26,"") ->  | M26: =IFERROR(L26-(1.01*L$57),"") ->  | N26: =IF(NRI!H26<>"",NRI!H26,"") ->  | O26: =IFERROR(N26-(1.01*N$57),"") ->  | P26: =IF(NRI!I26<>"",NRI!I26,"") ->  | Q26: =IFERROR(P26-(1.01*P$57),"") ->  | R26: =IF(NRI!J26<>"",NRI!J26,"") ->  | S26: =IFERROR(R26-(1.01*R$57),"") ->  | T26: =IF(NRI!K26<>"",NRI!K26,"") ->  | U26: =IFERROR(T26-(1.01*T$57),"") ->  | V26: =IF(NRI!L26<>"",NRI!L26,"") ->  | W26: =IFERROR(V26-(1.01*V$57),"") ->  | X26: =IF(NRI!M26<>"",NRI!M26,"") ->  | Y26: =IFERROR(X26-(1.01*X$57),"") -> 
A27: 24 | B27: =IF(NRI!B27<>"",NRI!B27,"") ->  | D27: =IF(NRI!C27<>"",NRI!C27,"") ->  | F27: =IF(NRI!D27<>"",NRI!D27,"") ->  | G27: =IFERROR(F27-(1.01*F$57),"") ->  | H27: =IF(NRI!E27<>"",NRI!E27,"") ->  | I27: =IFERROR(H27-(1.01*H$57),"") ->  | J27: =IF(NRI!F27<>"",NRI!F27,"") ->  | K27: =IFERROR(J27-(1.01*J$57),"") ->  | L27: =IF(NRI!G27<>"",NRI!G27,"") ->  | M27: =IFERROR(L27-(1.01*L$57),"") ->  | N27: =IF(NRI!H27<>"",NRI!H27,"") ->  | O27: =IFERROR(N27-(1.01*N$57),"") ->  | P27: =IF(NRI!I27<>"",NRI!I27,"") ->  | Q27: =IFERROR(P27-(1.01*P$57),"") ->  | R27: =IF(NRI!J27<>"",NRI!J27,"") ->  | S27: =IFERROR(R27-(1.01*R$57),"") ->  | T27: =IF(NRI!K27<>"",NRI!K27,"") ->  | U27: =IFERROR(T27-(1.01*T$57),"") ->  | V27: =IF(NRI!L27<>"",NRI!L27,"") ->  | W27: =IFERROR(V27-(1.01*V$57),"") ->  | X27: =IF(NRI!M27<>"",NRI!M27,"") ->  | Y27: =IFERROR(X27-(1.01*X$57),"") -> 
A28: 25 | B28: =IF(NRI!B28<>"",NRI!B28,"") ->  | D28: =IF(NRI!C28<>"",NRI!C28,"") ->  | F28: =IF(NRI!D28<>"",NRI!D28,"") ->  | G28: =IFERROR(F28-(1.01*F$57),"") ->  | H28: =IF(NRI!E28<>"",NRI!E28,"") ->  | I28: =IFERROR(H28-(1.01*H$57),"") ->  | J28: =IF(NRI!F28<>"",NRI!F28,"") ->  | K28: =IFERROR(J28-(1.01*J$57),"") ->  | L28: =IF(NRI!G28<>"",NRI!G28,"") ->  | M28: =IFERROR(L28-(1.01*L$57),"") ->  | N28: =IF(NRI!H28<>"",NRI!H28,"") ->  | O28: =IFERROR(N28-(1.01*N$57),"") ->  | P28: =IF(NRI!I28<>"",NRI!I28,"") ->  | Q28: =IFERROR(P28-(1.01*P$57),"") ->  | R28: =IF(NRI!J28<>"",NRI!J28,"") ->  | S28: =IFERROR(R28-(1.01*R$57),"") ->  | T28: =IF(NRI!K28<>"",NRI!K28,"") ->  | U28: =IFERROR(T28-(1.01*T$57),"") ->  | V28: =IF(NRI!L28<>"",NRI!L28,"") ->  | W28: =IFERROR(V28-(1.01*V$57),"") ->  | X28: =IF(NRI!M28<>"",NRI!M28,"") ->  | Y28: =IFERROR(X28-(1.01*X$57),"") -> 
A29: 26 | B29: =IF(NRI!B29<>"",NRI!B29,"") ->  | D29: =IF(NRI!C29<>"",NRI!C29,"") ->  | F29: =IF(NRI!D29<>"",NRI!D29,"") ->  | G29: =IFERROR(F29-(1.01*F$57),"") ->  | H29: =IF(NRI!E29<>"",NRI!E29,"") ->  | I29: =IFERROR(H29-(1.01*H$57),"") ->  | J29: =IF(NRI!F29<>"",NRI!F29,"") ->  | K29: =IFERROR(J29-(1.01*J$57),"") ->  | L29: =IF(NRI!G29<>"",NRI!G29,"") ->  | M29: =IFERROR(L29-(1.01*L$57),"") ->  | N29: =IF(NRI!H29<>"",NRI!H29,"") ->  | O29: =IFERROR(N29-(1.01*N$57),"") ->  | P29: =IF(NRI!I29<>"",NRI!I29,"") ->  | Q29: =IFERROR(P29-(1.01*P$57),"") ->  | R29: =IF(NRI!J29<>"",NRI!J29,"") ->  | S29: =IFERROR(R29-(1.01*R$57),"") ->  | T29: =IF(NRI!K29<>"",NRI!K29,"") ->  | U29: =IFERROR(T29-(1.01*T$57),"") ->  | V29: =IF(NRI!L29<>"",NRI!L29,"") ->  | W29: =IFERROR(V29-(1.01*V$57),"") ->  | X29: =IF(NRI!M29<>"",NRI!M29,"") ->  | Y29: =IFERROR(X29-(1.01*X$57),"") -> 
A30: 27 | B30: =IF(NRI!B30<>"",NRI!B30,"") ->  | D30: =IF(NRI!C30<>"",NRI!C30,"") ->  | F30: =IF(NRI!D30<>"",NRI!D30,"") ->  | G30: =IFERROR(F30-(1.01*F$57),"") ->  | H30: =IF(NRI!E30<>"",NRI!E30,"") ->  | I30: =IFERROR(H30-(1.01*H$57),"") ->  | J30: =IF(NRI!F30<>"",NRI!F30,"") ->  | K30: =IFERROR(J30-(1.01*J$57),"") ->  | L30: =IF(NRI!G30<>"",NRI!G30,"") ->  | M30: =IFERROR(L30-(1.01*L$57),"") ->  | N30: =IF(NRI!H30<>"",NRI!H30,"") ->  | O30: =IFERROR(N30-(1.01*N$57),"") ->  | P30: =IF(NRI!I30<>"",NRI!I30,"") ->  | Q30: =IFERROR(P30-(1.01*P$57),"") ->  | R30: =IF(NRI!J30<>"",NRI!J30,"") ->  | S30: =IFERROR(R30-(1.01*R$57),"") ->  | T30: =IF(NRI!K30<>"",NRI!K30,"") ->  | U30: =IFERROR(T30-(1.01*T$57),"") ->  | V30: =IF(NRI!L30<>"",NRI!L30,"") ->  | W30: =IFERROR(V30-(1.01*V$57),"") ->  | X30: =IF(NRI!M30<>"",NRI!M30,"") ->  | Y30: =IFERROR(X30-(1.01*X$57),"") -> 
A31: 28 | B31: =IF(NRI!B31<>"",NRI!B31,"") ->  | D31: =IF(NRI!C31<>"",NRI!C31,"") ->  | F31: =IF(NRI!D31<>"",NRI!D31,"") ->  | G31: =IFERROR(F31-(1.01*F$57),"") ->  | H31: =IF(NRI!E31<>"",NRI!E31,"") ->  | I31: =IFERROR(H31-(1.01*H$57),"") ->  | J31: =IF(NRI!F31<>"",NRI!F31,"") ->  | K31: =IFERROR(J31-(1.01*J$57),"") ->  | L31: =IF(NRI!G31<>"",NRI!G31,"") ->  | M31: =IFERROR(L31-(1.01*L$57),"") ->  | N31: =IF(NRI!H31<>"",NRI!H31,"") ->  | O31: =IFERROR(N31-(1.01*N$57),"") ->  | P31: =IF(NRI!I31<>"",NRI!I31,"") ->  | Q31: =IFERROR(P31-(1.01*P$57),"") ->  | R31: =IF(NRI!J31<>"",NRI!J31,"") ->  | S31: =IFERROR(R31-(1.01*R$57),"") ->  | T31: =IF(NRI!K31<>"",NRI!K31,"") ->  | U31: =IFERROR(T31-(1.01*T$57),"") ->  | V31: =IF(NRI!L31<>"",NRI!L31,"") ->  | W31: =IFERROR(V31-(1.01*V$57),"") ->  | X31: =IF(NRI!M31<>"",NRI!M31,"") ->  | Y31: =IFERROR(X31-(1.01*X$57),"") -> 
A32: 29 | B32: =IF(NRI!B32<>"",NRI!B32,"") ->  | D32: =IF(NRI!C32<>"",NRI!C32,"") ->  | F32: =IF(NRI!D32<>"",NRI!D32,"") ->  | G32: =IFERROR(F32-(1.01*F$57),"") ->  | H32: =IF(NRI!E32<>"",NRI!E32,"") ->  | I32: =IFERROR(H32-(1.01*H$57),"") ->  | J32: =IF(NRI!F32<>"",NRI!F32,"") ->  | K32: =IFERROR(J32-(1.01*J$57),"") ->  | L32: =IF(NRI!G32<>"",NRI!G32,"") ->  | M32: =IFERROR(L32-(1.01*L$57),"") ->  | N32: =IF(NRI!H32<>"",NRI!H32,"") ->  | O32: =IFERROR(N32-(1.01*N$57),"") ->  | P32: =IF(NRI!I32<>"",NRI!I32,"") ->  | Q32: =IFERROR(P32-(1.01*P$57),"") ->  | R32: =IF(NRI!J32<>"",NRI!J32,"") ->  | S32: =IFERROR(R32-(1.01*R$57),"") ->  | T32: =IF(NRI!K32<>"",NRI!K32,"") ->  | U32: =IFERROR(T32-(1.01*T$57),"") ->  | V32: =IF(NRI!L32<>"",NRI!L32,"") ->  | W32: =IFERROR(V32-(1.01*V$57),"") ->  | X32: =IF(NRI!M32<>"",NRI!M32,"") ->  | Y32: =IFERROR(X32-(1.01*X$57),"") -> 
A33: 30 | B33: =IF(NRI!B33<>"",NRI!B33,"") ->  | D33: =IF(NRI!C33<>"",NRI!C33,"") ->  | F33: =IF(NRI!D33<>"",NRI!D33,"") ->  | G33: =IFERROR(F33-(1.01*F$57),"") ->  | H33: =IF(NRI!E33<>"",NRI!E33,"") ->  | I33: =IFERROR(H33-(1.01*H$57),"") ->  | J33: =IF(NRI!F33<>"",NRI!F33,"") ->  | K33: =IFERROR(J33-(1.01*J$57),"") ->  | L33: =IF(NRI!G33<>"",NRI!G33,"") ->  | M33: =IFERROR(L33-(1.01*L$57),"") ->  | N33: =IF(NRI!H33<>"",NRI!H33,"") ->  | O33: =IFERROR(N33-(1.01*N$57),"") ->  | P33: =IF(NRI!I33<>"",NRI!I33,"") ->  | Q33: =IFERROR(P33-(1.01*P$57),"") ->  | R33: =IF(NRI!J33<>"",NRI!J33,"") ->  | S33: =IFERROR(R33-(1.01*R$57),"") ->  | T33: =IF(NRI!K33<>"",NRI!K33,"") ->  | U33: =IFERROR(T33-(1.01*T$57),"") ->  | V33: =IF(NRI!L33<>"",NRI!L33,"") ->  | W33: =IFERROR(V33-(1.01*V$57),"") ->  | X33: =IF(NRI!M33<>"",NRI!M33,"") ->  | Y33: =IFERROR(X33-(1.01*X$57),"") -> 
A34: 31 | B34: =IF(NRI!B34<>"",NRI!B34,"") ->  | D34: =IF(NRI!C34<>"",NRI!C34,"") ->  | F34: =IF(NRI!D34<>"",NRI!D34,"") ->  | G34: =IFERROR(F34-(1.01*F$57),"") ->  | H34: =IF(NRI!E34<>"",NRI!E34,"") ->  | I34: =IFERROR(H34-(1.01*H$57),"") ->  | J34: =IF(NRI!F34<>"",NRI!F34,"") ->  | K34: =IFERROR(J34-(1.01*J$57),"") ->  | L34: =IF(NRI!G34<>"",NRI!G34,"") ->  | M34: =IFERROR(L34-(1.01*L$57),"") ->  | N34: =IF(NRI!H34<>"",NRI!H34,"") ->  | O34: =IFERROR(N34-(1.01*N$57),"") ->  | P34: =IF(NRI!I34<>"",NRI!I34,"") ->  | Q34: =IFERROR(P34-(1.01*P$57),"") ->  | R34: =IF(NRI!J34<>"",NRI!J34,"") ->  | S34: =IFERROR(R34-(1.01*R$57),"") ->  | T34: =IF(NRI!K34<>"",NRI!K34,"") ->  | U34: =IFERROR(T34-(1.01*T$57),"") ->  | V34: =IF(NRI!L34<>"",NRI!L34,"") ->  | W34: =IFERROR(V34-(1.01*V$57),"") ->  | X34: =IF(NRI!M34<>"",NRI!M34,"") ->  | Y34: =IFERROR(X34-(1.01*X$57),"") -> 
A35: 32 | B35: =IF(NRI!B35<>"",NRI!B35,"") ->  | D35: =IF(NRI!C35<>"",NRI!C35,"") ->  | F35: =IF(NRI!D35<>"",NRI!D35,"") ->  | G35: =IFERROR(F35-(1.01*F$57),"") ->  | H35: =IF(NRI!E35<>"",NRI!E35,"") ->  | I35: =IFERROR(H35-(1.01*H$57),"") ->  | J35: =IF(NRI!F35<>"",NRI!F35,"") ->  | K35: =IFERROR(J35-(1.01*J$57),"") ->  | L35: =IF(NRI!G35<>"",NRI!G35,"") ->  | M35: =IFERROR(L35-(1.01*L$57),"") ->  | N35: =IF(NRI!H35<>"",NRI!H35,"") ->  | O35: =IFERROR(N35-(1.01*N$57),"") ->  | P35: =IF(NRI!I35<>"",NRI!I35,"") ->  | Q35: =IFERROR(P35-(1.01*P$57),"") ->  | R35: =IF(NRI!J35<>"",NRI!J35,"") ->  | S35: =IFERROR(R35-(1.01*R$57),"") ->  | T35: =IF(NRI!K35<>"",NRI!K35,"") ->  | U35: =IFERROR(T35-(1.01*T$57),"") ->  | V35: =IF(NRI!L35<>"",NRI!L35,"") ->  | W35: =IFERROR(V35-(1.01*V$57),"") ->  | X35: =IF(NRI!M35<>"",NRI!M35,"") ->  | Y35: =IFERROR(X35-(1.01*X$57),"") -> 
A36: 33 | B36: =IF(NRI!B36<>"",NRI!B36,"") ->  | D36: =IF(NRI!C36<>"",NRI!C36,"") ->  | F36: =IF(NRI!D36<>"",NRI!D36,"") ->  | G36: =IFERROR(F36-(1.01*F$57),"") ->  | H36: =IF(NRI!E36<>"",NRI!E36,"") ->  | I36: =IFERROR(H36-(1.01*H$57),"") ->  | J36: =IF(NRI!F36<>"",NRI!F36,"") ->  | K36: =IFERROR(J36-(1.01*J$57),"") ->  | L36: =IF(NRI!G36<>"",NRI!G36,"") ->  | M36: =IFERROR(L36-(1.01*L$57),"") ->  | N36: =IF(NRI!H36<>"",NRI!H36,"") ->  | O36: =IFERROR(N36-(1.01*N$57),"") ->  | P36: =IF(NRI!I36<>"",NRI!I36,"") ->  | Q36: =IFERROR(P36-(1.01*P$57),"") ->  | R36: =IF(NRI!J36<>"",NRI!J36,"") ->  | S36: =IFERROR(R36-(1.01*R$57),"") ->  | T36: =IF(NRI!K36<>"",NRI!K36,"") ->  | U36: =IFERROR(T36-(1.01*T$57),"") ->  | V36: =IF(NRI!L36<>"",NRI!L36,"") ->  | W36: =IFERROR(V36-(1.01*V$57),"") ->  | X36: =IF(NRI!M36<>"",NRI!M36,"") ->  | Y36: =IFERROR(X36-(1.01*X$57),"") -> 
A37: 34 | B37: =IF(NRI!B37<>"",NRI!B37,"") ->  | D37: =IF(NRI!C37<>"",NRI!C37,"") ->  | F37: =IF(NRI!D37<>"",NRI!D37,"") ->  | G37: =IFERROR(F37-(1.01*F$57),"") ->  | H37: =IF(NRI!E37<>"",NRI!E37,"") ->  | I37: =IFERROR(H37-(1.01*H$57),"") ->  | J37: =IF(NRI!F37<>"",NRI!F37,"") ->  | K37: =IFERROR(J37-(1.01*J$57),"") ->  | L37: =IF(NRI!G37<>"",NRI!G37,"") ->  | M37: =IFERROR(L37-(1.01*L$57),"") ->  | N37: =IF(NRI!H37<>"",NRI!H37,"") ->  | O37: =IFERROR(N37-(1.01*N$57),"") ->  | P37: =IF(NRI!I37<>"",NRI!I37,"") ->  | Q37: =IFERROR(P37-(1.01*P$57),"") ->  | R37: =IF(NRI!J37<>"",NRI!J37,"") ->  | S37: =IFERROR(R37-(1.01*R$57),"") ->  | T37: =IF(NRI!K37<>"",NRI!K37,"") ->  | U37: =IFERROR(T37-(1.01*T$57),"") ->  | V37: =IF(NRI!L37<>"",NRI!L37,"") ->  | W37: =IFERROR(V37-(1.01*V$57),"") ->  | X37: =IF(NRI!M37<>"",NRI!M37,"") ->  | Y37: =IFERROR(X37-(1.01*X$57),"") -> 
A38: 35 | B38: =IF(NRI!B38<>"",NRI!B38,"") ->  | D38: =IF(NRI!C38<>"",NRI!C38,"") ->  | F38: =IF(NRI!D38<>"",NRI!D38,"") ->  | G38: =IFERROR(F38-(1.01*F$57),"") ->  | H38: =IF(NRI!E38<>"",NRI!E38,"") ->  | I38: =IFERROR(H38-(1.01*H$57),"") ->  | J38: =IF(NRI!F38<>"",NRI!F38,"") ->  | K38: =IFERROR(J38-(1.01*J$57),"") ->  | L38: =IF(NRI!G38<>"",NRI!G38,"") ->  | M38: =IFERROR(L38-(1.01*L$57),"") ->  | N38: =IF(NRI!H38<>"",NRI!H38,"") ->  | O38: =IFERROR(N38-(1.01*N$57),"") ->  | P38: =IF(NRI!I38<>"",NRI!I38,"") ->  | Q38: =IFERROR(P38-(1.01*P$57),"") ->  | R38: =IF(NRI!J38<>"",NRI!J38,"") ->  | S38: =IFERROR(R38-(1.01*R$57),"") ->  | T38: =IF(NRI!K38<>"",NRI!K38,"") ->  | U38: =IFERROR(T38-(1.01*T$57),"") ->  | V38: =IF(NRI!L38<>"",NRI!L38,"") ->  | W38: =IFERROR(V38-(1.01*V$57),"") ->  | X38: =IF(NRI!M38<>"",NRI!M38,"") ->  | Y38: =IFERROR(X38-(1.01*X$57),"") -> 
A39: 36 | B39: =IF(NRI!B39<>"",NRI!B39,"") ->  | D39: =IF(NRI!C39<>"",NRI!C39,"") ->  | F39: =IF(NRI!D39<>"",NRI!D39,"") ->  | G39: =IFERROR(F39-(1.01*F$57),"") ->  | H39: =IF(NRI!E39<>"",NRI!E39,"") ->  | I39: =IFERROR(H39-(1.01*H$57),"") ->  | J39: =IF(NRI!F39<>"",NRI!F39,"") ->  | K39: =IFERROR(J39-(1.01*J$57),"") ->  | L39: =IF(NRI!G39<>"",NRI!G39,"") ->  | M39: =IFERROR(L39-(1.01*L$57),"") ->  | N39: =IF(NRI!H39<>"",NRI!H39,"") ->  | O39: =IFERROR(N39-(1.01*N$57),"") ->  | P39: =IF(NRI!I39<>"",NRI!I39,"") ->  | Q39: =IFERROR(P39-(1.01*P$57),"") ->  | R39: =IF(NRI!J39<>"",NRI!J39,"") ->  | S39: =IFERROR(R39-(1.01*R$57),"") ->  | T39: =IF(NRI!K39<>"",NRI!K39,"") ->  | U39: =IFERROR(T39-(1.01*T$57),"") ->  | V39: =IF(NRI!L39<>"",NRI!L39,"") ->  | W39: =IFERROR(V39-(1.01*V$57),"") ->  | X39: =IF(NRI!M39<>"",NRI!M39,"") ->  | Y39: =IFERROR(X39-(1.01*X$57),"") -> 
A40: 37 | B40: =IF(NRI!B40<>"",NRI!B40,"") ->  | D40: =IF(NRI!C40<>"",NRI!C40,"") ->  | F40: =IF(NRI!D40<>"",NRI!D40,"") ->  | G40: =IFERROR(F40-(1.01*F$57),"") ->  | H40: =IF(NRI!E40<>"",NRI!E40,"") ->  | I40: =IFERROR(H40-(1.01*H$57),"") ->  | J40: =IF(NRI!F40<>"",NRI!F40,"") ->  | K40: =IFERROR(J40-(1.01*J$57),"") ->  | L40: =IF(NRI!G40<>"",NRI!G40,"") ->  | M40: =IFERROR(L40-(1.01*L$57),"") ->  | N40: =IF(NRI!H40<>"",NRI!H40,"") ->  | O40: =IFERROR(N40-(1.01*N$57),"") ->  | P40: =IF(NRI!I40<>"",NRI!I40,"") ->  | Q40: =IFERROR(P40-(1.01*P$57),"") ->  | R40: =IF(NRI!J40<>"",NRI!J40,"") ->  | S40: =IFERROR(R40-(1.01*R$57),"") ->  | T40: =IF(NRI!K40<>"",NRI!K40,"") ->  | U40: =IFERROR(T40-(1.01*T$57),"") ->  | V40: =IF(NRI!L40<>"",NRI!L40,"") ->  | W40: =IFERROR(V40-(1.01*V$57),"") ->  | X40: =IF(NRI!M40<>"",NRI!M40,"") ->  | Y40: =IFERROR(X40-(1.01*X$57),"") -> 
A41: 38 | B41: =IF(NRI!B41<>"",NRI!B41,"") ->  | D41: =IF(NRI!C41<>"",NRI!C41,"") ->  | F41: =IF(NRI!D41<>"",NRI!D41,"") ->  | G41: =IFERROR(F41-(1.01*F$57),"") ->  | H41: =IF(NRI!E41<>"",NRI!E41,"") ->  | I41: =IFERROR(H41-(1.01*H$57),"") ->  | J41: =IF(NRI!F41<>"",NRI!F41,"") ->  | K41: =IFERROR(J41-(1.01*J$57),"") ->  | L41: =IF(NRI!G41<>"",NRI!G41,"") ->  | M41: =IFERROR(L41-(1.01*L$57),"") ->  | N41: =IF(NRI!H41<>"",NRI!H41,"") ->  | O41: =IFERROR(N41-(1.01*N$57),"") ->  | P41: =IF(NRI!I41<>"",NRI!I41,"") ->  | Q41: =IFERROR(P41-(1.01*P$57),"") ->  | R41: =IF(NRI!J41<>"",NRI!J41,"") ->  | S41: =IFERROR(R41-(1.01*R$57),"") ->  | T41: =IF(NRI!K41<>"",NRI!K41,"") ->  | U41: =IFERROR(T41-(1.01*T$57),"") ->  | V41: =IF(NRI!L41<>"",NRI!L41,"") ->  | W41: =IFERROR(V41-(1.01*V$57),"") ->  | X41: =IF(NRI!M41<>"",NRI!M41,"") ->  | Y41: =IFERROR(X41-(1.01*X$57),"") -> 
A42: 39 | B42: =IF(NRI!B42<>"",NRI!B42,"") ->  | D42: =IF(NRI!C42<>"",NRI!C42,"") ->  | F42: =IF(NRI!D42<>"",NRI!D42,"") ->  | G42: =IFERROR(F42-(1.01*F$57),"") ->  | H42: =IF(NRI!E42<>"",NRI!E42,"") ->  | I42: =IFERROR(H42-(1.01*H$57),"") ->  | J42: =IF(NRI!F42<>"",NRI!F42,"") ->  | K42: =IFERROR(J42-(1.01*J$57),"") ->  | L42: =IF(NRI!G42<>"",NRI!G42,"") ->  | M42: =IFERROR(L42-(1.01*L$57),"") ->  | N42: =IF(NRI!H42<>"",NRI!H42,"") ->  | O42: =IFERROR(N42-(1.01*N$57),"") ->  | P42: =IF(NRI!I42<>"",NRI!I42,"") ->  | Q42: =IFERROR(P42-(1.01*P$57),"") ->  | R42: =IF(NRI!J42<>"",NRI!J42,"") ->  | S42: =IFERROR(R42-(1.01*R$57),"") ->  | T42: =IF(NRI!K42<>"",NRI!K42,"") ->  | U42: =IFERROR(T42-(1.01*T$57),"") ->  | V42: =IF(NRI!L42<>"",NRI!L42,"") ->  | W42: =IFERROR(V42-(1.01*V$57),"") ->  | X42: =IF(NRI!M42<>"",NRI!M42,"") ->  | Y42: =IFERROR(X42-(1.01*X$57),"") -> 
A43: 40 | B43: =IF(NRI!B43<>"",NRI!B43,"") ->  | D43: =IF(NRI!C43<>"",NRI!C43,"") ->  | F43: =IF(NRI!D43<>"",NRI!D43,"") ->  | G43: =IFERROR(F43-(1.01*F$57),"") ->  | H43: =IF(NRI!E43<>"",NRI!E43,"") ->  | I43: =IFERROR(H43-(1.01*H$57),"") ->  | J43: =IF(NRI!F43<>"",NRI!F43,"") ->  | K43: =IFERROR(J43-(1.01*J$57),"") ->  | L43: =IF(NRI!G43<>"",NRI!G43,"") ->  | M43: =IFERROR(L43-(1.01*L$57),"") ->  | N43: =IF(NRI!H43<>"",NRI!H43,"") ->  | O43: =IFERROR(N43-(1.01*N$57),"") ->  | P43: =IF(NRI!I43<>"",NRI!I43,"") ->  | Q43: =IFERROR(P43-(1.01*P$57),"") ->  | R43: =IF(NRI!J43<>"",NRI!J43,"") ->  | S43: =IFERROR(R43-(1.01*R$57),"") ->  | T43: =IF(NRI!K43<>"",NRI!K43,"") ->  | U43: =IFERROR(T43-(1.01*T$57),"") ->  | V43: =IF(NRI!L43<>"",NRI!L43,"") ->  | W43: =IFERROR(V43-(1.01*V$57),"") ->  | X43: =IF(NRI!M43<>"",NRI!M43,"") ->  | Y43: =IFERROR(X43-(1.01*X$57),"") -> 
A44: 41 | B44: =IF(NRI!B44<>"",NRI!B44,"") ->  | D44: =IF(NRI!C44<>"",NRI!C44,"") ->  | F44: =IF(NRI!D44<>"",NRI!D44,"") ->  | G44: =IFERROR(F44-(1.01*F$57),"") ->  | H44: =IF(NRI!E44<>"",NRI!E44,"") ->  | I44: =IFERROR(H44-(1.01*H$57),"") ->  | J44: =IF(NRI!F44<>"",NRI!F44,"") ->  | K44: =IFERROR(J44-(1.01*J$57),"") ->  | L44: =IF(NRI!G44<>"",NRI!G44,"") ->  | M44: =IFERROR(L44-(1.01*L$57),"") ->  | N44: =IF(NRI!H44<>"",NRI!H44,"") ->  | O44: =IFERROR(N44-(1.01*N$57),"") ->  | P44: =IF(NRI!I44<>"",NRI!I44,"") ->  | Q44: =IFERROR(P44-(1.01*P$57),"") ->  | R44: =IF(NRI!J44<>"",NRI!J44,"") ->  | S44: =IFERROR(R44-(1.01*R$57),"") ->  | T44: =IF(NRI!K44<>"",NRI!K44,"") ->  | U44: =IFERROR(T44-(1.01*T$57),"") ->  | V44: =IF(NRI!L44<>"",NRI!L44,"") ->  | W44: =IFERROR(V44-(1.01*V$57),"") ->  | X44: =IF(NRI!M44<>"",NRI!M44,"") ->  | Y44: =IFERROR(X44-(1.01*X$57),"") -> 
A45: 42 | B45: =IF(NRI!B45<>"",NRI!B45,"") ->  | D45: =IF(NRI!C45<>"",NRI!C45,"") ->  | F45: =IF(NRI!D45<>"",NRI!D45,"") ->  | G45: =IFERROR(F45-(1.01*F$57),"") ->  | H45: =IF(NRI!E45<>"",NRI!E45,"") ->  | I45: =IFERROR(H45-(1.01*H$57),"") ->  | J45: =IF(NRI!F45<>"",NRI!F45,"") ->  | K45: =IFERROR(J45-(1.01*J$57),"") ->  | L45: =IF(NRI!G45<>"",NRI!G45,"") ->  | M45: =IFERROR(L45-(1.01*L$57),"") ->  | N45: =IF(NRI!H45<>"",NRI!H45,"") ->  | O45: =IFERROR(N45-(1.01*N$57),"") ->  | P45: =IF(NRI!I45<>"",NRI!I45,"") ->  | Q45: =IFERROR(P45-(1.01*P$57),"") ->  | R45: =IF(NRI!J45<>"",NRI!J45,"") ->  | S45: =IFERROR(R45-(1.01*R$57),"") ->  | T45: =IF(NRI!K45<>"",NRI!K45,"") ->  | U45: =IFERROR(T45-(1.01*T$57),"") ->  | V45: =IF(NRI!L45<>"",NRI!L45,"") ->  | W45: =IFERROR(V45-(1.01*V$57),"") ->  | X45: =IF(NRI!M45<>"",NRI!M45,"") ->  | Y45: =IFERROR(X45-(1.01*X$57),"") -> 
A46: 43 | B46: =IF(NRI!B46<>"",NRI!B46,"") ->  | D46: =IF(NRI!C46<>"",NRI!C46,"") ->  | F46: =IF(NRI!D46<>"",NRI!D46,"") ->  | G46: =IFERROR(F46-(1.01*F$57),"") ->  | H46: =IF(NRI!E46<>"",NRI!E46,"") ->  | I46: =IFERROR(H46-(1.01*H$57),"") ->  | J46: =IF(NRI!F46<>"",NRI!F46,"") ->  | K46: =IFERROR(J46-(1.01*J$57),"") ->  | L46: =IF(NRI!G46<>"",NRI!G46,"") ->  | M46: =IFERROR(L46-(1.01*L$57),"") ->  | N46: =IF(NRI!H46<>"",NRI!H46,"") ->  | O46: =IFERROR(N46-(1.01*N$57),"") ->  | P46: =IF(NRI!I46<>"",NRI!I46,"") ->  | Q46: =IFERROR(P46-(1.01*P$57),"") ->  | R46: =IF(NRI!J46<>"",NRI!J46,"") ->  | S46: =IFERROR(R46-(1.01*R$57),"") ->  | T46: =IF(NRI!K46<>"",NRI!K46,"") ->  | U46: =IFERROR(T46-(1.01*T$57),"") ->  | V46: =IF(NRI!L46<>"",NRI!L46,"") ->  | W46: =IFERROR(V46-(1.01*V$57),"") ->  | X46: =IF(NRI!M46<>"",NRI!M46,"") ->  | Y46: =IFERROR(X46-(1.01*X$57),"") -> 
A47: 44 | B47: =IF(NRI!B47<>"",NRI!B47,"") ->  | D47: =IF(NRI!C47<>"",NRI!C47,"") ->  | F47: =IF(NRI!D47<>"",NRI!D47,"") ->  | G47: =IFERROR(F47-(1.01*F$57),"") ->  | H47: =IF(NRI!E47<>"",NRI!E47,"") ->  | I47: =IFERROR(H47-(1.01*H$57),"") ->  | J47: =IF(NRI!F47<>"",NRI!F47,"") ->  | K47: =IFERROR(J47-(1.01*J$57),"") ->  | L47: =IF(NRI!G47<>"",NRI!G47,"") ->  | M47: =IFERROR(L47-(1.01*L$57),"") ->  | N47: =IF(NRI!H47<>"",NRI!H47,"") ->  | O47: =IFERROR(N47-(1.01*N$57),"") ->  | P47: =IF(NRI!I47<>"",NRI!I47,"") ->  | Q47: =IFERROR(P47-(1.01*P$57),"") ->  | R47: =IF(NRI!J47<>"",NRI!J47,"") ->  | S47: =IFERROR(R47-(1.01*R$57),"") ->  | T47: =IF(NRI!K47<>"",NRI!K47,"") ->  | U47: =IFERROR(T47-(1.01*T$57),"") ->  | V47: =IF(NRI!L47<>"",NRI!L47,"") ->  | W47: =IFERROR(V47-(1.01*V$57),"") ->  | X47: =IF(NRI!M47<>"",NRI!M47,"") ->  | Y47: =IFERROR(X47-(1.01*X$57),"") -> 
A48: 45 | B48: =IF(NRI!B48<>"",NRI!B48,"") ->  | D48: =IF(NRI!C48<>"",NRI!C48,"") ->  | F48: =IF(NRI!D48<>"",NRI!D48,"") ->  | G48: =IFERROR(F48-(1.01*F$57),"") ->  | H48: =IF(NRI!E48<>"",NRI!E48,"") ->  | I48: =IFERROR(H48-(1.01*H$57),"") ->  | J48: =IF(NRI!F48<>"",NRI!F48,"") ->  | K48: =IFERROR(J48-(1.01*J$57),"") ->  | L48: =IF(NRI!G48<>"",NRI!G48,"") ->  | M48: =IFERROR(L48-(1.01*L$57),"") ->  | N48: =IF(NRI!H48<>"",NRI!H48,"") ->  | O48: =IFERROR(N48-(1.01*N$57),"") ->  | P48: =IF(NRI!I48<>"",NRI!I48,"") ->  | Q48: =IFERROR(P48-(1.01*P$57),"") ->  | R48: =IF(NRI!J48<>"",NRI!J48,"") ->  | S48: =IFERROR(R48-(1.01*R$57),"") ->  | T48: =IF(NRI!K48<>"",NRI!K48,"") ->  | U48: =IFERROR(T48-(1.01*T$57),"") ->  | V48: =IF(NRI!L48<>"",NRI!L48,"") ->  | W48: =IFERROR(V48-(1.01*V$57),"") ->  | X48: =IF(NRI!M48<>"",NRI!M48,"") ->  | Y48: =IFERROR(X48-(1.01*X$57),"") -> 
A49: 46 | B49: =IF(NRI!B49<>"",NRI!B49,"") ->  | D49: =IF(NRI!C49<>"",NRI!C49,"") ->  | F49: =IF(NRI!D49<>"",NRI!D49,"") ->  | G49: =IFERROR(F49-(1.01*F$57),"") ->  | H49: =IF(NRI!E49<>"",NRI!E49,"") ->  | I49: =IFERROR(H49-(1.01*H$57),"") ->  | J49: =IF(NRI!F49<>"",NRI!F49,"") ->  | K49: =IFERROR(J49-(1.01*J$57),"") ->  | L49: =IF(NRI!G49<>"",NRI!G49,"") ->  | M49: =IFERROR(L49-(1.01*L$57),"") ->  | N49: =IF(NRI!H49<>"",NRI!H49,"") ->  | O49: =IFERROR(N49-(1.01*N$57),"") ->  | P49: =IF(NRI!I49<>"",NRI!I49,"") ->  | Q49: =IFERROR(P49-(1.01*P$57),"") ->  | R49: =IF(NRI!J49<>"",NRI!J49,"") ->  | S49: =IFERROR(R49-(1.01*R$57),"") ->  | T49: =IF(NRI!K49<>"",NRI!K49,"") ->  | U49: =IFERROR(T49-(1.01*T$57),"") ->  | V49: =IF(NRI!L49<>"",NRI!L49,"") ->  | W49: =IFERROR(V49-(1.01*V$57),"") ->  | X49: =IF(NRI!M49<>"",NRI!M49,"") ->  | Y49: =IFERROR(X49-(1.01*X$57),"") -> 
A50: 47 | B50: =IF(NRI!B50<>"",NRI!B50,"") ->  | D50: =IF(NRI!C50<>"",NRI!C50,"") ->  | F50: =IF(NRI!D50<>"",NRI!D50,"") ->  | G50: =IFERROR(F50-(1.01*F$57),"") ->  | H50: =IF(NRI!E50<>"",NRI!E50,"") ->  | I50: =IFERROR(H50-(1.01*H$57),"") ->  | J50: =IF(NRI!F50<>"",NRI!F50,"") ->  | K50: =IFERROR(J50-(1.01*J$57),"") ->  | L50: =IF(NRI!G50<>"",NRI!G50,"") ->  | M50: =IFERROR(L50-(1.01*L$57),"") ->  | N50: =IF(NRI!H50<>"",NRI!H50,"") ->  | O50: =IFERROR(N50-(1.01*N$57),"") ->  | P50: =IF(NRI!I50<>"",NRI!I50,"") ->  | Q50: =IFERROR(P50-(1.01*P$57),"") ->  | R50: =IF(NRI!J50<>"",NRI!J50,"") ->  | S50: =IFERROR(R50-(1.01*R$57),"") ->  | T50: =IF(NRI!K50<>"",NRI!K50,"") ->  | U50: =IFERROR(T50-(1.01*T$57),"") ->  | V50: =IF(NRI!L50<>"",NRI!L50,"") ->  | W50: =IFERROR(V50-(1.01*V$57),"") ->  | X50: =IF(NRI!M50<>"",NRI!M50,"") ->  | Y50: =IFERROR(X50-(1.01*X$57),"") -> 
A51: 48 | B51: =IF(NRI!B51<>"",NRI!B51,"") ->  | D51: =IF(NRI!C51<>"",NRI!C51,"") ->  | F51: =IF(NRI!D51<>"",NRI!D51,"") ->  | G51: =IFERROR(F51-(1.01*F$57),"") ->  | H51: =IF(NRI!E51<>"",NRI!E51,"") ->  | I51: =IFERROR(H51-(1.01*H$57),"") ->  | J51: =IF(NRI!F51<>"",NRI!F51,"") ->  | K51: =IFERROR(J51-(1.01*J$57),"") ->  | L51: =IF(NRI!G51<>"",NRI!G51,"") ->  | M51: =IFERROR(L51-(1.01*L$57),"") ->  | N51: =IF(NRI!H51<>"",NRI!H51,"") ->  | O51: =IFERROR(N51-(1.01*N$57),"") ->  | P51: =IF(NRI!I51<>"",NRI!I51,"") ->  | Q51: =IFERROR(P51-(1.01*P$57),"") ->  | R51: =IF(NRI!J51<>"",NRI!J51,"") ->  | S51: =IFERROR(R51-(1.01*R$57),"") ->  | T51: =IF(NRI!K51<>"",NRI!K51,"") ->  | U51: =IFERROR(T51-(1.01*T$57),"") ->  | V51: =IF(NRI!L51<>"",NRI!L51,"") ->  | W51: =IFERROR(V51-(1.01*V$57),"") ->  | X51: =IF(NRI!M51<>"",NRI!M51,"") ->  | Y51: =IFERROR(X51-(1.01*X$57),"") -> 
A52: 49 | B52: =IF(NRI!B52<>"",NRI!B52,"") ->  | D52: =IF(NRI!C52<>"",NRI!C52,"") ->  | F52: =IF(NRI!D52<>"",NRI!D52,"") ->  | G52: =IFERROR(F52-(1.01*F$57),"") ->  | H52: =IF(NRI!E52<>"",NRI!E52,"") ->  | I52: =IFERROR(H52-(1.01*H$57),"") ->  | J52: =IF(NRI!F52<>"",NRI!F52,"") ->  | K52: =IFERROR(J52-(1.01*J$57),"") ->  | L52: =IF(NRI!G52<>"",NRI!G52,"") ->  | M52: =IFERROR(L52-(1.01*L$57),"") ->  | N52: =IF(NRI!H52<>"",NRI!H52,"") ->  | O52: =IFERROR(N52-(1.01*N$57),"") ->  | P52: =IF(NRI!I52<>"",NRI!I52,"") ->  | Q52: =IFERROR(P52-(1.01*P$57),"") ->  | R52: =IF(NRI!J52<>"",NRI!J52,"") ->  | S52: =IFERROR(R52-(1.01*R$57),"") ->  | T52: =IF(NRI!K52<>"",NRI!K52,"") ->  | U52: =IFERROR(T52-(1.01*T$57),"") ->  | V52: =IF(NRI!L52<>"",NRI!L52,"") ->  | W52: =IFERROR(V52-(1.01*V$57),"") ->  | X52: =IF(NRI!M52<>"",NRI!M52,"") ->  | Y52: =IFERROR(X52-(1.01*X$57),"") -> 
A53: 50 | B53: =IF(NRI!B53<>"",NRI!B53,"") ->  | D53: =IF(NRI!C53<>"",NRI!C53,"") ->  | F53: =IF(NRI!D53<>"",NRI!D53,"") ->  | G53: =IFERROR(F53-(1.01*F$57),"") ->  | H53: =IF(NRI!E53<>"",NRI!E53,"") ->  | I53: =IFERROR(H53-(1.01*H$57),"") ->  | J53: =IF(NRI!F53<>"",NRI!F53,"") ->  | K53: =IFERROR(J53-(1.01*J$57),"") ->  | L53: =IF(NRI!G53<>"",NRI!G53,"") ->  | M53: =IFERROR(L53-(1.01*L$57),"") ->  | N53: =IF(NRI!H53<>"",NRI!H53,"") ->  | O53: =IFERROR(N53-(1.01*N$57),"") ->  | P53: =IF(NRI!I53<>"",NRI!I53,"") ->  | Q53: =IFERROR(P53-(1.01*P$57),"") ->  | R53: =IF(NRI!J53<>"",NRI!J53,"") ->  | S53: =IFERROR(R53-(1.01*R$57),"") ->  | T53: =IF(NRI!K53<>"",NRI!K53,"") ->  | U53: =IFERROR(T53-(1.01*T$57),"") ->  | V53: =IF(NRI!L53<>"",NRI!L53,"") ->  | W53: =IFERROR(V53-(1.01*V$57),"") ->  | X53: =IF(NRI!M53<>"",NRI!M53,"") ->  | Y53: =IFERROR(X53-(1.01*X$57),"") -> 
A54: Mean | B54: =AVERAGE(B4:B53) -> 
A55: Stdev. | B55: =STDEV(B4:B53) ->  | C55: =STDEV(C4:C53) -> 
A56: Skewness | B56: =SKEW(B4:B53) ->  | C56: =SKEW(C4:C53) -> 
A57: Min | B57: =MIN(B4:B53) -> 0 | D57: =MIN(D4:D53) -> 0 | F57: =MIN(F4:F53) -> 0 | H57: =MIN(H4:H53) -> 0 | J57: =MIN(J4:J53) -> 0 | L57: =MIN(L4:L53) -> 0 | N57: =MIN(N4:N53) -> 0 | P57: =MIN(P4:P53) -> 0 | R57: =MIN(R4:R53) -> 0 | T57: =MIN(T4:T53) -> 0 | V57: =MIN(V4:V53) -> 0 | X57: =MIN(X4:X53) -> 0
A59: Step 4. Gumbel distribution is selected
A60: Parameter | B60: Jan | C60: Feb | D60: Mar | E60: Apr | F60: May | G60: Jun | H60: Jul | I60: Aug | J60: Sep | K60: Oct | L60: Nov | M60: Dec
A61: Xo=mue | B61: =C54-0.45*C55 ->  | C61: =E54-0.45*E55 ->  | D61: =G54-0.45*G55 ->  | E61: =I54-0.45*I55 ->  | F61: =K54-0.45*K55 ->  | G61: =M54-0.45*M55 ->  | H61: =O54-0.45*O55 ->  | I61: =Q54-0.45*Q55 ->  | J61: =S54-0.45*S55 ->  | K61: =U54-0.45*U55 ->  | L61: =W54-0.45*W55 ->  | M61: =Y54-0.45*Y55 -> 
A62: alpha | B62: =0.7797*C55 ->  | C62: =0.7797*E55 ->  | D62: =0.7797*G55 ->  | E62: =0.7797*I55 ->  | F62: =0.7797*K55 ->  | G62: =0.7797*M55 ->  | H62: =0.7797*O55 ->  | I62: =0.7797*Q55 ->  | J62: =0.7797*S55 ->  | K62: =0.7797*U55 ->  | L62: =0.7797*W55 ->  | M62: =0.7797*Y55 -> 
A64: Step 5. Find VFCt_Yt at the specific risk values
A65: Risk | B65: Jan | C65: Feb | D65: Mar | E65: Apr | F65: May | G65: Jun | H65: Jul | I65: Aug | J65: Sep | K65: Oct | L65: Nov | M65: Dec | O65: 1 | P65: 2 | Q65: 3 | R65: 4 | S65: 5 | T65: 6 | U65: 7 | V65: 8 | W65: 9 | X65: 10 | Y65: 11 | Z65: 12
A66: =A96 -> 0.05 | B66: =C$54+$C$96*C$55 ->  | C66: =E$54+$C$96*E$55 ->  | D66: =G$54+$C$96*G$55 ->  | E66: =I$54+$C$96*I$55 ->  | F66: =K$54+$C$96*K$55 ->  | G66: =M$54+$C$96*M$55 ->  | H66: =O$54+$C$96*O$55 ->  | I66: =Q$54+$C$96*Q$55 ->  | J66: =S$54+$C$96*S$55 ->  | K66: =U$54+$C$96*U$55 ->  | L66: =W$54+$C$96*W$55 ->  | M66: =Y$54+$C$96*Y$55 ->  | O66: =C$54+$C$96*C$55 ->  | P66: =E$54+$C$96*E$55 ->  | Q66: =G$54+$C$96*G$55 ->  | R66: =I$54+$C$96*I$55 ->  | S66: =K$54+$C$96*K$55 ->  | T66: =M$54+$C$96*M$55 ->  | U66: =O$54+$C$96*O$55 ->  | V66: =Q$54+$C$96*Q$55 ->  | W66: =S$54+$C$96*S$55 ->  | X66: =U$54+$C$96*U$55 ->  | Y66: =W$54+$C$96*W$55 ->  | Z66: =Y$54+$C$96*Y$55 -> 
A67: =A97 -> 0.1 | B67: =C$54+$C$97*C$55 ->  | C67: =E$54+$C$97*E$55 ->  | D67: =G$54+$C$97*G$55 ->  | E67: =I$54+$C$97*I$55 ->  | F67: =K$54+$C$97*K$55 ->  | G67: =M$54+$C$97*M$55 ->  | H67: =O$54+$C$97*O$55 ->  | I67: =Q$54+$C$97*Q$55 ->  | J67: =S$54+$C$97*S$55 ->  | K67: =U$54+$C$97*U$55 ->  | L67: =W$54+$C$97*W$55 ->  | M67: =Y$54+$C$97*Y$55 -> 
A68: 0.15 | B68: =C$54+$C$98*C$55 ->  | C68: =E$54+$C$98*E$55 ->  | D68: =G$54+$C$98*G$55 ->  | E68: =I$54+$C$98*I$55 ->  | F68: =K$54+$C$98*K$55 ->  | G68: =M$54+$C$98*M$55 ->  | H68: =O$54+$C$98*O$55 ->  | I68: =Q$54+$C$98*Q$55 ->  | J68: =S$54+$C$98*S$55 ->  | K68: =U$54+$C$98*U$55 ->  | L68: =W$54+$C$98*W$55 ->  | M68: =Y$54+$C$98*Y$55 -> 
A69: 0.2 | B69: =C$54+$C$99*C$55 ->  | C69: =E$54+$C$99*E$55 ->  | D69: =G$54+$C$99*G$55 ->  | E69: =I$54+$C$99*I$55 ->  | F69: =K$54+$C$99*K$55 ->  | G69: =M$54+$C$99*M$55 ->  | H69: =O$54+$C$99*O$55 ->  | I69: =Q$54+$C$99*Q$55 ->  | J69: =S$54+$C$99*S$55 ->  | K69: =U$54+$C$99*U$55 ->  | L69: =W$54+$C$99*W$55 ->  | M69: =Y$54+$C$99*Y$55 -> 
A71: Step 6. Retransform VFCt)_Yt into VFCt_Xt
A72: Risk | B72: Jan | C72: Feb | D72: Mar | E72: Apr | F72: May | G72: Jun | H72: Jul | I72: Aug | J72: Sep | K72: Oct | L72: Nov | M72: Dec
A73: =A96 -> 0.05 | B73: =B66+(1.01*$B$57) ->  | C73: =C66+(1.01*$D$57) ->  | D73: =D66+(1.01*$F$57) ->  | E73: =E66+(1.01*$H$57) ->  | F73: =F66+(1.01*$J$57) ->  | G73: =G66+(1.01*$L$57) ->  | H73: =H66+(1.01*$N$57) ->  | I73: =I66+(1.01*$P$57) ->  | J73: =J66+(1.01*$R$57) ->  | K73: =K66+(1.01*$T$57) ->  | L73: =L66+(1.01*$V$57) ->  | M73: =M66+(1.01*$X$57) -> 
A74: =A97 -> 0.1 | B74: =B67+(1.01*$B$57) ->  | C74: =C67+(1.01*$D$57) ->  | D74: =D67+(1.01*$F$57) ->  | E74: =E67+(1.01*$H$57) ->  | F74: =F67+(1.01*$J$57) ->  | G74: =G67+(1.01*$L$57) ->  | H74: =H67+(1.01*$N$57) ->  | I74: =I67+(1.01*$P$57) ->  | J74: =J67+(1.01*$R$57) ->  | K74: =K67+(1.01*$T$57) ->  | L74: =L67+(1.01*$V$57) ->  | M74: =M67+(1.01*$X$57) -> 
A75: 0.15 | B75: =B68+(1.01*$B$57) ->  | C75: =C68+(1.01*$D$57) ->  | D75: =D68+(1.01*$F$57) ->  | E75: =E68+(1.01*$H$57) ->  | F75: =F68+(1.01*$J$57) ->  | G75: =G68+(1.01*$L$57) ->  | H75: =H68+(1.01*$N$57) ->  | I75: =I68+(1.01*$P$57) ->  | J75: =J68+(1.01*$R$57) ->  | K75: =K68+(1.01*$T$57) ->  | L75: =L68+(1.01*$V$57) ->  | M75: =M68+(1.01*$X$57) -> 
A76: 0.2 | B76: =B69+(1.01*$B$57) ->  | C76: =C69+(1.01*$D$57) ->  | D76: =D69+(1.01*$F$57) ->  | E76: =E69+(1.01*$H$57) ->  | F76: =F69+(1.01*$J$57) ->  | G76: =G69+(1.01*$L$57) ->  | H76: =H69+(1.01*$N$57) ->  | I76: =I69+(1.01*$P$57) ->  | J76: =J69+(1.01*$R$57) ->  | K76: =K69+(1.01*$T$57) ->  | L76: =L69+(1.01*$V$57) ->  | M76: =M69+(1.01*$X$57) -> 
A78: Upper Rule Curve
A79: MONTH | B79: URC
B80: =A96 -> 0.05 | C80: =A97 -> 0.1 | D80: =A98 -> 0.15 | E80: =A99 -> 0.2
A81: Jan | B81: =IF($B$73>0,NRI!$P$2-$B$73,NRI!$P$2) ->  | C81: =IF($B$74>0,NRI!$P$2-$B$74,NRI!$P$2) ->  | D81: =IF($B$75>0,NRI!$P$2-$B$75,NRI!$P$2) ->  | E81: =IF($B$76>0,NRI!$P$2-$B$76,NRI!$P$2) -> 
A82: Feb | B82: =IF($C$73>0,NRI!$P$2-$C$73,NRI!$P$2) ->  | C82: =IF($C$74>0,NRI!$P$2-$C$74,NRI!$P$2) ->  | D82: =IF($C$75>0,NRI!$P$2-$C$75,NRI!$P$2) ->  | E82: =IF($C$76>0,NRI!$P$2-$C$76,NRI!$P$2) -> 
A83: Mar | B83: =IF($D$73>0,NRI!$P$2-$D$73,NRI!$P$2) ->  | C83: =IF($D$74>0,NRI!$P$2-$D$74,NRI!$P$2) ->  | D83: =IF($D$75>0,NRI!$P$2-$D$75,NRI!$P$2) ->  | E83: =IF($D$76>0,NRI!$P$2-$D$76,NRI!$P$2) -> 
A84: Apr | B84: =IF($E$73>0,NRI!$P$2-$E$73,NRI!$P$2) ->  | C84: =IF($E$74>0,NRI!$P$2-$E$74,NRI!$P$2) ->  | D84: =IF($E$75>0,NRI!$P$2-$E$75,NRI!$P$2) ->  | E84: =IF($I$743>0,NRI!$P$2-$E$76,NRI!$P$2) -> 0
A85: May | B85: =IF($F$73>0,NRI!$P$2-$F$73,NRI!$P$2) ->  | C85: =IF($F$74>0,NRI!$P$2-$F$74,NRI!$P$2) ->  | D85: =IF($F$75>0,NRI!$P$2-$F$75,NRI!$P$2) ->  | E85: =IF($F$76>0,NRI!$P$2-$F$76,NRI!$P$2) -> 
A86: Jun | B86: =IF($G$73>0,NRI!$P$2-$G$73,NRI!$P$2) ->  | C86: =IF($G$74>0,NRI!$P$2-$G$74,NRI!$P$2) ->  | D86: =IF($G$75>0,NRI!$P$2-$G$75,NRI!$P$2) ->  | E86: =IF($G$76>0,NRI!$P$2-$G$76,NRI!$P$2) -> 
A87: Jul | B87: =IF($H$73>0,NRI!$P$2-$H$73,NRI!$P$2) ->  | C87: =IF($H$74>0,NRI!$P$2-$H$74,NRI!$P$2) ->  | D87: =IF($H$75>0,NRI!$P$2-$H$75,NRI!$P$2) ->  | E87: =IF($H$76>0,NRI!$P$2-$H$76,NRI!$P$2) -> 
A88: Aug | B88: =IF($I$73>0,NRI!$P$2-$I$73,NRI!$P$2) ->  | C88: =IF($I$74>0,NRI!$P$2-$I$74,NRI!$P$2) ->  | D88: =IF($I$75>0,NRI!$P$2-$I$75,NRI!$P$2) ->  | E88: =IF($I$76>0,NRI!$P$2-$I$76,NRI!$P$2) -> 
A89: Sep | B89: =IF($J$73>0,NRI!$P$2-$J$73,NRI!$P$2) ->  | C89: =IF($J$74>0,NRI!$P$2-$J$74,NRI!$P$2) ->  | D89: =IF($J$75>0,NRI!$P$2-$J$75,NRI!$P$2) ->  | E89: =IF($J$76>0,NRI!$P$2-$J$76,NRI!$P$2) -> 
A90: Oct | B90: =IF($K$73>0,NRI!$P$2-$K$73,NRI!$P$2) ->  | C90: =IF($K$74>0,NRI!$P$2-$K$74,NRI!$P$2) ->  | D90: =IF($K$75>0,NRI!$P$2-$K$75,NRI!$P$2) ->  | E90: =IF($K$76>0,NRI!$P$2-$K$76,NRI!$P$2) -> 
A91: Nov | B91: =IF($L$73>0,NRI!$P$2-$L$73,NRI!$P$2) ->  | C91: =IF($L$74>0,NRI!$P$2-$L$74,NRI!$P$2) ->  | D91: =IF($L$75>0,NRI!$P$2-$L$75,NRI!$P$2) ->  | E91: =IF($L$76>0,NRI!$P$2-$L$76,NRI!$P$2) -> 
A92: Dec | B92: =IF($M$73>0,NRI!$P$2-$M$73,NRI!$P$2) ->  | C92: =IF($M$74>0,NRI!$P$2-$M$74,NRI!$P$2) ->  | D92: =IF($M$75>0,NRI!$P$2-$M$75,NRI!$P$2) ->  | E92: =IF($M$76>0,NRI!$P$2-$M$76,NRI!$P$2) -> 
A94: Remark
A95: Risk | B95: Tr | C95: KTr
A96: 0.05 | B96: 1/20 | C96: =-0.45-0.7797*LN(-LN(1-A96)) -> 1.865861236
A97: 0.1 | B97: 1/10 | C97: =-0.45-0.7797*LN(-LN(1-A97)) -> 1.304611405
A98: 0.15 | B98: 1/5 | C98: =-0.45-0.7797*LN(-LN(1-A98)) -> 0.9666843317
A99: 0.2 | B99: 1/3.33 | C99: =-0.45-0.7797*LN(-LN(1-A99)) -> 0.7195032077
A101: The Gumbel Probability Distribution is selected

Sheet LRC POP
A1: Step 3. Analysing sum of NRI in the dry season | O1: Step 4. Transforming data for distribution fitting
A2: Year | B2: Sum of Net Reservoirs Inflow Volume | O2: Year | P2: Sum of Net Reservoirs Inflow Volume
B3: Jan | C3: Feb | D3: Mar | E3: Apr | F3: May | G3: Jun | H3: Jul | I3: Aug | J3: Sep | K3: Oct | L3: Nov | M3: Dec | P3: Jan | Q3: Feb | R3: Mar | S3: Apr | T3: May | U3: Jun | V3: Jul | W3: Aug | X3: Sep | Y3: Oct | Z3: Nov | AA3: Dec
A4: 1 | B4: =IF(NRI!C82<>"",NRI!C82,"") ->  | C4: =IF(NRI!D82<>"",NRI!D82,"") ->  | D4: =IF(NRI!E82<>"",NRI!E82,"") ->  | E4: =IF(NRI!F82<>"",NRI!F82,"") ->  | F4: =IF(NRI!G82<>"",NRI!G82,"") ->  | G4: =IF(NRI!H82<>"",NRI!H82,"") ->  | H4: =IF(NRI!I82<>"",NRI!I82,"") ->  | I4: =IF(NRI!J82<>"",NRI!J82,"") ->  | J4: =IF(NRI!K82<>"",NRI!K82,"") ->  | K4: =IF(NRI!L82<>"",NRI!L82,"") ->  | L4: =IF(NRI!M82<>"",NRI!M82,"") ->  | M4: =IF(NRI!N82<>"",NRI!N82,"") ->  | O4: 1 | P4: =IFERROR(B4-(1.01*B$57),"") ->  | Q4: =IFERROR(C4-(1.01*C$57),"") ->  | R4: =IFERROR(D4-(1.01*D$57),"") ->  | S4: =IFERROR(E4-(1.01*E$57),"") ->  | T4: =IFERROR(F4-(1.01*F$57),"") ->  | U4: =IFERROR(G4-(1.01*G$57),"") ->  | V4: =IFERROR(H4-(1.01*H$57),"") ->  | W4: =IFERROR(I4-(1.01*I$57),"") ->  | X4: =IFERROR(J4-(1.01*J$57),"") ->  | Y4: =IFERROR(K4-(1.01*K$57),"") ->  | Z4: =IFERROR(L4-(1.01*L$57),"") ->  | AA4: =IFERROR(M4-(1.01*M$57),"") -> 
A5: 2 | B5: =IF(NRI!C83<>"",NRI!C83,"") ->  | C5: =IF(NRI!D83<>"",NRI!D83,"") ->  | D5: =IF(NRI!E83<>"",NRI!E83,"") ->  | E5: =IF(NRI!F83<>"",NRI!F83,"") ->  | F5: =IF(NRI!G83<>"",NRI!G83,"") ->  | G5: =IF(NRI!H83<>"",NRI!H83,"") ->  | H5: =IF(NRI!I83<>"",NRI!I83,"") ->  | I5: =IF(NRI!J83<>"",NRI!J83,"") ->  | J5: =IF(NRI!K83<>"",NRI!K83,"") ->  | K5: =IF(NRI!L83<>"",NRI!L83,"") ->  | L5: =IF(NRI!M83<>"",NRI!M83,"") ->  | M5: =IF(NRI!N83<>"",NRI!N83,"") ->  | O5: 2
A6: 3 | B6: =IF(NRI!C84<>"",NRI!C84,"") ->  | C6: =IF(NRI!D84<>"",NRI!D84,"") ->  | D6: =IF(NRI!E84<>"",NRI!E84,"") ->  | E6: =IF(NRI!F84<>"",NRI!F84,"") ->  | F6: =IF(NRI!G84<>"",NRI!G84,"") ->  | G6: =IF(NRI!H84<>"",NRI!H84,"") ->  | H6: =IF(NRI!I84<>"",NRI!I84,"") ->  | I6: =IF(NRI!J84<>"",NRI!J84,"") ->  | J6: =IF(NRI!K84<>"",NRI!K84,"") ->  | K6: =IF(NRI!L84<>"",NRI!L84,"") ->  | L6: =IF(NRI!M84<>"",NRI!M84,"") ->  | M6: =IF(NRI!N84<>"",NRI!N84,"") ->  | O6: 3
A7: 4 | B7: =IF(NRI!C85<>"",NRI!C85,"") ->  | C7: =IF(NRI!D85<>"",NRI!D85,"") ->  | D7: =IF(NRI!E85<>"",NRI!E85,"") ->  | E7: =IF(NRI!F85<>"",NRI!F85,"") ->  | F7: =IF(NRI!G85<>"",NRI!G85,"") ->  | G7: =IF(NRI!H85<>"",NRI!H85,"") ->  | H7: =IF(NRI!I85<>"",NRI!I85,"") ->  | I7: =IF(NRI!J85<>"",NRI!J85,"") ->  | J7: =IF(NRI!K85<>"",NRI!K85,"") ->  | K7: =IF(NRI!L85<>"",NRI!L85,"") ->  | L7: =IF(NRI!M85<>"",NRI!M85,"") ->  | M7: =IF(NRI!N85<>"",NRI!N85,"") ->  | O7: 4
A8: 5 | B8: =IF(NRI!C86<>"",NRI!C86,"") ->  | C8: =IF(NRI!D86<>"",NRI!D86,"") ->  | D8: =IF(NRI!E86<>"",NRI!E86,"") ->  | E8: =IF(NRI!F86<>"",NRI!F86,"") ->  | F8: =IF(NRI!G86<>"",NRI!G86,"") ->  | G8: =IF(NRI!H86<>"",NRI!H86,"") ->  | H8: =IF(NRI!I86<>"",NRI!I86,"") ->  | I8: =IF(NRI!J86<>"",NRI!J86,"") ->  | J8: =IF(NRI!K86<>"",NRI!K86,"") ->  | K8: =IF(NRI!L86<>"",NRI!L86,"") ->  | L8: =IF(NRI!M86<>"",NRI!M86,"") ->  | M8: =IF(NRI!N86<>"",NRI!N86,"") ->  | O8: 5
A9: 6 | B9: =IF(NRI!C87<>"",NRI!C87,"") ->  | C9: =IF(NRI!D87<>"",NRI!D87,"") ->  | D9: =IF(NRI!E87<>"",NRI!E87,"") ->  | E9: =IF(NRI!F87<>"",NRI!F87,"") ->  | F9: =IF(NRI!G87<>"",NRI!G87,"") ->  | G9: =IF(NRI!H87<>"",NRI!H87,"") ->  | H9: =IF(NRI!I87<>"",NRI!I87,"") ->  | I9: =IF(NRI!J87<>"",NRI!J87,"") ->  | J9: =IF(NRI!K87<>"",NRI!K87,"") ->  | K9: =IF(NRI!L87<>"",NRI!L87,"") ->  | L9: =IF(NRI!M87<>"",NRI!M87,"") ->  | M9: =IF(NRI!N87<>"",NRI!N87,"") ->  | O9: 6
A10: 7 | B10: =IF(NRI!C88<>"",NRI!C88,"") ->  | C10: =IF(NRI!D88<>"",NRI!D88,"") ->  | D10: =IF(NRI!E88<>"",NRI!E88,"") ->  | E10: =IF(NRI!F88<>"",NRI!F88,"") ->  | F10: =IF(NRI!G88<>"",NRI!G88,"") ->  | G10: =IF(NRI!H88<>"",NRI!H88,"") ->  | H10: =IF(NRI!I88<>"",NRI!I88,"") ->  | I10: =IF(NRI!J88<>"",NRI!J88,"") ->  | J10: =IF(NRI!K88<>"",NRI!K88,"") ->  | K10: =IF(NRI!L88<>"",NRI!L88,"") ->  | L10: =IF(NRI!M88<>"",NRI!M88,"") ->  | M10: =IF(NRI!N88<>"",NRI!N88,"") ->  | O10: 7
A11: 8 | B11: =IF(NRI!C89<>"",NRI!C89,"") ->  | C11: =IF(NRI!D89<>"",NRI!D89,"") ->  | D11: =IF(NRI!E89<>"",NRI!E89,"") ->  | E11: =IF(NRI!F89<>"",NRI!F89,"") ->  | F11: =IF(NRI!G89<>"",NRI!G89,"") ->  | G11: =IF(NRI!H89<>"",NRI!H89,"") ->  | H11: =IF(NRI!I89<>"",NRI!I89,"") ->  | I11: =IF(NRI!J89<>"",NRI!J89,"") ->  | J11: =IF(NRI!K89<>"",NRI!K89,"") ->  | K11: =IF(NRI!L89<>"",NRI!L89,"") ->  | L11: =IF(NRI!M89<>"",NRI!M89,"") ->  | M11: =IF(NRI!N89<>"",NRI!N89,"") ->  | O11: 8
A12: 9 | B12: =IF(NRI!C90<>"",NRI!C90,"") ->  | C12: =IF(NRI!D90<>"",NRI!D90,"") ->  | D12: =IF(NRI!E90<>"",NRI!E90,"") ->  | E12: =IF(NRI!F90<>"",NRI!F90,"") ->  | F12: =IF(NRI!G90<>"",NRI!G90,"") ->  | G12: =IF(NRI!H90<>"",NRI!H90,"") ->  | H12: =IF(NRI!I90<>"",NRI!I90,"") ->  | I12: =IF(NRI!J90<>"",NRI!J90,"") ->  | J12: =IF(NRI!K90<>"",NRI!K90,"") ->  | K12: =IF(NRI!L90<>"",NRI!L90,"") ->  | L12: =IF(NRI!M90<>"",NRI!M90,"") ->  | M12: =IF(NRI!N90<>"",NRI!N90,"") ->  | O12: 9
A13: 10 | B13: =IF(NRI!C91<>"",NRI!C91,"") ->  | C13: =IF(NRI!D91<>"",NRI!D91,"") ->  | D13: =IF(NRI!E91<>"",NRI!E91,"") ->  | E13: =IF(NRI!F91<>"",NRI!F91,"") ->  | F13: =IF(NRI!G91<>"",NRI!G91,"") ->  | G13: =IF(NRI!H91<>"",NRI!H91,"") ->  | H13: =IF(NRI!I91<>"",NRI!I91,"") ->  | I13: =IF(NRI!J91<>"",NRI!J91,"") ->  | J13: =IF(NRI!K91<>"",NRI!K91,"") ->  | K13: =IF(NRI!L91<>"",NRI!L91,"") ->  | L13: =IF(NRI!M91<>"",NRI!M91,"") ->  | M13: =IF(NRI!N91<>"",NRI!N91,"") ->  | O13: 10
A14: 11 | B14: =IF(NRI!C92<>"",NRI!C92,"") ->  | C14: =IF(NRI!D92<>"",NRI!D92,"") ->  | D14: =IF(NRI!E92<>"",NRI!E92,"") ->  | E14: =IF(NRI!F92<>"",NRI!F92,"") ->  | F14: =IF(NRI!G92<>"",NRI!G92,"") ->  | G14: =IF(NRI!H92<>"",NRI!H92,"") ->  | H14: =IF(NRI!I92<>"",NRI!I92,"") ->  | I14: =IF(NRI!J92<>"",NRI!J92,"") ->  | J14: =IF(NRI!K92<>"",NRI!K92,"") ->  | K14: =IF(NRI!L92<>"",NRI!L92,"") ->  | L14: =IF(NRI!M92<>"",NRI!M92,"") ->  | M14: =IF(NRI!N92<>"",NRI!N92,"") ->  | O14: 11
A15: 12 | B15: =IF(NRI!C93<>"",NRI!C93,"") ->  | C15: =IF(NRI!D93<>"",NRI!D93,"") ->  | D15: =IF(NRI!E93<>"",NRI!E93,"") ->  | E15: =IF(NRI!F93<>"",NRI!F93,"") ->  | F15: =IF(NRI!G93<>"",NRI!G93,"") ->  | G15: =IF(NRI!H93<>"",NRI!H93,"") ->  | H15: =IF(NRI!I93<>"",NRI!I93,"") ->  | I15: =IF(NRI!J93<>"",NRI!J93,"") ->  | J15: =IF(NRI!K93<>"",NRI!K93,"") ->  | K15: =IF(NRI!L93<>"",NRI!L93,"") ->  | L15: =IF(NRI!M93<>"",NRI!M93,"") ->  | M15: =IF(NRI!N93<>"",NRI!N93,"") ->  | O15: 12
A16: 13 | B16: =IF(NRI!C94<>"",NRI!C94,"") ->  | C16: =IF(NRI!D94<>"",NRI!D94,"") ->  | D16: =IF(NRI!E94<>"",NRI!E94,"") ->  | E16: =IF(NRI!F94<>"",NRI!F94,"") ->  | F16: =IF(NRI!G94<>"",NRI!G94,"") ->  | G16: =IF(NRI!H94<>"",NRI!H94,"") ->  | H16: =IF(NRI!I94<>"",NRI!I94,"") ->  | I16: =IF(NRI!J94<>"",NRI!J94,"") ->  | J16: =IF(NRI!K94<>"",NRI!K94,"") ->  | K16: =IF(NRI!L94<>"",NRI!L94,"") ->  | L16: =IF(NRI!M94<>"",NRI!M94,"") ->  | M16: =IF(NRI!N94<>"",NRI!N94,"") ->  | O16: 13
A17: 14 | B17: =IF(NRI!C95<>"",NRI!C95,"") ->  | C17: =IF(NRI!D95<>"",NRI!D95,"") ->  | D17: =IF(NRI!E95<>"",NRI!E95,"") ->  | E17: =IF(NRI!F95<>"",NRI!F95,"") ->  | F17: =IF(NRI!G95<>"",NRI!G95,"") ->  | G17: =IF(NRI!H95<>"",NRI!H95,"") ->  | H17: =IF(NRI!I95<>"",NRI!I95,"") ->  | I17: =IF(NRI!J95<>"",NRI!J95,"") ->  | J17: =IF(NRI!K95<>"",NRI!K95,"") ->  | K17: =IF(NRI!L95<>"",NRI!L95,"") ->  | L17: =IF(NRI!M95<>"",NRI!M95,"") ->  | M17: =IF(NRI!N95<>"",NRI!N95,"") ->  | O17: 14
A18: 15 | B18: =IF(NRI!C96<>"",NRI!C96,"") ->  | C18: =IF(NRI!D96<>"",NRI!D96,"") ->  | D18: =IF(NRI!E96<>"",NRI!E96,"") ->  | E18: =IF(NRI!F96<>"",NRI!F96,"") ->  | F18: =IF(NRI!G96<>"",NRI!G96,"") ->  | G18: =IF(NRI!H96<>"",NRI!H96,"") ->  | H18: =IF(NRI!I96<>"",NRI!I96,"") ->  | I18: =IF(NRI!J96<>"",NRI!J96,"") ->  | J18: =IF(NRI!K96<>"",NRI!K96,"") ->  | K18: =IF(NRI!L96<>"",NRI!L96,"") ->  | L18: =IF(NRI!M96<>"",NRI!M96,"") ->  | M18: =IF(NRI!N96<>"",NRI!N96,"") ->  | O18: 15
A19: 16 | B19: =IF(NRI!C97<>"",NRI!C97,"") ->  | C19: =IF(NRI!D97<>"",NRI!D97,"") ->  | D19: =IF(NRI!E97<>"",NRI!E97,"") ->  | E19: =IF(NRI!F97<>"",NRI!F97,"") ->  | F19: =IF(NRI!G97<>"",NRI!G97,"") ->  | G19: =IF(NRI!H97<>"",NRI!H97,"") ->  | H19: =IF(NRI!I97<>"",NRI!I97,"") ->  | I19: =IF(NRI!J97<>"",NRI!J97,"") ->  | J19: =IF(NRI!K97<>"",NRI!K97,"") ->  | K19: =IF(NRI!L97<>"",NRI!L97,"") ->  | L19: =IF(NRI!M97<>"",NRI!M97,"") ->  | M19: =IF(NRI!N97<>"",NRI!N97,"") ->  | O19: 16
A20: 17 | B20: =IF(NRI!C98<>"",NRI!C98,"") ->  | C20: =IF(NRI!D98<>"",NRI!D98,"") ->  | D20: =IF(NRI!E98<>"",NRI!E98,"") ->  | E20: =IF(NRI!F98<>"",NRI!F98,"") ->  | F20: =IF(NRI!G98<>"",NRI!G98,"") ->  | G20: =IF(NRI!H98<>"",NRI!H98,"") ->  | H20: =IF(NRI!I98<>"",NRI!I98,"") ->  | I20: =IF(NRI!J98<>"",NRI!J98,"") ->  | J20: =IF(NRI!K98<>"",NRI!K98,"") ->  | K20: =IF(NRI!L98<>"",NRI!L98,"") ->  | L20: =IF(NRI!M98<>"",NRI!M98,"") ->  | M20: =IF(NRI!N98<>"",NRI!N98,"") ->  | O20: 17
A21: 18 | B21: =IF(NRI!C99<>"",NRI!C99,"") ->  | C21: =IF(NRI!D99<>"",NRI!D99,"") ->  | D21: =IF(NRI!E99<>"",NRI!E99,"") ->  | E21: =IF(NRI!F99<>"",NRI!F99,"") ->  | F21: =IF(NRI!G99<>"",NRI!G99,"") ->  | G21: =IF(NRI!H99<>"",NRI!H99,"") ->  | H21: =IF(NRI!I99<>"",NRI!I99,"") ->  | I21: =IF(NRI!J99<>"",NRI!J99,"") ->  | J21: =IF(NRI!K99<>"",NRI!K99,"") ->  | K21: =IF(NRI!L99<>"",NRI!L99,"") ->  | L21: =IF(NRI!M99<>"",NRI!M99,"") ->  | M21: =IF(NRI!N99<>"",NRI!N99,"") ->  | O21: 18
A22: 19 | B22: =IF(NRI!C100<>"",NRI!C100,"") ->  | C22: =IF(NRI!D100<>"",NRI!D100,"") ->  | D22: =IF(NRI!E100<>"",NRI!E100,"") ->  | E22: =IF(NRI!F100<>"",NRI!F100,"") ->  | F22: =IF(NRI!G100<>"",NRI!G100,"") ->  | G22: =IF(NRI!H100<>"",NRI!H100,"") ->  | H22: =IF(NRI!I100<>"",NRI!I100,"") ->  | I22: =IF(NRI!J100<>"",NRI!J100,"") ->  | J22: =IF(NRI!K100<>"",NRI!K100,"") ->  | K22: =IF(NRI!L100<>"",NRI!L100,"") ->  | L22: =IF(NRI!M100<>"",NRI!M100,"") ->  | M22: =IF(NRI!N100<>"",NRI!N100,"") ->  | O22: 19
A23: 20 | B23: =IF(NRI!C101<>"",NRI!C101,"") ->  | C23: =IF(NRI!D101<>"",NRI!D101,"") ->  | D23: =IF(NRI!E101<>"",NRI!E101,"") ->  | E23: =IF(NRI!F101<>"",NRI!F101,"") ->  | F23: =IF(NRI!G101<>"",NRI!G101,"") ->  | G23: =IF(NRI!H101<>"",NRI!H101,"") ->  | H23: =IF(NRI!I101<>"",NRI!I101,"") ->  | I23: =IF(NRI!J101<>"",NRI!J101,"") ->  | J23: =IF(NRI!K101<>"",NRI!K101,"") ->  | K23: =IF(NRI!L101<>"",NRI!L101,"") ->  | L23: =IF(NRI!M101<>"",NRI!M101,"") ->  | M23: =IF(NRI!N101<>"",NRI!N101,"") ->  | O23: 20
A24: 21 | B24: =IF(NRI!C102<>"",NRI!C102,"") ->  | C24: =IF(NRI!D102<>"",NRI!D102,"") ->  | D24: =IF(NRI!E102<>"",NRI!E102,"") ->  | E24: =IF(NRI!F102<>"",NRI!F102,"") ->  | F24: =IF(NRI!G102<>"",NRI!G102,"") ->  | G24: =IF(NRI!H102<>"",NRI!H102,"") ->  | H24: =IF(NRI!I102<>"",NRI!I102,"") ->  | I24: =IF(NRI!J102<>"",NRI!J102,"") ->  | J24: =IF(NRI!K102<>"",NRI!K102,"") ->  | K24: =IF(NRI!L102<>"",NRI!L102,"") ->  | L24: =IF(NRI!M102<>"",NRI!M102,"") ->  | M24: =IF(NRI!N102<>"",NRI!N102,"") ->  | O24: 21
A25: 22 | B25: =IF(NRI!C103<>"",NRI!C103,"") ->  | C25: =IF(NRI!D103<>"",NRI!D103,"") ->  | D25: =IF(NRI!E103<>"",NRI!E103,"") ->  | E25: =IF(NRI!F103<>"",NRI!F103,"") ->  | F25: =IF(NRI!G103<>"",NRI!G103,"") ->  | G25: =IF(NRI!H103<>"",NRI!H103,"") ->  | H25: =IF(NRI!I103<>"",NRI!I103,"") ->  | I25: =IF(NRI!J103<>"",NRI!J103,"") ->  | J25: =IF(NRI!K103<>"",NRI!K103,"") ->  | K25: =IF(NRI!L103<>"",NRI!L103,"") ->  | L25: =IF(NRI!M103<>"",NRI!M103,"") ->  | M25: =IF(NRI!N103<>"",NRI!N103,"") ->  | O25: 22
A26: 23 | B26: =IF(NRI!C104<>"",NRI!C104,"") ->  | C26: =IF(NRI!D104<>"",NRI!D104,"") ->  | D26: =IF(NRI!E104<>"",NRI!E104,"") ->  | E26: =IF(NRI!F104<>"",NRI!F104,"") ->  | F26: =IF(NRI!G104<>"",NRI!G104,"") ->  | G26: =IF(NRI!H104<>"",NRI!H104,"") ->  | H26: =IF(NRI!I104<>"",NRI!I104,"") ->  | I26: =IF(NRI!J104<>"",NRI!J104,"") ->  | J26: =IF(NRI!K104<>"",NRI!K104,"") ->  | K26: =IF(NRI!L104<>"",NRI!L104,"") ->  | L26: =IF(NRI!M104<>"",NRI!M104,"") ->  | M26: =IF(NRI!N104<>"",NRI!N104,"") ->  | O26: 23
A27: 24 | B27: =IF(NRI!C105<>"",NRI!C105,"") ->  | C27: =IF(NRI!D105<>"",NRI!D105,"") ->  | D27: =IF(NRI!E105<>"",NRI!E105,"") ->  | E27: =IF(NRI!F105<>"",NRI!F105,"") ->  | F27: =IF(NRI!G105<>"",NRI!G105,"") ->  | G27: =IF(NRI!H105<>"",NRI!H105,"") ->  | H27: =IF(NRI!I105<>"",NRI!I105,"") ->  | I27: =IF(NRI!J105<>"",NRI!J105,"") ->  | J27: =IF(NRI!K105<>"",NRI!K105,"") ->  | K27: =IF(NRI!L105<>"",NRI!L105,"") ->  | L27: =IF(NRI!M105<>"",NRI!M105,"") ->  | M27: =IF(NRI!N105<>"",NRI!N105,"") ->  | O27: 24
A28: 25 | B28: =IF(NRI!C106<>"",NRI!C106,"") ->  | C28: =IF(NRI!D106<>"",NRI!D106,"") ->  | D28: =IF(NRI!E106<>"",NRI!E106,"") ->  | E28: =IF(NRI!F106<>"",NRI!F106,"") ->  | F28: =IF(NRI!G106<>"",NRI!G106,"") ->  | G28: =IF(NRI!H106<>"",NRI!H106,"") ->  | H28: =IF(NRI!I106<>"",NRI!I106,"") ->  | I28: =IF(NRI!J106<>"",NRI!J106,"") ->  | J28: =IF(NRI!K106<>"",NRI!K106,"") ->  | K28: =IF(NRI!L106<>"",NRI!L106,"") ->  | L28: =IF(NRI!M106<>"",NRI!M106,"") ->  | M28: =IF(NRI!N106<>"",NRI!N106,"") ->  | O28: 25
A29: 26 | B29: =IF(NRI!C107<>"",NRI!C107,"") ->  | C29: =IF(NRI!D107<>"",NRI!D107,"") ->  | D29: =IF(NRI!E107<>"",NRI!E107,"") ->  | E29: =IF(NRI!F107<>"",NRI!F107,"") ->  | F29: =IF(NRI!G107<>"",NRI!G107,"") ->  | G29: =IF(NRI!H107<>"",NRI!H107,"") ->  | H29: =IF(NRI!I107<>"",NRI!I107,"") ->  | I29: =IF(NRI!J107<>"",NRI!J107,"") ->  | J29: =IF(NRI!K107<>"",NRI!K107,"") ->  | K29: =IF(NRI!L107<>"",NRI!L107,"") ->  | L29: =IF(NRI!M107<>"",NRI!M107,"") ->  | M29: =IF(NRI!N107<>"",NRI!N107,"") ->  | O29: 26
A30: 27 | B30: =IF(NRI!C108<>"",NRI!C108,"") ->  | C30: =IF(NRI!D108<>"",NRI!D108,"") ->  | D30: =IF(NRI!E108<>"",NRI!E108,"") ->  | E30: =IF(NRI!F108<>"",NRI!F108,"") ->  | F30: =IF(NRI!G108<>"",NRI!G108,"") ->  | G30: =IF(NRI!H108<>"",NRI!H108,"") ->  | H30: =IF(NRI!I108<>"",NRI!I108,"") ->  | I30: =IF(NRI!J108<>"",NRI!J108,"") ->  | J30: =IF(NRI!K108<>"",NRI!K108,"") ->  | K30: =IF(NRI!L108<>"",NRI!L108,"") ->  | L30: =IF(NRI!M108<>"",NRI!M108,"") ->  | M30: =IF(NRI!N108<>"",NRI!N108,"") ->  | O30: 27
A31: 28 | B31: =IF(NRI!C109<>"",NRI!C109,"") ->  | C31: =IF(NRI!D109<>"",NRI!D109,"") ->  | D31: =IF(NRI!E109<>"",NRI!E109,"") ->  | E31: =IF(NRI!F109<>"",NRI!F109,"") ->  | F31: =IF(NRI!G109<>"",NRI!G109,"") ->  | G31: =IF(NRI!H109<>"",NRI!H109,"") ->  | H31: =IF(NRI!I109<>"",NRI!I109,"") ->  | I31: =IF(NRI!J109<>"",NRI!J109,"") ->  | J31: =IF(NRI!K109<>"",NRI!K109,"") ->  | K31: =IF(NRI!L109<>"",NRI!L109,"") ->  | L31: =IF(NRI!M109<>"",NRI!M109,"") ->  | M31: =IF(NRI!N109<>"",NRI!N109,"") ->  | O31: 28
A32: 29 | B32: =IF(NRI!C110<>"",NRI!C110,"") ->  | C32: =IF(NRI!D110<>"",NRI!D110,"") ->  | D32: =IF(NRI!E110<>"",NRI!E110,"") ->  | E32: =IF(NRI!F110<>"",NRI!F110,"") ->  | F32: =IF(NRI!G110<>"",NRI!G110,"") ->  | G32: =IF(NRI!H110<>"",NRI!H110,"") ->  | H32: =IF(NRI!I110<>"",NRI!I110,"") ->  | I32: =IF(NRI!J110<>"",NRI!J110,"") ->  | J32: =IF(NRI!K110<>"",NRI!K110,"") ->  | K32: =IF(NRI!L110<>"",NRI!L110,"") ->  | L32: =IF(NRI!M110<>"",NRI!M110,"") ->  | M32: =IF(NRI!N110<>"",NRI!N110,"") ->  | O32: 29
A33: 30 | B33: =IF(NRI!C111<>"",NRI!C111,"") ->  | C33: =IF(NRI!D111<>"",NRI!D111,"") ->  | D33: =IF(NRI!E111<>"",NRI!E111,"") ->  | E33: =IF(NRI!F111<>"",NRI!F111,"") ->  | F33: =IF(NRI!G111<>"",NRI!G111,"") ->  | G33: =IF(NRI!H111<>"",NRI!H111,"") ->  | H33: =IF(NRI!I111<>"",NRI!I111,"") ->  | I33: =IF(NRI!J111<>"",NRI!J111,"") ->  | J33: =IF(NRI!K111<>"",NRI!K111,"") ->  | K33: =IF(NRI!L111<>"",NRI!L111,"") ->  | L33: =IF(NRI!M111<>"",NRI!M111,"") ->  | M33: =IF(NRI!N111<>"",NRI!N111,"") ->  | O33: 30
A34: 31 | B34: =IF(NRI!C112<>"",NRI!C112,"") ->  | C34: =IF(NRI!D112<>"",NRI!D112,"") ->  | D34: =IF(NRI!E112<>"",NRI!E112,"") ->  | E34: =IF(NRI!F112<>"",NRI!F112,"") ->  | F34: =IF(NRI!G112<>"",NRI!G112,"") ->  | G34: =IF(NRI!H112<>"",NRI!H112,"") ->  | H34: =IF(NRI!I112<>"",NRI!I112,"") ->  | I34: =IF(NRI!J112<>"",NRI!J112,"") ->  | J34: =IF(NRI!K112<>"",NRI!K112,"") ->  | K34: =IF(NRI!L112<>"",NRI!L112,"") ->  | L34: =IF(NRI!M112<>"",NRI!M112,"") ->  | M34: =IF(NRI!N112<>"",NRI!N112,"") ->  | O34: 31
A35: 32 | B35: =IF(NRI!C113<>"",NRI!C113,"") ->  | C35: =IF(NRI!D113<>"",NRI!D113,"") ->  | D35: =IF(NRI!E113<>"",NRI!E113,"") ->  | E35: =IF(NRI!F113<>"",NRI!F113,"") ->  | F35: =IF(NRI!G113<>"",NRI!G113,"") ->  | G35: =IF(NRI!H113<>"",NRI!H113,"") ->  | H35: =IF(NRI!I113<>"",NRI!I113,"") ->  | I35: =IF(NRI!J113<>"",NRI!J113,"") ->  | J35: =IF(NRI!K113<>"",NRI!K113,"") ->  | K35: =IF(NRI!L113<>"",NRI!L113,"") ->  | L35: =IF(NRI!M113<>"",NRI!M113,"") ->  | M35: =IF(NRI!N113<>"",NRI!N113,"") ->  | O35: 32
A36: 33 | B36: =IF(NRI!C114<>"",NRI!C114,"") ->  | C36: =IF(NRI!D114<>"",NRI!D114,"") ->  | D36: =IF(NRI!E114<>"",NRI!E114,"") ->  | E36: =IF(NRI!F114<>"",NRI!F114,"") ->  | F36: =IF(NRI!G114<>"",NRI!G114,"") ->  | G36: =IF(NRI!H114<>"",NRI!H114,"") ->  | H36: =IF(NRI!I114<>"",NRI!I114,"") ->  | I36: =IF(NRI!J114<>"",NRI!J114,"") ->  | J36: =IF(NRI!K114<>"",NRI!K114,"") ->  | K36: =IF(NRI!L114<>"",NRI!L114,"") ->  | L36: =IF(NRI!M114<>"",NRI!M114,"") ->  | M36: =IF(NRI!N114<>"",NRI!N114,"") ->  | O36: 33 | P36: =IFERROR(B36-(1.01*B$57),"") ->  | Q36: =IFERROR(C36-(1.01*C$57),"") ->  | R36: =IFERROR(D36-(1.01*D$57),"") ->  | S36: =IFERROR(E36-(1.01*E$57),"") ->  | T36: =IFERROR(F36-(1.01*F$57),"") ->  | U36: =IFERROR(G36-(1.01*G$57),"") ->  | V36: =IFERROR(H36-(1.01*H$57),"") ->  | W36: =IFERROR(I36-(1.01*I$57),"") ->  | X36: =IFERROR(J36-(1.01*J$57),"") ->  | Y36: =IFERROR(K36-(1.01*K$57),"") ->  | Z36: =IFERROR(L36-(1.01*L$57),"") ->  | AA36: =IFERROR(M36-(1.01*M$57),"") -> 
A37: 34 | B37: =IF(NRI!C115<>"",NRI!C115,"") ->  | C37: =IF(NRI!D115<>"",NRI!D115,"") ->  | D37: =IF(NRI!E115<>"",NRI!E115,"") ->  | E37: =IF(NRI!F115<>"",NRI!F115,"") ->  | F37: =IF(NRI!G115<>"",NRI!G115,"") ->  | G37: =IF(NRI!H115<>"",NRI!H115,"") ->  | H37: =IF(NRI!I115<>"",NRI!I115,"") ->  | I37: =IF(NRI!J115<>"",NRI!J115,"") ->  | J37: =IF(NRI!K115<>"",NRI!K115,"") ->  | K37: =IF(NRI!L115<>"",NRI!L115,"") ->  | L37: =IF(NRI!M115<>"",NRI!M115,"") ->  | M37: =IF(NRI!N115<>"",NRI!N115,"") ->  | O37: 34
A38: 35 | B38: =IF(NRI!C116<>"",NRI!C116,"") ->  | C38: =IF(NRI!D116<>"",NRI!D116,"") ->  | D38: =IF(NRI!E116<>"",NRI!E116,"") ->  | E38: =IF(NRI!F116<>"",NRI!F116,"") ->  | F38: =IF(NRI!G116<>"",NRI!G116,"") ->  | G38: =IF(NRI!H116<>"",NRI!H116,"") ->  | H38: =IF(NRI!I116<>"",NRI!I116,"") ->  | I38: =IF(NRI!J116<>"",NRI!J116,"") ->  | J38: =IF(NRI!K116<>"",NRI!K116,"") ->  | K38: =IF(NRI!L116<>"",NRI!L116,"") ->  | L38: =IF(NRI!M116<>"",NRI!M116,"") ->  | M38: =IF(NRI!N116<>"",NRI!N116,"") ->  | O38: 35
A39: 36 | B39: =IF(NRI!C117<>"",NRI!C117,"") ->  | C39: =IF(NRI!D117<>"",NRI!D117,"") ->  | D39: =IF(NRI!E117<>"",NRI!E117,"") ->  | E39: =IF(NRI!F117<>"",NRI!F117,"") ->  | F39: =IF(NRI!G117<>"",NRI!G117,"") ->  | G39: =IF(NRI!H117<>"",NRI!H117,"") ->  | H39: =IF(NRI!I117<>"",NRI!I117,"") ->  | I39: =IF(NRI!J117<>"",NRI!J117,"") ->  | J39: =IF(NRI!K117<>"",NRI!K117,"") ->  | K39: =IF(NRI!L117<>"",NRI!L117,"") ->  | L39: =IF(NRI!M117<>"",NRI!M117,"") ->  | M39: =IF(NRI!N117<>"",NRI!N117,"") ->  | O39: 36
A40: 37 | B40: =IF(NRI!C118<>"",NRI!C118,"") ->  | C40: =IF(NRI!D118<>"",NRI!D118,"") ->  | D40: =IF(NRI!E118<>"",NRI!E118,"") ->  | E40: =IF(NRI!F118<>"",NRI!F118,"") ->  | F40: =IF(NRI!G118<>"",NRI!G118,"") ->  | G40: =IF(NRI!H118<>"",NRI!H118,"") ->  | H40: =IF(NRI!I118<>"",NRI!I118,"") ->  | I40: =IF(NRI!J118<>"",NRI!J118,"") ->  | J40: =IF(NRI!K118<>"",NRI!K118,"") ->  | K40: =IF(NRI!L118<>"",NRI!L118,"") ->  | L40: =IF(NRI!M118<>"",NRI!M118,"") ->  | M40: =IF(NRI!N118<>"",NRI!N118,"") ->  | O40: 37
A41: 38 | B41: =IF(NRI!C119<>"",NRI!C119,"") ->  | C41: =IF(NRI!D119<>"",NRI!D119,"") ->  | D41: =IF(NRI!E119<>"",NRI!E119,"") ->  | E41: =IF(NRI!F119<>"",NRI!F119,"") ->  | F41: =IF(NRI!G119<>"",NRI!G119,"") ->  | G41: =IF(NRI!H119<>"",NRI!H119,"") ->  | H41: =IF(NRI!I119<>"",NRI!I119,"") ->  | I41: =IF(NRI!J119<>"",NRI!J119,"") ->  | J41: =IF(NRI!K119<>"",NRI!K119,"") ->  | K41: =IF(NRI!L119<>"",NRI!L119,"") ->  | L41: =IF(NRI!M119<>"",NRI!M119,"") ->  | M41: =IF(NRI!N119<>"",NRI!N119,"") ->  | O41: 38
A42: 39 | B42: =IF(NRI!C120<>"",NRI!C120,"") ->  | C42: =IF(NRI!D120<>"",NRI!D120,"") ->  | D42: =IF(NRI!E120<>"",NRI!E120,"") ->  | E42: =IF(NRI!F120<>"",NRI!F120,"") ->  | F42: =IF(NRI!G120<>"",NRI!G120,"") ->  | G42: =IF(NRI!H120<>"",NRI!H120,"") ->  | H42: =IF(NRI!I120<>"",NRI!I120,"") ->  | I42: =IF(NRI!J120<>"",NRI!J120,"") ->  | J42: =IF(NRI!K120<>"",NRI!K120,"") ->  | K42: =IF(NRI!L120<>"",NRI!L120,"") ->  | L42: =IF(NRI!M120<>"",NRI!M120,"") ->  | M42: =IF(NRI!N120<>"",NRI!N120,"") ->  | O42: 39
A43: 40 | B43: =IF(NRI!C121<>"",NRI!C121,"") ->  | C43: =IF(NRI!D121<>"",NRI!D121,"") ->  | D43: =IF(NRI!E121<>"",NRI!E121,"") ->  | E43: =IF(NRI!F121<>"",NRI!F121,"") ->  | F43: =IF(NRI!G121<>"",NRI!G121,"") ->  | G43: =IF(NRI!H121<>"",NRI!H121,"") ->  | H43: =IF(NRI!I121<>"",NRI!I121,"") ->  | I43: =IF(NRI!J121<>"",NRI!J121,"") ->  | J43: =IF(NRI!K121<>"",NRI!K121,"") ->  | K43: =IF(NRI!L121<>"",NRI!L121,"") ->  | L43: =IF(NRI!M121<>"",NRI!M121,"") ->  | M43: =IF(NRI!N121<>"",NRI!N121,"") ->  | O43: 40
A44: 41 | B44: =IF(NRI!C122<>"",NRI!C122,"") ->  | C44: =IF(NRI!D122<>"",NRI!D122,"") ->  | D44: =IF(NRI!E122<>"",NRI!E122,"") ->  | E44: =IF(NRI!F122<>"",NRI!F122,"") ->  | F44: =IF(NRI!G122<>"",NRI!G122,"") ->  | G44: =IF(NRI!H122<>"",NRI!H122,"") ->  | H44: =IF(NRI!I122<>"",NRI!I122,"") ->  | I44: =IF(NRI!J122<>"",NRI!J122,"") ->  | J44: =IF(NRI!K122<>"",NRI!K122,"") ->  | K44: =IF(NRI!L122<>"",NRI!L122,"") ->  | L44: =IF(NRI!M122<>"",NRI!M122,"") ->  | M44: =IF(NRI!N122<>"",NRI!N122,"") ->  | O44: 41
A45: 42 | B45: =IF(NRI!C123<>"",NRI!C123,"") ->  | C45: =IF(NRI!D123<>"",NRI!D123,"") ->  | D45: =IF(NRI!E123<>"",NRI!E123,"") ->  | E45: =IF(NRI!F123<>"",NRI!F123,"") ->  | F45: =IF(NRI!G123<>"",NRI!G123,"") ->  | G45: =IF(NRI!H123<>"",NRI!H123,"") ->  | H45: =IF(NRI!I123<>"",NRI!I123,"") ->  | I45: =IF(NRI!J123<>"",NRI!J123,"") ->  | J45: =IF(NRI!K123<>"",NRI!K123,"") ->  | K45: =IF(NRI!L123<>"",NRI!L123,"") ->  | L45: =IF(NRI!M123<>"",NRI!M123,"") ->  | M45: =IF(NRI!N123<>"",NRI!N123,"") ->  | O45: 42
A46: 43 | B46: =IF(NRI!C124<>"",NRI!C124,"") ->  | C46: =IF(NRI!D124<>"",NRI!D124,"") ->  | D46: =IF(NRI!E124<>"",NRI!E124,"") ->  | E46: =IF(NRI!F124<>"",NRI!F124,"") ->  | F46: =IF(NRI!G124<>"",NRI!G124,"") ->  | G46: =IF(NRI!H124<>"",NRI!H124,"") ->  | H46: =IF(NRI!I124<>"",NRI!I124,"") ->  | I46: =IF(NRI!J124<>"",NRI!J124,"") ->  | J46: =IF(NRI!K124<>"",NRI!K124,"") ->  | K46: =IF(NRI!L124<>"",NRI!L124,"") ->  | L46: =IF(NRI!M124<>"",NRI!M124,"") ->  | M46: =IF(NRI!N124<>"",NRI!N124,"") ->  | O46: 43
A47: 44 | B47: =IF(NRI!C125<>"",NRI!C125,"") ->  | C47: =IF(NRI!D125<>"",NRI!D125,"") ->  | D47: =IF(NRI!E125<>"",NRI!E125,"") ->  | E47: =IF(NRI!F125<>"",NRI!F125,"") ->  | F47: =IF(NRI!G125<>"",NRI!G125,"") ->  | G47: =IF(NRI!H125<>"",NRI!H125,"") ->  | H47: =IF(NRI!I125<>"",NRI!I125,"") ->  | I47: =IF(NRI!J125<>"",NRI!J125,"") ->  | J47: =IF(NRI!K125<>"",NRI!K125,"") ->  | K47: =IF(NRI!L125<>"",NRI!L125,"") ->  | L47: =IF(NRI!M125<>"",NRI!M125,"") ->  | M47: =IF(NRI!N125<>"",NRI!N125,"") ->  | O47: 44
A48: 45 | B48: =IF(NRI!C126<>"",NRI!C126,"") ->  | C48: =IF(NRI!D126<>"",NRI!D126,"") ->  | D48: =IF(NRI!E126<>"",NRI!E126,"") ->  | E48: =IF(NRI!F126<>"",NRI!F126,"") ->  | F48: =IF(NRI!G126<>"",NRI!G126,"") ->  | G48: =IF(NRI!H126<>"",NRI!H126,"") ->  | H48: =IF(NRI!I126<>"",NRI!I126,"") ->  | I48: =IF(NRI!J126<>"",NRI!J126,"") ->  | J48: =IF(NRI!K126<>"",NRI!K126,"") ->  | K48: =IF(NRI!L126<>"",NRI!L126,"") ->  | L48: =IF(NRI!M126<>"",NRI!M126,"") ->  | M48: =IF(NRI!N126<>"",NRI!N126,"") ->  | O48: 45
A49: 46 | B49: =IF(NRI!C127<>"",NRI!C127,"") ->  | C49: =IF(NRI!D127<>"",NRI!D127,"") ->  | D49: =IF(NRI!E127<>"",NRI!E127,"") ->  | E49: =IF(NRI!F127<>"",NRI!F127,"") ->  | F49: =IF(NRI!G127<>"",NRI!G127,"") ->  | G49: =IF(NRI!H127<>"",NRI!H127,"") ->  | H49: =IF(NRI!I127<>"",NRI!I127,"") ->  | I49: =IF(NRI!J127<>"",NRI!J127,"") ->  | J49: =IF(NRI!K127<>"",NRI!K127,"") ->  | K49: =IF(NRI!L127<>"",NRI!L127,"") ->  | L49: =IF(NRI!M127<>"",NRI!M127,"") ->  | M49: =IF(NRI!N127<>"",NRI!N127,"") ->  | O49: 46
A50: 47 | B50: =IF(NRI!C128<>"",NRI!C128,"") ->  | C50: =IF(NRI!D128<>"",NRI!D128,"") ->  | D50: =IF(NRI!E128<>"",NRI!E128,"") ->  | E50: =IF(NRI!F128<>"",NRI!F128,"") ->  | F50: =IF(NRI!G128<>"",NRI!G128,"") ->  | G50: =IF(NRI!H128<>"",NRI!H128,"") ->  | H50: =IF(NRI!I128<>"",NRI!I128,"") ->  | I50: =IF(NRI!J128<>"",NRI!J128,"") ->  | J50: =IF(NRI!K128<>"",NRI!K128,"") ->  | K50: =IF(NRI!L128<>"",NRI!L128,"") ->  | L50: =IF(NRI!M128<>"",NRI!M128,"") ->  | M50: =IF(NRI!N128<>"",NRI!N128,"") ->  | O50: 47
A51: 48 | B51: =IF(NRI!C129<>"",NRI!C129,"") ->  | C51: =IF(NRI!D129<>"",NRI!D129,"") ->  | D51: =IF(NRI!E129<>"",NRI!E129,"") ->  | E51: =IF(NRI!F129<>"",NRI!F129,"") ->  | F51: =IF(NRI!G129<>"",NRI!G129,"") ->  | G51: =IF(NRI!H129<>"",NRI!H129,"") ->  | H51: =IF(NRI!I129<>"",NRI!I129,"") ->  | I51: =IF(NRI!J129<>"",NRI!J129,"") ->  | J51: =IF(NRI!K129<>"",NRI!K129,"") ->  | K51: =IF(NRI!L129<>"",NRI!L129,"") ->  | L51: =IF(NRI!M129<>"",NRI!M129,"") ->  | M51: =IF(NRI!N129<>"",NRI!N129,"") ->  | O51: 48
A52: 49 | B52: =IF(NRI!C130<>"",NRI!C130,"") ->  | C52: =IF(NRI!D130<>"",NRI!D130,"") ->  | D52: =IF(NRI!E130<>"",NRI!E130,"") ->  | E52: =IF(NRI!F130<>"",NRI!F130,"") ->  | F52: =IF(NRI!G130<>"",NRI!G130,"") ->  | G52: =IF(NRI!H130<>"",NRI!H130,"") ->  | H52: =IF(NRI!I130<>"",NRI!I130,"") ->  | I52: =IF(NRI!J130<>"",NRI!J130,"") ->  | J52: =IF(NRI!K130<>"",NRI!K130,"") ->  | K52: =IF(NRI!L130<>"",NRI!L130,"") ->  | L52: =IF(NRI!M130<>"",NRI!M130,"") ->  | M52: =IF(NRI!N130<>"",NRI!N130,"") ->  | O52: 49
A53: 50 | B53: =IF(NRI!C131<>"",NRI!C131,"") ->  | C53: =IF(NRI!D131<>"",NRI!D131,"") ->  | D53: =IF(NRI!E131<>"",NRI!E131,"") ->  | E53: =IF(NRI!F131<>"",NRI!F131,"") ->  | F53: =IF(NRI!G131<>"",NRI!G131,"") ->  | G53: =IF(NRI!H131<>"",NRI!H131,"") ->  | H53: =IF(NRI!I131<>"",NRI!I131,"") ->  | I53: =IF(NRI!J131<>"",NRI!J131,"") ->  | J53: =IF(NRI!K131<>"",NRI!K131,"") ->  | K53: =IF(NRI!L131<>"",NRI!L131,"") ->  | L53: =IF(NRI!M131<>"",NRI!M131,"") ->  | M53: =IF(NRI!N131<>"",NRI!N131,"") ->  | O53: 50
A54: Mean | B54: =AVERAGE(B4:B53) ->  | I54: =AVERAGE(I4:I53) ->  | J54: =AVERAGE(J4:J53) ->  | K54: =AVERAGE(K4:K53) ->  | L54: =AVERAGE(L4:L53) ->  | M54: =AVERAGE(M4:M53) ->  | O54: Mean | P54: =AVERAGE(P4:P53) ->  | W54: =AVERAGE(W4:W53) ->  | X54: =AVERAGE(X4:X53) ->  | Y54: =AVERAGE(Y4:Y53) ->  | Z54: =AVERAGE(Z4:Z53) ->  | AA54: =AVERAGE(AA4:AA53) -> 
A55: Stdev. | B55: =STDEV(B4:B53) ->  | C55: =STDEV(C4:C53) ->  | I55: =STDEV(I4:I53) ->  | J55: =STDEV(J4:J53) ->  | K55: =STDEV(K4:K53) ->  | L55: =STDEV(L4:L53) ->  | M55: =STDEV(M4:M53) ->  | O55: Stdev. | P55: =STDEV(P4:P53) -> 
A56: Skewness | B56: =SKEW(B4:B53) ->  | C56: =SKEW(C4:C53) ->  | I56: =SKEW(I4:I53) ->  | J56: =SKEW(J4:J53) ->  | K56: =SKEW(K4:K53) ->  | L56: =SKEW(L4:L53) ->  | M56: =SKEW(M4:M53) ->  | O56: Skewness | P56: =SKEW(P4:P53) -> 
A57: Min | B57: =MIN(B4:B53) -> 0 | C57: =MIN(C4:C53) -> 0 | D57: 0 | E57: 0 | F57: 0 | G57: 0 | H57: 0 | I57: 0 | J57: 0 | K57: 0 | L57: 0 | M57: 0
O58: Step 5. Gumbel distribution is selected
O59: Parameter | P59: Jan | Q59: Feb | R59: Mar | S59: Apr | T59: May | U59: Jun | V59: Jul | W59: Aug | X59: Sep | Y59: Oct | Z59: Nov | AA59: Dec
O60: Xo | P60: =P54-0.45*P55 -> 
O61: alpha | P61: =0.7797*P55 -> 
O63: Step 6. Find VBUFt_Xt at the specific risk values
O64: Risk | P64: Jan | Q64: Feb | R64: Mar | S64: Apr | T64: May | U64: Jun | V64: Jul | W64: Aug | X64: Sep | Y64: Oct | Z64: Nov | AA64: Dec
O65: ='URC POP'!A96 -> 0.05 | P65: =P$54+'URC POP'!$C$96*P$55 ->  | Q65: =Q$54+'URC POP'!$C$96*Q$55 ->  | R65: =R$54+'URC POP'!$C$96*R$55 ->  | S65: =S$54+'URC POP'!$C$96*S$55 ->  | T65: =T$54+'URC POP'!$C$96*T$55 ->  | U65: =U$54+'URC POP'!$C$96*U$55 ->  | V65: =V$54+'URC POP'!$C$96*V$55 ->  | W65: =W$54+'URC POP'!$C$96*W$55 ->  | X65: =X$54+'URC POP'!$C$96*X$55 ->  | Y65: =Y$54+'URC POP'!$C$96*Y$55 ->  | Z65: =Z$54+'URC POP'!$C$96*Z$55 ->  | AA65: =AA$54+'URC POP'!$C$96*AA$55 -> 
O66: ='URC POP'!A97 -> 0.1 | P66: =P$54+'URC POP'!$C$97*P$55 ->  | Q66: =Q$54+'URC POP'!$C$97*Q$55 ->  | R66: =R$54+'URC POP'!$C$97*R$55 ->  | S66: =S$54+'URC POP'!$C$97*S$55 ->  | T66: =T$54+'URC POP'!$C$97*T$55 ->  | U66: =U$54+'URC POP'!$C$97*U$55 ->  | V66: =V$54+'URC POP'!$C$97*V$55 ->  | W66: =W$54+'URC POP'!$C$97*W$55 ->  | X66: =X$54+'URC POP'!$C$97*X$55 ->  | Y66: =Y$54+'URC POP'!$C$97*Y$55 ->  | Z66: =Z$54+'URC POP'!$C$97*Z$55 ->  | AA66: =AA$54+'URC POP'!$C$97*AA$55 -> 
O67: ='URC POP'!A98 -> 0.15 | P67: =P$54+'URC POP'!$C$98*P$55 ->  | Q67: =Q$54+'URC POP'!$C$98*Q$55 ->  | R67: =R$54+'URC POP'!$C$98*R$55 ->  | S67: =S$54+'URC POP'!$C$98*S$55 ->  | T67: =T$54+'URC POP'!$C$98*T$55 ->  | U67: =U$54+'URC POP'!$C$98*U$55 ->  | V67: =V$54+'URC POP'!$C$98*V$55 ->  | W67: =W$54+'URC POP'!$C$98*W$55 ->  | X67: =X$54+'URC POP'!$C$98*X$55 ->  | Y67: =Y$54+'URC POP'!$C$98*Y$55 ->  | Z67: =Z$54+'URC POP'!$C$98*Z$55 ->  | AA67: =AA$54+'URC POP'!$C$98*AA$55 -> 
O68: ='URC POP'!A99 -> 0.2 | P68: =P$54+'URC POP'!$C$99*P$55 ->  | Q68: =Q$54+'URC POP'!$C$99*Q$55 ->  | R68: =R$54+'URC POP'!$C$99*R$55 ->  | S68: =S$54+'URC POP'!$C$99*S$55 ->  | T68: =T$54+'URC POP'!$C$99*T$55 ->  | U68: =U$54+'URC POP'!$C$99*U$55 ->  | V68: =V$54+'URC POP'!$C$99*V$55 ->  | W68: =W$54+'URC POP'!$C$99*W$55 ->  | X68: =X$54+'URC POP'!$C$99*X$55 ->  | Y68: =Y$54+'URC POP'!$C$99*Y$55 ->  | Z68: =Z$54+'URC POP'!$C$99*Z$55 ->  | AA68: =AA$54+'URC POP'!$C$99*AA$55 -> 
O70: Step 7. Retransform VBUFt)_Yt into VBUFt_Xt
O71: Risk | P71: Jan | Q71: Feb | R71: Mar | S71: Apr | T71: May | U71: Jun | V71: Jul | W71: Aug | X71: Sep | Y71: Oct | Z71: Nov | AA71: Dec
O72: ='URC POP'!A96 -> 0.05 | P72: =P65+(1.01*B$57) -> 
O73: ='URC POP'!A97 -> 0.1 | P73: =P66+(1.01*B$57) ->  | R73: =R66+(1.01*D$57) -> 
O74: ='URC POP'!A98 -> 0.15
O75: ='URC POP'!A99 -> 0.2
O77: Year | P77: LRC
P78: ='URC POP'!A96 -> 0.05 | Q78: ='URC POP'!A97 -> 0.1 | R78: ='URC POP'!A98 -> 0.15 | S78: ='URC POP'!A99 -> 0.2
O79: Jan | P79: =IF(P$72>0,P$72+NRI!$P$3,NRI!$P$3) ->  | Q79: =IF(P$73>0,P$73+NRI!$P$3,NRI!$P$3) ->  | R79: =IF(P$74>0,P$74+NRI!$P$3,NRI!$P$3) ->  | S79: =IF(P$75>0,P$75+NRI!$P$3,NRI!$P$3) -> 
O80: Feb | P80: =IF(Q$72>0,Q$72+NRI!$P$3,NRI!$P$3) ->  | Q80: =IF(Q$73>0,Q$73+NRI!$P$3,NRI!$P$3) ->  | R80: =IF(Q$74>0,Q$74+NRI!$P$3,NRI!$P$3) ->  | S80: =IF(Q$75>0,Q$75+NRI!$P$3,NRI!$P$3) -> 
O81: Mar | P81: =IF(R$72>0,R$72+NRI!$P$3,NRI!$P$3) ->  | Q81: =IF(R$73>0,R$73+NRI!$P$3,NRI!$P$3) ->  | R81: =IF(R$74>0,R$74+NRI!$P$3,NRI!$P$3) ->  | S81: =IF(R$75>0,R$75+NRI!$P$3,NRI!$P$3) -> 
O82: Apr | P82: =IF(S$72>0,S$72+NRI!$P$3,NRI!$P$3) ->  | Q82: =IF(S$73>0,S$73+NRI!$P$3,NRI!$P$3) ->  | R82: =IF(S$74>0,S$74+NRI!$P$3,NRI!$P$3) ->  | S82: =IF(S$75>0,S$75+NRI!$P$3,NRI!$P$3) -> 
O83: May | P83: =IF(T$72>0,T$72+NRI!$P$3,NRI!$P$3) ->  | Q83: =IF(T$73>0,T$73+NRI!$P$3,NRI!$P$3) ->  | R83: =IF(T$74>0,T$74+NRI!$P$3,NRI!$P$3) ->  | S83: =IF(T$75>0,T$75+NRI!$P$3,NRI!$P$3) -> 
O84: Jun | P84: =IF(U$72>0,U$72+NRI!$P$3,NRI!$P$3) ->  | Q84: =IF(U$73>0,U$73+NRI!$P$3,NRI!$P$3) ->  | R84: =IF(U$74>0,U$74+NRI!$P$3,NRI!$P$3) ->  | S84: =IF(U$75>0,U$75+NRI!$P$3,NRI!$P$3) -> 
O85: Jul | P85: =IF(V$72>0,V$72+NRI!$P$3,NRI!$P$3) ->  | Q85: =IF(V$73>0,V$73+NRI!$P$3,NRI!$P$3) ->  | R85: =IF(V$74>0,V$74+NRI!$P$3,NRI!$P$3) ->  | S85: =IF(V$75>0,V$75+NRI!$P$3,NRI!$P$3) -> 
O86: Aug | P86: =IF(W$72>0,W$72+NRI!$P$3,NRI!$P$3) ->  | Q86: =IF(W$73>0,W$73+NRI!$P$3,NRI!$P$3) ->  | R86: =IF(W$74>0,W$74+NRI!$P$3,NRI!$P$3) ->  | S86: =IF(W$75>0,W$75+NRI!$P$3,NRI!$P$3) -> 
O87: Sep | P87: =IF(X$72>0,X$72+NRI!$P$3,NRI!$P$3) ->  | Q87: =IF(X$73>0,X$73+NRI!$P$3,NRI!$P$3) ->  | R87: =IF(X$74>0,X$74+NRI!$P$3,NRI!$P$3) ->  | S87: =IF(X$75>0,X$75+NRI!$P$3,NRI!$P$3) -> 
O88: Oct | P88: =IF(Y$72>0,Y$72+NRI!$P$3,NRI!$P$3) ->  | Q88: =IF(Y$73>0,Y$73+NRI!$P$3,NRI!$P$3) ->  | R88: =IF(Y$74>0,Y$74+NRI!$P$3,NRI!$P$3) ->  | S88: =IF(Y$75>0,Y$75+NRI!$P$3,NRI!$P$3) -> 
O89: Nov | P89: =IF(Z$72>0,Z$72+NRI!$P$3,NRI!$P$3) ->  | Q89: =IF(Z$73>0,Z$73+NRI!$P$3,NRI!$P$3) ->  | R89: =IF(Z$74>0,Z$74+NRI!$P$3,NRI!$P$3) ->  | S89: =IF(Z$75>0,Z$75+NRI!$P$3,NRI!$P$3) -> 
O90: Dec | P90: =IF(AA$72>0,AA$72+NRI!$P$3,NRI!$P$3) ->  | Q90: =IF(AA$73>0,AA$73+NRI!$P$3,NRI!$P$3) ->  | R90: =IF(AA$74>0,AA$74+NRI!$P$3,NRI!$P$3) ->  | S90: =IF(AA$75>0,AA$75+NRI!$P$3,NRI!$P$3) -> 

Sheet NRI (Manual) (hidden)
B1: 1
A2: Monthly NRI | B2: ม.ค. | C2: ก.พ. | D2: มี.ค. | E2: เม.ย. | F2: พ.ค. | G2: มิ.ย. | H2: ก.ค. | I2: ส.ค. | J2: ก.ย. | K2: ต.ค. | L2: พ.ย. | M2: ธ.ค.
A3: Year/Month | B3: Jan | C3: Feb | D3: Mar | E3: Apr | F3: May | G3: Jun | H3: Jul | I3: Aug | J3: Sep | K3: Oct | L3: Nov | M3: Dec
A4: ='หา NRI'!D3 -> 1986 | B4: =IF(NRI!B4<>"",NRI!B4,"") ->  | C4: =IF(NRI!C4<>"",NRI!C4,"") ->  | D4: =IF(NRI!D4<>"",NRI!D4,"") ->  | E4: =IF(NRI!E4<>"",NRI!E4,"") ->  | F4: =IF(NRI!F4<>"",NRI!F4,"") ->  | G4: =IF(NRI!G4<>"",NRI!G4,"") ->  | H4: =IF(NRI!H4<>"",NRI!H4,"") ->  | I4: =IF(NRI!I4<>"",NRI!I4,"") ->  | J4: =IF(NRI!J4<>"",NRI!J4,"") ->  | K4: =IF(NRI!K4<>"",NRI!K4,"") ->  | L4: =IF(NRI!L4<>"",NRI!L4,"") ->  | M4: =IF(NRI!M4<>"",NRI!M4,"") -> 
A5: =A4+1 -> 1987 | B5: =IF(NRI!B5<>"",NRI!B5,"") ->  | C5: =IF(NRI!C5<>"",NRI!C5,"") ->  | D5: =IF(NRI!D5<>"",NRI!D5,"") ->  | E5: =IF(NRI!E5<>"",NRI!E5,"") ->  | F5: =IF(NRI!F5<>"",NRI!F5,"") ->  | G5: =IF(NRI!G5<>"",NRI!G5,"") ->  | H5: =IF(NRI!H5<>"",NRI!H5,"") ->  | I5: =IF(NRI!I5<>"",NRI!I5,"") ->  | J5: =IF(NRI!J5<>"",NRI!J5,"") ->  | K5: =IF(NRI!K5<>"",NRI!K5,"") ->  | L5: =IF(NRI!L5<>"",NRI!L5,"") ->  | M5: =IF(NRI!M5<>"",NRI!M5,"") -> 
A6: 1988 | B6: =IF(NRI!B6<>"",NRI!B6,"") ->  | C6: =IF(NRI!C6<>"",NRI!C6,"") ->  | D6: =IF(NRI!D6<>"",NRI!D6,"") ->  | E6: =IF(NRI!E6<>"",NRI!E6,"") ->  | F6: =IF(NRI!F6<>"",NRI!F6,"") ->  | G6: =IF(NRI!G6<>"",NRI!G6,"") ->  | H6: =IF(NRI!H6<>"",NRI!H6,"") ->  | I6: =IF(NRI!I6<>"",NRI!I6,"") ->  | J6: =IF(NRI!J6<>"",NRI!J6,"") ->  | K6: =IF(NRI!K6<>"",NRI!K6,"") ->  | L6: =IF(NRI!L6<>"",NRI!L6,"") ->  | M6: =IF(NRI!M6<>"",NRI!M6,"") -> 
A7: 1989 | B7: =IF(NRI!B7<>"",NRI!B7,"") ->  | C7: =IF(NRI!C7<>"",NRI!C7,"") ->  | D7: =IF(NRI!D7<>"",NRI!D7,"") ->  | E7: =IF(NRI!E7<>"",NRI!E7,"") ->  | F7: =IF(NRI!F7<>"",NRI!F7,"") ->  | G7: =IF(NRI!G7<>"",NRI!G7,"") ->  | H7: =IF(NRI!H7<>"",NRI!H7,"") ->  | I7: =IF(NRI!I7<>"",NRI!I7,"") ->  | J7: =IF(NRI!J7<>"",NRI!J7,"") ->  | K7: =IF(NRI!K7<>"",NRI!K7,"") ->  | L7: =IF(NRI!L7<>"",NRI!L7,"") ->  | M7: =IF(NRI!M7<>"",NRI!M7,"") -> 
A8: 1990 | B8: =IF(NRI!B8<>"",NRI!B8,"") ->  | C8: =IF(NRI!C8<>"",NRI!C8,"") ->  | D8: =IF(NRI!D8<>"",NRI!D8,"") ->  | E8: =IF(NRI!E8<>"",NRI!E8,"") ->  | F8: =IF(NRI!F8<>"",NRI!F8,"") ->  | G8: =IF(NRI!G8<>"",NRI!G8,"") ->  | H8: =IF(NRI!H8<>"",NRI!H8,"") ->  | I8: =IF(NRI!I8<>"",NRI!I8,"") ->  | J8: =IF(NRI!J8<>"",NRI!J8,"") ->  | K8: =IF(NRI!K8<>"",NRI!K8,"") ->  | L8: =IF(NRI!L8<>"",NRI!L8,"") ->  | M8: =IF(NRI!M8<>"",NRI!M8,"") -> 
A9: 1991 | B9: =IF(NRI!B9<>"",NRI!B9,"") ->  | C9: =IF(NRI!C9<>"",NRI!C9,"") ->  | D9: =IF(NRI!D9<>"",NRI!D9,"") ->  | E9: =IF(NRI!E9<>"",NRI!E9,"") ->  | F9: =IF(NRI!F9<>"",NRI!F9,"") ->  | G9: =IF(NRI!G9<>"",NRI!G9,"") ->  | H9: =IF(NRI!H9<>"",NRI!H9,"") ->  | I9: =IF(NRI!I9<>"",NRI!I9,"") ->  | J9: =IF(NRI!J9<>"",NRI!J9,"") ->  | K9: =IF(NRI!K9<>"",NRI!K9,"") ->  | L9: =IF(NRI!L9<>"",NRI!L9,"") ->  | M9: =IF(NRI!M9<>"",NRI!M9,"") -> 
A10: 1992 | B10: =IF(NRI!B10<>"",NRI!B10,"") ->  | C10: =IF(NRI!C10<>"",NRI!C10,"") ->  | D10: =IF(NRI!D10<>"",NRI!D10,"") ->  | E10: =IF(NRI!E10<>"",NRI!E10,"") ->  | F10: =IF(NRI!F10<>"",NRI!F10,"") ->  | G10: =IF(NRI!G10<>"",NRI!G10,"") ->  | H10: =IF(NRI!H10<>"",NRI!H10,"") ->  | I10: =IF(NRI!I10<>"",NRI!I10,"") ->  | J10: =IF(NRI!J10<>"",NRI!J10,"") ->  | K10: =IF(NRI!K10<>"",NRI!K10,"") ->  | L10: =IF(NRI!L10<>"",NRI!L10,"") ->  | M10: =IF(NRI!M10<>"",NRI!M10,"") -> 
A11: 1993 | B11: =IF(NRI!B11<>"",NRI!B11,"") ->  | C11: =IF(NRI!C11<>"",NRI!C11,"") ->  | D11: =IF(NRI!D11<>"",NRI!D11,"") ->  | E11: =IF(NRI!E11<>"",NRI!E11,"") ->  | F11: =IF(NRI!F11<>"",NRI!F11,"") ->  | G11: =IF(NRI!G11<>"",NRI!G11,"") ->  | H11: =IF(NRI!H11<>"",NRI!H11,"") ->  | I11: =IF(NRI!I11<>"",NRI!I11,"") ->  | J11: =IF(NRI!J11<>"",NRI!J11,"") ->  | K11: =IF(NRI!K11<>"",NRI!K11,"") ->  | L11: =IF(NRI!L11<>"",NRI!L11,"") ->  | M11: =IF(NRI!M11<>"",NRI!M11,"") -> 
A12: 1994 | B12: =IF(NRI!B12<>"",NRI!B12,"") ->  | C12: =IF(NRI!C12<>"",NRI!C12,"") ->  | D12: =IF(NRI!D12<>"",NRI!D12,"") ->  | E12: =IF(NRI!E12<>"",NRI!E12,"") ->  | F12: =IF(NRI!F12<>"",NRI!F12,"") ->  | G12: =IF(NRI!G12<>"",NRI!G12,"") ->  | H12: =IF(NRI!H12<>"",NRI!H12,"") ->  | I12: =IF(NRI!I12<>"",NRI!I12,"") ->  | J12: =IF(NRI!J12<>"",NRI!J12,"") ->  | K12: =IF(NRI!K12<>"",NRI!K12,"") ->  | L12: =IF(NRI!L12<>"",NRI!L12,"") ->  | M12: =IF(NRI!M12<>"",NRI!M12,"") -> 
A13: 1995 | B13: =IF(NRI!B13<>"",NRI!B13,"") ->  | C13: =IF(NRI!C13<>"",NRI!C13,"") ->  | D13: =IF(NRI!D13<>"",NRI!D13,"") ->  | E13: =IF(NRI!E13<>"",NRI!E13,"") ->  | F13: =IF(NRI!F13<>"",NRI!F13,"") ->  | G13: =IF(NRI!G13<>"",NRI!G13,"") ->  | H13: =IF(NRI!H13<>"",NRI!H13,"") ->  | I13: =IF(NRI!I13<>"",NRI!I13,"") ->  | J13: =IF(NRI!J13<>"",NRI!J13,"") ->  | K13: =IF(NRI!K13<>"",NRI!K13,"") ->  | L13: =IF(NRI!L13<>"",NRI!L13,"") ->  | M13: =IF(NRI!M13<>"",NRI!M13,"") -> 
A14: 1996 | B14: =IF(NRI!B14<>"",NRI!B14,"") ->  | C14: =IF(NRI!C14<>"",NRI!C14,"") ->  | D14: =IF(NRI!D14<>"",NRI!D14,"") ->  | E14: =IF(NRI!E14<>"",NRI!E14,"") ->  | F14: =IF(NRI!F14<>"",NRI!F14,"") ->  | G14: =IF(NRI!G14<>"",NRI!G14,"") ->  | H14: =IF(NRI!H14<>"",NRI!H14,"") ->  | I14: =IF(NRI!I14<>"",NRI!I14,"") ->  | J14: =IF(NRI!J14<>"",NRI!J14,"") ->  | K14: =IF(NRI!K14<>"",NRI!K14,"") ->  | L14: =IF(NRI!L14<>"",NRI!L14,"") ->  | M14: =IF(NRI!M14<>"",NRI!M14,"") -> 
A15: 1997 | B15: =IF(NRI!B15<>"",NRI!B15,"") ->  | C15: =IF(NRI!C15<>"",NRI!C15,"") ->  | D15: =IF(NRI!D15<>"",NRI!D15,"") ->  | E15: =IF(NRI!E15<>"",NRI!E15,"") ->  | F15: =IF(NRI!F15<>"",NRI!F15,"") ->  | G15: =IF(NRI!G15<>"",NRI!G15,"") ->  | H15: =IF(NRI!H15<>"",NRI!H15,"") ->  | I15: =IF(NRI!I15<>"",NRI!I15,"") ->  | J15: =IF(NRI!J15<>"",NRI!J15,"") ->  | K15: =IF(NRI!K15<>"",NRI!K15,"") ->  | L15: =IF(NRI!L15<>"",NRI!L15,"") ->  | M15: =IF(NRI!M15<>"",NRI!M15,"") -> 
A16: 1998 | B16: =IF(NRI!B16<>"",NRI!B16,"") ->  | C16: =IF(NRI!C16<>"",NRI!C16,"") ->  | D16: =IF(NRI!D16<>"",NRI!D16,"") ->  | E16: =IF(NRI!E16<>"",NRI!E16,"") ->  | F16: =IF(NRI!F16<>"",NRI!F16,"") ->  | G16: =IF(NRI!G16<>"",NRI!G16,"") ->  | H16: =IF(NRI!H16<>"",NRI!H16,"") ->  | I16: =IF(NRI!I16<>"",NRI!I16,"") ->  | J16: =IF(NRI!J16<>"",NRI!J16,"") ->  | K16: =IF(NRI!K16<>"",NRI!K16,"") ->  | L16: =IF(NRI!L16<>"",NRI!L16,"") ->  | M16: =IF(NRI!M16<>"",NRI!M16,"") -> 
A17: 1999 | B17: =IF(NRI!B17<>"",NRI!B17,"") ->  | C17: =IF(NRI!C17<>"",NRI!C17,"") ->  | D17: =IF(NRI!D17<>"",NRI!D17,"") ->  | E17: =IF(NRI!E17<>"",NRI!E17,"") ->  | F17: =IF(NRI!F17<>"",NRI!F17,"") ->  | G17: =IF(NRI!G17<>"",NRI!G17,"") ->  | H17: =IF(NRI!H17<>"",NRI!H17,"") ->  | I17: =IF(NRI!I17<>"",NRI!I17,"") ->  | J17: =IF(NRI!J17<>"",NRI!J17,"") ->  | K17: =IF(NRI!K17<>"",NRI!K17,"") ->  | L17: =IF(NRI!L17<>"",NRI!L17,"") ->  | M17: =IF(NRI!M17<>"",NRI!M17,"") -> 
A18: 2000 | B18: =IF(NRI!B18<>"",NRI!B18,"") ->  | C18: =IF(NRI!C18<>"",NRI!C18,"") ->  | D18: =IF(NRI!D18<>"",NRI!D18,"") ->  | E18: =IF(NRI!E18<>"",NRI!E18,"") ->  | F18: =IF(NRI!F18<>"",NRI!F18,"") ->  | G18: =IF(NRI!G18<>"",NRI!G18,"") ->  | H18: =IF(NRI!H18<>"",NRI!H18,"") ->  | I18: =IF(NRI!I18<>"",NRI!I18,"") ->  | J18: =IF(NRI!J18<>"",NRI!J18,"") ->  | K18: =IF(NRI!K18<>"",NRI!K18,"") ->  | L18: =IF(NRI!L18<>"",NRI!L18,"") ->  | M18: =IF(NRI!M18<>"",NRI!M18,"") -> 
A19: 2001 | B19: =IF(NRI!B19<>"",NRI!B19,"") ->  | C19: =IF(NRI!C19<>"",NRI!C19,"") ->  | D19: =IF(NRI!D19<>"",NRI!D19,"") ->  | E19: =IF(NRI!E19<>"",NRI!E19,"") ->  | F19: =IF(NRI!F19<>"",NRI!F19,"") ->  | G19: =IF(NRI!G19<>"",NRI!G19,"") ->  | H19: =IF(NRI!H19<>"",NRI!H19,"") ->  | I19: =IF(NRI!I19<>"",NRI!I19,"") ->  | J19: =IF(NRI!J19<>"",NRI!J19,"") ->  | K19: =IF(NRI!K19<>"",NRI!K19,"") ->  | L19: =IF(NRI!L19<>"",NRI!L19,"") ->  | M19: =IF(NRI!M19<>"",NRI!M19,"") -> 
A20: 2002 | B20: =IF(NRI!B20<>"",NRI!B20,"") ->  | C20: =IF(NRI!C20<>"",NRI!C20,"") ->  | D20: =IF(NRI!D20<>"",NRI!D20,"") ->  | E20: =IF(NRI!E20<>"",NRI!E20,"") ->  | F20: =IF(NRI!F20<>"",NRI!F20,"") ->  | G20: =IF(NRI!G20<>"",NRI!G20,"") ->  | H20: =IF(NRI!H20<>"",NRI!H20,"") ->  | I20: =IF(NRI!I20<>"",NRI!I20,"") ->  | J20: =IF(NRI!J20<>"",NRI!J20,"") ->  | K20: =IF(NRI!K20<>"",NRI!K20,"") ->  | L20: =IF(NRI!L20<>"",NRI!L20,"") ->  | M20: =IF(NRI!M20<>"",NRI!M20,"") -> 
A21: 2003 | B21: =IF(NRI!B21<>"",NRI!B21,"") ->  | C21: =IF(NRI!C21<>"",NRI!C21,"") ->  | D21: =IF(NRI!D21<>"",NRI!D21,"") ->  | E21: =IF(NRI!E21<>"",NRI!E21,"") ->  | F21: =IF(NRI!F21<>"",NRI!F21,"") ->  | G21: =IF(NRI!G21<>"",NRI!G21,"") ->  | H21: =IF(NRI!H21<>"",NRI!H21,"") ->  | I21: =IF(NRI!I21<>"",NRI!I21,"") ->  | J21: =IF(NRI!J21<>"",NRI!J21,"") ->  | K21: =IF(NRI!K21<>"",NRI!K21,"") ->  | L21: =IF(NRI!L21<>"",NRI!L21,"") ->  | M21: =IF(NRI!M21<>"",NRI!M21,"") -> 
A22: 2004 | B22: =IF(NRI!B22<>"",NRI!B22,"") ->  | C22: =IF(NRI!C22<>"",NRI!C22,"") ->  | D22: =IF(NRI!D22<>"",NRI!D22,"") ->  | E22: =IF(NRI!E22<>"",NRI!E22,"") ->  | F22: =IF(NRI!F22<>"",NRI!F22,"") ->  | G22: =IF(NRI!G22<>"",NRI!G22,"") ->  | H22: =IF(NRI!H22<>"",NRI!H22,"") ->  | I22: =IF(NRI!I22<>"",NRI!I22,"") ->  | J22: =IF(NRI!J22<>"",NRI!J22,"") ->  | K22: =IF(NRI!K22<>"",NRI!K22,"") ->  | L22: =IF(NRI!L22<>"",NRI!L22,"") ->  | M22: =IF(NRI!M22<>"",NRI!M22,"") -> 
A23: 2005 | B23: =IF(NRI!B23<>"",NRI!B23,"") ->  | C23: =IF(NRI!C23<>"",NRI!C23,"") ->  | D23: =IF(NRI!D23<>"",NRI!D23,"") ->  | E23: =IF(NRI!E23<>"",NRI!E23,"") ->  | F23: =IF(NRI!F23<>"",NRI!F23,"") ->  | G23: =IF(NRI!G23<>"",NRI!G23,"") ->  | H23: =IF(NRI!H23<>"",NRI!H23,"") ->  | I23: =IF(NRI!I23<>"",NRI!I23,"") ->  | J23: =IF(NRI!J23<>"",NRI!J23,"") ->  | K23: =IF(NRI!K23<>"",NRI!K23,"") ->  | L23: =IF(NRI!L23<>"",NRI!L23,"") ->  | M23: =IF(NRI!M23<>"",NRI!M23,"") -> 
A24: 2006 | B24: =IF(NRI!B24<>"",NRI!B24,"") ->  | C24: =IF(NRI!C24<>"",NRI!C24,"") ->  | D24: =IF(NRI!D24<>"",NRI!D24,"") ->  | E24: =IF(NRI!E24<>"",NRI!E24,"") ->  | F24: =IF(NRI!F24<>"",NRI!F24,"") ->  | G24: =IF(NRI!G24<>"",NRI!G24,"") ->  | H24: =IF(NRI!H24<>"",NRI!H24,"") ->  | I24: =IF(NRI!I24<>"",NRI!I24,"") ->  | J24: =IF(NRI!J24<>"",NRI!J24,"") ->  | K24: =IF(NRI!K24<>"",NRI!K24,"") ->  | L24: =IF(NRI!L24<>"",NRI!L24,"") ->  | M24: =IF(NRI!M24<>"",NRI!M24,"") -> 
A25: 2007 | B25: =IF(NRI!B25<>"",NRI!B25,"") ->  | C25: =IF(NRI!C25<>"",NRI!C25,"") ->  | D25: =IF(NRI!D25<>"",NRI!D25,"") ->  | E25: =IF(NRI!E25<>"",NRI!E25,"") ->  | F25: =IF(NRI!F25<>"",NRI!F25,"") ->  | G25: =IF(NRI!G25<>"",NRI!G25,"") ->  | H25: =IF(NRI!H25<>"",NRI!H25,"") ->  | I25: =IF(NRI!I25<>"",NRI!I25,"") ->  | J25: =IF(NRI!J25<>"",NRI!J25,"") ->  | K25: =IF(NRI!K25<>"",NRI!K25,"") ->  | L25: =IF(NRI!L25<>"",NRI!L25,"") ->  | M25: =IF(NRI!M25<>"",NRI!M25,"") -> 
A26: 2008 | B26: =IF(NRI!B26<>"",NRI!B26,"") ->  | C26: =IF(NRI!C26<>"",NRI!C26,"") ->  | D26: =IF(NRI!D26<>"",NRI!D26,"") ->  | E26: =IF(NRI!E26<>"",NRI!E26,"") ->  | F26: =IF(NRI!F26<>"",NRI!F26,"") ->  | G26: =IF(NRI!G26<>"",NRI!G26,"") ->  | H26: =IF(NRI!H26<>"",NRI!H26,"") ->  | I26: =IF(NRI!I26<>"",NRI!I26,"") ->  | J26: =IF(NRI!J26<>"",NRI!J26,"") ->  | K26: =IF(NRI!K26<>"",NRI!K26,"") ->  | L26: =IF(NRI!L26<>"",NRI!L26,"") ->  | M26: =IF(NRI!M26<>"",NRI!M26,"") -> 
A27: 2009 | B27: =IF(NRI!B27<>"",NRI!B27,"") ->  | C27: =IF(NRI!C27<>"",NRI!C27,"") ->  | D27: =IF(NRI!D27<>"",NRI!D27,"") ->  | E27: =IF(NRI!E27<>"",NRI!E27,"") ->  | F27: =IF(NRI!F27<>"",NRI!F27,"") ->  | G27: =IF(NRI!G27<>"",NRI!G27,"") ->  | H27: =IF(NRI!H27<>"",NRI!H27,"") ->  | I27: =IF(NRI!I27<>"",NRI!I27,"") ->  | J27: =IF(NRI!J27<>"",NRI!J27,"") ->  | K27: =IF(NRI!K27<>"",NRI!K27,"") ->  | L27: =IF(NRI!L27<>"",NRI!L27,"") ->  | M27: =IF(NRI!M27<>"",NRI!M27,"") -> 
A28: 2010 | B28: =IF(NRI!B28<>"",NRI!B28,"") ->  | C28: =IF(NRI!C28<>"",NRI!C28,"") ->  | D28: =IF(NRI!D28<>"",NRI!D28,"") ->  | E28: =IF(NRI!E28<>"",NRI!E28,"") ->  | F28: =IF(NRI!F28<>"",NRI!F28,"") ->  | G28: =IF(NRI!G28<>"",NRI!G28,"") ->  | H28: =IF(NRI!H28<>"",NRI!H28,"") ->  | I28: =IF(NRI!I28<>"",NRI!I28,"") ->  | J28: =IF(NRI!J28<>"",NRI!J28,"") ->  | K28: =IF(NRI!K28<>"",NRI!K28,"") ->  | L28: =IF(NRI!L28<>"",NRI!L28,"") ->  | M28: =IF(NRI!M28<>"",NRI!M28,"") -> 
A29: 2011 | B29: =IF(NRI!B29<>"",NRI!B29,"") ->  | C29: =IF(NRI!C29<>"",NRI!C29,"") ->  | D29: =IF(NRI!D29<>"",NRI!D29,"") ->  | E29: =IF(NRI!E29<>"",NRI!E29,"") ->  | F29: =IF(NRI!F29<>"",NRI!F29,"") ->  | G29: =IF(NRI!G29<>"",NRI!G29,"") ->  | H29: =IF(NRI!H29<>"",NRI!H29,"") ->  | I29: =IF(NRI!I29<>"",NRI!I29,"") ->  | J29: =IF(NRI!J29<>"",NRI!J29,"") ->  | K29: =IF(NRI!K29<>"",NRI!K29,"") ->  | L29: =IF(NRI!L29<>"",NRI!L29,"") ->  | M29: =IF(NRI!M29<>"",NRI!M29,"") -> 
A30: 2012 | B30: =IF(NRI!B30<>"",NRI!B30,"") ->  | C30: =IF(NRI!C30<>"",NRI!C30,"") ->  | D30: =IF(NRI!D30<>"",NRI!D30,"") ->  | E30: =IF(NRI!E30<>"",NRI!E30,"") ->  | F30: =IF(NRI!F30<>"",NRI!F30,"") ->  | G30: =IF(NRI!G30<>"",NRI!G30,"") ->  | H30: =IF(NRI!H30<>"",NRI!H30,"") ->  | I30: =IF(NRI!I30<>"",NRI!I30,"") ->  | J30: =IF(NRI!J30<>"",NRI!J30,"") ->  | K30: =IF(NRI!K30<>"",NRI!K30,"") ->  | L30: =IF(NRI!L30<>"",NRI!L30,"") ->  | M30: =IF(NRI!M30<>"",NRI!M30,"") -> 
A31: 2013 | B31: =IF(NRI!B31<>"",NRI!B31,"") ->  | C31: =IF(NRI!C31<>"",NRI!C31,"") ->  | D31: =IF(NRI!D31<>"",NRI!D31,"") ->  | E31: =IF(NRI!E31<>"",NRI!E31,"") ->  | F31: =IF(NRI!F31<>"",NRI!F31,"") ->  | G31: =IF(NRI!G31<>"",NRI!G31,"") ->  | H31: =IF(NRI!H31<>"",NRI!H31,"") ->  | I31: =IF(NRI!I31<>"",NRI!I31,"") ->  | J31: =IF(NRI!J31<>"",NRI!J31,"") ->  | K31: =IF(NRI!K31<>"",NRI!K31,"") ->  | L31: =IF(NRI!L31<>"",NRI!L31,"") ->  | M31: =IF(NRI!M31<>"",NRI!M31,"") -> 
A32: 2014 | B32: =IF(NRI!B32<>"",NRI!B32,"") ->  | C32: =IF(NRI!C32<>"",NRI!C32,"") ->  | D32: =IF(NRI!D32<>"",NRI!D32,"") ->  | E32: =IF(NRI!E32<>"",NRI!E32,"") ->  | F32: =IF(NRI!F32<>"",NRI!F32,"") ->  | G32: =IF(NRI!G32<>"",NRI!G32,"") ->  | H32: =IF(NRI!H32<>"",NRI!H32,"") ->  | I32: =IF(NRI!I32<>"",NRI!I32,"") ->  | J32: =IF(NRI!J32<>"",NRI!J32,"") ->  | K32: =IF(NRI!K32<>"",NRI!K32,"") ->  | L32: =IF(NRI!L32<>"",NRI!L32,"") ->  | M32: =IF(NRI!M32<>"",NRI!M32,"") -> 
A33: 2015 | B33: =IF(NRI!B33<>"",NRI!B33,"") ->  | C33: =IF(NRI!C33<>"",NRI!C33,"") ->  | D33: =IF(NRI!D33<>"",NRI!D33,"") ->  | E33: =IF(NRI!E33<>"",NRI!E33,"") ->  | F33: =IF(NRI!F33<>"",NRI!F33,"") ->  | G33: =IF(NRI!G33<>"",NRI!G33,"") ->  | H33: =IF(NRI!H33<>"",NRI!H33,"") ->  | I33: =IF(NRI!I33<>"",NRI!I33,"") ->  | J33: =IF(NRI!J33<>"",NRI!J33,"") ->  | K33: =IF(NRI!K33<>"",NRI!K33,"") ->  | L33: =IF(NRI!L33<>"",NRI!L33,"") ->  | M33: =IF(NRI!M33<>"",NRI!M33,"") -> 
A34: 2016 | B34: =IF(NRI!B34<>"",NRI!B34,"") ->  | C34: =IF(NRI!C34<>"",NRI!C34,"") ->  | D34: =IF(NRI!D34<>"",NRI!D34,"") ->  | E34: =IF(NRI!E34<>"",NRI!E34,"") ->  | F34: =IF(NRI!F34<>"",NRI!F34,"") ->  | G34: =IF(NRI!G34<>"",NRI!G34,"") ->  | H34: =IF(NRI!H34<>"",NRI!H34,"") ->  | I34: =IF(NRI!I34<>"",NRI!I34,"") ->  | J34: =IF(NRI!J34<>"",NRI!J34,"") ->  | K34: =IF(NRI!K34<>"",NRI!K34,"") ->  | L34: =IF(NRI!L34<>"",NRI!L34,"") ->  | M34: =IF(NRI!M34<>"",NRI!M34,"") -> 
A35: 2017 | B35: =IF(NRI!B35<>"",NRI!B35,"") ->  | C35: =IF(NRI!C35<>"",NRI!C35,"") ->  | D35: =IF(NRI!D35<>"",NRI!D35,"") ->  | E35: =IF(NRI!E35<>"",NRI!E35,"") ->  | F35: =IF(NRI!F35<>"",NRI!F35,"") ->  | G35: =IF(NRI!G35<>"",NRI!G35,"") ->  | H35: =IF(NRI!H35<>"",NRI!H35,"") ->  | I35: =IF(NRI!I35<>"",NRI!I35,"") ->  | J35: =IF(NRI!J35<>"",NRI!J35,"") ->  | K35: =IF(NRI!K35<>"",NRI!K35,"") ->  | L35: =IF(NRI!L35<>"",NRI!L35,"") ->  | M35: =IF(NRI!M35<>"",NRI!M35,"") -> 
A36: 2018 | B36: =IF(NRI!B36<>"",NRI!B36,"") ->  | C36: =IF(NRI!C36<>"",NRI!C36,"") ->  | D36: =IF(NRI!D36<>"",NRI!D36,"") ->  | E36: =IF(NRI!E36<>"",NRI!E36,"") ->  | F36: =IF(NRI!F36<>"",NRI!F36,"") ->  | G36: =IF(NRI!G36<>"",NRI!G36,"") ->  | H36: =IF(NRI!H36<>"",NRI!H36,"") ->  | I36: =IF(NRI!I36<>"",NRI!I36,"") ->  | J36: =IF(NRI!J36<>"",NRI!J36,"") ->  | K36: =IF(NRI!K36<>"",NRI!K36,"") ->  | L36: =IF(NRI!L36<>"",NRI!L36,"") ->  | M36: =IF(NRI!M36<>"",NRI!M36,"") -> 
A37: =A36+1 -> 2019 | B37: =IF(NRI!B37<>"",NRI!B37,"") ->  | C37: =IF(NRI!C37<>"",NRI!C37,"") ->  | D37: =IF(NRI!D37<>"",NRI!D37,"") ->  | E37: =IF(NRI!E37<>"",NRI!E37,"") ->  | F37: =IF(NRI!F37<>"",NRI!F37,"") ->  | G37: =IF(NRI!G37<>"",NRI!G37,"") ->  | H37: =IF(NRI!H37<>"",NRI!H37,"") ->  | I37: =IF(NRI!I37<>"",NRI!I37,"") ->  | J37: =IF(NRI!J37<>"",NRI!J37,"") ->  | K37: =IF(NRI!K37<>"",NRI!K37,"") ->  | L37: =IF(NRI!L37<>"",NRI!L37,"") ->  | M37: =IF(NRI!M37<>"",NRI!M37,"") -> 
A38: 2020 | B38: =IF(NRI!B38<>"",NRI!B38,"") ->  | C38: =IF(NRI!C38<>"",NRI!C38,"") ->  | D38: =IF(NRI!D38<>"",NRI!D38,"") ->  | E38: =IF(NRI!E38<>"",NRI!E38,"") ->  | F38: =IF(NRI!F38<>"",NRI!F38,"") ->  | G38: =IF(NRI!G38<>"",NRI!G38,"") ->  | H38: =IF(NRI!H38<>"",NRI!H38,"") ->  | I38: =IF(NRI!I38<>"",NRI!I38,"") ->  | J38: =IF(NRI!J38<>"",NRI!J38,"") ->  | K38: =IF(NRI!K38<>"",NRI!K38,"") ->  | L38: =IF(NRI!L38<>"",NRI!L38,"") ->  | M38: =IF(NRI!M38<>"",NRI!M38,"") -> 
A39: 2021 | B39: =IF(NRI!B39<>"",NRI!B39,"") ->  | C39: =IF(NRI!C39<>"",NRI!C39,"") ->  | D39: =IF(NRI!D39<>"",NRI!D39,"") ->  | E39: =IF(NRI!E39<>"",NRI!E39,"") ->  | F39: =IF(NRI!F39<>"",NRI!F39,"") ->  | G39: =IF(NRI!G39<>"",NRI!G39,"") ->  | H39: =IF(NRI!H39<>"",NRI!H39,"") ->  | I39: =IF(NRI!I39<>"",NRI!I39,"") ->  | J39: =IF(NRI!J39<>"",NRI!J39,"") ->  | K39: =IF(NRI!K39<>"",NRI!K39,"") ->  | L39: =IF(NRI!L39<>"",NRI!L39,"") ->  | M39: =IF(NRI!M39<>"",NRI!M39,"") -> 
A40: 2022 | B40: =IF(NRI!B40<>"",NRI!B40,"") ->  | C40: =IF(NRI!C40<>"",NRI!C40,"") ->  | D40: =IF(NRI!D40<>"",NRI!D40,"") ->  | E40: =IF(NRI!E40<>"",NRI!E40,"") ->  | F40: =IF(NRI!F40<>"",NRI!F40,"") ->  | G40: =IF(NRI!G40<>"",NRI!G40,"") ->  | H40: =IF(NRI!H40<>"",NRI!H40,"") ->  | I40: =IF(NRI!I40<>"",NRI!I40,"") ->  | J40: =IF(NRI!J40<>"",NRI!J40,"") ->  | K40: =IF(NRI!K40<>"",NRI!K40,"") ->  | L40: =IF(NRI!L40<>"",NRI!L40,"") ->  | M40: =IF(NRI!M40<>"",NRI!M40,"") -> 
A41: 2023 | B41: =IF(NRI!B41<>"",NRI!B41,"") ->  | C41: =IF(NRI!C41<>"",NRI!C41,"") ->  | D41: =IF(NRI!D41<>"",NRI!D41,"") ->  | E41: =IF(NRI!E41<>"",NRI!E41,"") ->  | F41: =IF(NRI!F41<>"",NRI!F41,"") ->  | G41: =IF(NRI!G41<>"",NRI!G41,"") ->  | H41: =IF(NRI!H41<>"",NRI!H41,"") ->  | I41: =IF(NRI!I41<>"",NRI!I41,"") ->  | J41: =IF(NRI!J41<>"",NRI!J41,"") ->  | K41: =IF(NRI!K41<>"",NRI!K41,"") ->  | L41: =IF(NRI!L41<>"",NRI!L41,"") ->  | M41: =IF(NRI!M41<>"",NRI!M41,"") -> 
A42: 2024 | B42: =IF(NRI!B42<>"",NRI!B42,"") ->  | C42: =IF(NRI!C42<>"",NRI!C42,"") ->  | D42: =IF(NRI!D42<>"",NRI!D42,"") ->  | E42: =IF(NRI!E42<>"",NRI!E42,"") ->  | F42: =IF(NRI!F42<>"",NRI!F42,"") ->  | G42: =IF(NRI!G42<>"",NRI!G42,"") ->  | H42: =IF(NRI!H42<>"",NRI!H42,"") ->  | I42: =IF(NRI!I42<>"",NRI!I42,"") ->  | J42: =IF(NRI!J42<>"",NRI!J42,"") ->  | K42: =IF(NRI!K42<>"",NRI!K42,"") ->  | L42: =IF(NRI!L42<>"",NRI!L42,"") ->  | M42: =IF(NRI!M42<>"",NRI!M42,"") -> 
A43: 2025 | B43: =IF(NRI!B43<>"",NRI!B43,"") ->  | C43: =IF(NRI!C43<>"",NRI!C43,"") ->  | D43: =IF(NRI!D43<>"",NRI!D43,"") ->  | E43: =IF(NRI!E43<>"",NRI!E43,"") ->  | F43: =IF(NRI!F43<>"",NRI!F43,"") ->  | G43: =IF(NRI!G43<>"",NRI!G43,"") ->  | H43: =IF(NRI!H43<>"",NRI!H43,"") ->  | I43: =IF(NRI!I43<>"",NRI!I43,"") ->  | J43: =IF(NRI!J43<>"",NRI!J43,"") ->  | K43: =IF(NRI!K43<>"",NRI!K43,"") ->  | L43: =IF(NRI!L43<>"",NRI!L43,"") ->  | M43: =IF(NRI!M43<>"",NRI!M43,"") -> 
A44: 2026 | B44: =IF(NRI!B44<>"",NRI!B44,"") ->  | C44: =IF(NRI!C44<>"",NRI!C44,"") ->  | D44: =IF(NRI!D44<>"",NRI!D44,"") ->  | E44: =IF(NRI!E44<>"",NRI!E44,"") ->  | F44: =IF(NRI!F44<>"",NRI!F44,"") ->  | G44: =IF(NRI!G44<>"",NRI!G44,"") ->  | H44: =IF(NRI!H44<>"",NRI!H44,"") ->  | I44: =IF(NRI!I44<>"",NRI!I44,"") ->  | J44: =IF(NRI!J44<>"",NRI!J44,"") ->  | K44: =IF(NRI!K44<>"",NRI!K44,"") ->  | L44: =IF(NRI!L44<>"",NRI!L44,"") ->  | M44: =IF(NRI!M44<>"",NRI!M44,"") -> 
A45: 2027 | B45: =IF(NRI!B45<>"",NRI!B45,"") ->  | C45: =IF(NRI!C45<>"",NRI!C45,"") ->  | D45: =IF(NRI!D45<>"",NRI!D45,"") ->  | E45: =IF(NRI!E45<>"",NRI!E45,"") ->  | F45: =IF(NRI!F45<>"",NRI!F45,"") ->  | G45: =IF(NRI!G45<>"",NRI!G45,"") ->  | H45: =IF(NRI!H45<>"",NRI!H45,"") ->  | I45: =IF(NRI!I45<>"",NRI!I45,"") ->  | J45: =IF(NRI!J45<>"",NRI!J45,"") ->  | K45: =IF(NRI!K45<>"",NRI!K45,"") ->  | L45: =IF(NRI!L45<>"",NRI!L45,"") ->  | M45: =IF(NRI!M45<>"",NRI!M45,"") -> 
A46: 2028 | B46: =IF(NRI!B46<>"",NRI!B46,"") ->  | C46: =IF(NRI!C46<>"",NRI!C46,"") ->  | D46: =IF(NRI!D46<>"",NRI!D46,"") ->  | E46: =IF(NRI!E46<>"",NRI!E46,"") ->  | F46: =IF(NRI!F46<>"",NRI!F46,"") ->  | G46: =IF(NRI!G46<>"",NRI!G46,"") ->  | H46: =IF(NRI!H46<>"",NRI!H46,"") ->  | I46: =IF(NRI!I46<>"",NRI!I46,"") ->  | J46: =IF(NRI!J46<>"",NRI!J46,"") ->  | K46: =IF(NRI!K46<>"",NRI!K46,"") ->  | L46: =IF(NRI!L46<>"",NRI!L46,"") ->  | M46: =IF(NRI!M46<>"",NRI!M46,"") -> 
A47: 2029 | B47: =IF(NRI!B47<>"",NRI!B47,"") ->  | C47: =IF(NRI!C47<>"",NRI!C47,"") ->  | D47: =IF(NRI!D47<>"",NRI!D47,"") ->  | E47: =IF(NRI!E47<>"",NRI!E47,"") ->  | F47: =IF(NRI!F47<>"",NRI!F47,"") ->  | G47: =IF(NRI!G47<>"",NRI!G47,"") ->  | H47: =IF(NRI!H47<>"",NRI!H47,"") ->  | I47: =IF(NRI!I47<>"",NRI!I47,"") ->  | J47: =IF(NRI!J47<>"",NRI!J47,"") ->  | K47: =IF(NRI!K47<>"",NRI!K47,"") ->  | L47: =IF(NRI!L47<>"",NRI!L47,"") ->  | M47: =IF(NRI!M47<>"",NRI!M47,"") -> 
A48: 2030 | B48: =IF(NRI!B48<>"",NRI!B48,"") ->  | C48: =IF(NRI!C48<>"",NRI!C48,"") ->  | D48: =IF(NRI!D48<>"",NRI!D48,"") ->  | E48: =IF(NRI!E48<>"",NRI!E48,"") ->  | F48: =IF(NRI!F48<>"",NRI!F48,"") ->  | G48: =IF(NRI!G48<>"",NRI!G48,"") ->  | H48: =IF(NRI!H48<>"",NRI!H48,"") ->  | I48: =IF(NRI!I48<>"",NRI!I48,"") ->  | J48: =IF(NRI!J48<>"",NRI!J48,"") ->  | K48: =IF(NRI!K48<>"",NRI!K48,"") ->  | L48: =IF(NRI!L48<>"",NRI!L48,"") ->  | M48: =IF(NRI!M48<>"",NRI!M48,"") -> 
A49: 2031 | B49: =IF(NRI!B49<>"",NRI!B49,"") ->  | C49: =IF(NRI!C49<>"",NRI!C49,"") ->  | D49: =IF(NRI!D49<>"",NRI!D49,"") ->  | E49: =IF(NRI!E49<>"",NRI!E49,"") ->  | F49: =IF(NRI!F49<>"",NRI!F49,"") ->  | G49: =IF(NRI!G49<>"",NRI!G49,"") ->  | H49: =IF(NRI!H49<>"",NRI!H49,"") ->  | I49: =IF(NRI!I49<>"",NRI!I49,"") ->  | J49: =IF(NRI!J49<>"",NRI!J49,"") ->  | K49: =IF(NRI!K49<>"",NRI!K49,"") ->  | L49: =IF(NRI!L49<>"",NRI!L49,"") ->  | M49: =IF(NRI!M49<>"",NRI!M49,"") -> 
A50: 2032 | B50: =IF(NRI!B50<>"",NRI!B50,"") ->  | C50: =IF(NRI!C50<>"",NRI!C50,"") ->  | D50: =IF(NRI!D50<>"",NRI!D50,"") ->  | E50: =IF(NRI!E50<>"",NRI!E50,"") ->  | F50: =IF(NRI!F50<>"",NRI!F50,"") ->  | G50: =IF(NRI!G50<>"",NRI!G50,"") ->  | H50: =IF(NRI!H50<>"",NRI!H50,"") ->  | I50: =IF(NRI!I50<>"",NRI!I50,"") ->  | J50: =IF(NRI!J50<>"",NRI!J50,"") ->  | K50: =IF(NRI!K50<>"",NRI!K50,"") ->  | L50: =IF(NRI!L50<>"",NRI!L50,"") ->  | M50: =IF(NRI!M50<>"",NRI!M50,"") -> 
A51: 2033 | B51: =IF(NRI!B51<>"",NRI!B51,"") ->  | C51: =IF(NRI!C51<>"",NRI!C51,"") ->  | D51: =IF(NRI!D51<>"",NRI!D51,"") ->  | E51: =IF(NRI!E51<>"",NRI!E51,"") ->  | F51: =IF(NRI!F51<>"",NRI!F51,"") ->  | G51: =IF(NRI!G51<>"",NRI!G51,"") ->  | H51: =IF(NRI!H51<>"",NRI!H51,"") ->  | I51: =IF(NRI!I51<>"",NRI!I51,"") ->  | J51: =IF(NRI!J51<>"",NRI!J51,"") ->  | K51: =IF(NRI!K51<>"",NRI!K51,"") ->  | L51: =IF(NRI!L51<>"",NRI!L51,"") ->  | M51: =IF(NRI!M51<>"",NRI!M51,"") -> 
A52: 2034 | B52: =IF(NRI!B52<>"",NRI!B52,"") ->  | C52: =IF(NRI!C52<>"",NRI!C52,"") ->  | D52: =IF(NRI!D52<>"",NRI!D52,"") ->  | E52: =IF(NRI!E52<>"",NRI!E52,"") ->  | F52: =IF(NRI!F52<>"",NRI!F52,"") ->  | G52: =IF(NRI!G52<>"",NRI!G52,"") ->  | H52: =IF(NRI!H52<>"",NRI!H52,"") ->  | I52: =IF(NRI!I52<>"",NRI!I52,"") ->  | J52: =IF(NRI!J52<>"",NRI!J52,"") ->  | K52: =IF(NRI!K52<>"",NRI!K52,"") ->  | L52: =IF(NRI!L52<>"",NRI!L52,"") ->  | M52: =IF(NRI!M52<>"",NRI!M52,"") -> 
A53: 2035 | B53: =IF(NRI!B53<>"",NRI!B53,"") ->  | C53: =IF(NRI!C53<>"",NRI!C53,"") ->  | D53: =IF(NRI!D53<>"",NRI!D53,"") ->  | E53: =IF(NRI!E53<>"",NRI!E53,"") ->  | F53: =IF(NRI!F53<>"",NRI!F53,"") ->  | G53: =IF(NRI!G53<>"",NRI!G53,"") ->  | H53: =IF(NRI!H53<>"",NRI!H53,"") ->  | I53: =IF(NRI!I53<>"",NRI!I53,"") ->  | J53: =IF(NRI!J53<>"",NRI!J53,"") ->  | K53: =IF(NRI!K53<>"",NRI!K53,"") ->  | L53: =IF(NRI!L53<>"",NRI!L53,"") ->  | M53: =IF(NRI!M53<>"",NRI!M53,"") -> 
A54: Mean | B54: =AVERAGE(B4:B53) -> 
A58: 2 | B58: กราฟแบ่งฤดู
B79: 3 | C79: (ค่าเท่ากับเดือนนั้นๆโดยตรง) | H79: 4 | I79: (บวกสะสมจากเดือนนั้นๆจนถึงสิ้นเดือนฤดูแล้ง) | R79: 5 | S79: (ค่าของขั้นที่4 คูณ -1)
B80: NRI of Upper Rule Curve | H80: SumNRI of Lower Rule Curve | R80: -SumNRI of Lower Rule Curve
A81: Year/Month
A82: =A4 -> 1986
A83: 1987
A84: 1988
A85: 1989
A86: 1990
A87: 1991
A88: 1992
A89: 1993
A90: 1994
A91: 1995
A92: 1996
A93: 1997
A94: 1998
A95: 1999
A96: 2000
A97: 2001
A98: 2002
A99: 2003
A100: 2004
A101: 2005
A102: 2006
A103: 2007
A104: 2008
A105: 2009
A106: 2010
A107: 2011
A108: 2012
A109: 2013
A110: 2014
A111: 2015
A112: 2016
A113: 2017
A114: =A36 -> 2018
A115: 2019
A116: 2020
A117: 2021
A118: 2022
A119: 2023
A120: 2024
A121: 2025
A122: 2026
A123: 2027
A124: 2028
A125: 2029
A126: 2030
A127: 2031
A128: 2032
A129: 2033
A130: 2034
A131: 2035
A133: 6 | B133: ใส่ NRI รายเดือน
C134: ม.ค. | D134: ก.พ. | E134: มี.ค. | F134: เม.ย. | G134: พ.ค. | H134: มิ.ย. | I134: ก.ค. | J134: ส.ค. | K134: ก.ย. | L134: ต.ค. | M134: พ.ย. | N134: ธ.ค.
A135: ปี ค.ศ. | B135: ปี พ.ศ. | C135: Jan | D135: Feb | E135: Mar | F135: Apr | G135: May | H135: Jun | I135: Jul | J135: Aug | K135: Sep | L135: Oct | M135: Nov | N135: Dec
A136: =A4 -> 1986 | B136: =A136+543 -> 2529
A137: =A136+1 -> 1987 | B137: 2530
A138: 1988 | B138: 2531
A139: 1989 | B139: 2532
A140: 1990 | B140: 2533
A141: 1991 | B141: 2534
A142: 1992 | B142: 2535
A143: 1993 | B143: 2536
A144: 1994 | B144: 2537
A145: 1995 | B145: 2538
A146: 1996 | B146: 2539
A147: 1997 | B147: 2540
A148: 1998 | B148: 2541
A149: 1999 | B149: 2542
A150: 2000 | B150: 2543
A151: 2001 | B151: 2544
A152: 2002 | B152: 2545
A153: 2003 | B153: 2546
A154: 2004 | B154: 2547
A155: 2005 | B155: 2548
A156: 2006 | B156: 2549
A157: 2007 | B157: 2550
A158: 2008 | B158: 2551
A159: 2009 | B159: 2552
A160: 2010 | B160: 2553
A161: 2011 | B161: 2554
A162: 2012 | B162: 2555
A163: 2013 | B163: 2556
A164: 2014 | B164: 2557
A165: 2015 | B165: 2558
A166: 2016 | B166: 2559
A167: 2017 | B167: 2560
A168: 2018 | B168: 2561
A169: 2019 | B169: 2562
A170: 2020 | B170: 2563
A171: 2021 | B171: 2564
A172: 2022 | B172: 2565
A173: 2023 | B173: 2566
A174: 2024 | B174: 2567

Sheet ม.ค. (hidden)
B2: 6. การหาค่าสถิติและการทดสอบความเหมาะสมของ Distribution Function กับข้อมูล Net Reservoir Inflow(NIR) | L2: =NRI!O1 -> 0
B4: 1 | C4: Jan | D4: มกราคม
E5: Empirical | F5: GUMBEL | H5: NORMAL | K5: LOG-NORMAL
B6: No. | C6: NRI | D6: (X) | E6: F'(X) | F6: F(x) | G6: F'(X)-F(X) | H6: Z | I6: F(x) | J6: F'(X)-F(X) | K6: Y | L6: F(x) | M6: F'(X)-f(X)
B7: =IF(1<='หา NRI'!$D$58,1,"") -> 1 | C7: =IF(NRI!C82="","",NRI!C82) ->  | D7: =IF(C7="","",SMALL(OFFSET($C$7,0,0,'หา NRI'!$D$58,1),B7)) ->  | E7: =IF(C7="","",B7/(COUNT($B$7:$B$57)+1)) ->  | F7: =IF(C7="","",EXP(-EXP(-(D7-$C$60)/$C$61))) ->  | G7: =IF(C7="","",ABS(E7-F7)) ->  | H7: =IF(C7="","",(D7-$C$58)/$C$59) ->  | I7: =IF(C7="","",NORMSDIST(H7)) ->  | J7: =IF(C7="","",ABS(E7-I7)) ->  | K7: =IF(C7="","",(LN(D7))) ->  | L7: =IF(C7="","",(LOGNORMDIST(D7,$C$61,$C$62))) ->  | M7: =IF(C7="","",(ABS(E7-L7))) -> 
B8: =IF(B7="","",IF(B7+1<='หา NRI'!$D$58,B7+1,"")) -> 2 | C8: =IF(NRI!C83="","",NRI!C83) ->  | D8: =IF(C8="","",SMALL(OFFSET($C$7,0,0,'หา NRI'!$D$58,1),B8)) ->  | E8: =IF(C8="","",B8/(COUNT($B$7:$B$57)+1)) ->  | F8: =IF(C8="","",EXP(-EXP(-(D8-$C$60)/$C$61))) ->  | G8: =IF(C8="","",ABS(E8-F8)) ->  | H8: =IF(C8="","",(D8-$C$58)/$C$59) ->  | I8: =IF(C8="","",NORMSDIST(H8)) ->  | J8: =IF(C8="","",ABS(E8-I8)) ->  | K8: =IF(C8="","",(LN(D8))) ->  | L8: =IF(C8="","",(LOGNORMDIST(D8,$C$61,$C$62))) ->  | M8: =IF(C8="","",(ABS(E8-L8))) -> 
B9: =IF(B8="","",IF(B8+1<='หา NRI'!$D$58,B8+1,"")) -> 3 | C9: =IF(NRI!C84="","",NRI!C84) ->  | D9: =IF(C9="","",SMALL(OFFSET($C$7,0,0,'หา NRI'!$D$58,1),B9)) -> 
B10: =IF(B9="","",IF(B9+1<='หา NRI'!$D$58,B9+1,"")) -> 4 | C10: =IF(NRI!C85="","",NRI!C85) ->  | D10: =IF(C10="","",SMALL(OFFSET($C$7,0,0,'หา NRI'!$D$58,1),B10)) -> 
B11: =IF(B10="","",IF(B10+1<='หา NRI'!$D$58,B10+1,"")) ->  | C11: =IF(NRI!C86="","",NRI!C86) ->  | D11: =IF(C11="","",SMALL(OFFSET($C$7,0,0,'หา NRI'!$D$58,1),B11)) -> 
B12: =IF(B11="","",IF(B11+1<='หา NRI'!$D$58,B11+1,"")) ->  | C12: =IF(NRI!C87="","",NRI!C87) ->  | D12: =IF(C12="","",SMALL(OFFSET($C$7,0,0,'หา NRI'!$D$58,1),B12)) -> 
B13: =IF(B12="","",IF(B12+1<='หา NRI'!$D$58,B12+1,"")) ->  | C13: =IF(NRI!C88="","",NRI!C88) ->  | D13: =IF(C13="","",SMALL(OFFSET($C$7,0,0,'หา NRI'!$D$58,1),B13)) -> 
B14: =IF(B13="","",IF(B13+1<='หา NRI'!$D$58,B13+1,"")) ->  | C14: =IF(NRI!C89="","",NRI!C89) ->  | D14: =IF(C14="","",SMALL(OFFSET($C$7,0,0,'หา NRI'!$D$58,1),B14)) -> 
B15: =IF(B14="","",IF(B14+1<='หา NRI'!$D$58,B14+1,"")) ->  | C15: =IF(NRI!C90="","",NRI!C90) ->  | D15: =IF(C15="","",SMALL(OFFSET($C$7,0,0,'หา NRI'!$D$58,1),B15)) -> 
B16: =IF(B15="","",IF(B15+1<='หา NRI'!$D$58,B15+1,"")) ->  | C16: =IF(NRI!C91="","",NRI!C91) ->  | D16: =IF(C16="","",SMALL(OFFSET($C$7,0,0,'หา NRI'!$D$58,1),B16)) -> 
B17: =IF(B16="","",IF(B16+1<='หา NRI'!$D$58,B16+1,"")) ->  | C17: =IF(NRI!C92="","",NRI!C92) ->  | D17: =IF(C17="","",SMALL(OFFSET($C$7,0,0,'หา NRI'!$D$58,1),B17)) -> 
B18: =IF(B17="","",IF(B17+1<='หา NRI'!$D$58,B17+1,"")) ->  | C18: =IF(NRI!C93="","",NRI!C93) ->  | D18: =IF(C18="","",SMALL(OFFSET($C$7,0,0,'หา NRI'!$D$58,1),B18)) -> 
B19: =IF(B18="","",IF(B18+1<='หา NRI'!$D$58,B18+1,"")) ->  | C19: =IF(NRI!C94="","",NRI!C94) ->  | D19: =IF(C19="","",SMALL(OFFSET($C$7,0,0,'หา NRI'!$D$58,1),B19)) -> 
B20: =IF(B19="","",IF(B19+1<='หา NRI'!$D$58,B19+1,"")) ->  | C20: =IF(NRI!C95="","",NRI!C95) ->  | D20: =IF(C20="","",SMALL(OFFSET($C$7,0,0,'หา NRI'!$D$58,1),B20)) -> 
B21: =IF(B20="","",IF(B20+1<='หา NRI'!$D$58,B20+1,"")) ->  | C21: =IF(NRI!C96="","",NRI!C96) ->  | D21: =IF(C21="","",SMALL(OFFSET($C$7,0,0,'หา NRI'!$D$58,1),B21)) -> 
B22: =IF(B21="","",IF(B21+1<='หา NRI'!$D$58,B21+1,"")) ->  | C22: =IF(NRI!C97="","",NRI!C97) ->  | D22: =IF(C22="","",SMALL(OFFSET($C$7,0,0,'หา NRI'!$D$58,1),B22)) -> 
B23: =IF(B22="","",IF(B22+1<='หา NRI'!$D$58,B22+1,"")) ->  | C23: =IF(NRI!C98="","",NRI!C98) ->  | D23: =IF(C23="","",SMALL(OFFSET($C$7,0,0,'หา NRI'!$D$58,1),B23)) -> 
B24: =IF(B23="","",IF(B23+1<='หา NRI'!$D$58,B23+1,"")) ->  | C24: =IF(NRI!C99="","",NRI!C99) ->  | D24: =IF(C24="","",SMALL(OFFSET($C$7,0,0,'หา NRI'!$D$58,1),B24)) -> 
B25: =IF(B24="","",IF(B24+1<='หา NRI'!$D$58,B24+1,"")) ->  | C25: =IF(NRI!C100="","",NRI!C100) ->  | D25: =IF(C25="","",SMALL(OFFSET($C$7,0,0,'หา NRI'!$D$58,1),B25)) -> 
B26: =IF(B25="","",IF(B25+1<='หา NRI'!$D$58,B25+1,"")) ->  | C26: =IF(NRI!C101="","",NRI!C101) ->  | D26: =IF(C26="","",SMALL(OFFSET($C$7,0,0,'หา NRI'!$D$58,1),B26)) -> 
B27: =IF(B26="","",IF(B26+1<='หา NRI'!$D$58,B26+1,"")) ->  | C27: =IF(NRI!C102="","",NRI!C102) ->  | D27: =IF(C27="","",SMALL(OFFSET($C$7,0,0,'หา NRI'!$D$58,1),B27)) -> 
B28: =IF(B27="","",IF(B27+1<='หา NRI'!$D$58,B27+1,"")) ->  | C28: =IF(NRI!C103="","",NRI!C103) ->  | D28: =IF(C28="","",SMALL(OFFSET($C$7,0,0,'หา NRI'!$D$58,1),B28)) -> 
B29: =IF(B28="","",IF(B28+1<='หา NRI'!$D$58,B28+1,"")) ->  | C29: =IF(NRI!C104="","",NRI!C104) ->  | D29: =IF(C29="","",SMALL(OFFSET($C$7,0,0,'หา NRI'!$D$58,1),B29)) -> 
B30: =IF(B29="","",IF(B29+1<='หา NRI'!$D$58,B29+1,"")) ->  | C30: =IF(NRI!C105="","",NRI!C105) ->  | D30: =IF(C30="","",SMALL(OFFSET($C$7,0,0,'หา NRI'!$D$58,1),B30)) -> 
B31: =IF(B30="","",IF(B30+1<='หา NRI'!$D$58,B30+1,"")) ->  | C31: =IF(NRI!C106="","",NRI!C106) ->  | D31: =IF(C31="","",SMALL(OFFSET($C$7,0,0,'หา NRI'!$D$58,1),B31)) -> 
B32: =IF(B31="","",IF(B31+1<='หา NRI'!$D$58,B31+1,"")) ->  | C32: =IF(NRI!C107="","",NRI!C107) ->  | D32: =IF(C32="","",SMALL(OFFSET($C$7,0,0,'หา NRI'!$D$58,1),B32)) -> 
B33: =IF(B32="","",IF(B32+1<='หา NRI'!$D$58,B32+1,"")) ->  | C33: =IF(NRI!C108="","",NRI!C108) ->  | D33: =IF(C33="","",SMALL(OFFSET($C$7,0,0,'หา NRI'!$D$58,1),B33)) -> 
B34: =IF(B33="","",IF(B33+1<='หา NRI'!$D$58,B33+1,"")) ->  | C34: =IF(NRI!C109="","",NRI!C109) ->  | D34: =IF(C34="","",SMALL(OFFSET($C$7,0,0,'หา NRI'!$D$58,1),B34)) -> 
B35: =IF(B34="","",IF(B34+1<='หา NRI'!$D$58,B34+1,"")) ->  | C35: =IF(NRI!C110="","",NRI!C110) ->  | D35: =IF(C35="","",SMALL(OFFSET($C$7,0,0,'หา NRI'!$D$58,1),B35)) -> 
B36: =IF(B35="","",IF(B35+1<='หา NRI'!$D$58,B35+1,"")) ->  | C36: =IF(NRI!C111="","",NRI!C111) ->  | D36: =IF(C36="","",SMALL(OFFSET($C$7,0,0,'หา NRI'!$D$58,1),B36)) -> 
B37: =IF(B36="","",IF(B36+1<='หา NRI'!$D$58,B36+1,"")) ->  | C37: =IF(NRI!C112="","",NRI!C112) ->  | D37: =IF(C37="","",SMALL(OFFSET($C$7,0,0,'หา NRI'!$D$58,1),B37)) -> 
B38: =IF(B37="","",IF(B37+1<='หา NRI'!$D$58,B37+1,"")) ->  | C38: =IF(NRI!C113="","",NRI!C113) ->  | D38: =IF(C38="","",SMALL(OFFSET($C$7,0,0,'หา NRI'!$D$58,1),B38)) -> 
B39: =IF(B38="","",IF(B38+1<='หา NRI'!$D$58,B38+1,"")) ->  | C39: =IF(NRI!C114="","",NRI!C114) ->  | D39: =IF(C39="","",SMALL(OFFSET($C$7,0,0,'หา NRI'!$D$58,1),B39)) -> 
B40: =IF(B39="","",IF(B39+1<='หา NRI'!$D$58,B39+1,"")) ->  | C40: =IF(NRI!C115="","",NRI!C115) ->  | D40: =IF(C40="","",SMALL(OFFSET($C$7,0,0,'หา NRI'!$D$58,1),B40)) -> 
B41: =IF(B40="","",IF(B40+1<='หา NRI'!$D$58,B40+1,"")) ->  | C41: =IF(NRI!C116="","",NRI!C116) ->  | D41: =IF(C41="","",SMALL(OFFSET($C$7,0,0,'หา NRI'!$D$58,1),B41)) -> 
B42: =IF(B41="","",IF(B41+1<='หา NRI'!$D$58,B41+1,"")) ->  | C42: =IF(NRI!C117="","",NRI!C117) ->  | D42: =IF(C42="","",SMALL(OFFSET($C$7,0,0,'หา NRI'!$D$58,1),B42)) -> 
B43: =IF(B42="","",IF(B42+1<='หา NRI'!$D$58,B42+1,"")) ->  | C43: =IF(NRI!C118="","",NRI!C118) ->  | D43: =IF(C43="","",SMALL(OFFSET($C$7,0,0,'หา NRI'!$D$58,1),B43)) -> 
B44: =IF(B43="","",IF(B43+1<='หา NRI'!$D$58,B43+1,"")) ->  | C44: =IF(NRI!C119="","",NRI!C119) ->  | D44: =IF(C44="","",SMALL(OFFSET($C$7,0,0,'หา NRI'!$D$58,1),B44)) -> 
B45: =IF(B44="","",IF(B44+1<='หา NRI'!$D$58,B44+1,"")) ->  | C45: =IF(NRI!C120="","",NRI!C120) ->  | D45: =IF(C45="","",SMALL(OFFSET($C$7,0,0,'หา NRI'!$D$58,1),B45)) -> 
B46: =IF(B45="","",IF(B45+1<='หา NRI'!$D$58,B45+1,"")) ->  | C46: =IF(NRI!C121="","",NRI!C121) ->  | D46: =IF(C46="","",SMALL(OFFSET($C$7,0,0,'หา NRI'!$D$58,1),B46)) -> 
B47: =IF(B46="","",IF(B46+1<='หา NRI'!$D$58,B46+1,"")) ->  | C47: =IF(NRI!C122="","",NRI!C122) ->  | D47: =IF(C47="","",SMALL(OFFSET($C$7,0,0,'หา NRI'!$D$58,1),B47)) -> 
B48: =IF(B47="","",IF(B47+1<='หา NRI'!$D$58,B47+1,"")) ->  | C48: =IF(NRI!C123="","",NRI!C123) ->  | D48: =IF(C48="","",SMALL(OFFSET($C$7,0,0,'หา NRI'!$D$58,1),B48)) -> 
B49: =IF(B48="","",IF(B48+1<='หา NRI'!$D$58,B48+1,"")) ->  | C49: =IF(NRI!C124="","",NRI!C124) ->  | D49: =IF(C49="","",SMALL(OFFSET($C$7,0,0,'หา NRI'!$D$58,1),B49)) -> 
B50: =IF(B49="","",IF(B49+1<='หา NRI'!$D$58,B49+1,"")) ->  | C50: =IF(NRI!C125="","",NRI!C125) ->  | D50: =IF(C50="","",SMALL(OFFSET($C$7,0,0,'หา NRI'!$D$58,1),B50)) -> 
B51: =IF(B50="","",IF(B50+1<='หา NRI'!$D$58,B50+1,"")) ->  | C51: =IF(NRI!C126="","",NRI!C126) ->  | D51: =IF(C51="","",SMALL(OFFSET($C$7,0,0,'หา NRI'!$D$58,1),B51)) -> 
B52: =IF(B51="","",IF(B51+1<='หา NRI'!$D$58,B51+1,"")) ->  | C52: =IF(NRI!C127="","",NRI!C127) ->  | D52: =IF(C52="","",SMALL(OFFSET($C$7,0,0,'หา NRI'!$D$58,1),B52)) -> 
B53: =IF(B52="","",IF(B52+1<='หา NRI'!$D$58,B52+1,"")) ->  | C53: =IF(NRI!C128="","",NRI!C128) ->  | D53: =IF(C53="","",SMALL(OFFSET($C$7,0,0,'หา NRI'!$D$58,1),B53)) -> 
B54: =IF(B53="","",IF(B53+1<='หา NRI'!$D$58,B53+1,"")) ->  | C54: =IF(NRI!C129="","",NRI!C129) ->  | D54: =IF(C54="","",SMALL(OFFSET($C$7,0,0,'หา NRI'!$D$58,1),B54)) -> 
B55: =IF(B54="","",IF(B54+1<='หา NRI'!$D$58,B54+1,"")) ->  | C55: =IF(NRI!C130="","",NRI!C130) ->  | D55: =IF(C55="","",SMALL(OFFSET($C$7,0,0,'หา NRI'!$D$58,1),B55)) -> 
B56: =IF(B55="","",IF(B55+1<='หา NRI'!$D$58,B55+1,"")) ->  | C56: =IF(NRI!C131="","",NRI!C131) ->  | D56: =IF(C56="","",SMALL(OFFSET($C$7,0,0,'หา NRI'!$D$58,1),B56)) -> 
B57: =IF(B56="","",IF(B56+1<='หา NRI'!$D$58,B56+1,"")) ->  | C57: =IF(NRI!C132="","",NRI!C132) ->  | D57: =IF(C57="","",SMALL(OFFSET($C$7,0,0,'หา NRI'!$D$58,1),B57)) -> 
B58: MEAN | C58: =AVERAGE(C7:C57) ->  | F58: MAX | G58: =MAX(G7:G57) -> 0 | I58: MAX | J58: =MAX(J7:J57) -> 0 | L58: MAX | M58: =MAX(M7:M17) -> 0
B59: STD. | C59: =STDEV(C7:C57) ->  | F59: ="Delta "&COUNT(B7:B57)&", "&OFFSET('หา NRI'!A48,MATCH(G59,'หา NRI'!G49:G52,0),0,1,1)*100&"%" ->  | G59: =IF('หา NRI'!G50>G58,'หา NRI'!G50,'หา NRI'!G49) ->  | H59: =IF(G58<G59,"ok","") ->  | I59: =F59 ->  | J59: =G59 ->  | K59: =IF(G58<G59,"ok","") ->  | L59: =F59 ->  | M59: =G59 -> 
B60: Location | C60: =C58-(0.45*C59) ->  | G60: =IF(G58<G59,IF(G58<J58,"GUMBEL",""),"") ->  | J60: =IF(J58<J59,IF(J58<G58,"NORMAL",""),"") -> 
B61: Scale | C61: =0.7797*C59 ->  | H61: ="เดือน"&D4&"เป็นการแจกแจงแบบ "&G60&J60 -> 
B62: MEAN Y | C62: =AVERAGE(K7:K17) -> 
B63: STD. Y | C63: =STDEV(K7:K17) -> 
B64: MAX X | C64: =MAX(D7:D57) -> 0 | E64: ="ดังนั้น ปริมาณน้ำไหลเข้าอ่างเก็บน้ำสุทธิในเดือน "&D4&" จะเหมาะสมกับการแจกแจงแบบ " &G60&J60&" ที่ระดับนัยสำคัญ "&OFFSET('หา NRI'!A48,MATCH(G59,'หา NRI'!G49:G52,0),0,1,1)*100&"%" -> 
B65: MIN X | C65: =MIN(D7:D57) -> 0
I66: แนะนำกว้าง | J66: =ROUND(($L$68-$L$69)/$J$68,0) -> 0
B67: 7. สร้างเส้นโค้งของการแจกแจง NRI | I67: กว้างชั้นละ | J67: =ROUND(($L$68-$L$69)/$J$68,0) -> 0 | K67: Max - Min
C68: Range; R = | D68: =C64-C65 -> 0 | E68: Class Interval ; CI = | G68: =D68/D69 -> 0 | I68: จำนวนชั้น | J68: 3 | K68: MAX X | L68: =C64 -> 0
C69: Class ; C = | D69: =J68 -> 3 | I69: เริ่มที่ | J69: 0 | K69: MIN X | L69: =C65 -> 0
B70: Class | C70: Class Interval | D70: Mid-Range | F70: (Xi)*ni | G70: (X(i))^2 | H70: ni*(X(i))^2
B71: (i) | C71: (mcm.) | D71: (Xi)
B72: 1 | C72: =IF(B72<=$J$68,"("&J69&")-("&K72&")","") -> (0)-(0) | D72: =IF(B72<=$J$68,(J69+K72)/2,"") -> 0 | E72: =IF(B72<=$J$68,M72,"") -> 0 | F72: =IF(B72<=$J$68,D72*E72,"") -> 0 | G72: =IF(B72<=$J$68,D72^2,"") -> 0 | H72: =IF(B72<=$J$68,E72*G72,"") -> 0 | I72: =IF(B72<=$D$69,1,0) -> 1 | J72: =J69 -> 0 | K72: =$J$69+(B72*$J$67) -> 0 | L72: =COUNTIF($C$7:$C$45,"<"&J73-0.5) -> 0 | M72: =L72 -> 0
B73: =IF(B72+1<=J68,B72+1,"") -> 2 | C73: =IF(B73<=$J$68,IF(I74=1,"("&J73&")-("&K73&")",">"&J73),"") -> (1)-(0) | D73: =IF(B73<=$J$68,(J73+K73)/2,"") -> 0.5 | E73: 0 | F73: 0 | G73: 0.25 | H73: 0 | I73: 1 | J73: =IF(I73=1,K72+1,9999) -> 1 | K73: 0 | L73: =COUNTIF($C$7:$C$45,"<"&J74-0.5) -> 0 | M73: =L73-L72 -> 0
B74: =B73+1 -> 3 | C74: >1 | D74: 0.5 | E74: 0 | F74: 0 | G74: 0.25 | H74: 0 | I74: 1 | J74: 1 | K74: 0 | L74: 0 | M74: 0
B75: 4 | I75: 0 | J75: 9999 | K75: 0 | L75: 0 | M75: 0
B76: 5 | I76: 0 | J76: 9999 | K76: 0 | L76: 0 | M76: 0
B77: 6 | I77: 0 | J77: 9999 | K77: 0 | L77: 0 | M77: 0
B78: 7 | I78: 0 | J78: 9999 | K78: 0 | L78: 0 | M78: 0
B79: 8 | I79: 0 | J79: 9999 | K79: 0 | L79: 0 | M79: 0
B80: 9 | I80: 0 | J80: 9999 | K80: 0 | L80: 0 | M80: 0
B81: 10 | I81: 0 | J81: 9999 | K81: 0 | L81: 0 | M81: 0
B82: 11 | I82: 0 | J82: 9999 | K82: 0 | L82: 0 | M82: 0
B83: 12 | I83: 0 | J83: 9999 | K83: 0 | L83: 0 | M83: 0
B84: 13 | I84: 0 | J84: 9999 | K84: 0 | L84: 0 | M84: 0
B85: 14 | I85: 0 | J85: 9999 | K85: 0 | L85: 0 | M85: 0
B86: 15 | I86: 0 | J86: 9999 | K86: 0 | L86: 0 | M86: 0
B87: 16 | I87: 0 | J87: 9999 | K87: 0 | L87: 0 | M87: 0
B88: 17 | I88: 0 | J88: 9999 | K88: 0 | L88: =COUNTIF($C$7:$C$45,"<"&J89-0.5) -> 0 | M88: 0
B89: SUM | E89: =SUM(E72:E88) -> 0 | F89: =SUM(F72:F88) -> 0 | G89: =SUM(G72:G88) -> 0.5 | H89: =SUM(H72:H88) -> 0 | J89: 9999
C90: Mean | D90: =F89/E89 ->  | E90: (Mean)^2 | F90: =D90*D90 ->  | G90: Location | H90: =D90-(0.45*D91) -> 
C91: STD. | D91: =((H89/E89)-F90)^0.5 ->  | G91: Scale | H91: =0.7797*D91 -> 
B93: ="การแจกแจงแบบ "&G60&J60&" กับปริมาณน้ำท่าสุทธิเดือน "&D4&" ของอ่าง"&L2 ->  | J93: ตารางแจกแจงความถี่
B94: Class | C94: Class Interval | J94: Class | K94: p(Xi) | L94: 0.05 | M94: 0.1 | N94: 0.15
B95: (i) | C95: (mcm.) | G95: =G60&J60 -> 
B96: =B72 -> 1 | C96: =IF(B96<=$J$68,C72,"") -> (0)-(0) | D96: =IF(B96<=$J$68,E72,"") -> 0 | E96: =IF(B96<=$J$68,D96/$D$113,"") ->  | F96: =IF(B96<=$J$68,E96,"") ->  | G96: =IF(B96<=$J$68,IF($G$60="GUMBEL",EXP(-EXP(-(J96-$H$90)/$H$91)),NORMDIST(J96,$D$90,$D$91,TRUE)),"") ->  | H96: =IF(B96<=$J$68,G96,"") ->  | J96: =K72 -> 0 | K96: =H96 ->  | L96: 0.05 | M96: 0.1 | N96: 0.15
B97: =B96+1 -> 2 | C97: (1)-(0) | D97: 0 | F97: =IF(B97<=$J$68,E97+F96,"") ->  | H97: =IF(B97<=$J$68,G97-G96,"") ->  | J97: =K73 -> 0 | K97: =H97 ->  | L97: 0.05 | M97: 0.1 | N97: 0.15
B98: 3 | C98: >1 | D98: 0 | J98: =K74 -> 0 | L98: 0.05 | M98: 0.1 | N98: 0.15
B99: 4 | J99: 0 | L99: 0.05 | M99: 0.1 | N99: 0.15
B100: 5 | J100: 0 | L100: 0.05 | M100: 0.1 | N100: 0.15
B101: 6 | J101: 0 | L101: 0.05 | M101: 0.1 | N101: 0.15
B102: 7 | J102: 0 | L102: 0.05 | M102: 0.1 | N102: 0.15
B103: 8 | J103: 0 | L103: 0.05 | M103: 0.1 | N103: 0.15
B104: 9 | J104: 0 | L104: 0.05 | M104: 0.1 | N104: 0.15
B105: 10 | G105: =IF(B105<=$J$68,IF($G$60="GUMBEL",EXP(-EXP(-(J105-$H$90)/$H$91)),NORMDIST(J105,$D$90,$D$91,TRUE)),"") ->  | J105: 0 | L105: 0.05 | M105: 0.1 | N105: 0.15
B106: 11 | J106: 0 | L106: 0.05 | M106: 0.1 | N106: 0.15
B107: 12 | J107: 0 | L107: 0.05 | M107: 0.1 | N107: 0.15
B108: 13 | J108: 0 | L108: 0.05 | M108: 0.1 | N108: 0.15
B109: 14 | J109: 0 | L109: 0.05 | M109: 0.1 | N109: 0.15
B110: 15 | J110: 0 | L110: 0.05 | M110: 0.1 | N110: 0.15
B111: 16 | J111: 0 | L111: 0.05 | M111: 0.1 | N111: 0.15
B112: 17 | J112: 0 | L112: 0.05 | M112: 0.1 | N112: 0.15
C113: Sum | D113: =SUM(D96:D112) -> 0 | E113: =SUM(E96:E112) ->  | H113: =SUM(H96:H112) -> 
A115: ="8. หาค่าVolume of Flood Control Reserve ของเดือน"&D4&"ที่ค่าความเสี่ยงต่างๆ จากกราฟการแจกแจงความน่าจะเป็น" -> 8. หาค่าVolume of Flood Control Reserve ของเดือนมกราคมที่ค่าความเสี่ยงต่างๆ จากกราฟการแจกแจงความน่าจะเป็น
J126: P(NRIt>VFCt)< Risk
J127: =IF(NRI!B54<0,"Volume Buffer","Volum Flood Control") -> 
J128: Risk(%) | K128: =IF(NRI!B54<0,"VBUF(mcm)","VFC(mcm)") ->  | M128: X-Axis | N128: X-ordinate | O128: Y-Axis | P128: Y-ordinate
J129: 15 | K129: 1080 | M129: X1= | N129: 374 | O129: Y1= | P129: 0.1591207405
J130: 10 | K130: 1170 | M130: X2= | N130: 475 | O130: Y2= | P130: 0.1311703176
J131: 5 | K131: 1250 | M131: X0= | N131: =N129-((N129-N130)*(P129-P131)/(P129-P130)) -> 406.95817 | O131: Y0= | P131: 0.15

Sheet ก.พ. (hidden)
B2: 6. การหาค่าสถิติและการทดสอบความเหมาะสมของ Distribution Function กับข้อมูล Net Reservoir Inflow(NIR) | L2: =NRI!O1 -> 0
B4: 2 | C4: Feb | D4: กุมภาพันธ์
E5: Empirical | F5: GUMBEL | H5: NORMAL | K5: LOG-NORMAL
B6: No. | C6: NRI | D6: (X) | E6: F'(X) | F6: F(x) | G6: F'(X)-F(X) | H6: Z | I6: F(x) | J6: F'(X)-F(X) | K6: Y | L6: F(x) | M6: F'(X)-f(X)
B7: =IF(1<='หา NRI'!$D$58,1,"") -> 1 | C7: =IF(NRI!D82="","",NRI!D82) ->  | D7: =IF(C7="","",SMALL(OFFSET($C$7,0,0,'หา NRI'!$D$58,1),B7)) ->  | E7: =IF(C7="","",B7/(COUNT($B$7:$B$57)+1)) ->  | F7: =IF(C7="","",EXP(-EXP(-(D7-$C$60)/$C$61))) ->  | G7: =IF(C7="","",ABS(E7-F7)) ->  | H7: =IF(C7="","",(D7-$C$58)/$C$59) ->  | I7: =IF(C7="","",NORMSDIST(H7)) ->  | J7: =IF(C7="","",ABS(E7-I7)) ->  | K7: =IF(C7="","",(LN(D7))) ->  | L7: =IF(C7="","",(LOGNORMDIST(D7,$C$61,$C$62))) ->  | M7: =IF(C7="","",(ABS(E7-L7))) -> 
B8: =IF(B7="","",IF(B7+1<='หา NRI'!$D$58,B7+1,"")) -> 2 | C8: =IF(NRI!D83="","",NRI!D83) ->  | D8: =IF(C8="","",SMALL(OFFSET($C$7,0,0,'หา NRI'!$D$58,1),B8)) ->  | E8: =IF(C8="","",B8/(COUNT($B$7:$B$57)+1)) ->  | F8: =IF(C8="","",EXP(-EXP(-(D8-$C$60)/$C$61))) ->  | G8: =IF(C8="","",ABS(E8-F8)) ->  | H8: =IF(C8="","",(D8-$C$58)/$C$59) ->  | I8: =IF(C8="","",NORMSDIST(H8)) ->  | J8: =IF(C8="","",ABS(E8-I8)) ->  | K8: =IF(C8="","",(LN(D8))) ->  | L8: =IF(C8="","",(LOGNORMDIST(D8,$C$61,$C$62))) ->  | M8: =IF(C8="","",(ABS(E8-L8))) -> 
B9: =IF(B8="","",IF(B8+1<='หา NRI'!$D$58,B8+1,"")) -> 3 | C9: =IF(NRI!D84="","",NRI!D84) ->  | D9: =IF(C9="","",SMALL(OFFSET($C$7,0,0,'หา NRI'!$D$58,1),B9)) -> 
B10: =IF(B9="","",IF(B9+1<='หา NRI'!$D$58,B9+1,"")) -> 4 | C10: =IF(NRI!D85="","",NRI!D85) ->  | D10: =IF(C10="","",SMALL(OFFSET($C$7,0,0,'หา NRI'!$D$58,1),B10)) -> 
B11: =IF(B10="","",IF(B10+1<='หา NRI'!$D$58,B10+1,"")) ->  | C11: =IF(NRI!D86="","",NRI!D86) ->  | D11: =IF(C11="","",SMALL(OFFSET($C$7,0,0,'หา NRI'!$D$58,1),B11)) -> 
B12: =IF(B11="","",IF(B11+1<='หา NRI'!$D$58,B11+1,"")) ->  | C12: =IF(NRI!D87="","",NRI!D87) ->  | D12: =IF(C12="","",SMALL(OFFSET($C$7,0,0,'หา NRI'!$D$58,1),B12)) -> 
B13: =IF(B12="","",IF(B12+1<='หา NRI'!$D$58,B12+1,"")) ->  | C13: =IF(NRI!D88="","",NRI!D88) ->  | D13: =IF(C13="","",SMALL(OFFSET($C$7,0,0,'หา NRI'!$D$58,1),B13)) -> 
B14: =IF(B13="","",IF(B13+1<='หา NRI'!$D$58,B13+1,"")) ->  | C14: =IF(NRI!D89="","",NRI!D89) ->  | D14: =IF(C14="","",SMALL(OFFSET($C$7,0,0,'หา NRI'!$D$58,1),B14)) -> 
B15: =IF(B14="","",IF(B14+1<='หา NRI'!$D$58,B14+1,"")) ->  | C15: =IF(NRI!D90="","",NRI!D90) ->  | D15: =IF(C15="","",SMALL(OFFSET($C$7,0,0,'หา NRI'!$D$58,1),B15)) -> 
B16: =IF(B15="","",IF(B15+1<='หา NRI'!$D$58,B15+1,"")) ->  | C16: =IF(NRI!D91="","",NRI!D91) ->  | D16: =IF(C16="","",SMALL(OFFSET($C$7,0,0,'หา NRI'!$D$58,1),B16)) -> 
B17: =IF(B16="","",IF(B16+1<='หา NRI'!$D$58,B16+1,"")) ->  | C17: =IF(NRI!D92="","",NRI!D92) ->  | D17: =IF(C17="","",SMALL(OFFSET($C$7,0,0,'หา NRI'!$D$58,1),B17)) -> 
B18: =IF(B17="","",IF(B17+1<='หา NRI'!$D$58,B17+1,"")) ->  | C18: =IF(NRI!D93="","",NRI!D93) ->  | D18: =IF(C18="","",SMALL(OFFSET($C$7,0,0,'หา NRI'!$D$58,1),B18)) -> 
B19: =IF(B18="","",IF(B18+1<='หา NRI'!$D$58,B18+1,"")) ->  | C19: =IF(NRI!D94="","",NRI!D94) ->  | D19: =IF(C19="","",SMALL(OFFSET($C$7,0,0,'หา NRI'!$D$58,1),B19)) -> 
B20: =IF(B19="","",IF(B19+1<='หา NRI'!$D$58,B19+1,"")) ->  | C20: =IF(NRI!D95="","",NRI!D95) ->  | D20: =IF(C20="","",SMALL(OFFSET($C$7,0,0,'หา NRI'!$D$58,1),B20)) -> 
B21: =IF(B20="","",IF(B20+1<='หา NRI'!$D$58,B20+1,"")) ->  | C21: =IF(NRI!D96="","",NRI!D96) ->  | D21: =IF(C21="","",SMALL(OFFSET($C$7,0,0,'หา NRI'!$D$58,1),B21)) -> 
B22: =IF(B21="","",IF(B21+1<='หา NRI'!$D$58,B21+1,"")) ->  | C22: =IF(NRI!D97="","",NRI!D97) ->  | D22: =IF(C22="","",SMALL(OFFSET($C$7,0,0,'หา NRI'!$D$58,1),B22)) -> 
B23: =IF(B22="","",IF(B22+1<='หา NRI'!$D$58,B22+1,"")) ->  | C23: =IF(NRI!D98="","",NRI!D98) ->  | D23: =IF(C23="","",SMALL(OFFSET($C$7,0,0,'หา NRI'!$D$58,1),B23)) -> 
B24: =IF(B23="","",IF(B23+1<='หา NRI'!$D$58,B23+1,"")) ->  | C24: =IF(NRI!D99="","",NRI!D99) ->  | D24: =IF(C24="","",SMALL(OFFSET($C$7,0,0,'หา NRI'!$D$58,1),B24)) -> 
B25: =IF(B24="","",IF(B24+1<='หา NRI'!$D$58,B24+1,"")) ->  | C25: =IF(NRI!D100="","",NRI!D100) ->  | D25: =IF(C25="","",SMALL(OFFSET($C$7,0,0,'หา NRI'!$D$58,1),B25)) -> 
B26: =IF(B25="","",IF(B25+1<='หา NRI'!$D$58,B25+1,"")) ->  | C26: =IF(NRI!D101="","",NRI!D101) ->  | D26: =IF(C26="","",SMALL(OFFSET($C$7,0,0,'หา NRI'!$D$58,1),B26)) -> 
B27: =IF(B26="","",IF(B26+1<='หา NRI'!$D$58,B26+1,"")) ->  | C27: =IF(NRI!D102="","",NRI!D102) ->  | D27: =IF(C27="","",SMALL(OFFSET($C$7,0,0,'หา NRI'!$D$58,1),B27)) -> 
B28: =IF(B27="","",IF(B27+1<='หา NRI'!$D$58,B27+1,"")) ->  | C28: =IF(NRI!D103="","",NRI!D103) ->  | D28: =IF(C28="","",SMALL(OFFSET($C$7,0,0,'หา NRI'!$D$58,1),B28)) -> 
B29: =IF(B28="","",IF(B28+1<='หา NRI'!$D$58,B28+1,"")) ->  | C29: =IF(NRI!D104="","",NRI!D104) ->  | D29: =IF(C29="","",SMALL(OFFSET($C$7,0,0,'หา NRI'!$D$58,1),B29)) -> 
B30: =IF(B29="","",IF(B29+1<='หา NRI'!$D$58,B29+1,"")) ->  | C30: =IF(NRI!D105="","",NRI!D105) ->  | D30: =IF(C30="","",SMALL(OFFSET($C$7,0,0,'หา NRI'!$D$58,1),B30)) -> 
B31: =IF(B30="","",IF(B30+1<='หา NRI'!$D$58,B30+1,"")) ->  | C31: =IF(NRI!D106="","",NRI!D106) ->  | D31: =IF(C31="","",SMALL(OFFSET($C$7,0,0,'หา NRI'!$D$58,1),B31)) -> 
B32: =IF(B31="","",IF(B31+1<='หา NRI'!$D$58,B31+1,"")) ->  | C32: =IF(NRI!D107="","",NRI!D107) ->  | D32: =IF(C32="","",SMALL(OFFSET($C$7,0,0,'หา NRI'!$D$58,1),B32)) -> 
B33: =IF(B32="","",IF(B32+1<='หา NRI'!$D$58,B32+1,"")) ->  | C33: =IF(NRI!D108="","",NRI!D108) ->  | D33: =IF(C33="","",SMALL(OFFSET($C$7,0,0,'หา NRI'!$D$58,1),B33)) -> 
B34: =IF(B33="","",IF(B33+1<='หา NRI'!$D$58,B33+1,"")) ->  | C34: =IF(NRI!D109="","",NRI!D109) ->  | D34: =IF(C34="","",SMALL(OFFSET($C$7,0,0,'หา NRI'!$D$58,1),B34)) -> 
B35: =IF(B34="","",IF(B34+1<='หา NRI'!$D$58,B34+1,"")) ->  | C35: =IF(NRI!D110="","",NRI!D110) ->  | D35: =IF(C35="","",SMALL(OFFSET($C$7,0,0,'หา NRI'!$D$58,1),B35)) -> 
B36: =IF(B35="","",IF(B35+1<='หา NRI'!$D$58,B35+1,"")) ->  | C36: =IF(NRI!D111="","",NRI!D111) ->  | D36: =IF(C36="","",SMALL(OFFSET($C$7,0,0,'หา NRI'!$D$58,1),B36)) -> 
B37: =IF(B36="","",IF(B36+1<='หา NRI'!$D$58,B36+1,"")) ->  | C37: =IF(NRI!D112="","",NRI!D112) ->  | D37: =IF(C37="","",SMALL(OFFSET($C$7,0,0,'หา NRI'!$D$58,1),B37)) -> 
B38: =IF(B37="","",IF(B37+1<='หา NRI'!$D$58,B37+1,"")) ->  | C38: =IF(NRI!D113="","",NRI!D113) ->  | D38: =IF(C38="","",SMALL(OFFSET($C$7,0,0,'หา NRI'!$D$58,1),B38)) -> 
B39: =IF(B38="","",IF(B38+1<='หา NRI'!$D$58,B38+1,"")) ->  | C39: =IF(NRI!D114="","",NRI!D114) ->  | D39: =IF(C39="","",SMALL(OFFSET($C$7,0,0,'หา NRI'!$D$58,1),B39)) -> 
B40: =IF(B39="","",IF(B39+1<='หา NRI'!$D$58,B39+1,"")) ->  | C40: =IF(NRI!D115="","",NRI!D115) ->  | D40: =IF(C40="","",SMALL(OFFSET($C$7,0,0,'หา NRI'!$D$58,1),B40)) -> 
B41: =IF(B40="","",IF(B40+1<='หา NRI'!$D$58,B40+1,"")) ->  | C41: =IF(NRI!D116="","",NRI!D116) ->  | D41: =IF(C41="","",SMALL(OFFSET($C$7,0,0,'หา NRI'!$D$58,1),B41)) -> 
B42: =IF(B41="","",IF(B41+1<='หา NRI'!$D$58,B41+1,"")) ->  | C42: =IF(NRI!D117="","",NRI!D117) ->  | D42: =IF(C42="","",SMALL(OFFSET($C$7,0,0,'หา NRI'!$D$58,1),B42)) -> 
B43: =IF(B42="","",IF(B42+1<='หา NRI'!$D$58,B42+1,"")) ->  | C43: =IF(NRI!D118="","",NRI!D118) ->  | D43: =IF(C43="","",SMALL(OFFSET($C$7,0,0,'หา NRI'!$D$58,1),B43)) -> 
B44: =IF(B43="","",IF(B43+1<='หา NRI'!$D$58,B43+1,"")) ->  | C44: =IF(NRI!D119="","",NRI!D119) ->  | D44: =IF(C44="","",SMALL(OFFSET($C$7,0,0,'หา NRI'!$D$58,1),B44)) -> 
B45: =IF(B44="","",IF(B44+1<='หา NRI'!$D$58,B44+1,"")) ->  | C45: =IF(NRI!D120="","",NRI!D120) ->  | D45: =IF(C45="","",SMALL(OFFSET($C$7,0,0,'หา NRI'!$D$58,1),B45)) -> 
B46: =IF(B45="","",IF(B45+1<='หา NRI'!$D$58,B45+1,"")) ->  | C46: =IF(NRI!D121="","",NRI!D121) ->  | D46: =IF(C46="","",SMALL(OFFSET($C$7,0,0,'หา NRI'!$D$58,1),B46)) -> 
B47: =IF(B46="","",IF(B46+1<='หา NRI'!$D$58,B46+1,"")) ->  | C47: =IF(NRI!D122="","",NRI!D122) ->  | D47: =IF(C47="","",SMALL(OFFSET($C$7,0,0,'หา NRI'!$D$58,1),B47)) -> 
B48: =IF(B47="","",IF(B47+1<='หา NRI'!$D$58,B47+1,"")) ->  | C48: =IF(NRI!D123="","",NRI!D123) ->  | D48: =IF(C48="","",SMALL(OFFSET($C$7,0,0,'หา NRI'!$D$58,1),B48)) -> 
B49: =IF(B48="","",IF(B48+1<='หา NRI'!$D$58,B48+1,"")) ->  | C49: =IF(NRI!D124="","",NRI!D124) ->  | D49: =IF(C49="","",SMALL(OFFSET($C$7,0,0,'หา NRI'!$D$58,1),B49)) -> 
B50: =IF(B49="","",IF(B49+1<='หา NRI'!$D$58,B49+1,"")) ->  | C50: =IF(NRI!D125="","",NRI!D125) ->  | D50: =IF(C50="","",SMALL(OFFSET($C$7,0,0,'หา NRI'!$D$58,1),B50)) -> 
B51: =IF(B50="","",IF(B50+1<='หา NRI'!$D$58,B50+1,"")) ->  | C51: =IF(NRI!D126="","",NRI!D126) ->  | D51: =IF(C51="","",SMALL(OFFSET($C$7,0,0,'หา NRI'!$D$58,1),B51)) -> 
B52: =IF(B51="","",IF(B51+1<='หา NRI'!$D$58,B51+1,"")) ->  | C52: =IF(NRI!D127="","",NRI!D127) ->  | D52: =IF(C52="","",SMALL(OFFSET($C$7,0,0,'หา NRI'!$D$58,1),B52)) -> 
B53: =IF(B52="","",IF(B52+1<='หา NRI'!$D$58,B52+1,"")) ->  | C53: =IF(NRI!D128="","",NRI!D128) ->  | D53: =IF(C53="","",SMALL(OFFSET($C$7,0,0,'หา NRI'!$D$58,1),B53)) -> 
B54: =IF(B53="","",IF(B53+1<='หา NRI'!$D$58,B53+1,"")) ->  | C54: =IF(NRI!D129="","",NRI!D129) ->  | D54: =IF(C54="","",SMALL(OFFSET($C$7,0,0,'หา NRI'!$D$58,1),B54)) -> 
B55: =IF(B54="","",IF(B54+1<='หา NRI'!$D$58,B54+1,"")) ->  | C55: =IF(NRI!D130="","",NRI!D130) ->  | D55: =IF(C55="","",SMALL(OFFSET($C$7,0,0,'หา NRI'!$D$58,1),B55)) -> 
B56: =IF(B55="","",IF(B55+1<='หา NRI'!$D$58,B55+1,"")) ->  | C56: =IF(NRI!D131="","",NRI!D131) ->  | D56: =IF(C56="","",SMALL(OFFSET($C$7,0,0,'หา NRI'!$D$58,1),B56)) -> 
B57: =IF(B56="","",IF(B56+1<='หา NRI'!$D$58,B56+1,"")) ->  | C57: =IF(NRI!D132="","",NRI!D132) ->  | D57: =IF(C57="","",SMALL(OFFSET($C$7,0,0,'หา NRI'!$D$58,1),B57)) -> 
B58: MEAN | C58: =AVERAGE(C7:C57) ->  | F58: MAX | G58: =MAX(G7:G57) -> 0 | I58: MAX | J58: =MAX(J7:J57) -> 0 | L58: MAX | M58: =MAX(M7:M17) -> 0
B59: STD. | C59: =STDEV(C7:C57) ->  | F59: ="Delta "&COUNT(B7:B57)&", "&OFFSET('หา NRI'!A48,MATCH(G59,'หา NRI'!G49:G52,0),0,1,1)*100&"%" ->  | G59: =IF('หา NRI'!G50>G58,'หา NRI'!G50,'หา NRI'!G49) ->  | H59: =IF(G58<G59,"ok","") ->  | I59: =F59 ->  | J59: =G59 ->  | K59: =IF(G58<G59,"ok","") ->  | L59: =F59 ->  | M59: =G59 -> 
B60: Location | C60: =C58-(0.45*C59) ->  | G60: =IF(G58<G59,IF(G58<J58,"GUMBEL",""),"") ->  | J60: =IF(J58<J59,IF(J58<G58,"NORMAL",""),"") -> 
B61: Scale | C61: =0.7797*C59 ->  | H61: ="เดือน"&D4&"เป็นการแจกแจงแบบ "&G60&J60 -> 
B62: MEAN Y | C62: =AVERAGE(K7:K17) -> 
B63: STD. Y | C63: =STDEV(K7:K17) -> 
B64: MAX X | C64: =MAX(D7:D57) -> 0 | E64: ="ดังนั้น ปริมาณน้ำไหลเข้าอ่างเก็บน้ำสุทธิในเดือน "&D4&" จะเหมาะสมกับการแจกแจงแบบ " &G60&J60&" ที่ระดับนัยสำคัญ "&OFFSET('หา NRI'!A48,MATCH(G59,'หา NRI'!G49:G52,0),0,1,1)*100&"%" -> 
B65: MIN X | C65: =MIN(D7:D57) -> 0
I66: แนะนำกว้าง | J66: =ROUND(($L$68-$L$69)/$J$68,0) -> 0
B67: 7. สร้างเส้นโค้งของการแจกแจง NRI | I67: กว้างชั้นละ | J67: =ROUND(($L$68-$L$69)/$J$68,0) -> 0 | K67: Max - Min
C68: Range; R = | D68: =C64-C65 -> 0 | E68: Class Interval ; CI = | G68: =D68/D69 -> 0 | I68: จำนวนชั้น | J68: 4 | K68: MAX X | L68: =C64 -> 0
C69: Class ; C = | D69: =J68 -> 4 | I69: เริ่มที่ | J69: -100 | K69: MIN X | L69: =C65 -> 0
B70: Class | C70: Class Interval | D70: Mid-Range | F70: (Xi)*ni | G70: (X(i))^2 | H70: ni*(X(i))^2
B71: (i) | C71: (mcm.) | D71: (Xi)
B72: 1 | C72: =IF(B72<=$J$68,"("&J69&")-("&K72&")","") -> (-100)-(-100) | D72: =IF(B72<=$J$68,(J69+K72)/2,"") -> -100 | E72: =IF(B72<=$J$68,M72,"") -> 0 | F72: =IF(B72<=$J$68,D72*E72,"") -> 0 | G72: =IF(B72<=$J$68,D72^2,"") -> 10000 | H72: =IF(B72<=$J$68,E72*G72,"") -> 0 | I72: =IF(B72<=$D$69,1,0) -> 1 | J72: =J69 -> -100 | K72: =$J$69+(B72*$J$67) -> -100 | L72: =COUNTIF($C$7:$C$45,"<"&J73-0.5) -> 0 | M72: =L72 -> 0
B73: =IF(B72+1<=J68,B72+1,"") -> 2 | C73: =IF(B73<=$J$68,IF(I74=1,"("&J73&")-("&K73&")",">"&J73),"") -> (-99)-(-100) | D73: =IF(B73<=$J$68,(J73+K73)/2,"") -> -99.5 | E73: 0 | F73: 0 | G73: 9900.25 | H73: 0 | I73: 1 | J73: =IF(I73=1,K72+1,9999) -> -99 | K73: -100 | L73: =COUNTIF($C$7:$C$45,"<"&J74-0.5) -> 0 | M73: =L73-L72 -> 0
B74: =B73+1 -> 3 | C74: (-99)-(-100) | D74: -99.5 | E74: 0 | F74: 0 | G74: 9900.25 | H74: 0 | I74: 1 | J74: -99 | K74: -100 | L74: 0 | M74: 0
B75: 4 | C75: >-99 | D75: -99.5 | E75: 0 | F75: 0 | G75: 9900.25 | H75: 0 | I75: 1 | J75: -99 | K75: -100 | L75: 0 | M75: 0
B76: 5 | I76: 0 | J76: 9999 | K76: -100 | L76: 0 | M76: 0
B77: 6 | I77: 0 | J77: 9999 | K77: -100 | L77: 0 | M77: 0
B78: 7 | I78: 0 | J78: 9999 | K78: -100 | L78: 0 | M78: 0
B79: 8 | I79: 0 | J79: 9999 | K79: -100 | L79: 0 | M79: 0
B80: 9 | I80: 0 | J80: 9999 | K80: -100 | L80: 0 | M80: 0
B81: 10 | I81: 0 | J81: 9999 | K81: -100 | L81: 0 | M81: 0
B82: 11 | I82: 0 | J82: 9999 | K82: -100 | L82: 0 | M82: 0
B83: 12 | I83: 0 | J83: 9999 | K83: -100 | L83: 0 | M83: 0
B84: 13 | I84: 0 | J84: 9999 | K84: -100 | L84: 0 | M84: 0
B85: 14 | I85: 0 | J85: 9999 | K85: -100 | L85: 0 | M85: 0
B86: 15 | I86: 0 | J86: 9999 | K86: -100 | L86: 0 | M86: 0
B87: 16 | I87: 0 | J87: 9999 | K87: -100 | L87: 0 | M87: 0
B88: 17 | I88: 0 | J88: 9999 | K88: -100 | L88: =COUNTIF($C$7:$C$45,"<"&J89-0.5) -> 0 | M88: 0
B89: SUM | E89: =SUM(E72:E88) -> 0 | F89: =SUM(F72:F88) -> 0 | G89: =SUM(G72:G88) -> 39700.75 | H89: =SUM(H72:H88) -> 0 | J89: 9999
C90: Mean | D90: =F89/E89 ->  | E90: (Mean)^2 | F90: =D90*D90 ->  | G90: Location | H90: =D90-(0.45*D91) -> 
C91: STD. | D91: =((H89/E89)-F90)^0.5 ->  | G91: Scale | H91: =0.7797*D91 -> 
B93: ="การแจกแจงแบบ "&G60&J60&" กับปริมาณน้ำท่าสุทธิเดือน "&D4&" ของอ่าง"&L2 ->  | J93: ตารางแจกแจงความถี่
B94: Class | C94: Class Interval | J94: Class | K94: p(Xi) | L94: 0.05 | M94: 0.1 | N94: 0.15
B95: (i) | C95: (mcm.) | G95: =G60&J60 -> 
B96: =B72 -> 1 | C96: =IF(B96<=$J$68,C72,"") -> (-100)-(-100) | D96: =IF(B96<=$J$68,E72,"") -> 0 | E96: =IF(B96<=$J$68,D96/$D$113,"") ->  | F96: =IF(B96<=$J$68,E96,"") ->  | G96: =IF(B96<=$J$68,IF($G$60="GUMBEL",EXP(-EXP(-(J96-$H$90)/$H$91)),NORMDIST(J96,$D$90,$D$91,TRUE)),"") ->  | H96: =IF(B96<=$J$68,G96,"") ->  | J96: =K72 -> -100 | K96: =H96 ->  | L96: 0.05 | M96: 0.1 | N96: 0.15
B97: =B96+1 -> 2 | C97: (-99)-(-100) | D97: 0 | F97: =IF(B97<=$J$68,E97+F96,"") ->  | H97: =IF(B97<=$J$68,G97-G96,"") ->  | J97: =K73 -> -100 | K97: =H97 ->  | L97: 0.05 | M97: 0.1 | N97: 0.15
B98: 3 | C98: (-99)-(-100) | D98: 0 | J98: =K74 -> -100 | L98: 0.05 | M98: 0.1 | N98: 0.15
B99: 4 | C99: >-99 | D99: 0 | J99: -100 | L99: 0.05 | M99: 0.1 | N99: 0.15
B100: 5 | J100: -100 | L100: 0.05 | M100: 0.1 | N100: 0.15
B101: 6 | J101: -100 | L101: 0.05 | M101: 0.1 | N101: 0.15
B102: 7 | J102: -100 | L102: 0.05 | M102: 0.1 | N102: 0.15
B103: 8 | J103: -100 | L103: 0.05 | M103: 0.1 | N103: 0.15
B104: 9 | J104: -100 | L104: 0.05 | M104: 0.1 | N104: 0.15
B105: 10 | J105: -100 | L105: 0.05 | M105: 0.1 | N105: 0.15
B106: 11 | J106: -100 | L106: 0.05 | M106: 0.1 | N106: 0.15
B107: 12 | J107: -100 | L107: 0.05 | M107: 0.1 | N107: 0.15
B108: 13 | J108: -100 | L108: 0.05 | M108: 0.1 | N108: 0.15
B109: 14 | J109: -100 | L109: 0.05 | M109: 0.1 | N109: 0.15
B110: 15 | J110: -100 | L110: 0.05 | M110: 0.1 | N110: 0.15
B111: 16 | J111: -100 | L111: 0.05 | M111: 0.1 | N111: 0.15
B112: 17 | J112: -100 | L112: 0.05 | M112: 0.1 | N112: 0.15
C113: Sum | D113: =SUM(D96:D112) -> 0 | E113: =SUM(E96:E112) ->  | H113: =SUM(H96:H112) -> 
A115: ="8. หาค่าVolume of Flood Control Reserve ของเดือน"&D4&"ที่ค่าความเสี่ยงต่างๆ จากกราฟการแจกแจงความน่าจะเป็น" -> 8. หาค่าVolume of Flood Control Reserve ของเดือนกุมภาพันธ์ที่ค่าความเสี่ยงต่างๆ จากกราฟการแจกแจงความน่าจะเป็น
J126: P(NRIt>VFCt)< Risk
J127: =IF(NRI!C54<0,"Volume Buffer","Volum Flood Control") -> 
J128: Risk(%) | K128: =IF(NRI!C54<0,"VBUF(mcm)","VFC(mcm)") ->  | M128: X-Axis | N128: X-ordinate | O128: Y-Axis | P128: Y-ordinate
J129: 15 | K129: 680 | M129: X1= | N129: 374 | O129: Y1= | P129: 0.1591207405
J130: 10 | K130: 740 | M130: X2= | N130: 475 | O130: Y2= | P130: 0.1311703176
J131: 5 | K131: 800 | M131: X0= | N131: =N129-((N129-N130)*(P129-P131)/(P129-P130)) -> 406.95817 | O131: Y0= | P131: 0.15

Sheet มี.ค. (hidden)
B2: 6. การหาค่าสถิติและการทดสอบความเหมาะสมของ Distribution Function กับข้อมูล Net Reservoir Inflow(NIR) | L2: =NRI!O1 -> 0
B4: 3 | C4: Mar | D4: มีนาคม
E5: Empirical | F5: GUMBEL | H5: NORMAL | K5: LOG-NORMAL
B6: No. | C6: NRI | D6: (X) | E6: F'(X) | F6: F(x) | G6: F'(X)-F(X) | H6: Z | I6: F(x) | J6: F'(X)-F(X) | K6: Y | L6: F(x) | M6: F'(X)-f(X)
B7: =IF(1<='หา NRI'!$D$58,1,"") -> 1 | C7: =IF(NRI!E82="","",NRI!E82) ->  | D7: =IF(C7="","",SMALL(OFFSET($C$7,0,0,'หา NRI'!$D$58,1),B7)) ->  | E7: =IF(C7="","",B7/(COUNT($B$7:$B$57)+1)) ->  | F7: =IF(C7="","",EXP(-EXP(-(D7-$C$60)/$C$61))) ->  | G7: =IF(C7="","",ABS(E7-F7)) ->  | H7: =IF(C7="","",(D7-$C$58)/$C$59) ->  | I7: =IF(C7="","",NORMSDIST(H7)) ->  | J7: =IF(C7="","",ABS(E7-I7)) ->  | K7: =IF(C7="","",(LN(D7))) ->  | L7: =IF(C7="","",(LOGNORMDIST(D7,$C$61,$C$62))) ->  | M7: =IF(C7="","",(ABS(E7-L7))) -> 
B8: =IF(B7="","",IF(B7+1<='หา NRI'!$D$58,B7+1,"")) -> 2 | C8: =IF(NRI!E83="","",NRI!E83) ->  | D8: =IF(C8="","",SMALL(OFFSET($C$7,0,0,'หา NRI'!$D$58,1),B8)) ->  | E8: =IF(C8="","",B8/(COUNT($B$7:$B$57)+1)) ->  | F8: =IF(C8="","",EXP(-EXP(-(D8-$C$60)/$C$61))) ->  | G8: =IF(C8="","",ABS(E8-F8)) ->  | H8: =IF(C8="","",(D8-$C$58)/$C$59) ->  | I8: =IF(C8="","",NORMSDIST(H8)) ->  | J8: =IF(C8="","",ABS(E8-I8)) ->  | K8: =IF(C8="","",(LN(D8))) ->  | L8: =IF(C8="","",(LOGNORMDIST(D8,$C$61,$C$62))) ->  | M8: =IF(C8="","",(ABS(E8-L8))) -> 
B9: =IF(B8="","",IF(B8+1<='หา NRI'!$D$58,B8+1,"")) -> 3 | C9: =IF(NRI!E84="","",NRI!E84) ->  | D9: =IF(C9="","",SMALL(OFFSET($C$7,0,0,'หา NRI'!$D$58,1),B9)) -> 
B10: =IF(B9="","",IF(B9+1<='หา NRI'!$D$58,B9+1,"")) -> 4 | C10: =IF(NRI!E85="","",NRI!E85) ->  | D10: =IF(C10="","",SMALL(OFFSET($C$7,0,0,'หา NRI'!$D$58,1),B10)) -> 
B11: =IF(B10="","",IF(B10+1<='หา NRI'!$D$58,B10+1,"")) ->  | C11: =IF(NRI!E86="","",NRI!E86) ->  | D11: =IF(C11="","",SMALL(OFFSET($C$7,0,0,'หา NRI'!$D$58,1),B11)) -> 
B12: =IF(B11="","",IF(B11+1<='หา NRI'!$D$58,B11+1,"")) ->  | C12: =IF(NRI!E87="","",NRI!E87) ->  | D12: =IF(C12="","",SMALL(OFFSET($C$7,0,0,'หา NRI'!$D$58,1),B12)) -> 
B13: =IF(B12="","",IF(B12+1<='หา NRI'!$D$58,B12+1,"")) ->  | C13: =IF(NRI!E88="","",NRI!E88) ->  | D13: =IF(C13="","",SMALL(OFFSET($C$7,0,0,'หา NRI'!$D$58,1),B13)) -> 
B14: =IF(B13="","",IF(B13+1<='หา NRI'!$D$58,B13+1,"")) ->  | C14: =IF(NRI!E89="","",NRI!E89) ->  | D14: =IF(C14="","",SMALL(OFFSET($C$7,0,0,'หา NRI'!$D$58,1),B14)) -> 
B15: =IF(B14="","",IF(B14+1<='หา NRI'!$D$58,B14+1,"")) ->  | C15: =IF(NRI!E90="","",NRI!E90) ->  | D15: =IF(C15="","",SMALL(OFFSET($C$7,0,0,'หา NRI'!$D$58,1),B15)) -> 
B16: =IF(B15="","",IF(B15+1<='หา NRI'!$D$58,B15+1,"")) ->  | C16: =IF(NRI!E91="","",NRI!E91) ->  | D16: =IF(C16="","",SMALL(OFFSET($C$7,0,0,'หา NRI'!$D$58,1),B16)) -> 
B17: =IF(B16="","",IF(B16+1<='หา NRI'!$D$58,B16+1,"")) ->  | C17: =IF(NRI!E92="","",NRI!E92) ->  | D17: =IF(C17="","",SMALL(OFFSET($C$7,0,0,'หา NRI'!$D$58,1),B17)) -> 
B18: =IF(B17="","",IF(B17+1<='หา NRI'!$D$58,B17+1,"")) ->  | C18: =IF(NRI!E93="","",NRI!E93) ->  | D18: =IF(C18="","",SMALL(OFFSET($C$7,0,0,'หา NRI'!$D$58,1),B18)) -> 
B19: =IF(B18="","",IF(B18+1<='หา NRI'!$D$58,B18+1,"")) ->  | C19: =IF(NRI!E94="","",NRI!E94) ->  | D19: =IF(C19="","",SMALL(OFFSET($C$7,0,0,'หา NRI'!$D$58,1),B19)) -> 
B20: =IF(B19="","",IF(B19+1<='หา NRI'!$D$58,B19+1,"")) ->  | C20: =IF(NRI!E95="","",NRI!E95) ->  | D20: =IF(C20="","",SMALL(OFFSET($C$7,0,0,'หา NRI'!$D$58,1),B20)) -> 
B21: =IF(B20="","",IF(B20+1<='หา NRI'!$D$58,B20+1,"")) ->  | C21: =IF(NRI!E96="","",NRI!E96) ->  | D21: =IF(C21="","",SMALL(OFFSET($C$7,0,0,'หา NRI'!$D$58,1),B21)) -> 
B22: =IF(B21="","",IF(B21+1<='หา NRI'!$D$58,B21+1,"")) ->  | C22: =IF(NRI!E97="","",NRI!E97) ->  | D22: =IF(C22="","",SMALL(OFFSET($C$7,0,0,'หา NRI'!$D$58,1),B22)) -> 
B23: =IF(B22="","",IF(B22+1<='หา NRI'!$D$58,B22+1,"")) ->  | C23: =IF(NRI!E98="","",NRI!E98) ->  | D23: =IF(C23="","",SMALL(OFFSET($C$7,0,0,'หา NRI'!$D$58,1),B23)) -> 
B24: =IF(B23="","",IF(B23+1<='หา NRI'!$D$58,B23+1,"")) ->  | C24: =IF(NRI!E99="","",NRI!E99) ->  | D24: =IF(C24="","",SMALL(OFFSET($C$7,0,0,'หา NRI'!$D$58,1),B24)) -> 
B25: =IF(B24="","",IF(B24+1<='หา NRI'!$D$58,B24+1,"")) ->  | C25: =IF(NRI!E100="","",NRI!E100) ->  | D25: =IF(C25="","",SMALL(OFFSET($C$7,0,0,'หา NRI'!$D$58,1),B25)) -> 
B26: =IF(B25="","",IF(B25+1<='หา NRI'!$D$58,B25+1,"")) ->  | C26: =IF(NRI!E101="","",NRI!E101) ->  | D26: =IF(C26="","",SMALL(OFFSET($C$7,0,0,'หา NRI'!$D$58,1),B26)) -> 
B27: =IF(B26="","",IF(B26+1<='หา NRI'!$D$58,B26+1,"")) ->  | C27: =IF(NRI!E102="","",NRI!E102) ->  | D27: =IF(C27="","",SMALL(OFFSET($C$7,0,0,'หา NRI'!$D$58,1),B27)) -> 
B28: =IF(B27="","",IF(B27+1<='หา NRI'!$D$58,B27+1,"")) ->  | C28: =IF(NRI!E103="","",NRI!E103) ->  | D28: =IF(C28="","",SMALL(OFFSET($C$7,0,0,'หา NRI'!$D$58,1),B28)) -> 
B29: =IF(B28="","",IF(B28+1<='หา NRI'!$D$58,B28+1,"")) ->  | C29: =IF(NRI!E104="","",NRI!E104) ->  | D29: =IF(C29="","",SMALL(OFFSET($C$7,0,0,'หา NRI'!$D$58,1),B29)) -> 
B30: =IF(B29="","",IF(B29+1<='หา NRI'!$D$58,B29+1,"")) ->  | C30: =IF(NRI!E105="","",NRI!E105) ->  | D30: =IF(C30="","",SMALL(OFFSET($C$7,0,0,'หา NRI'!$D$58,1),B30)) -> 
B31: =IF(B30="","",IF(B30+1<='หา NRI'!$D$58,B30+1,"")) ->  | C31: =IF(NRI!E106="","",NRI!E106) ->  | D31: =IF(C31="","",SMALL(OFFSET($C$7,0,0,'หา NRI'!$D$58,1),B31)) -> 
B32: =IF(B31="","",IF(B31+1<='หา NRI'!$D$58,B31+1,"")) ->  | C32: =IF(NRI!E107="","",NRI!E107) ->  | D32: =IF(C32="","",SMALL(OFFSET($C$7,0,0,'หา NRI'!$D$58,1),B32)) -> 
B33: =IF(B32="","",IF(B32+1<='หา NRI'!$D$58,B32+1,"")) ->  | C33: =IF(NRI!E108="","",NRI!E108) ->  | D33: =IF(C33="","",SMALL(OFFSET($C$7,0,0,'หา NRI'!$D$58,1),B33)) -> 
B34: =IF(B33="","",IF(B33+1<='หา NRI'!$D$58,B33+1,"")) ->  | C34: =IF(NRI!E109="","",NRI!E109) ->  | D34: =IF(C34="","",SMALL(OFFSET($C$7,0,0,'หา NRI'!$D$58,1),B34)) -> 
B35: =IF(B34="","",IF(B34+1<='หา NRI'!$D$58,B34+1,"")) ->  | C35: =IF(NRI!E110="","",NRI!E110) ->  | D35: =IF(C35="","",SMALL(OFFSET($C$7,0,0,'หา NRI'!$D$58,1),B35)) -> 
B36: =IF(B35="","",IF(B35+1<='หา NRI'!$D$58,B35+1,"")) ->  | C36: =IF(NRI!E111="","",NRI!E111) ->  | D36: =IF(C36="","",SMALL(OFFSET($C$7,0,0,'หา NRI'!$D$58,1),B36)) -> 
B37: =IF(B36="","",IF(B36+1<='หา NRI'!$D$58,B36+1,"")) ->  | C37: =IF(NRI!E112="","",NRI!E112) ->  | D37: =IF(C37="","",SMALL(OFFSET($C$7,0,0,'หา NRI'!$D$58,1),B37)) -> 
B38: =IF(B37="","",IF(B37+1<='หา NRI'!$D$58,B37+1,"")) ->  | C38: =IF(NRI!E113="","",NRI!E113) ->  | D38: =IF(C38="","",SMALL(OFFSET($C$7,0,0,'หา NRI'!$D$58,1),B38)) -> 
B39: =IF(B38="","",IF(B38+1<='หา NRI'!$D$58,B38+1,"")) ->  | C39: =IF(NRI!E114="","",NRI!E114) ->  | D39: =IF(C39="","",SMALL(OFFSET($C$7,0,0,'หา NRI'!$D$58,1),B39)) -> 
B40: =IF(B39="","",IF(B39+1<='หา NRI'!$D$58,B39+1,"")) ->  | C40: =IF(NRI!E115="","",NRI!E115) ->  | D40: =IF(C40="","",SMALL(OFFSET($C$7,0,0,'หา NRI'!$D$58,1),B40)) -> 
B41: =IF(B40="","",IF(B40+1<='หา NRI'!$D$58,B40+1,"")) ->  | C41: =IF(NRI!E116="","",NRI!E116) ->  | D41: =IF(C41="","",SMALL(OFFSET($C$7,0,0,'หา NRI'!$D$58,1),B41)) -> 
B42: =IF(B41="","",IF(B41+1<='หา NRI'!$D$58,B41+1,"")) ->  | C42: =IF(NRI!E117="","",NRI!E117) ->  | D42: =IF(C42="","",SMALL(OFFSET($C$7,0,0,'หา NRI'!$D$58,1),B42)) -> 
B43: =IF(B42="","",IF(B42+1<='หา NRI'!$D$58,B42+1,"")) ->  | C43: =IF(NRI!E118="","",NRI!E118) ->  | D43: =IF(C43="","",SMALL(OFFSET($C$7,0,0,'หา NRI'!$D$58,1),B43)) -> 
B44: =IF(B43="","",IF(B43+1<='หา NRI'!$D$58,B43+1,"")) ->  | C44: =IF(NRI!E119="","",NRI!E119) ->  | D44: =IF(C44="","",SMALL(OFFSET($C$7,0,0,'หา NRI'!$D$58,1),B44)) -> 
B45: =IF(B44="","",IF(B44+1<='หา NRI'!$D$58,B44+1,"")) ->  | C45: =IF(NRI!E120="","",NRI!E120) ->  | D45: =IF(C45="","",SMALL(OFFSET($C$7,0,0,'หา NRI'!$D$58,1),B45)) -> 
B46: =IF(B45="","",IF(B45+1<='หา NRI'!$D$58,B45+1,"")) ->  | C46: =IF(NRI!E121="","",NRI!E121) ->  | D46: =IF(C46="","",SMALL(OFFSET($C$7,0,0,'หา NRI'!$D$58,1),B46)) -> 
B47: =IF(B46="","",IF(B46+1<='หา NRI'!$D$58,B46+1,"")) ->  | C47: =IF(NRI!E122="","",NRI!E122) ->  | D47: =IF(C47="","",SMALL(OFFSET($C$7,0,0,'หา NRI'!$D$58,1),B47)) -> 
B48: =IF(B47="","",IF(B47+1<='หา NRI'!$D$58,B47+1,"")) ->  | C48: =IF(NRI!E123="","",NRI!E123) ->  | D48: =IF(C48="","",SMALL(OFFSET($C$7,0,0,'หา NRI'!$D$58,1),B48)) -> 
B49: =IF(B48="","",IF(B48+1<='หา NRI'!$D$58,B48+1,"")) ->  | C49: =IF(NRI!E124="","",NRI!E124) ->  | D49: =IF(C49="","",SMALL(OFFSET($C$7,0,0,'หา NRI'!$D$58,1),B49)) -> 
B50: =IF(B49="","",IF(B49+1<='หา NRI'!$D$58,B49+1,"")) ->  | C50: =IF(NRI!E125="","",NRI!E125) ->  | D50: =IF(C50="","",SMALL(OFFSET($C$7,0,0,'หา NRI'!$D$58,1),B50)) -> 
B51: =IF(B50="","",IF(B50+1<='หา NRI'!$D$58,B50+1,"")) ->  | C51: =IF(NRI!E126="","",NRI!E126) ->  | D51: =IF(C51="","",SMALL(OFFSET($C$7,0,0,'หา NRI'!$D$58,1),B51)) -> 
B52: =IF(B51="","",IF(B51+1<='หา NRI'!$D$58,B51+1,"")) ->  | C52: =IF(NRI!E127="","",NRI!E127) ->  | D52: =IF(C52="","",SMALL(OFFSET($C$7,0,0,'หา NRI'!$D$58,1),B52)) -> 
B53: =IF(B52="","",IF(B52+1<='หา NRI'!$D$58,B52+1,"")) ->  | C53: =IF(NRI!E128="","",NRI!E128) ->  | D53: =IF(C53="","",SMALL(OFFSET($C$7,0,0,'หา NRI'!$D$58,1),B53)) -> 
B54: =IF(B53="","",IF(B53+1<='หา NRI'!$D$58,B53+1,"")) ->  | C54: =IF(NRI!E129="","",NRI!E129) ->  | D54: =IF(C54="","",SMALL(OFFSET($C$7,0,0,'หา NRI'!$D$58,1),B54)) -> 
B55: =IF(B54="","",IF(B54+1<='หา NRI'!$D$58,B54+1,"")) ->  | C55: =IF(NRI!E130="","",NRI!E130) ->  | D55: =IF(C55="","",SMALL(OFFSET($C$7,0,0,'หา NRI'!$D$58,1),B55)) -> 
B56: =IF(B55="","",IF(B55+1<='หา NRI'!$D$58,B55+1,"")) ->  | C56: =IF(NRI!E131="","",NRI!E131) ->  | D56: =IF(C56="","",SMALL(OFFSET($C$7,0,0,'หา NRI'!$D$58,1),B56)) -> 
B57: =IF(B56="","",IF(B56+1<='หา NRI'!$D$58,B56+1,"")) ->  | C57: =IF(NRI!E132="","",NRI!E132) ->  | D57: =IF(C57="","",SMALL(OFFSET($C$7,0,0,'หา NRI'!$D$58,1),B57)) -> 
B58: MEAN | C58: =AVERAGE(C7:C57) ->  | F58: MAX | G58: =MAX(G7:G57) -> 0 | I58: MAX | J58: =MAX(J7:J57) -> 0 | L58: MAX | M58: =MAX(M7:M17) -> 0
B59: STD. | C59: =STDEV(C7:C57) ->  | F59: ="Delta "&COUNT(B7:B57)&", "&OFFSET('หา NRI'!A48,MATCH(G59,'หา NRI'!G49:G52,0),0,1,1)*100&"%" ->  | G59: =IF('หา NRI'!G50>G58,'หา NRI'!G50,'หา NRI'!G49) ->  | H59: =IF(G58<G59,"ok","") ->  | I59: =F59 ->  | J59: =G59 ->  | K59: =IF(G58<G59,"ok","") ->  | L59: =F59 ->  | M59: =G59 -> 
B60: Location | C60: =C58-(0.45*C59) ->  | G60: =IF(G58<G59,IF(G58<J58,"GUMBEL",""),"") ->  | J60: =IF(J58<J59,IF(J58<G58,"NORMAL",""),"") -> 
B61: Scale | C61: =0.7797*C59 ->  | H61: ="เดือน"&D4&"เป็นการแจกแจงแบบ "&G60&J60 -> 
B62: MEAN Y | C62: =AVERAGE(K7:K17) -> 
B63: STD. Y | C63: =STDEV(K7:K17) -> 
B64: MAX X | C64: =MAX(D7:D57) -> 0 | E64: ="ดังนั้น ปริมาณน้ำไหลเข้าอ่างเก็บน้ำสุทธิในเดือน "&D4&" จะเหมาะสมกับการแจกแจงแบบ " &G60&J60&" ที่ระดับนัยสำคัญ "&OFFSET('หา NRI'!A48,MATCH(G59,'หา NRI'!G49:G52,0),0,1,1)*100&"%" -> 
B65: MIN X | C65: =MIN(D7:D57) -> 0
I66: แนะนำกว้าง | J66: =ROUND(($L$68-$L$69)/$J$68,0) -> 0
B67: 7. สร้างเส้นโค้งของการแจกแจง NRI | I67: กว้างชั้นละ | J67: 120 | K67: Max - Min
C68: Range; R = | D68: =C64-C65 -> 0 | E68: Class Interval ; CI = | G68: =D68/D69 -> 0 | I68: จำนวนชั้น | J68: 3 | K68: MAX X | L68: =C64 -> 0
C69: Class ; C = | D69: =J68 -> 3 | I69: เริ่มที่ | J69: 0 | K69: MIN X | L69: =C65 -> 0
B70: Class | C70: Class Interval | D70: Mid-Range | F70: (Xi)*ni | G70: (X(i))^2 | H70: ni*(X(i))^2
B71: (i) | C71: (mcm.) | D71: (Xi)
B72: 1 | C72: =IF(B72<=$J$68,"("&J69&")-("&K72&")","") -> (0)-(120) | D72: =IF(B72<=$J$68,(J69+K72)/2,"") -> 60 | E72: =IF(B72<=$J$68,M72,"") -> 0 | F72: =IF(B72<=$J$68,D72*E72,"") -> 0 | G72: =IF(B72<=$J$68,D72^2,"") -> 3600 | H72: =IF(B72<=$J$68,E72*G72,"") -> 0 | I72: =IF(B72<=$D$69,1,0) -> 1 | J72: =J69 -> 0 | K72: =$J$69+(B72*$J$67) -> 120 | L72: =COUNTIF($C$7:$C$45,"<"&J73-0.5) -> 0 | M72: =L72 -> 0
B73: =IF(B72+1<=J68,B72+1,"") -> 2 | C73: =IF(B73<=$J$68,IF(I74=1,"("&J73&")-("&K73&")",">"&J73),"") -> (121)-(240) | D73: =IF(B73<=$J$68,(J73+K73)/2,"") -> 180.5 | E73: 0 | F73: 0 | G73: 32580.25 | H73: 0 | I73: 1 | J73: =IF(I73=1,K72+1,9999) -> 121 | K73: 240 | L73: =COUNTIF($C$7:$C$45,"<"&J74-0.5) -> 0 | M73: =L73-L72 -> 0
B74: =B73+1 -> 3 | C74: >241 | D74: 300.5 | E74: 0 | F74: 0 | G74: 90300.25 | H74: 0 | I74: 1 | J74: 241 | K74: 360 | L74: 0 | M74: 0
B75: 4 | I75: 0 | J75: 9999 | K75: 480 | L75: 0 | M75: 0
B76: 5 | I76: 0 | J76: 9999 | K76: 600 | L76: 0 | M76: 0
B77: 6 | I77: 0 | J77: 9999 | K77: 720 | L77: 0 | M77: 0
B78: 7 | I78: 0 | J78: 9999 | K78: 840 | L78: 0 | M78: 0
B79: 8 | I79: 0 | J79: 9999 | K79: 960 | L79: 0 | M79: 0
B80: 9 | I80: 0 | J80: 9999 | K80: 1080 | L80: 0 | M80: 0
B81: 10 | I81: 0 | J81: 9999 | K81: 1200 | L81: 0 | M81: 0
B82: 11 | I82: 0 | J82: 9999 | K82: 1320 | L82: 0 | M82: 0
B83: 12 | I83: 0 | J83: 9999 | K83: 1440 | L83: 0 | M83: 0
B84: 13 | I84: 0 | J84: 9999 | K84: 1560 | L84: 0 | M84: 0
B85: 14 | I85: 0 | J85: 9999 | K85: 1680 | L85: 0 | M85: 0
B86: 15 | I86: 0 | J86: 9999 | K86: 1800 | L86: 0 | M86: 0
B87: 16 | I87: 0 | J87: 9999 | K87: 1920 | L87: 0 | M87: 0
B88: 17 | I88: 0 | J88: 9999 | K88: 2040 | L88: =COUNTIF($C$7:$C$45,"<"&J89-0.5) -> 0 | M88: 0
B89: SUM | E89: =SUM(E72:E88) -> 0 | F89: =SUM(F72:F88) -> 0 | G89: =SUM(G72:G88) -> 126480.5 | H89: =SUM(H72:H88) -> 0 | J89: 9999
C90: Mean | D90: =F89/E89 ->  | E90: (Mean)^2 | F90: =D90*D90 ->  | G90: Location | H90: =D90-(0.45*D91) -> 
C91: STD. | D91: =((H89/E89)-F90)^0.5 ->  | G91: Scale | H91: =0.7797*D91 -> 
B93: ="การแจกแจงแบบ "&G60&J60&" กับปริมาณน้ำท่าสุทธิเดือน "&D4&" ของอ่าง"&L2 ->  | J93: ตารางแจกแจงความถี่
B94: Class | C94: Class Interval | J94: Class | K94: p(Xi) | L94: 0.05 | M94: 0.1 | N94: 0.15
B95: (i) | C95: (mcm.) | G95: =G60&J60 -> 
B96: =B72 -> 1 | C96: =IF(B96<=$J$68,C72,"") -> (0)-(120) | D96: =IF(B96<=$J$68,E72,"") -> 0 | E96: =IF(B96<=$J$68,D96/$D$113,"") ->  | F96: =IF(B96<=$J$68,E96,"") ->  | G96: =IF(B96<=$J$68,IF($G$60="GUMBEL",EXP(-EXP(-(J96-$H$90)/$H$91)),NORMDIST(J96,$D$90,$D$91,TRUE)),"") ->  | H96: =IF(B96<=$J$68,G96,"") ->  | J96: =K72 -> 120 | K96: =H96 ->  | L96: 0.05 | M96: 0.1 | N96: 0.15
B97: =B96+1 -> 2 | C97: (121)-(240) | D97: 0 | F97: =IF(B97<=$J$68,E97+F96,"") ->  | H97: =IF(B97<=$J$68,G97-G96,"") ->  | J97: =K73 -> 240 | K97: =H97 ->  | L97: 0.05 | M97: 0.1 | N97: 0.15
B98: 3 | C98: >241 | D98: 0 | J98: =K74 -> 360 | L98: 0.05 | M98: 0.1 | N98: 0.15
B99: 4 | J99: 480 | L99: 0.05 | M99: 0.1 | N99: 0.15
B100: 5 | J100: 600 | L100: 0.05 | M100: 0.1 | N100: 0.15
B101: 6 | J101: 720 | L101: 0.05 | M101: 0.1 | N101: 0.15
B102: 7 | J102: 840 | L102: 0.05 | M102: 0.1 | N102: 0.15
B103: 8 | J103: 960 | L103: 0.05 | M103: 0.1 | N103: 0.15
B104: 9 | J104: 1080 | L104: 0.05 | M104: 0.1 | N104: 0.15
B105: 10 | J105: 1200 | L105: 0.05 | M105: 0.1 | N105: 0.15
B106: 11 | J106: 1320 | L106: 0.05 | M106: 0.1 | N106: 0.15
B107: 12 | J107: 1440 | L107: 0.05 | M107: 0.1 | N107: 0.15
B108: 13 | J108: 1560 | L108: 0.05 | M108: 0.1 | N108: 0.15
B109: 14 | J109: 1680 | L109: 0.05 | M109: 0.1 | N109: 0.15
B110: 15 | J110: 1800 | L110: 0.05 | M110: 0.1 | N110: 0.15
B111: 16 | J111: 1920 | L111: 0.05 | M111: 0.1 | N111: 0.15
B112: 17 | J112: 2040 | L112: 0.05 | M112: 0.1 | N112: 0.15
C113: Sum | D113: =SUM(D96:D112) -> 0 | E113: =SUM(E96:E112) ->  | H113: =SUM(H96:H112) -> 
A115: ="8. หาค่าVolume of Flood Control Reserve ของเดือน"&D4&"ที่ค่าความเสี่ยงต่างๆ จากกราฟการแจกแจงความน่าจะเป็น" -> 8. หาค่าVolume of Flood Control Reserve ของเดือนมีนาคมที่ค่าความเสี่ยงต่างๆ จากกราฟการแจกแจงความน่าจะเป็น
J126: P(NRIt>VFCt)< Risk
J127: =IF(NRI!D54<0,"Volume Buffer","Volum Flood Control") -> 
J128: Risk(%) | K128: =IF(NRI!D54<0,"VBUF(mcm)","VFC(mcm)") ->  | M128: X-Axis | N128: X-ordinate | O128: Y-Axis | P128: Y-ordinate
J129: 15 | K129: 373 | M129: X1= | N129: 374 | O129: Y1= | P129: 0.1591207405
J130: 10 | K130: 405 | M130: X2= | N130: 475 | O130: Y2= | P130: 0.1311703176
J131: 5 | K131: 443 | M131: X0= | N131: =N129-((N129-N130)*(P129-P131)/(P129-P130)) -> 406.95817 | O131: Y0= | P131: 0.15

Sheet เม.ย. (hidden)
B2: 6. การหาค่าสถิติและการทดสอบความเหมาะสมของ Distribution Function กับข้อมูล Net Reservoir Inflow(NIR) | L2: =NRI!O1 -> 0
B4: 4 | C4: Apr | D4: เมษายน
E5: Empirical | F5: GUMBEL | H5: NORMAL | K5: LOG-NORMAL
B6: No. | C6: NRI | D6: (X) | E6: F'(X) | F6: F(x) | G6: F'(X)-F(X) | H6: Z | I6: F(x) | J6: F'(X)-F(X) | K6: Y | L6: F(x) | M6: F'(X)-f(X)
B7: =IF(1<='หา NRI'!$D$58,1,"") -> 1 | C7: =IF(NRI!F82="","",NRI!F82) ->  | D7: =IF(C7="","",SMALL(OFFSET($C$7,0,0,'หา NRI'!$D$58,1),B7)) ->  | E7: =IF(C7="","",B7/(COUNT($B$7:$B$57)+1)) ->  | F7: =IF(C7="","",EXP(-EXP(-(D7-$C$60)/$C$61))) ->  | G7: =IF(C7="","",ABS(E7-F7)) ->  | H7: =IF(C7="","",(D7-$C$58)/$C$59) ->  | I7: =IF(C7="","",NORMSDIST(H7)) ->  | J7: =IF(C7="","",ABS(E7-I7)) ->  | K7: =IF(C7="","",(LN(D7))) ->  | L7: =IF(C7="","",(LOGNORMDIST(D7,$C$61,$C$62))) ->  | M7: =IF(C7="","",(ABS(E7-L7))) -> 
B8: =IF(B7="","",IF(B7+1<='หา NRI'!$D$58,B7+1,"")) -> 2 | C8: =IF(NRI!F83="","",NRI!F83) ->  | D8: =IF(C8="","",SMALL(OFFSET($C$7,0,0,'หา NRI'!$D$58,1),B8)) ->  | E8: =IF(C8="","",B8/(COUNT($B$7:$B$57)+1)) ->  | F8: =IF(C8="","",EXP(-EXP(-(D8-$C$60)/$C$61))) ->  | G8: =IF(C8="","",ABS(E8-F8)) ->  | H8: =IF(C8="","",(D8-$C$58)/$C$59) ->  | I8: =IF(C8="","",NORMSDIST(H8)) ->  | J8: =IF(C8="","",ABS(E8-I8)) ->  | K8: =IF(C8="","",(LN(D8))) ->  | L8: =IF(C8="","",(LOGNORMDIST(D8,$C$61,$C$62))) ->  | M8: =IF(C8="","",(ABS(E8-L8))) -> 
B9: =IF(B8="","",IF(B8+1<='หา NRI'!$D$58,B8+1,"")) -> 3 | C9: =IF(NRI!F84="","",NRI!F84) ->  | D9: =IF(C9="","",SMALL(OFFSET($C$7,0,0,'หา NRI'!$D$58,1),B9)) -> 
B10: =IF(B9="","",IF(B9+1<='หา NRI'!$D$58,B9+1,"")) -> 4 | C10: =IF(NRI!F85="","",NRI!F85) ->  | D10: =IF(C10="","",SMALL(OFFSET($C$7,0,0,'หา NRI'!$D$58,1),B10)) -> 
B11: =IF(B10="","",IF(B10+1<='หา NRI'!$D$58,B10+1,"")) ->  | C11: =IF(NRI!F86="","",NRI!F86) ->  | D11: =IF(C11="","",SMALL(OFFSET($C$7,0,0,'หา NRI'!$D$58,1),B11)) -> 
B12: =IF(B11="","",IF(B11+1<='หา NRI'!$D$58,B11+1,"")) ->  | C12: =IF(NRI!F87="","",NRI!F87) ->  | D12: =IF(C12="","",SMALL(OFFSET($C$7,0,0,'หา NRI'!$D$58,1),B12)) -> 
B13: =IF(B12="","",IF(B12+1<='หา NRI'!$D$58,B12+1,"")) ->  | C13: =IF(NRI!F88="","",NRI!F88) ->  | D13: =IF(C13="","",SMALL(OFFSET($C$7,0,0,'หา NRI'!$D$58,1),B13)) -> 
B14: =IF(B13="","",IF(B13+1<='หา NRI'!$D$58,B13+1,"")) ->  | C14: =IF(NRI!F89="","",NRI!F89) ->  | D14: =IF(C14="","",SMALL(OFFSET($C$7,0,0,'หา NRI'!$D$58,1),B14)) -> 
B15: =IF(B14="","",IF(B14+1<='หา NRI'!$D$58,B14+1,"")) ->  | C15: =IF(NRI!F90="","",NRI!F90) ->  | D15: =IF(C15="","",SMALL(OFFSET($C$7,0,0,'หา NRI'!$D$58,1),B15)) -> 
B16: =IF(B15="","",IF(B15+1<='หา NRI'!$D$58,B15+1,"")) ->  | C16: =IF(NRI!F91="","",NRI!F91) ->  | D16: =IF(C16="","",SMALL(OFFSET($C$7,0,0,'หา NRI'!$D$58,1),B16)) -> 
B17: =IF(B16="","",IF(B16+1<='หา NRI'!$D$58,B16+1,"")) ->  | C17: =IF(NRI!F92="","",NRI!F92) ->  | D17: =IF(C17="","",SMALL(OFFSET($C$7,0,0,'หา NRI'!$D$58,1),B17)) -> 
B18: =IF(B17="","",IF(B17+1<='หา NRI'!$D$58,B17+1,"")) ->  | C18: =IF(NRI!F93="","",NRI!F93) ->  | D18: =IF(C18="","",SMALL(OFFSET($C$7,0,0,'หา NRI'!$D$58,1),B18)) -> 
B19: =IF(B18="","",IF(B18+1<='หา NRI'!$D$58,B18+1,"")) ->  | C19: =IF(NRI!F94="","",NRI!F94) ->  | D19: =IF(C19="","",SMALL(OFFSET($C$7,0,0,'หา NRI'!$D$58,1),B19)) -> 
B20: =IF(B19="","",IF(B19+1<='หา NRI'!$D$58,B19+1,"")) ->  | C20: =IF(NRI!F95="","",NRI!F95) ->  | D20: =IF(C20="","",SMALL(OFFSET($C$7,0,0,'หา NRI'!$D$58,1),B20)) -> 
B21: =IF(B20="","",IF(B20+1<='หา NRI'!$D$58,B20+1,"")) ->  | C21: =IF(NRI!F96="","",NRI!F96) ->  | D21: =IF(C21="","",SMALL(OFFSET($C$7,0,0,'หา NRI'!$D$58,1),B21)) -> 
B22: =IF(B21="","",IF(B21+1<='หา NRI'!$D$58,B21+1,"")) ->  | C22: =IF(NRI!F97="","",NRI!F97) ->  | D22: =IF(C22="","",SMALL(OFFSET($C$7,0,0,'หา NRI'!$D$58,1),B22)) -> 
B23: =IF(B22="","",IF(B22+1<='หา NRI'!$D$58,B22+1,"")) ->  | C23: =IF(NRI!F98="","",NRI!F98) ->  | D23: =IF(C23="","",SMALL(OFFSET($C$7,0,0,'หา NRI'!$D$58,1),B23)) -> 
B24: =IF(B23="","",IF(B23+1<='หา NRI'!$D$58,B23+1,"")) ->  | C24: =IF(NRI!F99="","",NRI!F99) ->  | D24: =IF(C24="","",SMALL(OFFSET($C$7,0,0,'หา NRI'!$D$58,1),B24)) -> 
B25: =IF(B24="","",IF(B24+1<='หา NRI'!$D$58,B24+1,"")) ->  | C25: =IF(NRI!F100="","",NRI!F100) ->  | D25: =IF(C25="","",SMALL(OFFSET($C$7,0,0,'หา NRI'!$D$58,1),B25)) -> 
B26: =IF(B25="","",IF(B25+1<='หา NRI'!$D$58,B25+1,"")) ->  | C26: =IF(NRI!F101="","",NRI!F101) ->  | D26: =IF(C26="","",SMALL(OFFSET($C$7,0,0,'หา NRI'!$D$58,1),B26)) -> 
B27: =IF(B26="","",IF(B26+1<='หา NRI'!$D$58,B26+1,"")) ->  | C27: =IF(NRI!F102="","",NRI!F102) ->  | D27: =IF(C27="","",SMALL(OFFSET($C$7,0,0,'หา NRI'!$D$58,1),B27)) -> 
B28: =IF(B27="","",IF(B27+1<='หา NRI'!$D$58,B27+1,"")) ->  | C28: =IF(NRI!F103="","",NRI!F103) ->  | D28: =IF(C28="","",SMALL(OFFSET($C$7,0,0,'หา NRI'!$D$58,1),B28)) -> 
B29: =IF(B28="","",IF(B28+1<='หา NRI'!$D$58,B28+1,"")) ->  | C29: =IF(NRI!F104="","",NRI!F104) ->  | D29: =IF(C29="","",SMALL(OFFSET($C$7,0,0,'หา NRI'!$D$58,1),B29)) -> 
B30: =IF(B29="","",IF(B29+1<='หา NRI'!$D$58,B29+1,"")) ->  | C30: =IF(NRI!F105="","",NRI!F105) ->  | D30: =IF(C30="","",SMALL(OFFSET($C$7,0,0,'หา NRI'!$D$58,1),B30)) -> 
B31: =IF(B30="","",IF(B30+1<='หา NRI'!$D$58,B30+1,"")) ->  | C31: =IF(NRI!F106="","",NRI!F106) ->  | D31: =IF(C31="","",SMALL(OFFSET($C$7,0,0,'หา NRI'!$D$58,1),B31)) -> 
B32: =IF(B31="","",IF(B31+1<='หา NRI'!$D$58,B31+1,"")) ->  | C32: =IF(NRI!F107="","",NRI!F107) ->  | D32: =IF(C32="","",SMALL(OFFSET($C$7,0,0,'หา NRI'!$D$58,1),B32)) -> 
B33: =IF(B32="","",IF(B32+1<='หา NRI'!$D$58,B32+1,"")) ->  | C33: =IF(NRI!F108="","",NRI!F108) ->  | D33: =IF(C33="","",SMALL(OFFSET($C$7,0,0,'หา NRI'!$D$58,1),B33)) -> 
B34: =IF(B33="","",IF(B33+1<='หา NRI'!$D$58,B33+1,"")) ->  | C34: =IF(NRI!F109="","",NRI!F109) ->  | D34: =IF(C34="","",SMALL(OFFSET($C$7,0,0,'หา NRI'!$D$58,1),B34)) -> 
B35: =IF(B34="","",IF(B34+1<='หา NRI'!$D$58,B34+1,"")) ->  | C35: =IF(NRI!F110="","",NRI!F110) ->  | D35: =IF(C35="","",SMALL(OFFSET($C$7,0,0,'หา NRI'!$D$58,1),B35)) -> 
B36: =IF(B35="","",IF(B35+1<='หา NRI'!$D$58,B35+1,"")) ->  | C36: =IF(NRI!F111="","",NRI!F111) ->  | D36: =IF(C36="","",SMALL(OFFSET($C$7,0,0,'หา NRI'!$D$58,1),B36)) -> 
B37: =IF(B36="","",IF(B36+1<='หา NRI'!$D$58,B36+1,"")) ->  | C37: =IF(NRI!F112="","",NRI!F112) ->  | D37: =IF(C37="","",SMALL(OFFSET($C$7,0,0,'หา NRI'!$D$58,1),B37)) -> 
B38: =IF(B37="","",IF(B37+1<='หา NRI'!$D$58,B37+1,"")) ->  | C38: =IF(NRI!F113="","",NRI!F113) ->  | D38: =IF(C38="","",SMALL(OFFSET($C$7,0,0,'หา NRI'!$D$58,1),B38)) -> 
B39: =IF(B38="","",IF(B38+1<='หา NRI'!$D$58,B38+1,"")) ->  | C39: =IF(NRI!F114="","",NRI!F114) ->  | D39: =IF(C39="","",SMALL(OFFSET($C$7,0,0,'หา NRI'!$D$58,1),B39)) -> 
B40: =IF(B39="","",IF(B39+1<='หา NRI'!$D$58,B39+1,"")) ->  | C40: =IF(NRI!F115="","",NRI!F115) ->  | D40: =IF(C40="","",SMALL(OFFSET($C$7,0,0,'หา NRI'!$D$58,1),B40)) -> 
B41: =IF(B40="","",IF(B40+1<='หา NRI'!$D$58,B40+1,"")) ->  | C41: =IF(NRI!F116="","",NRI!F116) ->  | D41: =IF(C41="","",SMALL(OFFSET($C$7,0,0,'หา NRI'!$D$58,1),B41)) -> 
B42: =IF(B41="","",IF(B41+1<='หา NRI'!$D$58,B41+1,"")) ->  | C42: =IF(NRI!F117="","",NRI!F117) ->  | D42: =IF(C42="","",SMALL(OFFSET($C$7,0,0,'หา NRI'!$D$58,1),B42)) -> 
B43: =IF(B42="","",IF(B42+1<='หา NRI'!$D$58,B42+1,"")) ->  | C43: =IF(NRI!F118="","",NRI!F118) ->  | D43: =IF(C43="","",SMALL(OFFSET($C$7,0,0,'หา NRI'!$D$58,1),B43)) -> 
B44: =IF(B43="","",IF(B43+1<='หา NRI'!$D$58,B43+1,"")) ->  | C44: =IF(NRI!F119="","",NRI!F119) ->  | D44: =IF(C44="","",SMALL(OFFSET($C$7,0,0,'หา NRI'!$D$58,1),B44)) -> 
B45: =IF(B44="","",IF(B44+1<='หา NRI'!$D$58,B44+1,"")) ->  | C45: =IF(NRI!F120="","",NRI!F120) ->  | D45: =IF(C45="","",SMALL(OFFSET($C$7,0,0,'หา NRI'!$D$58,1),B45)) -> 
B46: =IF(B45="","",IF(B45+1<='หา NRI'!$D$58,B45+1,"")) ->  | C46: =IF(NRI!F121="","",NRI!F121) ->  | D46: =IF(C46="","",SMALL(OFFSET($C$7,0,0,'หา NRI'!$D$58,1),B46)) -> 
B47: =IF(B46="","",IF(B46+1<='หา NRI'!$D$58,B46+1,"")) ->  | C47: =IF(NRI!F122="","",NRI!F122) ->  | D47: =IF(C47="","",SMALL(OFFSET($C$7,0,0,'หา NRI'!$D$58,1),B47)) -> 
B48: =IF(B47="","",IF(B47+1<='หา NRI'!$D$58,B47+1,"")) ->  | C48: =IF(NRI!F123="","",NRI!F123) ->  | D48: =IF(C48="","",SMALL(OFFSET($C$7,0,0,'หา NRI'!$D$58,1),B48)) -> 
B49: =IF(B48="","",IF(B48+1<='หา NRI'!$D$58,B48+1,"")) ->  | C49: =IF(NRI!F124="","",NRI!F124) ->  | D49: =IF(C49="","",SMALL(OFFSET($C$7,0,0,'หา NRI'!$D$58,1),B49)) -> 
B50: =IF(B49="","",IF(B49+1<='หา NRI'!$D$58,B49+1,"")) ->  | C50: =IF(NRI!F125="","",NRI!F125) ->  | D50: =IF(C50="","",SMALL(OFFSET($C$7,0,0,'หา NRI'!$D$58,1),B50)) -> 
B51: =IF(B50="","",IF(B50+1<='หา NRI'!$D$58,B50+1,"")) ->  | C51: =IF(NRI!F126="","",NRI!F126) ->  | D51: =IF(C51="","",SMALL(OFFSET($C$7,0,0,'หา NRI'!$D$58,1),B51)) -> 
B52: =IF(B51="","",IF(B51+1<='หา NRI'!$D$58,B51+1,"")) ->  | C52: =IF(NRI!F127="","",NRI!F127) ->  | D52: =IF(C52="","",SMALL(OFFSET($C$7,0,0,'หา NRI'!$D$58,1),B52)) -> 
B53: =IF(B52="","",IF(B52+1<='หา NRI'!$D$58,B52+1,"")) ->  | C53: =IF(NRI!F128="","",NRI!F128) ->  | D53: =IF(C53="","",SMALL(OFFSET($C$7,0,0,'หา NRI'!$D$58,1),B53)) -> 
B54: =IF(B53="","",IF(B53+1<='หา NRI'!$D$58,B53+1,"")) ->  | C54: =IF(NRI!F129="","",NRI!F129) ->  | D54: =IF(C54="","",SMALL(OFFSET($C$7,0,0,'หา NRI'!$D$58,1),B54)) -> 
B55: =IF(B54="","",IF(B54+1<='หา NRI'!$D$58,B54+1,"")) ->  | C55: =IF(NRI!F130="","",NRI!F130) ->  | D55: =IF(C55="","",SMALL(OFFSET($C$7,0,0,'หา NRI'!$D$58,1),B55)) -> 
B56: =IF(B55="","",IF(B55+1<='หา NRI'!$D$58,B55+1,"")) ->  | C56: =IF(NRI!F131="","",NRI!F131) ->  | D56: =IF(C56="","",SMALL(OFFSET($C$7,0,0,'หา NRI'!$D$58,1),B56)) -> 
B57: =IF(B56="","",IF(B56+1<='หา NRI'!$D$58,B56+1,"")) ->  | C57: =IF(NRI!F132="","",NRI!F132) ->  | D57: =IF(C57="","",SMALL(OFFSET($C$7,0,0,'หา NRI'!$D$58,1),B57)) -> 
B58: MEAN | C58: =AVERAGE(C7:C57) ->  | F58: MAX | G58: =MAX(G7:G57) -> 0 | I58: MAX | J58: =MAX(J7:J57) -> 0 | L58: MAX | M58: =MAX(M7:M17) -> 0
